Workbook

Sheet Parameters
A1: Parameter Name | B1: Base Case Value | C1: Description
A2: n_cohort | B2: 1 | C2: Cohort size
A3: horizon | B3: 500 | C3: Time horizon (years)
A4: Delta_t | B4: 1 | C4: Time step (cycle length)
A5: age0 | B5: 25 | C5: Cohort starting age
A6: r_disc_h | B6: 0.03 | C6: Annual discount rate (health outcomes)
A7: r_disc_c | B7: 0.03 | C7: Annual discount rate (cost outcomes)
A8: r_HS1 | B8: 0.15 | C8: Rate: Healthy to sick (S1)
A9: r_S1H | B9: 0.5 | C9: Rate: Recovery (Sick [S1] to Healthy [H])
A10: r_S1S2 | B10: 0.105 | C10: Rate: Sick (S1) to sicker (S2)
A11: r_HD | B11: 0.002 | C11: Rate: Background mortality
A12: hr_S1 | B12: 3 | C12: Hazard Ratio: Sick (S1) to Death (D)
A13: hr_S2 | B13: 10 | C13: Hazard Ratio: Sicker (S2) to Death (D)
A14: dw_S1 | B14: 0.25 | C14: Disability weight: Sick (S1)
A15: dw_S2 | B15: 0.5 | C15: Disability weight: Sicker (S2)
A16: c_H | B16: 2000 | C16: Annual Cost: Healthy (H)
A17: c_S1 | B17: 4000 | C17: Annual Cost: Sick (S1)
A18: c_S2 | B18: 15000 | C18: Annual Cost: Sicker (S2)
A19: c_D | B19: 0 | C19: Annual Cost: Dead (D)
A20: c_trtA | B20: 12000 | C20: Annual Cost: Strategy A
A21: dw_trtA | B21: 0.05 | C21: Disbility weight: Sick (S1) under strategy A
A22: c_trtB | B22: 13000 | C22: Annual Cost: Strategy B
A23: hr_S1S2_trtB | B23: 0.6 | C23: Hazard Ratio: Sick (S1) to Sicker (S2) under strategy B
A24: r_H | B24: =r_disc_h*Delta_t -> 0.03 | C24: Cycle discount rate (health outcomes)
A25: r_C | B25: =r_disc_c * Delta_t -> 0.03 | C25: Cycle discount rate (cost outcomes)
A27: Scalar parameters in blue
A28: Calculated parameters in red

Sheet Summary and CEA
A2: Table 1. Expected Health Outcomes, by Strategy and Approach
A3: Strategy | B3: Years Living with Disease (YLDs) | D3: Years of Life Lost to Premature Mortality (YLLs) | F3: Disability-Adjusted Life Years (DALYs)
A4: Approach 1 (beginner)
A5: Standard of Care | B5: =YLD_SOC -> 4.612844457 | D5: =YLL_SOC -> 2.865131024 | F5: =DALY_SOC -> 7.477975481
A6: Strategy A: Quality of Life Improvement | B6: =YLD_A -> 3.909589417 | D6: =YLL_A -> 2.865131024 | F6: =DALY_A -> 6.774720441
A7: Strategy B: Reduce Disease Progression | B7: =YLD_B -> 3.825806842 | D7: =YLL_B -> 2.179874407 | F7: =DALY_B -> 6.005681248
A8: Composite: Strategy A + Strategy B | B8: =YLD_AB -> 2.962733247 | D8: =YLL_AB -> 2.179874407 | F8: =DALY_AB -> 5.142607654
A9: Approach 2 (intermediate)
A10: Standard of Care | B10: =YLD2_SOC -> 4.607755684 | D10: =YLL2_SOC -> 2.83258966 | F10: =DALY2_SOC -> 7.440345344
A11: Strategy A: Quality of Life Improvement | B11: =YLD2_A -> 3.901034228 | D11: =YLL2_A -> 2.83258966 | F11: =DALY2_A -> 6.733623888
A12: Strategy B: Reduce Disease Progression | B12: =YLD2_B -> 3.819413602 | D12: =YLL2_B -> 2.155001112 | F12: =DALY2_B -> 5.974414714
A13: Composite: Strategy A + Strategy B | B13: =YLD2_AB -> 2.953263638 | D13: =YLL2_AB -> 2.155001112 | F13: =DALY2_AB -> 5.10826475
A17: Table 2. Cost-Effectiveness Analysis | B17: Approach 1 (beginner) | D17: Approach 2 (intermediate)
A18: Outcome and Strategy
A19: Cost
A20: Standard of Care | B20: =COST_SOC -> 155457.9717 | D20: =COST2_SOC -> 155348.9011
A21: Strategy B: Reduce Disease Progression | B21: =COST_B -> 261186.387 | D21: =COST2_B -> 260967.9922
A22: Composite: Strategy A + Strategy B | B22: =COST_AB -> 379386.9281 | D22: =COST2_AB -> 379109.1608
A23: Strategy A: Quality of Life Improvement | B23: =COST_A -> 287961.4734 | D23: =COST2_A -> 287836.8402
A24: DALY
A25: Standard of Care | B25: =DALY_SOC -> 7.477975481 | D25: =DALY2_SOC -> 7.440345344
A26: Strategy B: Reduce Disease Progression | B26: =DALY_B -> 6.005681248 | D26: =DALY2_B -> 5.974414714
A27: Composite: Strategy A + Strategy B | B27: =DALY_AB -> 5.142607654 | D27: =DALY2_AB -> 5.10826475
A28: Strategy A: Quality of Life Improvement | B28: =DALY_A -> 6.774720441 | D28: =DALY2_A -> 6.733623888
A29: ICER ($/DALY Averted)
A30: Standard of Care | B30: ref. | D30: ref.
A31: Strategy B: Reduce Disease Progression | B31: =(B21-B20)/(-B26--B25) -> 71812.01484 | D31: =(D21-D20)/(-D26--D25) -> 72049.17407
A32: Composite: Strategy A + Strategy B | B32: =(B22-B21)/(-B27--B26) -> 136953.0268 | D32: =(D22-D21)/(-D27--D26) -> 136398.0529
A33: Strategy A: Quality of Life Improvement | B33: Dominated | D33: Dominated

Sheet Transition Matrices (App. 1)
A1: Strategy | B1: Transition Probability Matrices (calculated via power series expansion) | I1: Transition Rate Matrices (scalar inputs in blue; calcualted values in red) | P1: Power Series Expansion (no further edits necessary)
B2: m_P_soc | C2: H | D2: S1 | E2: S2 | F2: DS | G2: DOC | I2: m_R_soc | J2: H | K2: S1 | L2: S2 | M2: DS | N2: DOC | P2: Identity | Q2: H | R2: S1 | S2: S2 | T2: DS | U2: DOC | W2: R^1 | X2: H | Y2: S1 | Z2: S2 | AA2: DS | AB2: DOC | AD2: R^2 | AE2: H | AF2: S1 | AG2: S2 | AH2: DS | AI2: DOC | AK2: R^3 | AL2: H | AM2: S1 | AN2: S2 | AO2: DS | AP2: DOC | AR2: R^4 | AS2: H | AT2: S1 | AU2: S2 | AV2: DS | AW2: DOC
A3: SOC | B3: H | C3: =1-SUM(D3:G3) -> 0.8870041371 | D3: =R3+Y3+(1/FACT(2))*AF3+(1/FACT(3))*AM3+(1/FACT(4))*AT3 -> 0.104476433 | E3: =S3+Z3+(1/FACT(2))*AG3+(1/FACT(3))*AN3+(1/FACT(4))*AU3 -> 0.006245097469 | F3: =T3+AA3+(1/FACT(2))*AH3+(1/FACT(3))*AO3+(1/FACT(4))*AV3 -> 0.0002763311125 | G3: =U3+AB3+(1/FACT(2))*AI3+(1/FACT(3))*AP3+(1/FACT(4))*AW3 -> 0.001998001333 | I3: H | J3: =-(K3+L3+N3) -> -0.152 | K3: =r_HS1*Delta_t -> 0.15 | L3: 0 | M3: 0 | N3: =r_HD*Delta_t -> 0.002 | P3: H | Q3: 1 | R3: 0 | S3: 0 | T3: 0 | U3: 0 | W3: H | X3: =m_R_soc -> -0.152 | Y3: 0.15 | Z3: 0 | AA3: 0 | AB3: 0.002 | AD3: H | AE3: =MMULT(m_R_soc,m_R_soc) -> 0.098104 | AF3: -0.11385 | AG3: 0.01575 | AH3: 0.0006 | AI3: -4e-06 | AK3: H | AL3: =MMULT(MMULT(m_R_soc,m_R_soc), m_R_soc) -> -0.071836808 | AM3: 0.08382255 | AN3: -0.01198575 | AO3: -0.0001719 | AP3: 8e-09 | AR3: H | AS3: =MMULT(MMULT(MMULT(m_R_soc,m_R_soc), m_R_soc),m_R_soc) -> 0.05283046982 | AT3: -0.06165580905 | AU3: 0.00882533925 | AV3: 0.0001195467 | AW3: -1.600000002e-11
B4: S1 | C4: =Q4+X4+(1/FACT(2))*AE4+(1/FACT(3))*AL4+(1/FACT(4))*AS4 -> 0.3482547765 | D4: =1-(C4+E4+F4+G4) -> 0.5665531562 | E4: =S4+Z4+(1/FACT(2))*AG4+(1/FACT(3))*AN4+(1/FACT(4))*AU4 -> 0.07937860054 | F4: =T4+AA4+(1/FACT(2))*AH4+(1/FACT(3))*AO4+(1/FACT(4))*AV4 -> 0.003815465436 | G4: =U4+AB4+(1/FACT(2))*AI4+(1/FACT(3))*AP4+(1/FACT(4))*AW4 -> 0.001998001333 | I4: S1 | J4: =r_S1H*Delta_t -> 0.5 | K4: =-(J4+L4+N4) -> -0.607 | L4: =r_S1S2*Delta_t -> 0.105 | M4: =(hr_S1 * r_HD - r_HD)*Delta_t -> 0.004 | N4: =r_HD*Delta_t -> 0.002 | P4: S1 | Q4: 0 | R4: 1 | S4: 0 | T4: 0 | U4: 0 | W4: S1 | X4: 0.5 | Y4: -0.607 | Z4: 0.105 | AA4: 0.004 | AB4: 0.002 | AD4: S1 | AE4: -0.3795 | AF4: 0.443449 | AG4: -0.063945 | AH4: -0.000538 | AI4: -4e-06 | AK4: S1 | AL4: 0.2794085 | AM4: -0.326098543 | AN4: 0.046690035 | AO4: 0.000622786 | AP4: 8e-09 | AR4: S1 | AS4: -0.2055193635 | AT4: 0.2398530906 | AU4: -0.03433372708 | AV4: -0.000463973542 | AW4: -1.599999999e-11
B5: S2 | C5: =Q5+X5+(1/FACT(2))*AE5+(1/FACT(3))*AL5+(1/FACT(4))*AS5 -> 0 | D5: =R5+Y5+(1/FACT(2))*AF5+(1/FACT(3))*AM5+(1/FACT(4))*AT5 -> 0 | E5: =1-(C5+D5+F5+G5) -> 0.9800199867 | F5: =T5+AA5+(1/FACT(2))*AH5+(1/FACT(3))*AO5+(1/FACT(4))*AV5 -> 0.01798201199 | G5: =U5+AB5+(1/FACT(2))*AI5+(1/FACT(3))*AP5+(1/FACT(4))*AW5 -> 0.001998001333 | I5: S2 | J5: 0 | K5: 0 | L5: =-N5 -> -0.002 | M5: =(hr_S2 * r_HD - r_HD)*Delta_t -> 0.018 | N5: =r_HD*Delta_t -> 0.002 | P5: S2 | Q5: 0 | R5: 0 | S5: 1 | T5: 0 | U5: 0 | W5: S2 | X5: 0 | Y5: 0 | Z5: -0.002 | AA5: 0.018 | AB5: 0.002 | AD5: S2 | AE5: 0 | AF5: 0 | AG5: 4e-06 | AH5: -3.6e-05 | AI5: -4e-06 | AK5: S2 | AL5: 0 | AM5: 0 | AN5: -8e-09 | AO5: 7.2e-08 | AP5: 8e-09 | AR5: S2 | AS5: 0 | AT5: 0 | AU5: 1.6e-11 | AV5: -1.44e-10 | AW5: -1.6e-11
B6: DS | C6: =Q6+X6+(1/FACT(2))*AE6+(1/FACT(3))*AL6+(1/FACT(4))*AS6 -> 0 | D6: =R6+Y6+(1/FACT(2))*AF6+(1/FACT(3))*AM6+(1/FACT(4))*AT6 -> 0 | E6: =S6+Z6+(1/FACT(2))*AG6+(1/FACT(3))*AN6+(1/FACT(4))*AU6 -> 0 | F6: =1-(C6+D6+E6+G6) -> 1 | G6: =U6+AB6+(1/FACT(2))*AI6+(1/FACT(3))*AP6+(1/FACT(4))*AW6 -> 0 | I6: DS | J6: 0 | K6: 0 | L6: 0 | M6: 0 | N6: 0 | P6: DS | Q6: 0 | R6: 0 | S6: 0 | T6: 1 | U6: 0 | X6: 0 | Y6: 0 | Z6: 0 | AA6: 0 | AB6: 0 | AE6: 0 | AF6: 0 | AG6: 0 | AH6: 0 | AI6: 0 | AL6: 0 | AM6: 0 | AN6: 0 | AO6: 0 | AP6: 0 | AS6: 0 | AT6: 0 | AU6: 0 | AV6: 0 | AW6: 0
B7: DOC | C7: =Q7+X7+(1/FACT(2))*AE7+(1/FACT(3))*AL7+(1/FACT(4))*AS7 -> 0 | D7: =R7+Y7+(1/FACT(2))*AF7+(1/FACT(3))*AM7+(1/FACT(4))*AT7 -> 0 | E7: =S7+Z7+(1/FACT(2))*AG7+(1/FACT(3))*AN7+(1/FACT(4))*AU7 -> 0 | F7: =T7+AA7+(1/FACT(2))*AH7+(1/FACT(3))*AO7+(1/FACT(4))*AV7 -> 0 | G7: =1-(C7+D7+E7+F7) -> 1 | I7: DOC | J7: 0 | K7: 0 | L7: 0 | M7: 0 | N7: 0 | P7: DOC | Q7: 0 | R7: 0 | S7: 0 | T7: 0 | U7: 1 | W7: D | X7: 0 | Y7: 0 | Z7: 0 | AA7: 0 | AB7: 0 | AD7: D | AE7: 0 | AF7: 0 | AG7: 0 | AH7: 0 | AI7: 0 | AK7: D | AL7: 0 | AM7: 0 | AN7: 0 | AO7: 0 | AP7: 0 | AR7: D | AS7: 0 | AT7: 0 | AU7: 0 | AV7: 0 | AW7: 0
B8: m_P_A | C8: H | D8: S1 | E8: S2 | F8: DS | G8: DOC | I8: m_R_A | J8: H | K8: S1 | L8: S2 | N8: D | Q8: H | R8: S1 | S8: S2 | T8: DS | U8: DOC | X8: H | Y8: S1 | Z8: S2 | AA8: DS | AB8: DOC | AE8: H | AF8: S1 | AG8: S2 | AH8: DS | AI8: DOC | AL8: H | AM8: S1 | AN8: S2 | AO8: DS | AP8: DOC | AS8: H | AT8: S1 | AU8: S2 | AV8: DS | AW8: DOC
A9: A | B9: H | C9: =1-SUM(D9:G9) -> 0.8870041371 | D9: =R9+Y9+(1/FACT(2))*AF9+(1/FACT(3))*AM9+(1/FACT(4))*AT9 -> 0.104476433 | E9: =S9+Z9+(1/FACT(2))*AG9+(1/FACT(3))*AN9+(1/FACT(4))*AU9 -> 0.006245097469 | F9: =T9+AA9+(1/FACT(2))*AH9+(1/FACT(3))*AO9+(1/FACT(4))*AV9 -> 0.0002763311125 | G9: =U9+AB9+(1/FACT(2))*AI9+(1/FACT(3))*AP9+(1/FACT(4))*AW9 -> 0.001998001333 | I9: H | J9: =-(K9+L9+N9) -> -0.152 | K9: =r_HS1*Delta_t -> 0.15 | L9: 0 | M9: 0 | N9: =r_HD*Delta_t -> 0.002 | P9: H | Q9: 1 | R9: 0 | S9: 0 | T9: 0 | U9: 0 | W9: H | X9: =m_R_A -> -0.152 | Y9: 0.15 | Z9: 0 | AA9: 0 | AB9: 0.002 | AD9: H | AE9: =MMULT(m_R_A,m_R_A) -> 0.098104 | AF9: -0.11385 | AG9: 0.01575 | AH9: 0.0006 | AI9: -4e-06 | AK9: H | AL9: =MMULT(MMULT(m_R_A,m_R_A), m_R_A) -> -0.071836808 | AM9: 0.08382255 | AN9: -0.01198575 | AO9: -0.0001719 | AP9: 8e-09 | AR9: H | AS9: =MMULT(MMULT(MMULT(m_R_A,m_R_A), m_R_A),m_R_A) -> 0.05283046982 | AT9: -0.06165580905 | AU9: 0.00882533925 | AV9: 0.0001195467 | AW9: -1.600000002e-11
B10: S1 | C10: =Q10+X10+(1/FACT(2))*AE10+(1/FACT(3))*AL10+(1/FACT(4))*AS10 -> 0.3482547765 | D10: =1-(C10+E10+F10+G10) -> 0.5665531562 | E10: =S10+Z10+(1/FACT(2))*AG10+(1/FACT(3))*AN10+(1/FACT(4))*AU10 -> 0.07937860054 | F10: =T10+AA10+(1/FACT(2))*AH10+(1/FACT(3))*AO10+(1/FACT(4))*AV10 -> 0.003815465436 | G10: =U10+AB10+(1/FACT(2))*AI10+(1/FACT(3))*AP10+(1/FACT(4))*AW10 -> 0.001998001333 | I10: S1 | J10: =r_S1H*Delta_t -> 0.5 | K10: =-(J10+L10+N10) -> -0.607 | L10: =r_S1S2*Delta_t -> 0.105 | M10: =(hr_S1 * r_HD - r_HD)*Delta_t -> 0.004 | N10: =r_HD*Delta_t -> 0.002 | P10: S1 | Q10: 0 | R10: 1 | S10: 0 | T10: 0 | U10: 0 | W10: S1 | X10: 0.5 | Y10: -0.607 | Z10: 0.105 | AA10: 0.004 | AB10: 0.002 | AD10: S1 | AE10: -0.3795 | AF10: 0.443449 | AG10: -0.063945 | AH10: -0.000538 | AI10: -4e-06 | AK10: S1 | AL10: 0.2794085 | AM10: -0.326098543 | AN10: 0.046690035 | AO10: 0.000622786 | AP10: 8e-09 | AR10: S1 | AS10: -0.2055193635 | AT10: 0.2398530906 | AU10: -0.03433372708 | AV10: -0.000463973542 | AW10: -1.599999999e-11
B11: S2 | C11: =Q11+X11+(1/FACT(2))*AE11+(1/FACT(3))*AL11+(1/FACT(4))*AS11 -> 0 | D11: =R11+Y11+(1/FACT(2))*AF11+(1/FACT(3))*AM11+(1/FACT(4))*AT11 -> 0 | E11: =1-(C11+D11+F11+G11) -> 0.9800199867 | F11: =T11+AA11+(1/FACT(2))*AH11+(1/FACT(3))*AO11+(1/FACT(4))*AV11 -> 0.01798201199 | G11: =U11+AB11+(1/FACT(2))*AI11+(1/FACT(3))*AP11+(1/FACT(4))*AW11 -> 0.001998001333 | I11: S2 | J11: 0 | K11: 0 | L11: =-N11 -> -0.002 | M11: =(hr_S2 * r_HD - r_HD)*Delta_t -> 0.018 | N11: =r_HD*Delta_t -> 0.002 | P11: S2 | Q11: 0 | R11: 0 | S11: 1 | T11: 0 | U11: 0 | W11: S2 | X11: 0 | Y11: 0 | Z11: -0.002 | AA11: 0.018 | AB11: 0.002 | AD11: S2 | AE11: 0 | AF11: 0 | AG11: 4e-06 | AH11: -3.6e-05 | AI11: -4e-06 | AK11: S2 | AL11: 0 | AM11: 0 | AN11: -8e-09 | AO11: 7.2e-08 | AP11: 8e-09 | AR11: S2 | AS11: 0 | AT11: 0 | AU11: 1.6e-11 | AV11: -1.44e-10 | AW11: -1.6e-11
B12: DS | C12: =Q12+X12+(1/FACT(2))*AE12+(1/FACT(3))*AL12+(1/FACT(4))*AS12 -> 0 | D12: =R12+Y12+(1/FACT(2))*AF12+(1/FACT(3))*AM12+(1/FACT(4))*AT12 -> 0 | E12: =S12+Z12+(1/FACT(2))*AG12+(1/FACT(3))*AN12+(1/FACT(4))*AU12 -> 0 | F12: =1-(C12+D12+E12+G12) -> 1 | G12: =U12+AB12+(1/FACT(2))*AI12+(1/FACT(3))*AP12+(1/FACT(4))*AW12 -> 0 | I12: DS | J12: 0 | K12: 0 | L12: 0 | M12: 0 | N12: 0 | P12: DS | Q12: 0 | R12: 0 | S12: 0 | T12: 1 | U12: 0 | X12: 0 | Y12: 0 | Z12: 0 | AA12: 0 | AB12: 0 | AE12: 0 | AF12: 0 | AG12: 0 | AH12: 0 | AI12: 0 | AL12: 0 | AM12: 0 | AN12: 0 | AO12: 0 | AP12: 0 | AS12: 0 | AT12: 0 | AU12: 0 | AV12: 0 | AW12: 0
B13: DOC | C13: =Q13+X13+(1/FACT(2))*AE13+(1/FACT(3))*AL13+(1/FACT(4))*AS13 -> 0 | D13: =R13+Y13+(1/FACT(2))*AF13+(1/FACT(3))*AM13+(1/FACT(4))*AT13 -> 0 | E13: =S13+Z13+(1/FACT(2))*AG13+(1/FACT(3))*AN13+(1/FACT(4))*AU13 -> 0 | F13: =T13+AA13+(1/FACT(2))*AH13+(1/FACT(3))*AO13+(1/FACT(4))*AV13 -> 0 | G13: =1-(C13+D13+E13+F13) -> 1 | I13: DOC | J13: 0 | K13: 0 | L13: 0 | M13: 0 | N13: 0 | P13: DOC | Q13: 0 | R13: 0 | S13: 0 | T13: 0 | U13: 1 | W13: D | X13: 0 | Y13: 0 | Z13: 0 | AA13: 0 | AB13: 0 | AD13: D | AE13: 0 | AF13: 0 | AG13: 0 | AH13: 0 | AI13: 0 | AK13: D | AL13: 0 | AM13: 0 | AN13: 0 | AO13: 0 | AP13: 0 | AR13: D | AS13: 0 | AT13: 0 | AU13: 0 | AV13: 0 | AW13: 0
B14: m_P_B | C14: H | D14: S1 | E14: S2 | F14: DS | G14: DOC | I14: m_R_B | J14: H | K14: S1 | L14: S2 | N14: D | Q14: H | R14: S1 | S14: S2 | T14: DS | U14: DOC | X14: H | Y14: S1 | Z14: S2 | AA14: DS | AB14: DOC | AE14: H | AF14: S1 | AG14: S2 | AH14: DS | AI14: DOC | AL14: H | AM14: S1 | AN14: S2 | AO14: DS | AP14: DOC | AS14: H | AT14: S1 | AU14: S2 | AV14: DS | AW14: DOC
A15: B | B15: H | C15: =1-SUM(D15:G15) -> 0.8873476089 | D15: =R15+Y15+(1/FACT(2))*AF15+(1/FACT(3))*AM15+(1/FACT(4))*AT15 -> 0.1065989757 | E15: =S15+Z15+(1/FACT(2))*AG15+(1/FACT(3))*AN15+(1/FACT(4))*AU15 -> 0.003791279756 | F15: =T15+AA15+(1/FACT(2))*AH15+(1/FACT(3))*AO15+(1/FACT(4))*AV15 -> 0.0002641343125 | G15: =U15+AB15+(1/FACT(2))*AI15+(1/FACT(3))*AP15+(1/FACT(4))*AW15 -> 0.001998001333 | I15: H | J15: =-(K15+L15+N15) -> -0.152 | K15: =r_HS1*Delta_t -> 0.15 | L15: 0 | M15: 0 | N15: =r_HD*Delta_t -> 0.002 | P15: H | Q15: 1 | R15: 0 | S15: 0 | T15: 0 | U15: 0 | W15: H | X15: =m_R_B -> -0.152 | Y15: 0.15 | Z15: 0 | AA15: 0 | AB15: 0.002 | AD15: H | AE15: =MMULT(m_R_B,m_R_B) -> 0.098104 | AF15: -0.10755 | AG15: 0.00945 | AH15: 0.0006 | AI15: -4e-06 | AK15: H | AL15: =MMULT(MMULT(m_R_B,m_R_B), m_R_B) -> -0.068686808 | AM15: 0.07548135 | AN15: -0.00679455 | AO15: -0.0002601 | AP15: 8e-09 | AR15: H | AS15: =MMULT(MMULT(MMULT(m_R_B,m_R_B), m_R_B),m_R_B) -> 0.04818106982 | AT15: -0.05294998395 | AU15: 0.00476891415 | AV15: 0.0001796235 | AW15: -1.600000001e-11
B16: S1 | C16: =Q16+X16+(1/FACT(2))*AE16+(1/FACT(3))*AL16+(1/FACT(4))*AS16 -> 0.3553299189 | D16: =1-(C16+E16+F16+G16) -> 0.5905439812 | E16: =S16+Z16+(1/FACT(2))*AG16+(1/FACT(3))*AN16+(1/FACT(4))*AU16 -> 0.04856284954 | F16: =T16+AA16+(1/FACT(2))*AH16+(1/FACT(3))*AO16+(1/FACT(4))*AV16 -> 0.003565249025 | G16: =U16+AB16+(1/FACT(2))*AI16+(1/FACT(3))*AP16+(1/FACT(4))*AW16 -> 0.001998001333 | I16: S1 | J16: =r_S1H*Delta_t -> 0.5 | K16: =-(J16+L16+N16) -> -0.565 | L16: =r_S1S2*hr_S1S2_trtB*Delta_t -> 0.063 | M16: =(hr_S1 * r_HD - r_HD)*Delta_t -> 0.004 | N16: =r_HD*Delta_t -> 0.002 | P16: S1 | Q16: 0 | R16: 1 | S16: 0 | T16: 0 | U16: 0 | W16: S1 | X16: 0.5 | Y16: -0.565 | Z16: 0.063 | AA16: 0.004 | AB16: 0.002 | AD16: S1 | AE16: -0.3585 | AF16: 0.394225 | AG16: -0.035721 | AH16: -0.001126 | AI16: -4e-06 | AK16: S1 | AL16: 0.2516045 | AM16: -0.276512125 | AN16: 0.024907617 | AO16: 0.000933922 | AP16: 8e-09 | AR16: S1 | AS16: -0.1764999465 | AT16: 0.1939700256 | AU16: -0.01747007911 | AV16: -0.000657711394 | AW16: -1.600000002e-11
B17: S2 | C17: =Q17+X17+(1/FACT(2))*AE17+(1/FACT(3))*AL17+(1/FACT(4))*AS17 -> 0 | D17: =R17+Y17+(1/FACT(2))*AF17+(1/FACT(3))*AM17+(1/FACT(4))*AT17 -> 0 | E17: =1-(C17+D17+F17+G17) -> 0.9800199867 | F17: =T17+AA17+(1/FACT(2))*AH17+(1/FACT(3))*AO17+(1/FACT(4))*AV17 -> 0.01798201199 | G17: =U17+AB17+(1/FACT(2))*AI17+(1/FACT(3))*AP17+(1/FACT(4))*AW17 -> 0.001998001333 | I17: S2 | J17: 0 | K17: 0 | L17: =-N17 -> -0.002 | M17: =(hr_S2 * r_HD - r_HD)*Delta_t -> 0.018 | N17: =r_HD*Delta_t -> 0.002 | P17: S2 | Q17: 0 | R17: 0 | S17: 1 | T17: 0 | U17: 0 | W17: S2 | X17: 0 | Y17: 0 | Z17: -0.002 | AA17: 0.018 | AB17: 0.002 | AD17: S2 | AE17: 0 | AF17: 0 | AG17: 4e-06 | AH17: -3.6e-05 | AI17: -4e-06 | AK17: S2 | AL17: 0 | AM17: 0 | AN17: -8e-09 | AO17: 7.2e-08 | AP17: 8e-09 | AR17: S2 | AS17: 0 | AT17: 0 | AU17: 1.6e-11 | AV17: -1.44e-10 | AW17: -1.6e-11
B18: DS | C18: =Q18+X18+(1/FACT(2))*AE18+(1/FACT(3))*AL18+(1/FACT(4))*AS18 -> 0 | D18: =R18+Y18+(1/FACT(2))*AF18+(1/FACT(3))*AM18+(1/FACT(4))*AT18 -> 0 | E18: =S18+Z18+(1/FACT(2))*AG18+(1/FACT(3))*AN18+(1/FACT(4))*AU18 -> 0 | F18: =1-(C18+D18+E18+G18) -> 1 | G18: =U18+AB18+(1/FACT(2))*AI18+(1/FACT(3))*AP18+(1/FACT(4))*AW18 -> 0 | I18: DS | J18: 0 | K18: 0 | L18: 0 | M18: 0 | N18: 0 | P18: DS | Q18: 0 | R18: 0 | S18: 0 | T18: 1 | U18: 0 | X18: 0 | Y18: 0 | Z18: 0 | AA18: 0 | AB18: 0 | AE18: 0 | AF18: 0 | AG18: 0 | AH18: 0 | AI18: 0 | AL18: 0 | AM18: 0 | AN18: 0 | AO18: 0 | AP18: 0 | AS18: 0 | AT18: 0 | AU18: 0 | AV18: 0 | AW18: 0
B19: DOC | C19: =Q19+X19+(1/FACT(2))*AE19+(1/FACT(3))*AL19+(1/FACT(4))*AS19 -> 0 | D19: =R19+Y19+(1/FACT(2))*AF19+(1/FACT(3))*AM19+(1/FACT(4))*AT19 -> 0 | E19: =S19+Z19+(1/FACT(2))*AG19+(1/FACT(3))*AN19+(1/FACT(4))*AU19 -> 0 | F19: =T19+AA19+(1/FACT(2))*AH19+(1/FACT(3))*AO19+(1/FACT(4))*AV19 -> 0 | G19: =1-(C19+D19+E19+F19) -> 1 | I19: DOC | J19: 0 | K19: 0 | L19: 0 | M19: 0 | N19: 0 | P19: DOC | Q19: 0 | R19: 0 | S19: 0 | T19: 0 | U19: 1 | W19: D | X19: 0 | Y19: 0 | Z19: 0 | AA19: 0 | AB19: 0 | AD19: D | AE19: 0 | AF19: 0 | AG19: 0 | AH19: 0 | AI19: 0 | AK19: D | AL19: 0 | AM19: 0 | AN19: 0 | AO19: 0 | AP19: 0 | AR19: D | AS19: 0 | AT19: 0 | AU19: 0 | AV19: 0 | AW19: 0
B20: m_P_AB | C20: H | D20: S1 | E20: S2 | F20: DS | G20: DOC | I20: m_R_AB | J20: H | K20: S1 | L20: S2 | N20: D | Q20: H | R20: S1 | S20: S2 | U20: D | X20: H | Y20: S1 | Z20: S2 | AB20: D | AE20: H | AF20: S1 | AG20: S2 | AI20: D | AL20: H | AM20: S1 | AN20: S2 | AP20: D | AS20: H | AT20: S1 | AU20: S2 | AW20: D
A21: AB | B21: H | C21: =1-SUM(D21:G21) -> 0.8873476089 | D21: =R21+Y21+(1/FACT(2))*AF21+(1/FACT(3))*AM21+(1/FACT(4))*AT21 -> 0.1065989757 | E21: =S21+Z21+(1/FACT(2))*AG21+(1/FACT(3))*AN21+(1/FACT(4))*AU21 -> 0.003791279756 | F21: =T21+AA21+(1/FACT(2))*AH21+(1/FACT(3))*AO21+(1/FACT(4))*AV21 -> 0.0002641343125 | G21: =U21+AB21+(1/FACT(2))*AI21+(1/FACT(3))*AP21+(1/FACT(4))*AW21 -> 0.001998001333 | I21: H | J21: =-(K21+L21+N21) -> -0.152 | K21: =r_HS1*Delta_t -> 0.15 | L21: 0 | M21: 0 | N21: =r_HD*Delta_t -> 0.002 | P21: H | Q21: 1 | R21: 0 | S21: 0 | T21: 0 | U21: 0 | W21: H | X21: =m_R_AB -> -0.152 | Y21: 0.15 | Z21: 0 | AA21: 0 | AB21: 0.002 | AD21: H | AE21: =MMULT(m_R_AB,m_R_AB) -> 0.098104 | AF21: -0.10755 | AG21: 0.00945 | AH21: 0.0006 | AI21: -4e-06 | AK21: H | AL21: =MMULT(MMULT(m_R_AB,m_R_AB), m_R_AB) -> -0.068686808 | AM21: 0.07548135 | AN21: -0.00679455 | AO21: -0.0002601 | AP21: 8e-09 | AR21: H | AS21: =MMULT(MMULT(MMULT(m_R_AB,m_R_AB), m_R_AB),m_R_AB) -> 0.04818106982 | AT21: -0.05294998395 | AU21: 0.00476891415 | AV21: 0.0001796235 | AW21: -1.600000001e-11
B22: S1 | C22: =Q22+X22+(1/FACT(2))*AE22+(1/FACT(3))*AL22+(1/FACT(4))*AS22 -> 0.3553299189 | D22: =1-(C22+E22+F22+G22) -> 0.5905439812 | E22: =S22+Z22+(1/FACT(2))*AG22+(1/FACT(3))*AN22+(1/FACT(4))*AU22 -> 0.04856284954 | F22: =T22+AA22+(1/FACT(2))*AH22+(1/FACT(3))*AO22+(1/FACT(4))*AV22 -> 0.003565249025 | G22: =U22+AB22+(1/FACT(2))*AI22+(1/FACT(3))*AP22+(1/FACT(4))*AW22 -> 0.001998001333 | I22: S1 | J22: =r_S1H*Delta_t -> 0.5 | K22: =-(J22+L22+N22) -> -0.565 | L22: =r_S1S2*hr_S1S2_trtB*Delta_t -> 0.063 | M22: =(hr_S1 * r_HD - r_HD)*Delta_t -> 0.004 | N22: =r_HD*Delta_t -> 0.002 | P22: S1 | Q22: 0 | R22: 1 | S22: 0 | T22: 0 | U22: 0 | W22: S1 | X22: 0.5 | Y22: -0.565 | Z22: 0.063 | AA22: 0.004 | AB22: 0.002 | AD22: S1 | AE22: -0.3585 | AF22: 0.394225 | AG22: -0.035721 | AH22: -0.001126 | AI22: -4e-06 | AK22: S1 | AL22: 0.2516045 | AM22: -0.276512125 | AN22: 0.024907617 | AO22: 0.000933922 | AP22: 8e-09 | AR22: S1 | AS22: -0.1764999465 | AT22: 0.1939700256 | AU22: -0.01747007911 | AV22: -0.000657711394 | AW22: -1.600000002e-11
B23: S2 | C23: =Q23+X23+(1/FACT(2))*AE23+(1/FACT(3))*AL23+(1/FACT(4))*AS23 -> 0 | D23: =R23+Y23+(1/FACT(2))*AF23+(1/FACT(3))*AM23+(1/FACT(4))*AT23 -> 0 | E23: =1-(C23+D23+F23+G23) -> 0.9800199867 | F23: =T23+AA23+(1/FACT(2))*AH23+(1/FACT(3))*AO23+(1/FACT(4))*AV23 -> 0.01798201199 | G23: =U23+AB23+(1/FACT(2))*AI23+(1/FACT(3))*AP23+(1/FACT(4))*AW23 -> 0.001998001333 | I23: S2 | J23: 0 | K23: 0 | L23: =-N23 -> -0.002 | M23: =(hr_S2 * r_HD - r_HD)*Delta_t -> 0.018 | N23: =r_HD*Delta_t -> 0.002 | P23: S2 | Q23: 0 | R23: 0 | S23: 1 | T23: 0 | U23: 0 | W23: S2 | X23: 0 | Y23: 0 | Z23: -0.002 | AA23: 0.018 | AB23: 0.002 | AD23: S2 | AE23: 0 | AF23: 0 | AG23: 4e-06 | AH23: -3.6e-05 | AI23: -4e-06 | AK23: S2 | AL23: 0 | AM23: 0 | AN23: -8e-09 | AO23: 7.2e-08 | AP23: 8e-09 | AR23: S2 | AS23: 0 | AT23: 0 | AU23: 1.6e-11 | AV23: -1.44e-10 | AW23: -1.6e-11
B24: DS | C24: =Q24+X24+(1/FACT(2))*AE24+(1/FACT(3))*AL24+(1/FACT(4))*AS24 -> 0 | D24: =R24+Y24+(1/FACT(2))*AF24+(1/FACT(3))*AM24+(1/FACT(4))*AT24 -> 0 | E24: =S24+Z24+(1/FACT(2))*AG24+(1/FACT(3))*AN24+(1/FACT(4))*AU24 -> 0 | F24: =1-(C24+D24+E24+G24) -> 1 | G24: =U24+AB24+(1/FACT(2))*AI24+(1/FACT(3))*AP24+(1/FACT(4))*AW24 -> 0 | I24: DS | J24: 0 | K24: 0 | L24: 0 | M24: 0 | N24: 0 | P24: DS | Q24: 0 | R24: 0 | S24: 0 | T24: 1 | U24: 0 | X24: 0 | Y24: 0 | Z24: 0 | AA24: 0 | AB24: 0 | AE24: 0 | AF24: 0 | AG24: 0 | AH24: 0 | AI24: 0 | AL24: 0 | AM24: 0 | AN24: 0 | AO24: 0 | AP24: 0 | AS24: 0 | AT24: 0 | AU24: 0 | AV24: 0 | AW24: 0
B25: DOC | C25: =Q25+X25+(1/FACT(2))*AE25+(1/FACT(3))*AL25+(1/FACT(4))*AS25 -> 0 | D25: =R25+Y25+(1/FACT(2))*AF25+(1/FACT(3))*AM25+(1/FACT(4))*AT25 -> 0 | E25: =S25+Z25+(1/FACT(2))*AG25+(1/FACT(3))*AN25+(1/FACT(4))*AU25 -> 0 | F25: =T25+AA25+(1/FACT(2))*AH25+(1/FACT(3))*AO25+(1/FACT(4))*AV25 -> 0 | G25: =1-(C25+D25+E25+F25) -> 1 | I25: DOC | J25: 0 | K25: 0 | L25: 0 | M25: 0 | N25: 0 | P25: DOC | Q25: 0 | R25: 0 | S25: 0 | T25: 0 | U25: 1 | W25: D | X25: 0 | Y25: 0 | Z25: 0 | AA25: 0 | AB25: 0 | AD25: D | AE25: 0 | AF25: 0 | AG25: 0 | AH25: 0 | AI25: 0 | AK25: D | AL25: 0 | AM25: 0 | AN25: 0 | AO25: 0 | AP25: 0 | AR25: D | AS25: 0 | AT25: 0 | AU25: 0 | AV25: 0 | AW25: 0
A27: Notes: Transition probability matrices are obtained by embedding the transition rate matrices.

Sheet Transition Matrices (App. 2)
A1: Strategy | B1: Transition Probability Matrices (calculated via power series expansion) | I1: Transition Rate Matrices (scalar inputs in blue; calcualted values in red) | P1: Power Series Expansion (no further edits necessary)
B2: m2_P_soc | C2: H | D2: S1 | E2: S2 | F2: D | G2: trDS | I2: m2_R_soc | J2: H | K2: S1 | L2: S2 | M2: D | N2: trDS | P2: Identity | Q2: H | R2: S1 | S2: S2 | T2: D | U2: trDS | W2: R^1 | X2: H | Y2: S1 | Z2: S2 | AA2: D | AB2: trDS | AD2: R^2 | AE2: H | AF2: S1 | AG2: S2 | AH2: D | AI2: trDS | AK2: R^3 | AL2: H | AM2: S1 | AN2: S2 | AO2: D | AP2: trDS | AR2: R^4 | AS2: H | AT2: S1 | AU2: S2 | AV2: D | AW2: trDS
A3: SOC | B3: H | C3: =1-SUM(D3:F3) -> 0.8872494932 | D3: =R3+Y3+(1/FACT(2))*AF3+(1/FACT(3))*AM3+(1/FACT(4))*AT3 -> 0.1042766608 | E3: =S3+Z3+(1/FACT(2))*AG3+(1/FACT(3))*AN3+(1/FACT(4))*AU3 -> 0.006200221781 | F3: =T3+AA3+(1/FACT(2))*AH3+(1/FACT(3))*AO3+(1/FACT(4))*AV3 -> 0.002273624195 | G3: =U3+AB3+(1/FACT(2))*AI3+(1/FACT(3))*AP3+(1/FACT(4))*AW3 -> 0.0002758082375 | I3: H | J3: =-(K3+L3+M3) -> -0.152 | K3: =r_HS1*Delta_t -> 0.15 | L3: 0 | M3: =r_HD -> 0.002 | N3: 0 | P3: H | Q3: 1 | R3: 0 | S3: 0 | T3: 0 | U3: 0 | W3: H | X3: =m2_R_soc -> -0.152 | Y3: 0.15 | Z3: 0 | AA3: 0.002 | AB3: 0 | AD3: H | AE3: =MMULT(m2_R_soc,m2_R_soc) -> 0.098104 | AF3: -0.11445 | AG3: 0.01575 | AH3: 0.000596 | AI3: 0.0006 | AK3: H | AL3: =MMULT(MMULT(m2_R_soc,m2_R_soc), m2_R_soc) -> -0.072136808 | AM3: 0.08464455 | AN3: -0.01233225 | AO3: -0.000175492 | AP3: -0.0001743 | AR3: H | AS3: =MMULT(MMULT(MMULT(m2_R_soc,m2_R_soc), m2_R_soc),m2_R_soc) -> 0.05328706982 | AT3: -0.06253834125 | AU3: 0.00913432275 | AV3: 0.000116948684 | AW3: 0.0001165977
B4: S1 | C4: =Q4+X4+(1/FACT(2))*AE4+(1/FACT(3))*AL4+(1/FACT(4))*AS4 -> 0.3475888693 | D4: =1-(C4+E4+F4) -> 0.5681629113 | E4: =S4+Z4+(1/FACT(2))*AG4+(1/FACT(3))*AN4+(1/FACT(4))*AU4 -> 0.07844985771 | F4: =T4+AA4+(1/FACT(2))*AH4+(1/FACT(3))*AO4+(1/FACT(4))*AV4 -> 0.005798361763 | G4: =U4+AB4+(1/FACT(2))*AI4+(1/FACT(3))*AP4+(1/FACT(4))*AW4 -> 0.003804223249 | I4: S1 | J4: =r_S1H*Delta_t -> 0.5 | K4: =-(J4+L4+M4) -> -0.611 | L4: =r_S1S2*Delta_t -> 0.105 | M4: =(hr_S1 * r_HD)*Delta_t -> 0.006 | N4: =(hr_S1*r_HD - r_HD)*Delta_t -> 0.004 | P4: S1 | Q4: 0 | R4: 1 | S4: 0 | T4: 0 | U4: 0 | W4: S1 | X4: 0.5 | Y4: -0.611 | Z4: 0.105 | AA4: 0.006 | AB4: 0.004 | AD4: S1 | AE4: -0.3815 | AF4: 0.448321 | AG4: -0.066255 | AH4: -0.000566 | AI4: -0.000554 | AK4: S1 | AL4: 0.2821485 | AM4: -0.331149131 | AN4: 0.048398805 | AO4: 0.000601826 | AP4: 0.000600694 | AR4: S1 | AS4: -0.2084611375 | AT4: 0.244654394 | AU4: -0.03573863485 | AV4: -0.000454621686 | AW4: -0.000453418034
B5: S2 | C5: =Q5+X5+(1/FACT(2))*AE5+(1/FACT(3))*AL5+(1/FACT(4))*AS5 -> 0 | D5: =R5+Y5+(1/FACT(2))*AF5+(1/FACT(3))*AM5+(1/FACT(4))*AT5 -> 0 | E5: =1-(C5+D5+F5) -> 0.9801986733 | F5: =T5+AA5+(1/FACT(2))*AH5+(1/FACT(3))*AO5+(1/FACT(4))*AV5 -> 0.01980132667 | G5: =U5+AB5+(1/FACT(2))*AI5+(1/FACT(3))*AP5+(1/FACT(4))*AW5 -> 0.017821194 | I5: S2 | J5: 0 | K5: 0 | L5: =-M5 -> -0.02 | M5: =(hr_S2 * r_HD)*Delta_t -> 0.02 | N5: =(hr_S2*r_HD - r_HD)*Delta_t -> 0.018 | P5: S2 | Q5: 0 | R5: 0 | S5: 1 | T5: 0 | U5: 0 | W5: S2 | X5: 0 | Y5: 0 | Z5: -0.02 | AA5: 0.02 | AB5: 0.018 | AD5: S2 | AE5: 0 | AF5: 0 | AG5: 0.0004 | AH5: -0.0004 | AI5: -0.00036 | AK5: S2 | AL5: 0 | AM5: 0 | AN5: -8e-06 | AO5: 8e-06 | AP5: 7.2e-06 | AR5: S2 | AS5: 0 | AT5: 0 | AU5: 1.6e-07 | AV5: -1.6e-07 | AW5: -1.44e-07
B6: D | C6: =Q6+X6+(1/FACT(2))*AE6+(1/FACT(3))*AL6+(1/FACT(4))*AS6 -> 0 | D6: =R6+Y6+(1/FACT(2))*AF6+(1/FACT(3))*AM6+(1/FACT(4))*AT6 -> 0 | E6: =S6+Z6+(1/FACT(2))*AG6+(1/FACT(3))*AN6+(1/FACT(4))*AU6 -> 0 | F6: =1-(C6+D6+E6+G6) -> 1 | G6: =U6+AB6+(1/FACT(2))*AI6+(1/FACT(3))*AP6+(1/FACT(4))*AW6 -> 0 | I6: D | J6: 0 | K6: 0 | L6: 0 | M6: 0 | N6: 0 | P6: D | Q6: 0 | R6: 0 | S6: 0 | T6: 1 | U6: 0 | W6: D | X6: 0 | Y6: 0 | Z6: 0 | AA6: 0 | AB6: 0 | AD6: D | AE6: 0 | AF6: 0 | AG6: 0 | AH6: 0 | AI6: 0 | AK6: D | AL6: 0 | AM6: 0 | AN6: 0 | AO6: 0 | AP6: 0 | AR6: D | AS6: 0 | AT6: 0 | AU6: 0 | AV6: 0 | AW6: 0
B7: trDS | C7: =Q7+X7+(1/FACT(2))*AE7+(1/FACT(3))*AL7+(1/FACT(4))*AS7 -> 0 | D7: =R7+Y7+(1/FACT(2))*AF7+(1/FACT(3))*AM7+(1/FACT(4))*AT7 -> 0 | E7: =S7+Z7+(1/FACT(2))*AG7+(1/FACT(3))*AN7+(1/FACT(4))*AU7 -> 0 | F7: =T7+AA7+(1/FACT(2))*AH7+(1/FACT(3))*AO7+(1/FACT(4))*AV7 -> 0 | G7: 0 | I7: trDS | J7: 0 | K7: 0 | L7: 0 | M7: 0 | N7: 0 | P7: trDS | Q7: 0 | R7: 0 | S7: 0 | T7: 0 | U7: 1 | W7: trDS | X7: 0 | Y7: 0 | Z7: 0 | AA7: 0 | AB7: 0 | AD7: trDS | AE7: 0 | AF7: 0 | AG7: 0 | AH7: 0 | AI7: 0 | AK7: trDS | AL7: 0 | AM7: 0 | AN7: 0 | AO7: 0 | AP7: 0 | AR7: trDS | AS7: 0 | AT7: 0 | AU7: 0 | AV7: 0 | AW7: 0
B8: m2_P_A | C8: H | D8: S1 | E8: S2 | F8: DS | G8: DOC | I8: m2_R_A | J8: H | K8: S1 | L8: S2 | M8: D | N8: trDS | Q8: H | R8: S1 | S8: S2 | T8: D | U8: trDS | X8: H | Y8: S1 | Z8: S2 | AA8: D | AB8: trDS | AE8: H | AF8: S1 | AG8: S2 | AH8: D | AI8: trDS | AL8: H | AM8: S1 | AN8: S2 | AO8: D | AP8: trDS | AS8: H | AT8: S1 | AU8: S2 | AV8: D | AW8: trDS
A9: A | B9: H | C9: =1-SUM(D9:F9) -> 0.8872494932 | D9: =R9+Y9+(1/FACT(2))*AF9+(1/FACT(3))*AM9+(1/FACT(4))*AT9 -> 0.1042766608 | E9: =S9+Z9+(1/FACT(2))*AG9+(1/FACT(3))*AN9+(1/FACT(4))*AU9 -> 0.006200221781 | F9: =T9+AA9+(1/FACT(2))*AH9+(1/FACT(3))*AO9+(1/FACT(4))*AV9 -> 0.002273624195 | G9: =U9+AB9+(1/FACT(2))*AI9+(1/FACT(3))*AP9+(1/FACT(4))*AW9 -> 0.0002758082375 | I9: H | J9: =-(K9+L9+M9) -> -0.152 | K9: =r_HS1*Delta_t -> 0.15 | L9: 0 | M9: =r_HD -> 0.002 | N9: 0 | P9: H | Q9: 1 | R9: 0 | S9: 0 | T9: 0 | U9: 0 | W9: H | X9: =m2_R_A -> -0.152 | Y9: 0.15 | Z9: 0 | AA9: 0.002 | AB9: 0 | AD9: H | AE9: =MMULT(m2_R_A,m2_R_A) -> 0.098104 | AF9: -0.11445 | AG9: 0.01575 | AH9: 0.000596 | AI9: 0.0006 | AK9: H | AL9: =MMULT(MMULT(m2_R_A,m2_R_A), m2_R_A) -> -0.072136808 | AM9: 0.08464455 | AN9: -0.01233225 | AO9: -0.000175492 | AP9: -0.0001743 | AR9: H | AS9: =MMULT(MMULT(MMULT(m2_R_A,m2_R_A), m2_R_A),m2_R_A) -> 0.05328706982 | AT9: -0.06253834125 | AU9: 0.00913432275 | AV9: 0.000116948684 | AW9: 0.0001165977
B10: S1 | C10: =Q10+X10+(1/FACT(2))*AE10+(1/FACT(3))*AL10+(1/FACT(4))*AS10 -> 0.3475888693 | D10: =1-(C10+E10+F10) -> 0.5681629113 | E10: =S10+Z10+(1/FACT(2))*AG10+(1/FACT(3))*AN10+(1/FACT(4))*AU10 -> 0.07844985771 | F10: =T10+AA10+(1/FACT(2))*AH10+(1/FACT(3))*AO10+(1/FACT(4))*AV10 -> 0.005798361763 | G10: =U10+AB10+(1/FACT(2))*AI10+(1/FACT(3))*AP10+(1/FACT(4))*AW10 -> 0.003804223249 | I10: S1 | J10: =r_S1H*Delta_t -> 0.5 | K10: =-(J10+L10+M10) -> -0.611 | L10: =r_S1S2*Delta_t -> 0.105 | M10: =(hr_S1 * r_HD)*Delta_t -> 0.006 | N10: =(hr_S1*r_HD - r_HD)*Delta_t -> 0.004 | P10: S1 | Q10: 0 | R10: 1 | S10: 0 | T10: 0 | U10: 0 | W10: S1 | X10: 0.5 | Y10: -0.611 | Z10: 0.105 | AA10: 0.006 | AB10: 0.004 | AD10: S1 | AE10: -0.3815 | AF10: 0.448321 | AG10: -0.066255 | AH10: -0.000566 | AI10: -0.000554 | AK10: S1 | AL10: 0.2821485 | AM10: -0.331149131 | AN10: 0.048398805 | AO10: 0.000601826 | AP10: 0.000600694 | AR10: S1 | AS10: -0.2084611375 | AT10: 0.244654394 | AU10: -0.03573863485 | AV10: -0.000454621686 | AW10: -0.000453418034
B11: S2 | C11: =Q11+X11+(1/FACT(2))*AE11+(1/FACT(3))*AL11+(1/FACT(4))*AS11 -> 0 | D11: =R11+Y11+(1/FACT(2))*AF11+(1/FACT(3))*AM11+(1/FACT(4))*AT11 -> 0 | E11: =1-(C11+D11+F11) -> 0.9801986733 | F11: =T11+AA11+(1/FACT(2))*AH11+(1/FACT(3))*AO11+(1/FACT(4))*AV11 -> 0.01980132667 | G11: =U11+AB11+(1/FACT(2))*AI11+(1/FACT(3))*AP11+(1/FACT(4))*AW11 -> 0.017821194 | I11: S2 | J11: 0 | K11: 0 | L11: =-M11 -> -0.02 | M11: =(hr_S2 * r_HD)*Delta_t -> 0.02 | N11: =(hr_S2*r_HD - r_HD)*Delta_t -> 0.018 | P11: S2 | Q11: 0 | R11: 0 | S11: 1 | T11: 0 | U11: 0 | W11: S2 | X11: 0 | Y11: 0 | Z11: -0.02 | AA11: 0.02 | AB11: 0.018 | AD11: S2 | AE11: 0 | AF11: 0 | AG11: 0.0004 | AH11: -0.0004 | AI11: -0.00036 | AK11: S2 | AL11: 0 | AM11: 0 | AN11: -8e-06 | AO11: 8e-06 | AP11: 7.2e-06 | AR11: S2 | AS11: 0 | AT11: 0 | AU11: 1.6e-07 | AV11: -1.6e-07 | AW11: -1.44e-07
B12: D | C12: =Q12+X12+(1/FACT(2))*AE12+(1/FACT(3))*AL12+(1/FACT(4))*AS12 -> 0 | D12: =R12+Y12+(1/FACT(2))*AF12+(1/FACT(3))*AM12+(1/FACT(4))*AT12 -> 0 | E12: =S12+Z12+(1/FACT(2))*AG12+(1/FACT(3))*AN12+(1/FACT(4))*AU12 -> 0 | F12: =1-(C12+D12+E12+G12) -> 1 | G12: =U12+AB12+(1/FACT(2))*AI12+(1/FACT(3))*AP12+(1/FACT(4))*AW12 -> 0 | I12: D | J12: 0 | K12: 0 | L12: 0 | M12: 0 | N12: 0 | P12: D | Q12: 0 | R12: 0 | S12: 0 | T12: 1 | U12: 0 | W12: D | X12: 0 | Y12: 0 | Z12: 0 | AA12: 0 | AB12: 0 | AD12: D | AE12: 0 | AF12: 0 | AG12: 0 | AH12: 0 | AI12: 0 | AK12: D | AL12: 0 | AM12: 0 | AN12: 0 | AO12: 0 | AP12: 0 | AR12: D | AS12: 0 | AT12: 0 | AU12: 0 | AV12: 0 | AW12: 0
B13: trDS | C13: =Q13+X13+(1/FACT(2))*AE13+(1/FACT(3))*AL13+(1/FACT(4))*AS13 -> 0 | D13: =R13+Y13+(1/FACT(2))*AF13+(1/FACT(3))*AM13+(1/FACT(4))*AT13 -> 0 | E13: =S13+Z13+(1/FACT(2))*AG13+(1/FACT(3))*AN13+(1/FACT(4))*AU13 -> 0 | F13: =T13+AA13+(1/FACT(2))*AH13+(1/FACT(3))*AO13+(1/FACT(4))*AV13 -> 0 | G13: 0 | I13: trDS | J13: 0 | K13: 0 | L13: 0 | M13: 0 | N13: 0 | P13: trDS | Q13: 0 | R13: 0 | S13: 0 | T13: 0 | U13: 1 | W13: trDS | X13: 0 | Y13: 0 | Z13: 0 | AA13: 0 | AB13: 0 | AD13: trDS | AE13: 0 | AF13: 0 | AG13: 0 | AH13: 0 | AI13: 0 | AK13: trDS | AL13: 0 | AM13: 0 | AN13: 0 | AO13: 0 | AP13: 0 | AR13: trDS | AS13: 0 | AT13: 0 | AU13: 0 | AV13: 0 | AW13: 0
B14: m2_P_B | C14: H | D14: S1 | E14: S2 | F14: DS | G14: DOC | I14: m2_R_B | J14: H | K14: S1 | L14: S2 | M14: D | N14: trDS | Q14: H | R14: S1 | S14: S2 | T14: D | U14: trDS | X14: H | Y14: S1 | Z14: S2 | AA14: D | AB14: trDS | AE14: H | AF14: S1 | AG14: S2 | AH14: D | AI14: trDS | AL14: H | AM14: S1 | AN14: S2 | AO14: D | AP14: trDS | AS14: H | AT14: S1 | AU14: S2 | AV14: D | AW14: trDS
A15: B | B15: H | C15: =1-SUM(D15:F15) -> 0.8875797182 | D15: =R15+Y15+(1/FACT(2))*AF15+(1/FACT(3))*AM15+(1/FACT(4))*AT15 -> 0.1063948271 | E15: =S15+Z15+(1/FACT(2))*AG15+(1/FACT(3))*AN15+(1/FACT(4))*AU15 -> 0.003763924369 | F15: =T15+AA15+(1/FACT(2))*AH15+(1/FACT(3))*AO15+(1/FACT(4))*AV15 -> 0.002261530295 | G15: =U15+AB15+(1/FACT(2))*AI15+(1/FACT(3))*AP15+(1/FACT(4))*AW15 -> 0.0002637069875 | I15: H | J15: =-(K15+L15+M15) -> -0.152 | K15: =r_HS1*Delta_t -> 0.15 | L15: 0 | M15: =r_HD -> 0.002 | N15: 0 | P15: H | Q15: 1 | R15: 0 | S15: 0 | T15: 0 | U15: 0 | W15: H | X15: =m2_R_B -> -0.152 | Y15: 0.15 | Z15: 0 | AA15: 0.002 | AB15: 0 | AD15: H | AE15: =MMULT(m2_R_B,m2_R_B) -> 0.098104 | AF15: -0.10815 | AG15: 0.00945 | AH15: 0.000596 | AI15: 0.0006 | AK15: H | AL15: =MMULT(MMULT(m2_R_B,m2_R_B), m2_R_B) -> -0.068986808 | AM15: 0.07625295 | AN15: -0.00700245 | AO15: -0.000263692 | AP15: -0.0002625 | AR15: H | AS15: =MMULT(MMULT(MMULT(m2_R_B,m2_R_B), m2_R_B),m2_R_B) -> 0.04861246982 | AT15: -0.05373594975 | AU15: 0.00494398485 | AV15: 0.000179495084 | AW15: 0.0001789677
B16: S1 | C16: =Q16+X16+(1/FACT(2))*AE16+(1/FACT(3))*AL16+(1/FACT(4))*AS16 -> 0.3546494236 | D16: =1-(C16+E16+F16) -> 0.5918020989 | E16: =S16+Z16+(1/FACT(2))*AG16+(1/FACT(3))*AN16+(1/FACT(4))*AU16 -> 0.04799808082 | F16: =T16+AA16+(1/FACT(2))*AH16+(1/FACT(3))*AO16+(1/FACT(4))*AV16 -> 0.005550396609 | G16: =U16+AB16+(1/FACT(2))*AI16+(1/FACT(3))*AP16+(1/FACT(4))*AW16 -> 0.003556089394 | I16: S1 | J16: =r_S1H*Delta_t -> 0.5 | K16: =-(J16+L16+M16) -> -0.569 | L16: =r_S1S2*hr_S1S2_trtB*Delta_t -> 0.063 | M16: =(hr_S1 * r_HD)*Delta_t -> 0.006 | N16: =(hr_S1*r_HD - r_HD)*Delta_t -> 0.004 | P16: S1 | Q16: 0 | R16: 1 | S16: 0 | T16: 0 | U16: 0 | W16: S1 | X16: 0.5 | Y16: -0.569 | Z16: 0.063 | AA16: 0.006 | AB16: 0.004 | AD16: S1 | AE16: -0.3605 | AF16: 0.398761 | AG16: -0.037107 | AH16: -0.001154 | AI16: -0.001142 | AK16: S1 | AL16: 0.2541765 | AM16: -0.280970009 | AN16: 0.025864083 | AO16: 0.000929426 | AP16: 0.000927118 | AR16: S1 | AS16: -0.1791198325 | AT16: 0.1979984101 | AU16: -0.01821839223 | AV16: -0.000660185394 | AW16: -0.000658326542
B17: S2 | C17: =Q17+X17+(1/FACT(2))*AE17+(1/FACT(3))*AL17+(1/FACT(4))*AS17 -> 0 | D17: =R17+Y17+(1/FACT(2))*AF17+(1/FACT(3))*AM17+(1/FACT(4))*AT17 -> 0 | E17: =1-(C17+D17+F17) -> 0.9801986733 | F17: =T17+AA17+(1/FACT(2))*AH17+(1/FACT(3))*AO17+(1/FACT(4))*AV17 -> 0.01980132667 | G17: =U17+AB17+(1/FACT(2))*AI17+(1/FACT(3))*AP17+(1/FACT(4))*AW17 -> 0.017821194 | I17: S2 | J17: 0 | K17: 0 | L17: =-M17 -> -0.02 | M17: =(hr_S2 * r_HD)*Delta_t -> 0.02 | N17: =(hr_S2*r_HD - r_HD)*Delta_t -> 0.018 | P17: S2 | Q17: 0 | R17: 0 | S17: 1 | T17: 0 | U17: 0 | W17: S2 | X17: 0 | Y17: 0 | Z17: -0.02 | AA17: 0.02 | AB17: 0.018 | AD17: S2 | AE17: 0 | AF17: 0 | AG17: 0.0004 | AH17: -0.0004 | AI17: -0.00036 | AK17: S2 | AL17: 0 | AM17: 0 | AN17: -8e-06 | AO17: 8e-06 | AP17: 7.2e-06 | AR17: S2 | AS17: 0 | AT17: 0 | AU17: 1.6e-07 | AV17: -1.6e-07 | AW17: -1.44e-07
B18: D | C18: =Q18+X18+(1/FACT(2))*AE18+(1/FACT(3))*AL18+(1/FACT(4))*AS18 -> 0 | D18: =R18+Y18+(1/FACT(2))*AF18+(1/FACT(3))*AM18+(1/FACT(4))*AT18 -> 0 | E18: =S18+Z18+(1/FACT(2))*AG18+(1/FACT(3))*AN18+(1/FACT(4))*AU18 -> 0 | F18: =1-(C18+D18+E18+G18) -> 1 | G18: =U18+AB18+(1/FACT(2))*AI18+(1/FACT(3))*AP18+(1/FACT(4))*AW18 -> 0 | I18: D | J18: 0 | K18: 0 | L18: 0 | M18: 0 | N18: 0 | P18: D | Q18: 0 | R18: 0 | S18: 0 | T18: 1 | U18: 0 | W18: D | X18: 0 | Y18: 0 | Z18: 0 | AA18: 0 | AB18: 0 | AD18: D | AE18: 0 | AF18: 0 | AG18: 0 | AH18: 0 | AI18: 0 | AK18: D | AL18: 0 | AM18: 0 | AN18: 0 | AO18: 0 | AP18: 0 | AR18: D | AS18: 0 | AT18: 0 | AU18: 0 | AV18: 0 | AW18: 0
B19: trDS | C19: =Q19+X19+(1/FACT(2))*AE19+(1/FACT(3))*AL19+(1/FACT(4))*AS19 -> 0 | D19: =R19+Y19+(1/FACT(2))*AF19+(1/FACT(3))*AM19+(1/FACT(4))*AT19 -> 0 | E19: =S19+Z19+(1/FACT(2))*AG19+(1/FACT(3))*AN19+(1/FACT(4))*AU19 -> 0 | F19: =T19+AA19+(1/FACT(2))*AH19+(1/FACT(3))*AO19+(1/FACT(4))*AV19 -> 0 | G19: 0 | I19: trDS | J19: 0 | K19: 0 | L19: 0 | M19: 0 | N19: 0 | P19: trDS | Q19: 0 | R19: 0 | S19: 0 | T19: 0 | U19: 1 | W19: trDS | X19: 0 | Y19: 0 | Z19: 0 | AA19: 0 | AB19: 0 | AD19: trDS | AE19: 0 | AF19: 0 | AG19: 0 | AH19: 0 | AI19: 0 | AK19: trDS | AL19: 0 | AM19: 0 | AN19: 0 | AO19: 0 | AP19: 0 | AR19: trDS | AS19: 0 | AT19: 0 | AU19: 0 | AV19: 0 | AW19: 0
B20: m2_P_AB | C20: H | D20: S1 | E20: S2 | F20: DS | G20: DOC | I20: m2_R_AB | J20: H | K20: S1 | L20: S2 | M20: D | N20: trDS | Q20: H | R20: S1 | S20: S2 | T20: D | U20: trDS | X20: H | Y20: S1 | Z20: S2 | AA20: D | AB20: trDS | AE20: H | AF20: S1 | AG20: S2 | AH20: D | AI20: trDS | AL20: H | AM20: S1 | AN20: S2 | AO20: D | AP20: trDS | AS20: H | AT20: S1 | AU20: S2 | AV20: D | AW20: trDS
A21: AB | B21: H | C21: =1-SUM(D21:F21) -> 0.8875797182 | D21: =R21+Y21+(1/FACT(2))*AF21+(1/FACT(3))*AM21+(1/FACT(4))*AT21 -> 0.1063948271 | E21: =S21+Z21+(1/FACT(2))*AG21+(1/FACT(3))*AN21+(1/FACT(4))*AU21 -> 0.003763924369 | F21: =T21+AA21+(1/FACT(2))*AH21+(1/FACT(3))*AO21+(1/FACT(4))*AV21 -> 0.002261530295 | G21: =U21+AB21+(1/FACT(2))*AI21+(1/FACT(3))*AP21+(1/FACT(4))*AW21 -> 0.0002637069875 | I21: H | J21: =-(K21+L21+M21) -> -0.152 | K21: =r_HS1*Delta_t -> 0.15 | L21: 0 | M21: =r_HD -> 0.002 | N21: 0 | P21: H | Q21: 1 | R21: 0 | S21: 0 | T21: 0 | U21: 0 | W21: H | X21: =m2_R_AB -> -0.152 | Y21: 0.15 | Z21: 0 | AA21: 0.002 | AB21: 0 | AD21: H | AE21: =MMULT(m2_R_AB,m2_R_AB) -> 0.098104 | AF21: -0.10815 | AG21: 0.00945 | AH21: 0.000596 | AI21: 0.0006 | AK21: H | AL21: =MMULT(MMULT(m2_R_AB,m2_R_AB), m2_R_AB) -> -0.068986808 | AM21: 0.07625295 | AN21: -0.00700245 | AO21: -0.000263692 | AP21: -0.0002625 | AR21: H | AS21: =MMULT(MMULT(MMULT(m2_R_AB,m2_R_AB), m2_R_AB),m2_R_AB) -> 0.04861246982 | AT21: -0.05373594975 | AU21: 0.00494398485 | AV21: 0.000179495084 | AW21: 0.0001789677
B22: S1 | C22: =Q22+X22+(1/FACT(2))*AE22+(1/FACT(3))*AL22+(1/FACT(4))*AS22 -> 0.3546494236 | D22: =1-(C22+E22+F22) -> 0.5918020989 | E22: =S22+Z22+(1/FACT(2))*AG22+(1/FACT(3))*AN22+(1/FACT(4))*AU22 -> 0.04799808082 | F22: =T22+AA22+(1/FACT(2))*AH22+(1/FACT(3))*AO22+(1/FACT(4))*AV22 -> 0.005550396609 | G22: =U22+AB22+(1/FACT(2))*AI22+(1/FACT(3))*AP22+(1/FACT(4))*AW22 -> 0.003556089394 | I22: S1 | J22: =r_S1H*Delta_t -> 0.5 | K22: =-(J22+L22+M22) -> -0.569 | L22: =r_S1S2*hr_S1S2_trtB*Delta_t -> 0.063 | M22: =(hr_S1 * r_HD)*Delta_t -> 0.006 | N22: =(hr_S1*r_HD - r_HD)*Delta_t -> 0.004 | P22: S1 | Q22: 0 | R22: 1 | S22: 0 | T22: 0 | U22: 0 | W22: S1 | X22: 0.5 | Y22: -0.569 | Z22: 0.063 | AA22: 0.006 | AB22: 0.004 | AD22: S1 | AE22: -0.3605 | AF22: 0.398761 | AG22: -0.037107 | AH22: -0.001154 | AI22: -0.001142 | AK22: S1 | AL22: 0.2541765 | AM22: -0.280970009 | AN22: 0.025864083 | AO22: 0.000929426 | AP22: 0.000927118 | AR22: S1 | AS22: -0.1791198325 | AT22: 0.1979984101 | AU22: -0.01821839223 | AV22: -0.000660185394 | AW22: -0.000658326542
B23: S2 | C23: =Q23+X23+(1/FACT(2))*AE23+(1/FACT(3))*AL23+(1/FACT(4))*AS23 -> 0 | D23: =R23+Y23+(1/FACT(2))*AF23+(1/FACT(3))*AM23+(1/FACT(4))*AT23 -> 0 | E23: =1-(C23+D23+F23) -> 0.9801986733 | F23: =T23+AA23+(1/FACT(2))*AH23+(1/FACT(3))*AO23+(1/FACT(4))*AV23 -> 0.01980132667 | G23: =U23+AB23+(1/FACT(2))*AI23+(1/FACT(3))*AP23+(1/FACT(4))*AW23 -> 0.017821194 | I23: S2 | J23: 0 | K23: 0 | L23: =-M23 -> -0.02 | M23: =(hr_S2 * r_HD)*Delta_t -> 0.02 | N23: =(hr_S2*r_HD - r_HD)*Delta_t -> 0.018 | P23: S2 | Q23: 0 | R23: 0 | S23: 1 | T23: 0 | U23: 0 | W23: S2 | X23: 0 | Y23: 0 | Z23: -0.02 | AA23: 0.02 | AB23: 0.018 | AD23: S2 | AE23: 0 | AF23: 0 | AG23: 0.0004 | AH23: -0.0004 | AI23: -0.00036 | AK23: S2 | AL23: 0 | AM23: 0 | AN23: -8e-06 | AO23: 8e-06 | AP23: 7.2e-06 | AR23: S2 | AS23: 0 | AT23: 0 | AU23: 1.6e-07 | AV23: -1.6e-07 | AW23: -1.44e-07
B24: D | C24: =Q24+X24+(1/FACT(2))*AE24+(1/FACT(3))*AL24+(1/FACT(4))*AS24 -> 0 | D24: =R24+Y24+(1/FACT(2))*AF24+(1/FACT(3))*AM24+(1/FACT(4))*AT24 -> 0 | E24: =S24+Z24+(1/FACT(2))*AG24+(1/FACT(3))*AN24+(1/FACT(4))*AU24 -> 0 | F24: =1-(C24+D24+E24+G24) -> 1 | G24: =U24+AB24+(1/FACT(2))*AI24+(1/FACT(3))*AP24+(1/FACT(4))*AW24 -> 0 | I24: D | J24: 0 | K24: 0 | L24: 0 | M24: 0 | N24: 0 | P24: D | Q24: 0 | R24: 0 | S24: 0 | T24: 1 | U24: 0 | W24: D | X24: 0 | Y24: 0 | Z24: 0 | AA24: 0 | AB24: 0 | AD24: D | AE24: 0 | AF24: 0 | AG24: 0 | AH24: 0 | AI24: 0 | AK24: D | AL24: 0 | AM24: 0 | AN24: 0 | AO24: 0 | AP24: 0 | AR24: D | AS24: 0 | AT24: 0 | AU24: 0 | AV24: 0 | AW24: 0
B25: trDS | C25: =Q25+X25+(1/FACT(2))*AE25+(1/FACT(3))*AL25+(1/FACT(4))*AS25 -> 0 | D25: =R25+Y25+(1/FACT(2))*AF25+(1/FACT(3))*AM25+(1/FACT(4))*AT25 -> 0 | E25: =S25+Z25+(1/FACT(2))*AG25+(1/FACT(3))*AN25+(1/FACT(4))*AU25 -> 0 | F25: =T25+AA25+(1/FACT(2))*AH25+(1/FACT(3))*AO25+(1/FACT(4))*AV25 -> 0 | G25: 0 | I25: trDS | J25: 0 | K25: 0 | L25: 0 | M25: 0 | N25: 0 | P25: trDS | Q25: 0 | R25: 0 | S25: 0 | T25: 0 | U25: 1 | W25: trDS | X25: 0 | Y25: 0 | Z25: 0 | AA25: 0 | AB25: 0 | AD25: trDS | AE25: 0 | AF25: 0 | AG25: 0 | AH25: 0 | AI25: 0 | AK25: trDS | AL25: 0 | AM25: 0 | AN25: 0 | AO25: 0 | AP25: 0 | AR25: trDS | AS25: 0 | AT25: 0 | AU25: 0 | AV25: 0 | AW25: 0
A27: Notes: Transition probability matrices are obtained by embedding the transition rate matrices.

Sheet Approach 1 - SOC
H1: Markov Trace | O1: Cycle Adjustments | U1: Outcomes
A2: Transition Probability Matrix | B2: H | C2: S1 | D2: S2 | E2: DS | F2: DOC | H2: Cycle | I2: H | J2: S1 | K2: S2 | L2: DS | M2: DOC | O2: Cycle Discount Rate (Health Outcomes) | P2: Cycle Correction | Q2: Total Cycle Correction (Health) | R2: Cycle Discount Rate | S2: Total Cycle Correction (Cost) | U2: Age in Model | V2: Remaining Life Expectancy (present value at cycle t) | W2: New Cause-Specific Deaths | X2: YLL_t (not fully discounted) | Y2: YLL_t (fully discounted) | Z2: YLD_t (not discounted) | AA2: YLD_t ( discounted) | AB2: Cost (not discounted) | AC2: Cost (discounted)
A3: H | B3: =m_P_soc -> 0.8870041371 | C3: 0.104476433 | D3: 0.006245097469 | E3: 0.0002763311125 | F3: 0.001998001333 | H3: 0 | I3: =n_cohort -> 1 | J3: 0 | K3: 0 | L3: 0 | M3: 0 | O3: =EXP(-r_H * H3) -> 1 | P3: 0.5 | Q3: =O3*P3 -> 0.5 | R3: =EXP(-r_C * H3) -> 1 | S3: =R3*P3 -> 0.5 | U3: =age0 -> 25 | V3: =(1/r_disc_h)*(1 - EXP(-r_disc_h*LOOKUP(U3,$A$18:$B$38))) -> 28.46827411 | W3: 0 | X3: =W3*V3 -> 0 | Y3: =X3*Q3 -> 0 | Z3: =MMULT(I3:M503,C10:C14) -> 0 | AA3: =Z3*Q3 -> 0 | AB3: =MMULT(I3:M503,B10:B14) -> 2000 | AC3: =AB3*S3 -> 1000
A4: S1 | B4: 0.3482547765 | C4: 0.5665531562 | D4: 0.07937860054 | E4: 0.003815465436 | F4: 0.001998001333 | H4: =H3+1 -> 1 | I4: =MMULT(I3:$M$3,_xlfn.ANCHORARRAY($B$3)) -> 0.8870041371 | J4: 0.104476433 | K4: 0.006245097469 | L4: 0.0002763311125 | M4: 0.001998001333 | O4: 0.9704455335 | P4: 1 | Q4: =O4*P4 -> 0.9704455335 | R4: 0.9704455335 | S4: =R4*P4 -> 0.9704455335 | U4: =Delta_t*H4+age0 -> 26 | V4: =(1/r_H)*(1 - EXP(-r_H*LOOKUP(U4,$A$18:$B$38))) -> 28.46827411 | W4: =L4-L3 -> 0.0002763311125 | X4: =W4*V4 -> 0.007866669857 | Y4: =X4*Q4 -> 0.007634174627 | Z4: 0.02880738567 | AA4: 0.02795599875 | AB4: 2285.590468 | AC4: =AB4*S4 -> 2218.041061
A5: S2 | B5: 0 | C5: 0 | D5: 0.9800199867 | E5: 0.01798201199 | F5: 0.001998001333 | H5: =H4+1 -> 2 | I5: =MMULT(_xlfn.ANCHORARRAY(I4),_xlfn.ANCHORARRAY($B$3)) -> 0.8231607561 | J5: 0.1518624811 | K5: 0.01995294067 | L5: 0.001032363589 | M5: 0.003991458546 | O5: 0.9417645336 | P5: 1 | Q5: 0.9417645336 | R5: 0.9417645336 | S5: 0.9417645336 | U5: 27 | V5: 28.46827411 | W5: =L5-L4 -> 0.0007560324764 | X5: 0.02152293978 | Y5: 0.02026954134 | Z5: 0.04723009695 | AA5: 0.04447963023 | AB5: 2553.065547 | AC5: 2404.386584
A6: DS | B6: 0 | C6: 0 | D6: 0 | E6: 1 | F6: 0 | H6: =H5+1 -> 3 | I6: =MMULT(_xlfn.ANCHORARRAY(I5),_xlfn.ANCHORARRAY($B$3)) -> 0.7830338306 | J6: 0.1720390675 | K6: 0.03674963102 | L6: 0.002198048582 | M6: 0.005979422275 | O6: 0.9139311853 | P6: 1 | Q6: 0.9139311853 | R6: 0.9139311853 | S6: 0.9139311853 | U6: 28 | V6: 28.46827411 | W6: 0.001165684994 | X6: 0.03318503993 | Y6: 0.03032884287 | Z6: 0.0604729527 | AA6: 0.05526811734 | AB6: 2805.468397 | AC6: 2564.005057
A7: DOC | B7: 0 | C7: 0 | D7: 0 | E7: 0 | F7: 1 | H7: =H6+1 -> 4 | I7: =MMULT(_xlfn.ANCHORARRAY(I6),_xlfn.ANCHORARRAY($B$3)) -> 0.7544676743 | J7: 0.1792778582 | K7: 0.05456171592 | L7: 0.003731666614 | M7: 0.00796108501 | O7: 0.8869204367 | P7: 1 | Q7: 0.8869204367 | R7: 0.8869204367 | S7: 0.8869204367 | U7: 29 | V7: 28.46827411 | W7: 0.001533618031 | X7: 0.0436594585 | Y7: 0.038722466 | Z7: 0.07102955209 | AA7: 0.06299756136 | AB7: 3044.47252 | AC7: 2700.204897
H8: =H7+1 -> 5 | I8: =MMULT(_xlfn.ANCHORARRAY(I7),_xlfn.ANCHORARRAY($B$3)) -> 0.7316503188 | J8: 0.1803945278 | K8: 0.07241412176 | L8: 0.005605307407 | M8: 0.00993572421 | O8: 0.8607079764 | P8: 1 | Q8: 0.8607079764 | R8: 0.8607079764 | S8: 0.8607079764 | U8: 30 | V8: 27.68890127 | W8: 0.001873640793 | X8: 0.05187905493 | Y8: 0.04465271639 | Z8: 0.08009821236 | AA8: 0.06894117028 | AB8: 3271.090575 | AC8: 2815.45375
A9: Payoffs | B9: Cost | C9: YLD | H9: 6 | I9: =MMULT(_xlfn.ANCHORARRAY(I8),_xlfn.ANCHORARRAY($B$3)) -> 0.7118001157 | J9: 0.1786433046 | K9: 0.08985597936 | L9: 0.007797925845 | M9: 0.01190267454 | O9: 0.8352702114 | P9: 1 | Q9: 0.8352702114 | R9: 0.8352702114 | S9: 0.8352702114 | U9: 31 | V9: 27.68890127 | W9: 0.002192618438 | X9: 0.06071119545 | Y9: 0.05071025306 | Z9: 0.08825832172 | AA9: 0.07371954704 | AB9: 3486.01314 | AC9: 2911.762932
A10: H | B10: =c_H -> 2000 | C10: 0 | H10: 7 | I10: =MMULT(_xlfn.ANCHORARRAY(I9),_xlfn.ANCHORARRAY($B$3)) -> 0.6935830315 | J10: 0.1755772651 | K10: 0.1066863723 | L10: 0.01029201702 | M10: 0.01386131405 | O10: 0.810584246 | P10: 1 | Q10: 0.810584246 | R10: 0.810584246 | S10: 0.810584246 | U10: 32 | V10: 27.68890127 | W10: 0.00249409117 | X10: 0.06905864416 | Y10: 0.05597784901 | Z10: 0.09579341677 | AA10: 0.0776486345 | AB10: 3689.770708 | AC10: 2990.870007
A11: S1 | B11: =c_S1 -> 4000 | C11: =dw_S1*(1/r_H)*(1-EXP(-r_H))*Delta_t -> 0.2462872204 | H11: 8 | I11: =MMULT(_xlfn.ANCHORARRAY(I10),_xlfn.ANCHORARRAY($B$3)) -> 0.6763566396 | J11: 0.1719369348 | K11: 0.1228233484 | L11: 0.0130720202 | M11: 0.01581105699 | O11: 0.7866278611 | P11: 1 | Q11: 0.7866278611 | R11: 0.7866278611 | S11: 0.7866278611 | U11: 33 | V11: 27.68890127 | W11: 0.002780003183 | X11: 0.07697523366 | Y11: 0.06055086341 | Z11: 0.1028455119 | AA11: 0.08090114506 | AB11: 3882.811244 | AC11: 3054.327504
A12: S2 | B12: =c_S2 -> 15000 | C12: =dw_S2*(1/r_H)*(1-EXP(-r_H))*Delta_t -> 0.4925744409 | H12: 9 | I12: =MMULT(_xlfn.ANCHORARRAY(I11),_xlfn.ANCHORARRAY($B$3)) -> 0.6598089963 | J12: 0.1680747422 | K12: 0.1382413627 | L12: 0.01612354894 | M12: 0.0177513499 | O12: 0.7633794943 | P12: 1 | Q12: 0.7633794943 | R12: 0.7633794943 | S12: 0.7633794943 | U12: 34 | V12: 27.68890127 | W12: 0.003051528738 | X12: 0.08449347795 | Y12: 0.06450058847 | Z12: 0.109488823 | AA12: 0.08358152233 | AB12: 4065.537401 | AC12: 3103.547886
A13: DS | B13: =c_D -> 0 | C13: 0 | H13: 10 | I13: =MMULT(_xlfn.ANCHORARRAY(I12),_xlfn.ANCHORARRAY($B$3)) -> 0.6437861412 | J13: 0.164157766 | K13: 0.1529414077 | L13: 0.0194330159 | M13: 0.01968166914 | O13: 0.7408182207 | P13: 1 | Q13: 0.7408182207 | R13: 0.7408182207 | S13: 0.7408182207 | U13: 35 | V13: 26.78651299 | W13: 0.003309466965 | X13: 0.08864907984 | Y13: 0.06567285359 | Z13: 0.1157649883 | AA13: 0.08576081264 | AB13: 4238.324462 | AC13: 3139.827987
A14: DOC | B14: =c_D -> 0 | C14: 0 | H14: 11 | I14: =MMULT(_xlfn.ANCHORARRAY(I13),_xlfn.ANCHORARRAY($B$3)) -> 0.6282096968 | J14: 0.1602645801 | K14: 0.1669367573 | L14: 0.02298744655 | M14: 0.02160151928 | O14: 0.7189237334 | P14: 1 | Q14: 0.7189237334 | R14: 0.7189237334 | S14: 0.7189237334 | U14: 36 | V14: 26.78651299 | W14: 0.00355443065 | X14: 0.09521080279 | Y14: 0.0684493058 | Z14: 0.1216998978 | AA14: 0.08749294491 | AB14: 4401.529073 | AC14: 3164.363714
H15: 12 | I15: =MMULT(_xlfn.ANCHORARRAY(I14),_xlfn.ANCHORARRAY($B$3)) -> 0.6130375056 | J15: 0.1564315119 | K15: 0.1802461675 | L15: 0.02677438317 | M15: 0.0235104318 | O15: 0.6976763261 | P15: 1 | Q15: 0.6976763261 | R15: 0.6976763261 | S15: 0.6976763261 | U15: 37 | V15: 26.78651299 | W15: 0.003786936622 | X15: 0.101438827 | Y15: 0.07077146815 | Z15: 0.1273117374 | AA15: 0.08882238524 | AB15: 4555.493571 | AC15: 3178.260018
A16: Reference Life Table | H16: 13 | I16: =MMULT(_xlfn.ANCHORARRAY(I15),_xlfn.ANCHORARRAY($B$3)) -> 0.5982448249 | J16: 0.1526747387 | K16: 0.1928906401 | L16: 0.03078183228 | M16: 0.025407964 | O16: 0.6770568745 | P16: 1 | Q16: 0.6770568745 | R16: 0.6770568745 | S16: 0.6770568745 | U16: 38 | V16: 26.78651299 | W16: 0.004007449109 | X16: 0.1073455876 | Y16: 0.07267906803 | Z16: 0.1326148362 | AA16: 0.08978778653 | AB16: 4700.548207 | AC16: 3182.538477
A17: Age | B17: LE | D17: OUTCOMES | H17: 14 | I17: =MMULT(_xlfn.ANCHORARRAY(I16),_xlfn.ANCHORARRAY($B$3)) -> 0.5838153417 | J17: 0.1490008404 | K17: 0.2048918869 | L17: 0.03499823293 | M17: 0.02729369805 | O17: 0.6570468198 | P17: 1 | Q17: 0.6570468198 | R17: 0.6570468198 | S17: 0.6570468198 | U17: 39 | V17: 26.78651299 | W17: 0.004216400651 | X17: 0.1129426708 | Y17: 0.07420862267 | Z17: 0.1376215095 | AA17: 0.09042377513 | AB17: 4837.012349 | AC17: 3178.143581
A18: 0 | B18: 88.8718951 | D18: YLL_SOC | E18: =SUM(Y3:Y503) -> 2.865131024 | H18: 15 | I18: =MMULT(_xlfn.ANCHORARRAY(I17),_xlfn.ANCHORARRAY($B$3)) -> 0.5697368778 | J18: 0.1454118408 | K18: 0.2162716062 | L18: 0.0394124352 | M18: 0.02916724002 | O18: 0.6376281516 | P18: 1 | Q18: 0.6376281516 | R18: 0.6376281516 | S18: 0.6376281516 | U18: 40 | V18: 25.74178092 | W18: 0.004414202267 | X18: 0.1136294277 | Y18: 0.07245332197 | Z18: 0.1423429436 | AA18: 0.09076186801 | AB18: 4965.195212 | AC18: 3165.948245
A19: 1 | B19: 88.00051053 | D19: YLD_SOC | E19: =SUM(AA3:AA503) -> 4.612844457 | H19: 16 | I19: =MMULT(_xlfn.ANCHORARRAY(I18),_xlfn.ANCHORARRAY($B$3)) -> 0.5559993358 | J19: 0.1419076141 | K19: 0.2270511474 | L19: 0.04401368369 | M19: 0.03102821907 | O19: 0.6187833918 | P19: 1 | Q19: 0.6187833918 | R19: 0.6187833918 | S19: 0.6187833918 | U19: 41 | V19: 25.74178092 | W19: 0.004601248494 | X19: 0.1184443307 | Y19: 0.0732913847 | Z19: 0.1467896238 | AA19: 0.09083098129 | AB19: 5085.396338 | AC19: 3146.758795
A20: 5 | B20: 84.03008056 | D20: DALY_SOC | E20: =E18+E19 -> 7.477975481 | H20: 17 | I20: =MMULT(_xlfn.ANCHORARRAY(I19),_xlfn.ANCHORARRAY($B$3)) -> 0.5425937155 | J20: 0.138487034 | K20: 0.2372513603 | L20: 0.04879160366 | M20: 0.03287628658 | O20: 0.6004955788 | P20: 1 | Q20: 0.6004955788 | R20: 0.6004955788 | S20: 0.6004955788 | U20: 42 | V20: 25.74178092 | W20: 0.004777919967 | X20: 0.1229921691 | Y20: 0.07385625375 | Z20: 0.1509715428 | AA20: 0.09065774397 | AB20: 5197.905971 | AC20: 3121.319555
A21: 10 | B21: 79.04633476 | D21: COST_SOC | E21: =SUM(AC5:AC505) -> 155457.9717 | H21: 18 | I21: =MMULT(_xlfn.ANCHORARRAY(I20),_xlfn.ANCHORARRAY($B$3)) -> 0.5295116415 | J21: 0.1351485221 | K21: 0.2468925325 | L21: 0.05373618848 | M21: 0.03471111536 | O21: 0.5827482524 | P21: 1 | Q21: 0.5827482524 | R21: 0.5827482524 | S21: 0.5827482524 | U21: 43 | V21: 25.74178092 | W21: 0.004944584823 | X21: 0.1272824193 | Y21: 0.07417360738 | Z21: 0.154898305 | AA21: 0.09026671655 | AB21: 5303.005359 | AC21: 3090.317106
A22: 15 | B22: 74.0665492 | H22: 19 | I22: =MMULT(_xlfn.ANCHORARRAY(I21),_xlfn.ANCHORARRAY($B$3)) -> 0.516745135 | J22: 0.1318903093 | K22: 0.2559943688 | L22: 0.05883778802 | M22: 0.03653239886 | O22: 0.5655254387 | P22: 1 | Q22: 0.5655254387 | R22: 0.5655254387 | S22: 0.5655254387 | U22: 44 | V22: 25.74178092 | W22: 0.005101599537 | X22: 0.1313242576 | Y22: 0.07426720842 | Z22: 0.1585791807 | AA22: 0.08968056076 | AB22: 5400.967039 | AC22: 3054.384254
A23: 20 | B23: 69.10756792 | H23: 20 | I23: =MMULT(_xlfn.ANCHORARRAY(I22),_xlfn.ANCHORARRAY($B$3)) -> 0.5042865028 | J23: 0.1287105594 | K23: 0.2645759898 | L23: 0.06408709751 | M23: 0.03833985043 | O23: 0.5488116361 | P23: 1 | Q23: 0.5488116361 | R23: 0.5488116361 | S23: 0.5488116361 | U23: 45 | V23: 24.54382935 | W23: 0.005249309485 | X23: 0.1288381562 | Y23: 0.0707078793 | Z23: 0.1620231362 | AA23: 0.08892018245 | AB23: 5492.055091 | AC23: 3014.10374
A24: 25 | B24: 64.14930031 | H24: 21 | I24: =MMULT(_xlfn.ANCHORARRAY(I23),_xlfn.ANCHORARRAY($B$3)) -> 0.4921282814 | J24: 0.1256074287 | K24: 0.2726559405 | L24: 0.06947514687 | M24: 0.04013320259 | O24: 0.532591801 | P24: 1 | Q24: 0.532591801 | R24: 0.532591801 | S24: 0.532591801 | U24: 46 | V24: 24.54382935 | W24: 0.005388049363 | X24: 0.1322433641 | Y24: 0.07043173146 | Z24: 0.1652388519 | AA24: 0.08800485773 | AB24: 5576.525384 | AC24: 2970.011698
A25: 30 | B25: 59.1962771 | H25: 22 | I25: =MMULT(_xlfn.ANCHORARRAY(I24),_xlfn.ANCHORARRAY($B$3)) -> 0.4802632086 | J25: 0.1225790926 | K25: 0.2802522021 | L25: 0.07499329042 | M25: 0.04191220629 | O25: 0.5168513345 | P25: 1 | Q25: 0.5168513345 | R25: 0.5168513345 | S25: 0.5168513345 | U25: 47 | V25: 24.54382935 | W25: 0.00551814355 | X25: 0.1354363736 | Y25: 0.07000047044 | Z25: 0.1682347357 | AA25: 0.08695234768 | AB25: 5654.625819 | AC25: 2922.600901
A26: 35 | B26: 54.25261364 | H26: 23 | I26: =MMULT(_xlfn.ANCHORARRAY(I25),_xlfn.ANCHORARRAY($B$3)) -> 0.4686842074 | J26: 0.1196237587 | K26: 0.2873822068 | L26: 0.08063319684 | M26: 0.04367663029 | O26: 0.5015760691 | P26: 1 | Q26: 0.5015760691 | R26: 0.5015760691 | S26: 0.5015760691 | U26: 48 | V26: 24.54382935 | W26: 0.005639906417 | X26: 0.1384249007 | Y26: 0.06943061754 | Z26: 0.1710189328 | AA26: 0.08577900407 | AB26: 5726.596551 | AC26: 2872.323787
A27: 40 | B27: 49.31739311 | H27: 24 | I27: =MMULT(_xlfn.ANCHORARRAY(I26),_xlfn.ANCHORARRAY($B$3)) -> 0.4573843763 | J27: 0.1167396722 | K27: 0.2940628516 | L27: 0.08638683947 | M27: 0.04542626042 | O27: 0.486752256 | P27: 1 | Q27: 0.486752256 | R27: 0.486752256 | S27: 0.486752256 | U27: 49 | V27: 24.54382935 | W27: 0.005753642634 | X27: 0.141216423 | Y27: 0.06873741245 | Z27: 0.1735993341 | AA27: 0.08449986749 | AB27: 5792.670215 | AC27: 2819.595295
A28: 45 | B28: 44.43332057 | H28: 25 | I28: =MMULT(_xlfn.ANCHORARRAY(I27),_xlfn.ANCHORARRAY($B$3)) -> 0.4463569825 | J28: 0.1139251179 | K28: 0.3003105137 | L28: 0.09224648691 | M28: 0.047160899 | O28: 0.4723665527 | P28: 1 | Q28: 0.4723665527 | R28: 0.4723665527 | S28: 0.4723665527 | U28: 50 | V28: 23.18290646 | W28: 0.005859647441 | X28: 0.1358436585 | Y28: 0.06416800068 | Z28: 0.175983584 | AA28: 0.0831287589 | AB28: 5853.072142 | AC28: 2764.795511
A29: 50 | B29: 39.63473787 | H29: 26 | I29: =MMULT(_xlfn.ANCHORARRAY(I28),_xlfn.ANCHORARRAY($B$3)) -> 0.4355954566 | J29: 0.1111784205 | K29: 0.3061410649 | L29: 0.09820469384 | M29: 0.04888036419 | O29: 0.4584060113 | P29: 1 | Q29: 0.4584060113 | R29: 0.4584060113 | S29: 0.4584060113 | U29: 51 | V29: 23.18290646 | W29: 0.00595820693 | X29: 0.1381285539 | Y29: 0.06331895945 | Z29: 0.178179088 | AA29: 0.08167836503 | AB29: 5908.020568 | AC29: 2708.272144
A30: 55 | B30: 34.91488095 | H30: 27 | I30: =MMULT(_xlfn.ANCHORARRAY(I29),_xlfn.ANCHORARRAY($B$3)) -> 0.4250933881 | J30: 0.1084979445 | K30: 0.3115698858 | L30: 0.1042542921 | M30: 0.05058448938 | O30: 0.4448580662 | P30: 1 | Q30: 0.4448580662 | R30: 0.4448580662 | S30: 0.4448580662 | U30: 52 | V30: 23.18290646 | W30: 0.006049598298 | X30: 0.1402472715 | Y30: 0.06239012998 | Z30: 0.1801930195 | AA30: 0.0801603182 | AB30: 5957.726842 | AC30: 2650.342842
A31: 60 | B31: 30.25343822 | H31: 28 | I31: =MMULT(_xlfn.ANCHORARRAY(I30),_xlfn.ANCHORARRAY($B$3)) -> 0.4148445213 | J31: 0.1058820938 | K31: 0.31661188 | L31: 0.1103883822 | M31: 0.05227312262 | O31: 0.4317105234 | P31: 1 | Q31: 0.4317105234 | R31: 0.4317105234 | S31: 0.4317105234 | U31: 53 | V31: 23.18290646 | W31: 0.00613409011 | X31: 0.1422060372 | Y31: 0.06139184277 | Z31: 0.1820323263 | AA31: 0.07858527088 | AB31: 6002.395618 | AC31: 2591.297354
A32: 65 | B32: 25.68089534 | H32: 29 | I32: =MMULT(_xlfn.ANCHORARRAY(I31),_xlfn.ANCHORARRAY($B$3)) -> 0.4048427516 | J32: 0.1033293102 | K32: 0.3212814873 | L32: 0.1166003248 | M32: 0.05394612605 | O32: 0.4189515492 | P32: 1 | Q32: 0.4189515492 | R32: 0.4189515492 | S32: 0.4189515492 | U32: 54 | V32: 23.18290646 | W32: 0.006211942541 | X32: 0.1440108829 | Y32: 0.06033358248 | Z32: 0.1837037376 | AA32: 0.07696296546 | AB32: 6042.225054 | AC32: 2531.399547
A33: 70 | B33: 21.28820012 | H33: 30 | I33: =MMULT(_xlfn.ANCHORARRAY(I32),_xlfn.ANCHORARRAY($B$3)) -> 0.3950821214 | J33: 0.1008380734 | K33: 0.3255926974 | L33: 0.1228837324 | M33: 0.05560337535 | O33: 0.4065696597 | P33: 1 | Q33: 0.4065696597 | R33: 0.4065696597 | S33: 0.4065696597 | U33: 55 | V33: 21.63891726 | W33: 0.006283407618 | X33: 0.1359661376 | Y33: 0.0552797063 | Z33: 0.1852137697 | AA33: 0.07530229932 | AB33: 6077.406998 | AC33: 2470.889295
A34: 75 | B34: 17.10351469 | H34: 31 | I34: =MMULT(_xlfn.ANCHORARRAY(I33),_xlfn.ANCHORARRAY($B$3)) -> 0.3855568169 | J34: 0.09840689953 | K34: 0.3295590625 | L34: 0.1292324619 | M34: 0.0572447592 | O34: 0.3945537104 | P34: 1 | Q34: 0.3945537104 | R34: 0.3945537104 | S34: 0.3945537104 | U34: 56 | V34: 21.63891726 | W34: 0.006348729456 | X34: 0.1373796314 | Y34: 0.05420364331 | Z34: 0.1865687327 | AA34: 0.07361138572 | AB34: 6108.127169 | AC34: 2409.984238
A35: 80 | B35: 13.23872477 | H35: 32 | I35: =MMULT(_xlfn.ANCHORARRAY(I34),_xlfn.ANCHORARRAY($B$3)) -> 0.3762611645 | J35: 0.09603434045 | K35: 0.3331937099 | L35: 0.1356406063 | M35: 0.0588701788 | O35: 0.382892886 | P35: 1 | Q35: 0.382892886 | R35: 0.382892886 | S35: 0.382892886 | U35: 57 | V35: 21.63891726 | W35: 0.006408144482 | X35: 0.1386653083 | Y35: 0.05309396007 | Z35: 0.1877747361 | AA35: 0.07189761063 | AB35: 6134.565339 | AC35: 2348.881427
A36: 85 | B36: 9.990181244 | H36: 33 | I36: =MMULT(_xlfn.ANCHORARRAY(I35),_xlfn.ANCHORARRAY($B$3)) -> 0.3671896273 | J36: 0.09371898301 | K36: 0.3365093543 | L36: 0.142102488 | M36: 0.06047954732 | O36: 0.371576691 | P36: 1 | Q36: 0.371576691 | R36: 0.371576691 | S36: 0.371576691 | U36: 58 | V36: 21.63891726 | W36: 0.006461881661 | X36: 0.1398281226 | Y36: 0.05195687112 | Z36: 0.1888376949 | AA36: 0.0701676858 | AB36: 6156.895502 | AC36: 2287.758857
A37: 90 | B37: 7.617724915 | H37: 34 | I37: =MMULT(_xlfn.ANCHORARRAY(I36),_xlfn.ANCHORARRAY($B$3)) -> 0.358336802 | J37: 0.0914594481 | K37: 0.3395183097 | L37: 0.1486126507 | M37: 0.06207278948 | O37: 0.3605949402 | P37: 1 | Q37: 0.3605949402 | R37: 0.3605949402 | S37: 0.3605949402 | U37: 59 | V37: 21.63891726 | W37: 0.006510162704 | X37: 0.1408728721 | Y37: 0.0507980449 | Z37: 0.1897633348 | AA37: 0.06842769836 | AB37: 6175.286042 | AC37: 2226.776901
A38: 95 | B38: 5.922359078 | H38: 35 | I38: =MMULT(_xlfn.ANCHORARRAY(I37),_xlfn.ANCHORARRAY($B$3)) -> 0.3496974156 | J38: 0.08925438986 | K38: 0.3422325006 | L38: 0.155165853 | M38: 0.06364984102 | O38: 0.3499377491 | P38: 1 | Q38: 0.3499377491 | R38: 0.3499377491 | S38: 0.3499377491 | U38: 60 | V38: 19.88366091 | W38: 0.006553202287 | X38: 0.1303016521 | Y38: 0.04559746685 | Z38: 0.1905571982 | AA38: 0.06668315702 | AB38: 6189.899899 | AC38: 2166.079638
H39: 36 | I39: =MMULT(_xlfn.ANCHORARRAY(I38),_xlfn.ANCHORARRAY($B$3)) -> 0.3412663219 | J39: 0.08710249487 | K39: 0.3446634737 | L39: 0.1617570612 | M39: 0.06521064831 | O39: 0.3395955256 | P39: 1 | Q39: 0.3395955256 | R39: 0.3395955256 | S39: 0.3395955256 | U39: 61 | V39: 19.88366091 | W39: 0.006591208245 | X39: 0.1310573497 | Y39: 0.04450648957 | Z39: 0.1912246492 | AA39: 0.06493903525 | AB39: 6200.894728 | AC39: 2105.796105
H40: 37 | I40: =MMULT(_xlfn.ANCHORARRAY(I39),_xlfn.ANCHORARRAY($B$3)) -> 0.3330384993 | J40: 0.08500248138 | K40: 0.3468224084 | L40: 0.168381443 | M40: 0.06675516785 | O40: 0.3295589611 | P40: 1 | Q40: 0.3295589611 | R40: 0.3295589611 | S40: 0.3295589611 | U40: 62 | V40: 19.88366091 | W40: 0.006624381778 | X40: 0.131716961 | Y40: 0.04340850482 | Z40: 0.1917708788 | AA40: 0.06319981158 | AB40: 6208.423051 | AC40: 2046.041451
H41: 38 | I41: =MMULT(_xlfn.ANCHORARRAY(I40),_xlfn.ANCHORARRAY($B$3)) -> 0.3250090469 | J41: 0.08295309855 | K41: 0.348720128 | L41: 0.1750343607 | M41: 0.06828336592 | O41: 0.3198190218 | P41: 1 | Q41: 0.3198190218 | R41: 0.3198190218 | S41: 0.3198190218 | U41: 63 | V41: 19.88366091 | W41: 0.006652917637 | X41: 0.1322843583 | Y41: 0.04230705409 | Z41: 0.1922009101 | AA41: 0.06146950707 | AB41: 6212.632408 | AC41: 1986.91802
H42: 39 | I42: =MMULT(_xlfn.ANCHORARRAY(I41),_xlfn.ANCHORARRAY($B$3)) -> 0.317173182 | J42: 0.08095312569 | K42: 0.3503671092 | L42: 0.181711365 | M42: 0.06979521811 | O42: 0.3103669413 | P42: 1 | Q42: 0.3103669413 | R42: 0.3103669413 | S42: 0.3103669413 | U42: 64 | V42: 19.88366091 | W42: 0.006677004316 | X42: 0.1327632897 | Y42: 0.04120533614 | Z42: 0.1925196032 | AA42: 0.05975172039 | AB42: 6213.665505 | AC42: 1928.516357
H43: 40 | I43: =MMULT(_xlfn.ANCHORARRAY(I42),_xlfn.ANCHORARRAY($B$3)) -> 0.3095262373 | J43: 0.07900137154 | K43: 0.351773493 | L43: 0.1884081892 | M43: 0.07129070896 | O43: 0.3011942119 | P43: 1 | Q43: 0.3011942119 | R43: 0.3011942119 | S43: 0.3011942119 | U43: 65 | V43: 17.90615105 | W43: 0.006696824232 | X43: 0.1199143462 | Y43: 0.03611750701 | Z43: 0.1927316598 | AA43: 0.05804966039 | AB43: 6211.660356 | AC43: 1870.916146
H44: 41 | I44: =MMULT(_xlfn.ANCHORARRAY(I43),_xlfn.ANCHORARRAY($B$3)) -> 0.302063658 | J44: 0.07709667357 | K44: 0.3529490938 | L44: 0.1951207431 | M44: 0.07276983155 | O44: 0.2922925777 | P44: 1 | Q44: 0.2922925777 | R44: 0.2922925777 | S44: 0.2922925777 | U44: 66 | V44: 17.90615105 | W44: 0.006712553902 | X44: 0.1201960041 | Y44: 0.03513239986 | Z44: 0.1928416279 | AA44: 0.05636617652 | AB44: 6206.750417 | AC44: 1814.187078
H45: 42 | I45: =MMULT(_xlfn.ANCHORARRAY(I44),_xlfn.ANCHORARRAY($B$3)) -> 0.2947809992 | J45: 0.07523789726 | K45: 0.3539034092 | L45: 0.2018451072 | M45: 0.07423258715 | O45: 0.2836540265 | P45: 1 | Q45: 0.2836540265 | R45: 0.2836540265 | S45: 0.2836540265 | U45: 67 | V45: 17.90615105 | W45: 0.006724364117 | X45: 0.1204074796 | Y45: 0.0341540664 | Z45: 0.1928539065 | AA45: 0.0547037871 | AB45: 6199.064725 | AC45: 1758.38967
H46: 43 | I46: =MMULT(_xlfn.ANCHORARRAY(I45),_xlfn.ANCHORARRAY($B$3)) -> 0.2876739229 | J46: 0.07342393545 | K46: 0.3546456294 | L46: 0.2085775273 | M46: 0.07567898489 | O46: 0.2752707831 | P46: 1 | Q46: 0.2752707831 | R46: 0.2752707831 | S46: 0.2752707831 | U46: 68 | V46: 17.90615105 | W46: 0.006732420107 | X46: 0.1205517313 | Y46: 0.03318436949 | Z46: 0.1927727496 | AA46: 0.05306470574 | AB46: 6188.728029 | AC46: 1703.576011
H47: 44 | I47: =MMULT(_xlfn.ANCHORARRAY(I46),_xlfn.ANCHORARRAY($B$3)) -> 0.280738196 | J47: 0.07165370769 | K47: 0.355184646 | L47: 0.215314409 | M47: 0.07710904133 | O47: 0.267135302 | P47: 1 | Q47: 0.267135302 | R47: 0.267135302 | S47: 0.267135302 | U47: 69 | V47: 17.90615105 | W47: 0.006736881705 | X47: 0.1206316214 | Y47: 0.03222496461 | Z47: 0.1926022709 | AA47: 0.05145086579 | AB47: 6175.860912 | AC47: 1649.79047
H48: 45 | I48: =MMULT(_xlfn.ANCHORARRAY(I47),_xlfn.ANCHORARRAY($B$3)) -> 0.2739696872 | J48: 0.06992615955 | K48: 0.3555290604 | L48: 0.2220523125 | M48: 0.07852278022 | O48: 0.2592402606 | P48: 1 | Q48: 0.2592402606 | R48: 0.2592402606 | S48: 0.2592402606 | U48: 70 | V48: 15.73310468 | W48: 0.006737903507 | X48: 0.1060081412 | Y48: 0.02748157815 | Z48: 0.1923464476 | AA48: 0.04986394322 | AB48: 6160.579919 | AC48: 1597.070344
H49: 46 | I49: =MMULT(_xlfn.ANCHORARRAY(I48),_xlfn.ANCHORARRAY($B$3)) -> 0.2673643651 | J49: 0.06824026206 | K49: 0.3556871932 | L49: 0.2287879476 | M49: 0.07992023211 | O49: 0.2515785531 | P49: 1 | Q49: 0.2515785531 | R49: 0.2515785531 | S49: 0.2515785531 | U49: 71 | V49: 15.73310468 | W49: 0.006735635022 | X49: 0.1059724509 | Y49: 0.02666039586 | Z49: 0.1920091248 | AA49: 0.04830537778 | AB49: 6142.997676 | AC49: 1545.446467
H50: 47 | I50: =MMULT(_xlfn.ANCHORARRAY(I49),_xlfn.ANCHORARRAY($B$3)) -> 0.2609182952 | J50: 0.06659501101 | K50: 0.3556670913 | L50: 0.2355181684 | M50: 0.08130143409 | O50: 0.2441432832 | P50: 1 | Q50: 0.2441432832 | R50: 0.2441432832 | S50: 0.2441432832 | U50: 72 | V50: 15.73310468 | W50: 0.006730220827 | X50: 0.1058872688 | Y50: 0.02585166544 | Z50: 0.1915940188 | AA50: 0.04677639278 | AB50: 6123.223004 | AC50: 1494.943768
H51: 48 | I51: =MMULT(_xlfn.ANCHORARRAY(I50),_xlfn.ANCHORARRAY($B$3)) -> 0.254627638 | J51: 0.06498942645 | K51: 0.3554765371 | L51: 0.2422399691 | M51: 0.08266642944 | O51: 0.2369277587 | P51: 1 | Q51: 0.2369277587 | R51: 0.2369277587 | S51: 0.2369277587 | U51: 73 | V51: 15.73310468 | W51: 0.006721800707 | X51: 0.1057547942 | Y51: 0.02505624635 | Z51: 0.1911047217 | AA51: 0.04527801338 | AB51: 6101.361038 | AC51: 1445.581796
H52: 49 | I52: =MMULT(_xlfn.ANCHORARRAY(I51),_xlfn.ANCHORARRAY($B$3)) -> 0.2484886465 | J52: 0.06342255202 | K52: 0.3551230552 | L52: 0.2489504789 | M52: 0.08401526735 | O52: 0.2299254852 | P52: 1 | Q52: 0.2299254852 | R52: 0.2299254852 | S52: 0.2299254852 | U52: 74 | V52: 15.73310468 | W52: 0.006710509802 | X52: 0.1055771532 | Y52: 0.02427487816 | Z52: 0.1905447044 | AA52: 0.04381108361 | AB52: 6077.51333 | AC52: 1397.375201
H53: 50 | I53: =MMULT(_xlfn.ANCHORARRAY(I52),_xlfn.ANCHORARRAY($B$3)) -> 0.2424976641 | J53: 0.06189345443 | K53: 0.3546139211 | L53: 0.2556469576 | M53: 0.08534800268 | O53: 0.2231301601 | P53: 1 | Q53: 0.2231301601 | R53: 0.2231301601 | S53: 0.2231301601 | U53: 75 | V53: 13.37887774 | W53: 0.006696478738 | X53: 0.0895913703 | Y53: 0.0199905368 | Z53: 0.1899173208 | AA53: 0.0423762822 | AB53: 6051.777963 | AC53: 1350.334186
H54: 51 | I54: =MMULT(_xlfn.ANCHORARRAY(I53),_xlfn.ANCHORARRAY($B$3)) -> 0.2366511225 | J54: 0.0604012229 | K54: 0.3539561676 | L54: 0.2623267914 | M54: 0.08666469563 | O54: 0.2165356673 | P54: 1 | Q54: 0.2165356673 | R54: 0.2165356673 | S54: 0.2165356673 | U54: 76 | V54: 13.37887774 | W54: 0.006679833768 | X54: 0.08936867928 | Y54: 0.0193515066 | Z54: 0.1892258106 | AA54: 0.04097413718 | AB54: 6024.24965 | AC54: 1304.464918
H55: 52 | I55: =MMULT(_xlfn.ANCHORARRAY(I54),_xlfn.ANCHORARRAY($B$3)) -> 0.2309455391 | J55: 0.0589449686 | K55: 0.3531565925 | L55: 0.2689874883 | M55: 0.0879654115 | O55: 0.2101360712 | P55: 1 | Q55: 0.2101360712 | R55: 0.2101360712 | S55: 0.2101360712 | U55: 77 | V55: 13.37887774 | W55: 0.006660696897 | X55: 0.08911264942 | Y55: 0.01872578204 | Z55: 0.1884733036 | AA55: 0.03960503954 | AB55: 5995.01984 | AC55: 1259.769916
H56: 53 | I56: =MMULT(_xlfn.ANCHORARRAY(I55),_xlfn.ANCHORARRAY($B$3)) -> 0.2253775155 | J56: 0.05752382413 | K56: 0.3522217656 | L56: 0.2756266743 | M56: 0.08925022047 | O56: 0.2039256117 | P56: 1 | Q56: 0.2039256117 | R56: 0.2039256117 | S56: 0.2039256117 | U56: 78 | V56: 13.37887774 | W56: 0.00663918601 | X56: 0.0888248579 | Y56: 0.01811366348 | Z56: 0.187662822 | AA56: 0.03826925578 | AB56: 5964.176812 | AC56: 1216.248405
H57: 54 | I57: =MMULT(_xlfn.ANCHORARRAY(I56),_xlfn.ANCHORARRAY($B$3)) -> 0.2199437352 | J57: 0.056136943 | K57: 0.3511580352 | L57: 0.2822420893 | M57: 0.09051919728 | O57: 0.1978986991 | P57: 1 | Q57: 0.1978986991 | R57: 0.1978986991 | S57: 0.1978986991 | U57: 79 | V57: 13.37887774 | W57: 0.006615414996 | X57: 0.0885068284 | Y57: 0.0175153862 | Z57: 0.1867972845 | AA57: 0.0369669396 | AB57: 5931.805771 | AC57: 1173.896645
H58: 55 | I58: =MMULT(_xlfn.ANCHORARRAY(I57),_xlfn.ANCHORARRAY($B$3)) -> 0.2146409616 | J58: 0.05478349914 | K58: 0.3499715351 | L58: 0.2888315832 | M58: 0.09177242106 | O58: 0.1920499086 | P58: 1 | Q58: 0.1920499086 | R58: 0.1920499086 | S58: 0.1920499086 | U58: 80 | V58: 10.9258237 | W58: 0.006589493864 | X58: 0.07199564822 | Y58: 0.01382675766 | Z58: 0.1858795089 | AA58: 0.0356981427 | AB58: 5897.988946 | AC58: 1132.708238
H59: 56 | I59: =MMULT(_xlfn.ANCHORARRAY(I58),_xlfn.ANCHORARRAY($B$3)) -> 0.2094660362 | J59: 0.05346268637 | K59: 0.3486681903 | L59: 0.295393112 | M59: 0.09300997509 | O59: 0.186373976 | P59: 1 | Q59: 0.186373976 | R59: 0.186373976 | S59: 0.186373976 | U59: 81 | V59: 10.9258237 | W59: 0.006561528864 | X59: 0.07169010756 | Y59: 0.01336117039 | Z59: 0.1849122153 | AA59: 0.03446282479 | AB59: 5862.805673 | AC59: 1092.674404
H60: 57 | I60: =MMULT(_xlfn.ANCHORARRAY(I59),_xlfn.ANCHORARRAY($B$3)) -> 0.2044158766 | J60: 0.05217371799 | K60: 0.3472537243 | L60: 0.3019247346 | M60: 0.09423194654 | O60: 0.1808657926 | P60: 1 | Q60: 0.1808657926 | R60: 0.1808657926 | S60: 0.1808657926 | U60: 82 | V60: 10.9258237 | W60: 0.006531622595 | X60: 0.07136335694 | Y60: 0.01290719012 | Z60: 0.1838980291 | AA60: 0.03326086279 | AB60: 5826.332489 | AC60: 1053.784244
H61: 58 | I61: =MMULT(_xlfn.ANCHORARRAY(I60),_xlfn.ANCHORARRAY($B$3)) -> 0.1994874747 | J61: 0.05091582622 | K61: 0.345733664 | L61: 0.3084246088 | M61: 0.09543842629 | O61: 0.1755204006 | P61: 1 | Q61: 0.1755204006 | R61: 0.1755204006 | S61: 0.1755204006 | U61: 83 | V61: 10.9258237 | W61: 0.006499874119 | X61: 0.07101647869 | Y61: 0.01246484079 | Z61: 0.1828394836 | AA61: 0.0320920594 | AB61: 5788.643215 | AC61: 1016.024976
H62: 59 | I62: =MMULT(_xlfn.ANCHORARRAY(I61),_xlfn.ANCHORARRAY($B$3)) -> 0.194677895 | J62: 0.04968826182 | K62: 0.3441133466 | L62: 0.3148909878 | M62: 0.09662950874 | O62: 0.1703329888 | P62: 1 | Q62: 0.1703329888 | R62: 0.1703329888 | S62: 0.1703329888 | U62: 84 | V62: 10.9258237 | W62: 0.006466379064 | X62: 0.07065051763 | Y62: 0.01203411383 | Z62: 0.1817390232 | AA62: 0.030956151 | AB62: 5749.809036 | AC62: 979.3821583
H63: 60 | I63: =MMULT(_xlfn.ANCHORARRAY(I62),_xlfn.ANCHORARRAY($B$3)) -> 0.1899842728 | J63: 0.04849029361 | K63: 0.3423979244 | L63: 0.3213222176 | M63: 0.09780529157 | O63: 0.1652988882 | P63: 1 | Q63: 0.1652988882 | R63: 0.1652988882 | S63: 0.1652988882 | U63: 85 | V63: 8.632117659 | W63: 0.00643122973 | X63: 0.05551513173 | Y63: 0.009176589554 | Z63: 0.1805990058 | AA63: 0.02985281488 | AB63: 5709.898587 | AC63: 943.8398882
H64: 61 | I64: =MMULT(_xlfn.ANCHORARRAY(I63),_xlfn.ANCHORARRAY($B$3)) -> 0.1854038123 | J64: 0.04732120803 | K64: 0.3405923713 | L64: 0.3277167327 | M64: 0.09896587558 | O64: 0.1604135678 | P64: 1 | Q64: 0.1604135678 | R64: 0.1604135678 | S64: 0.1604135678 | U64: 86 | V64: 8.632117659 | W64: 0.006394515189 | X64: 0.05519820748 | Y64: 0.008854541397 | Z64: 0.1794217056 | AA64: 0.02878167594 | AB64: 5668.978026 | AC64: 909.3809908
H65: 62 | I65: =MMULT(_xlfn.ANCHORARRAY(I64),_xlfn.ANCHORARRAY($B$3)) -> 0.1809337853 | J65: 0.04618030873 | K65: 0.3387014873 | L65: 0.3340730541 | M65: 0.1001113645 | O65: 0.1556726304 | P65: 1 | Q65: 0.1556726304 | R65: 0.1556726304 | S65: 0.1556726304 | U65: 87 | V65: 8.632117659 | W65: 0.006356321381 | X65: 0.05486851404 | Y65: 0.008541525905 | Z65: 0.1782093156 | AA65: 0.02774231292 | AB65: 5627.111116 | AC65: 875.9871887
H66: 63 | I66: =MMULT(_xlfn.ANCHORARRAY(I65),_xlfn.ANCHORARRAY($B$3)) -> 0.1765715292 | J66: 0.04506691616 | K66: 0.3367299045 | L66: 0.3403897853 | M66: 0.1012418648 | O66: 0.1510718088 | P66: 1 | Q66: 0.1510718088 | R66: 0.1510718088 | S66: 0.1510718088 | U66: 88 | V66: 8.632117659 | W66: 0.006316731214 | X66: 0.05452676706 | Y66: 0.008237457329 | Z66: 0.1769639499 | AA66: 0.02673426402 | AB66: 5584.359291 | AC66: 843.6392592
H67: 64 | I67: =MMULT(_xlfn.ANCHORARRAY(I66),_xlfn.ANCHORARRAY($B$3)) -> 0.1723144457 | J67: 0.04398036712 | K67: 0.3346820917 | L67: 0.34666561 | M67: 0.1023574855 | O67: =EXP(-r_H * H67) -> 0.1466069621 | P67: 1 | Q67: 0.1466069621 | R67: =EXP(-r_C * H67) -> 0.1466069621 | S67: 0.1466069621 | U67: 89 | V67: 8.632117659 | W67: 0.00627582465 | X67: 0.05417365678 | Y67: =X67*Q67 -> 0.007942235248 | Z67: 0.1756876465 | AA67: =Z67*Q67 -> 0.02575703214 | AB67: 5540.781735 | AC67: 812.317178
H68: 65 | I68: =MMULT(_xlfn.ANCHORARRAY(I67),_xlfn.ANCHORARRAY($B$3)) -> 0.1681599992 | J68: 0.04292001444 | K68: 0.3325623595 | L68: 0.3528992888 | M68: 0.1034583381 | O68: 0.1422740716 | P68: 1 | Q68: =O68*P68 -> 0.1422740716 | R68: 0.1422740716 | S68: =R68*P68 -> 0.1422740716 | U68: =Delta_t*H68+age0 -> 90 | V68: =(1/r_H)*(1 - EXP(-r_H*LOOKUP(U68,$A$18:$B$38))) -> 6.809965489 | W68: =L68-L67 -> 0.0062336788 | X68: =W68*V68 -> 0.0424511375 | Y68: 0.006039696175 | Z68: 0.1743823693 | AA68: 0.0248100897 | AB68: 5496.435449 | AC68: =AB68*S68 -> 782.0002505
H69: 66 | I69: =MMULT(_xlfn.ANCHORARRAY(I68),_xlfn.ANCHORARRAY($B$3)) -> 0.164105715 | J69: 0.04188522652 | K69: 0.3303748654 | L69: 0.3590896568 | M69: 0.1045445363 | O69: 0.1380692373 | P69: 1 | Q69: 0.1380692373 | R69: 0.1380692373 | S69: 0.1380692373 | U69: 91 | V69: 6.809965489 | W69: 0.006190368009 | X69: 0.04215619251 | Y69: 0.005820473347 | Z69: 0.1730500106 | AA69: 0.02389288298 | AB69: 5451.375317 | AC69: 752.6672324
H70: 67 | I70: =MMULT(_xlfn.ANCHORARRAY(I69),_xlfn.ANCHORARRAY($B$3)) -> 0.1601491783 | J70: 0.04087538702 | K70: 0.328123618 | L70: 0.3652356207 | M70: 0.1056161959 | O70: 0.1339886747 | P70: 1 | Q70: 0.1339886747 | R70: 0.1339886747 | S70: 0.1339886747 | U70: 92 | V70: 6.809965489 | W70: 0.006145963941 | X70: 0.04185380234 | Y70: 0.005607935505 | Z70: 0.1716923931 | AA70: 0.02300483621 | AB70: 5405.654175 | AC70: 724.2964387
H71: 68 | I71: =MMULT(_xlfn.ANCHORARRAY(I70),_xlfn.ANCHORARRAY($B$3)) -> 0.1562880325 | J71: 0.03988989442 | K71: 0.325812482 | L71: 0.3713361564 | M71: 0.1066734346 | O71: 0.1300287109 | P71: 1 | Q71: 0.1300287109 | R71: 0.1300287109 | S71: 0.1300287109 | U71: 93 | V71: 6.809965489 | W71: 0.006100535662 | X71: 0.04154443733 | Y71: 0.00540196963 | Z71: 0.1703112724 | AA71: 0.0221453552 | AB71: 5359.322873 | AC71: 696.8658444
H72: =H71+1 -> 69 | I72: =MMULT(_xlfn.ANCHORARRAY(I71),_xlfn.ANCHORARRAY($B$3)) -> 0.1525199777 | J72: 0.03892816173 | K72: 0.3234451823 | L72: 0.3773903061 | M72: 0.1077163722 | O72: 0.1261857817 | P72: 1 | Q72: 0.1261857817 | R72: 0.1261857817 | S72: 0.1261857817 | U72: 94 | V72: 6.809965489 | W72: 0.006054149719 | X72: 0.04122855065 | Y72: 0.005202456893 | Z72: 0.1689083386 | AA72: 0.02131383074 | AB72: 5312.430337 | AC72: 670.3531748
H73: 70 | I73: =MMULT(_xlfn.ANCHORARRAY(I72),_xlfn.ANCHORARRAY($B$3)) -> 0.1488427695 | J73: 0.03798961612 | K73: 0.3210253084 | L73: 0.3833971763 | M73: 0.1087451297 | O73: 0.1224564283 | P73: 1 | Q73: 0.1224564283 | R73: 0.1224564283 | S73: 0.1224564283 | U73: 95 | V73: 5.426066218 | W73: 0.006006870218 | X73: 0.03259367557 | Y73: 0.003991305094 | Z73: 0.1674852187 | AA73: 0.02050964167 | AB73: 5265.023629 | AC73: 644.7359883
H74: 71 | I74: =MMULT(_xlfn.ANCHORARRAY(I73),_xlfn.ANCHORARRAY($B$3)) -> 0.1452542176 | J74: 0.03707369854 | K74: 0.3185563186 | L74: 0.3893559352 | M74: 0.1097598301 | O74: 0.1188372939 | P74: 1 | Q74: 0.1188372939 | R74: 0.1188372939 | S74: 0.1188372939 | U74: 96 | V74: 5.426066218 | W74: 0.005958758901 | X74: 0.03233262037 | Y74: 0.003842321108 | Z74: 0.1660434787 | AA74: 0.01973215767 | AB74: 5217.148008 | AC74: 619.9917509
H75: 72 | I75: =MMULT(_xlfn.ANCHORARRAY(I74),_xlfn.ANCHORARRAY($B$3)) -> 0.1417521845 | J75: 0.03617986344 | K75: 0.3160415442 | L75: 0.3952658105 | M75: 0.1107605974 | O75: 0.115325121 | P75: 1 | Q75: 0.115325121 | R75: 0.115325121 | S75: 0.115325121 | U75: 97 | V75: 5.426066218 | W75: 0.005909875217 | X75: 0.03206737427 | Y75: 0.003698173819 | Z75: 0.1645846249 | AA75: 0.01898074179 | AB75: 5168.846985 | AC75: 596.0979042
H76: 73 | I76: =MMULT(_xlfn.ANCHORARRAY(I75),_xlfn.ANCHORARRAY($B$3)) -> 0.1383345844 | J76: 0.03530757843 | K76: 0.313484193 | L76: 0.4011260868 | M76: 0.1117475573 | O76: 0.1119167486 | P76: 1 | Q76: 0.1119167486 | R76: 0.1119167486 | S76: 0.1119167486 | U76: 98 | V76: 5.426066218 | W76: 0.005860276395 | X76: 0.03179824778 | Y76: 0.003558756503 | Z76: 0.1631101064 | AA76: 0.01825475278 | AB76: 5120.162378 | AC76: 573.0319257
H77: 74 | I77: =MMULT(_xlfn.ANCHORARRAY(I76),_xlfn.ANCHORARRAY($B$3)) -> 0.1349993815 | J77: 0.03445632392 | K77: 0.3108873538 | L77: 0.4069361044 | M77: 0.1127208364 | O77: 0.1086091088 | P77: 1 | Q77: 0.1086091088 | R77: 0.1086091088 | S77: 0.1086091088 | U77: 99 | V77: 5.426066218 | W77: 0.005810017514 | X77: 0.03152553976 | Y77: 0.003423960778 | Z77: 0.1616213167 | AA77: 0.01755354718 | AB77: 5071.134366 | AC77: 550.7713842
H78: 75 | I78: =MMULT(_xlfn.ANCHORARRAY(I77),_xlfn.ANCHORARRAY($B$3)) -> 0.1317445893 | J78: 0.0336255929 | K78: 0.3082539994 | L78: 0.4126952559 | M78: 0.1136805625 | O78: 0.1053992246 | P78: 1 | Q78: 0.1053992246 | R78: 0.1053992246 | S78: 0.1053992246 | U78: 100 | V78: 5.426066218 | W78: 0.005759151567 | X78: 0.03124953776 | Y78: 0.003293677048 | Z78: 0.1601195952 | AA78: 0.01687648117 | AB78: 5021.801541 | AC78: 529.2939883
H79: 76 | I79: =MMULT(_xlfn.ANCHORARRAY(I78),_xlfn.ANCHORARRAY($B$3)) -> 0.1285682691 | J79: 0.03281489053 | K79: 0.3055869907 | L79: 0.4184029855 | M79: 0.1146268643 | O79: 0.1022842067 | P79: 1 | Q79: 0.1022842067 | R79: 0.1022842067 | S79: 0.1022842067 | U79: 101 | V79: 5.426066218 | W79: 0.005707729531 | X79: 0.03097051839 | Y79: 0.003167794905 | Z79: 0.1586062292 | AA79: 0.01622291234 | AB79: 4972.200961 | AC79: 508.5776309
H80: 77 | I80: =MMULT(_xlfn.ANCHORARRAY(I79),_xlfn.ANCHORARRAY($B$3)) -> 0.1254685289 | J80: 0.03202373395 | K80: 0.30288908 | L80: 0.4240587859 | M80: 0.1155598712 | O80: 0.09926125156 | P80: 1 | Q80: 0.09926125156 | R80: 0.09926125156 | S80: 0.09926125156 | U80: 102 | V80: 5.426066218 | W80: 0.005655800425 | X80: 0.03068874762 | Y80: 0.003046203498 | Z80: 0.1570824556 | AA80: 0.01559220115 | AB80: 4922.368194 | AC80: 488.6004275
H81: 78 | I81: =MMULT(_xlfn.ANCHORARRAY(I80),_xlfn.ANCHORARRAY($B$3)) -> 0.1224435226 | J81: 0.03125165189 | K81: 0.3001629145 | L81: 0.4296621973 | M81: 0.1164797138 | O81: 0.09632763823 | P81: 1 | Q81: 0.09632763823 | R81: 0.09632763823 | S81: 0.09632763823 | U81: 103 | V81: 5.426066218 | W81: 0.005603411378 | X81: 0.03040448118 | Y81: 0.002928791864 | Z81: 0.1555494623 | AA81: 0.01498371233 | AB81: 4872.33737 | AC81: 469.3407516
H82: 79 | I82: =MMULT(_xlfn.ANCHORARRAY(I81),_xlfn.ANCHORARRAY($B$3)) -> 0.1194914481 | J82: 0.03049818449 | K82: 0.2974110396 | L82: 0.4352128049 | M82: 0.1173865228 | O82: 0.09348072628 | P82: 1 | Q82: 0.09348072628 | R82: 0.09348072628 | S82: 0.09348072628 | U82: 104 | V82: 5.426066218 | W82: 0.005550607681 | X82: 0.03011796483 | Y82: 0.002815449227 | Z82: 0.1540083896 | AA82: 0.01439681612 | AB82: 4822.141228 | AC82: 450.7772642
H83: 80 | I83: =MMULT(_xlfn.ANCHORARRAY(I82),_xlfn.ANCHORARRAY($B$3)) -> 0.1166105473 | J83: 0.02976288295 | K83: 0.294635902 | L83: 0.4407102378 | M83: 0.11828043 | O83: 0.09071795329 | P83: 1 | Q83: 0.09071795329 | R83: 0.09071795329 | S83: 0.09071795329 | U83: 105 | V83: 5.426066218 | W83: 0.005497432855 | X83: 0.0298294347 | Y83: 0.002706065264 | Z83: 0.1524603324 | AA83: 0.01383088931 | AB83: 4771.811157 | AC83: 432.8889416
H84: 81 | I84: =MMULT(_xlfn.ANCHORARRAY(I83),_xlfn.ANCHORARRAY($B$3)) -> 0.113799104 | J84: 0.02904530929 | K84: 0.291839853 | L84: 0.4461541665 | M84: 0.1191615672 | O84: 0.08803683258 | P84: 1 | Q84: 0.08803683258 | R84: 0.08803683258 | S84: 0.08803683258 | U84: 106 | V84: 5.426066218 | W84: 0.005443928697 | X84: 0.0295391176 | Y84: 0.002600530351 | Z84: 0.1509063409 | AA84: 0.01328531627 | AB84: 4721.37724 | AC84: 415.6550977
H85: 82 | I85: =MMULT(_xlfn.ANCHORARRAY(I84),_xlfn.ANCHORARRAY($B$3)) -> 0.1110554437 | J85: 0.02834503611 | K85: 0.2890251513 | L85: 0.4515443018 | M85: 0.120030067 | O85: 0.08543495097 | P85: 1 | Q85: 0.08543495097 | R85: 0.08543495097 | S85: 0.08543495097 | U85: 107 | V85: 5.426066218 | W85: 0.005390135344 | X85: 0.0292472313 | Y85: 0.002498735772 | Z85: 0.1493474225 | AA85: 0.01275948972 | AB85: 4670.868302 | AC85: 399.0554044
H86: 83 | I86: =MMULT(_xlfn.ANCHORARRAY(I85),_xlfn.ANCHORARRAY($B$3)) -> 0.1083779323 | J86: 0.02766164629 | K86: 0.2861939663 | L86: 0.4568803932 | M86: 0.1208860619 | O86: 0.08290996658 | P86: 1 | Q86: 0.08290996658 | R86: 0.08290996658 | S86: 0.08290996658 | U86: 108 | V86: 5.426066218 | W86: 0.005336091318 | X86: 0.02895398484 | Y86: 0.002400573915 | Z86: 0.1477845429 | AA86: 0.01225281151 | AB86: 4620.311945 | AC86: 383.0699089
H87: 84 | I87: =MMULT(_xlfn.ANCHORARRAY(I86),_xlfn.ANCHORARRAY($B$3)) -> 0.1057649747 | J87: 0.02699473279 | K87: 0.2833483806 | L87: 0.4621622267 | M87: 0.1217296851 | O87: 0.08045960675 | P87: 1 | Q87: 0.08045960675 | R87: 0.08045960675 | S87: 0.08045960675 | U87: 109 | V87: 5.426066218 | W87: 0.005281833585 | X87: 0.02865957879 | Y87: 0.002305938439 | Z87: 0.1462186278 | AA87: 0.0117646933 | AB87: 4569.73459 | AC87: 367.679048
H88: 85 | I88: =MMULT(_xlfn.ANCHORARRAY(I87),_xlfn.ANCHORARRAY($B$3)) -> 0.1032150148 | J88: 0.02634389835 | K88: 0.2804903929 | L88: 0.4673896243 | M88: 0.1225610696 | O88: 0.078081666 | P88: 1 | Q88: 0.078081666 | R88: 0.078081666 | S88: 0.078081666 | U88: 110 | V88: 5.426066218 | W88: 0.005227397602 | X88: 0.02836420554 | Y88: 0.002214724423 | Z88: 0.1446505639 | AA88: 0.01129455702 | AB88: 4519.161516 | AC88: 352.8636601
H89: 86 | I89: =MMULT(_xlfn.ANCHORARRAY(I88),_xlfn.ANCHORARRAY($B$3)) -> 0.1007265336 | J89: 0.02570875533 | K89: 0.2776219207 | L89: 0.4725624417 | M89: 0.1233803487 | O89: 0.07577400402 | P89: 1 | Q89: 0.07577400402 | R89: 0.07577400402 | S89: 0.07577400402 | U89: 111 | V89: 5.426066218 | W89: 0.005172817362 | X89: 0.02806804954 | Y89: 0.002126828499 | Z89: 0.1430812002 | AA89: 0.01084183544 | AB89: 4468.616899 | AC89: 338.6049949
H90: 87 | I90: =MMULT(_xlfn.ANCHORARRAY(I89),_xlfn.ANCHORARRAY($B$3)) -> 0.09829804884 | J90: 0.02508892541 | K90: 0.2747448031 | L90: 0.4776805672 | M90: 0.1241876555 | O90: 0.07353454376 | P90: 1 | Q90: 0.07353454376 | R90: 0.07353454376 | S90: 0.07353454376 | U90: 112 | V90: 5.426066218 | W90: 0.00511812545 | X90: 0.02777128761 | Y90: 0.002042148964 | Z90: 0.1415113494 | AA90: 0.01040597252 | AB90: 4418.123845 | AC90: 324.8847212
H91: 88 | I91: =MMULT(_xlfn.ANCHORARRAY(I90),_xlfn.ANCHORARRAY($B$3)) -> 0.0959281141 | J91: 0.02448403938 | K91: 0.2718608029 | L91: 0.4827439202 | M91: 0.1249831234 | O91: 0.07136126956 | P91: 1 | Q91: 0.07136126956 | R91: 0.07136126956 | S91: 0.07136126956 | U91: 113 | V91: 5.426066218 | W91: 0.005063353081 | X91: 0.0274740891 | Y91: 0.001960585878 | Z91: 0.139941789 | AA91: 0.009986423726 | AB91: 4367.704429 | AC91: 311.6849331
H92: 89 | I92: =MMULT(_xlfn.ANCHORARRAY(I91),_xlfn.ANCHORARRAY($B$3)) -> 0.09361531774 | J92: 0.02389373697 | K92: 0.2689716097 | L92: 0.4877524504 | M92: 0.1257668853 | O92: 0.06925222531 | P92: 1 | Q92: 0.06925222531 | R92: 0.06925222531 | S92: 0.06925222531 | U92: 114 | V92: 5.426066218 | W92: 0.005008530147 | X92: 0.02717661624 | Y92: 0.001882041151 | Z92: 0.1383732623 | AA92: 0.009582656337 | AB92: 4317.379728 | AC92: 298.9881537
H93: 90 | I93: =MMULT(_xlfn.ANCHORARRAY(I92),_xlfn.ANCHORARRAY($B$3)) -> 0.09135828216 | J93: 0.02331766656 | K93: 0.2660788415 | L93: 0.4927061356 | M93: 0.1265390741 | O93: 0.06720551274 | P93: 1 | Q93: 0.06720551274 | R93: 0.06720551274 | S93: 0.06720551274 | U93: 115 | V93: 5.426066218 | W93: 0.004953685263 | X93: 0.02687902426 | Y93: 0.001806418608 | Z93: 0.1368064799 | AA93: 0.009194149625 | AB93: 4267.169853 | AC93: 286.7773379
H94: 91 | I94: =MMULT(_xlfn.ANCHORARRAY(I93),_xlfn.ANCHORARRAY($B$3)) -> 0.089155663 | J94: 0.02275548503 | K94: 0.2631840478 | L94: 0.4976049815 | M94: 0.1272998227 | O94: 0.06521928967 | P94: 1 | Q94: 0.06521928967 | R94: 0.06521928967 | S94: 0.06521928967 | U94: 116 | V94: 5.426066218 | W94: 0.004898845806 | X94: 0.02658146174 | Y94: 0.001733624053 | Z94: 0.1352421204 | AA94: 0.008820395022 | AB94: 4217.093983 | AC94: 275.0358741
H95: 92 | I95: =MMULT(_xlfn.ANCHORARRAY(I94),_xlfn.ANCHORARRAY($B$3)) -> 0.08700614828 | J95: 0.02220685751 | K95: 0.2602887114 | L95: 0.5024490194 | M95: 0.1280492634 | O95: 0.06329176836 | P95: 1 | Q95: 0.06329176836 | R95: 0.06329176836 | S95: 0.06329176836 | U95: 117 | V95: 5.426066218 | W95: 0.004844037955 | X95: 0.02628407071 | Y95: 0.001663565315 | Z95: 0.1336808317 | AA95: 0.008460896233 | AB95: 4167.170397 | AC95: 263.7475835
H96: 93 | I96: =MMULT(_xlfn.ANCHORARRAY(I95),_xlfn.ANCHORARRAY($B$3)) -> 0.08490845768 | J96: 0.02167145723 | K96: 0.2573942506 | L96: 0.5072383061 | M96: 0.1287875283 | O96: 0.06142121392 | P96: 1 | Q96: 0.06142121392 | R96: 0.06142121392 | S96: 0.06142121392 | U96: 118 | V96: 5.426066218 | W96: 0.004789286733 | X96: 0.02598698695 | Y96: 0.001596152285 | Z96: 0.132123232 | AA96: 0.008115169298 | AB96: 4117.416504 | AC96: 252.8967198
H97: 94 | I97: =MMULT(_xlfn.ANCHORARRAY(I96),_xlfn.ANCHORARRAY($B$3)) -> 0.08286134173 | J97: 0.02114896528 | K97: 0.2545020216 | L97: 0.5119729222 | M97: 0.1295147492 | O97: 0.05960594271 | P97: 1 | Q97: 0.05960594271 | R97: 0.05960594271 | S97: 0.05960594271 | U97: 119 | V97: 5.426066218 | W97: 0.004734616046 | X97: 0.02569034019 | Y97: 0.001531296945 | Z97: 0.1305699109 | AA97: 0.007782742626 | AB97: 4067.848869 | AC97: 242.4679666
H98: 95 | I98: =MMULT(_xlfn.ANCHORARRAY(I97),_xlfn.ANCHORARRAY($B$3)) -> 0.0808635811 | J98: 0.02063907044 | K98: 0.2516133202 | L98: 0.5166529709 | M98: 0.1302310573 | O98: 0.05784432087 | P98: 1 | Q98: 0.05784432087 | R98: 0.05784432087 | S98: 0.05784432087 | U98: 120 | V98: 5.426066218 | W98: 0.004680048718 | X98: 0.02539425425 | Y98: 0.001468913391 | Z98: 0.1290214298 | AA98: 0.007463156986 | AB98: 4018.483248 | AC98: 232.4464344
H99: 96 | I99: =MMULT(_xlfn.ANCHORARRAY(I98),_xlfn.ANCHORARRAY($B$3)) -> 0.07891398584 | J99: 0.02014146901 | K99: 0.2487293842 | L99: 0.5212785774 | M99: 0.1309365835 | O99: 0.05613476283 | P99: 1 | Q99: 0.05613476283 | R99: 0.05613476283 | S99: 0.05613476283 | U99: 121 | V99: 5.426066218 | W99: 0.004625606526 | X99: 0.02509884731 | Y99: 0.001408917841 | Z99: 0.1274783238 | AA99: 0.007155965472 | AB99: 3969.334611 | AC99: 222.817657
H100: 97 | I100: =MMULT(_xlfn.ANCHORARRAY(I99),_xlfn.ANCHORARRAY($B$3)) -> 0.07701139471 | J100: 0.01965586459 | K100: 0.245851395 | L100: 0.5258498877 | M100: 0.1316314581 | O100: 0.05447572987 | P100: 1 | Q100: 0.05447572987 | R100: 0.05447572987 | S100: 0.05447572987 | U100: 122 | V100: 5.426066218 | W100: 0.004571310239 | X100: 0.02480423206 | Y100: 0.001351228645 | Z100: 0.1259411017 | AA100: 0.006860733434 | AB100: 3920.417172 | AC100: 213.5675869
H101: 98 | I101: =MMULT(_xlfn.ANCHORARRAY(I100),_xlfn.ANCHORARRAY($B$3)) -> 0.07515467444 | J101: 0.01918196794 | K101: 0.2429804795 | L101: 0.5303670673 | M101: 0.1323158108 | O101: 0.05286572874 | P101: 1 | Q101: 0.05286572874 | R101: 0.05286572874 | S101: 0.05286572874 | U101: 123 | V101: 5.426066218 | W101: 0.004517179649 | X101: 0.0245105159 | Y101: 0.001295766285 | Z101: 0.1244102474 | AA101: 0.006577038391 | AB101: 3871.744413 | AC101: 204.6825899
H102: 99 | I102: =MMULT(_xlfn.ANCHORARRAY(I101),_xlfn.ANCHORARRAY($B$3)) -> 0.07334271911 | J102: 0.01871949678 | K102: 0.2401177123 | L102: 0.5348303009 | M102: 0.1329897709 | O102: 0.05130331033 | P102: 1 | Q102: 0.05130331033 | R102: 0.05130331033 | S102: 0.05130331033 | U102: 124 | V102: 5.426066218 | W102: 0.004463233607 | X102: 0.0242178011 | Y102: 0.001242453365 | Z102: 0.1228862207 | AA102: 0.006304469917 | AB102: 3823.32911 | AC102: 196.1494398
H103: 100 | I103: =MMULT(_xlfn.ANCHORARRAY(I102),_xlfn.ANCHORARRAY($B$3)) -> 0.07157444945 | J103: 0.01826817566 | K103: 0.2372641171 | L103: 0.539239791 | M103: 0.1336534668 | O103: 0.04978706837 | P103: 1 | Q103: 0.04978706837 | R103: 0.04978706837 | S103: 0.04978706837 | U103: 125 | V103: 5.426066218 | W103: 0.004409490051 | X103: 0.02392618501 | Y103: 0.001191214609 | Z103: 0.121369458 | AA103: 0.006042629505 | AB103: 3775.183358 | AC103: 187.955312
H104: 101 | I104: =MMULT(_xlfn.ANCHORARRAY(I103),_xlfn.ANCHORARRAY($B$3)) -> 0.06984881221 | J104: 0.01782773575 | K104: 0.2344206685 | L104: 0.543595757 | M104: 0.1343070265 | O104: 0.04831563813 | P104: 1 | Q104: 0.04831563813 | R104: 0.04831563813 | S104: 0.04831563813 | U104: 126 | V104: 5.426066218 | W104: 0.00435596604 | X104: 0.02363576018 | Y104: 0.001141976836 | Z104: 0.1198603732 | AA104: 0.005791130418 | AB104: 3727.318595 | AC104: 180.0877764
H105: 102 | I105: =MMULT(_xlfn.ANCHORARRAY(I104),_xlfn.ANCHORARRAY($B$3)) -> 0.06816477953 | J105: 0.0173979147 | K105: 0.2315882938 | L105: 0.5478984348 | M105: 0.1349505772 | O105: 0.04688769522 | P105: 1 | Q105: 0.04688769522 | R105: 0.04688769522 | S105: 0.04688769522 | U105: 127 | V105: 5.426066218 | W105: 0.004302677783 | X105: 0.02334661457 | Y105: 0.001094668948 | Z105: 0.1183593584 | AA105: 0.005549597522 | AB105: 3679.745625 | AC105: 172.5347913
H106: 103 | I106: =MMULT(_xlfn.ANCHORARRAY(I105),_xlfn.ANCHORARRAY($B$3)) -> 0.06652134834 | J106: 0.0169784565 | K106: 0.2287678744 | L106: 0.5521480755 | M106: 0.1355842453 | O106: 0.0455019544 | P106: 1 | Q106: 0.0455019544 | R106: 0.0455019544 | S106: 0.0455019544 | U106: 128 | V106: 5.426066218 | W106: 0.004249640668 | X106: 0.02305883167 | Y106: 0.001049221907 | Z106: 0.1168667847 | AA106: 0.005317667108 | AB106: 3632.474639 | AC106: 165.2846954
H107: 104 | I107: =MMULT(_xlfn.ANCHORARRAY(I106),_xlfn.ANCHORARRAY($B$3)) -> 0.06491753976 | J107: 0.01656911131 | K107: 0.2259602477 | L107: 0.5563449448 | M107: 0.1362081565 | O107: 0.04415716842 | P107: 1 | Q107: 0.04415716842 | R107: 0.04415716842 | S107: 0.04415716842 | U107: 129 | V107: 5.426066218 | W107: 0.004196869294 | X107: 0.0227724907 | Y107: 0.001005568707 | Z107: 0.115383003 | AA107: 0.005094986697 | AB107: 3585.51524 | AC107: 158.3262003
H108: 105 | I108: =MMULT(_xlfn.ANCHORARRAY(I107),_xlfn.ANCHORARRAY($B$3)) -> 0.0633523985 | J108: 0.0161696353 | K108: 0.2231662081 | L108: 0.5604893223 | M108: 0.1368224358 | O108: 0.04285212687 | P108: 1 | Q108: 0.04285212687 | R108: 0.04285212687 | S108: 0.04285212687 | U108: 130 | V108: 5.426066218 | W108: 0.004144377491 | X108: 0.0224876667 | Y108: 0.0009636443464 | Z108: 0.1139083447 | AA108: 0.004881214839 | AB108: 3538.87646 | AC108: 151.648383
H109: 106 | I109: =MMULT(_xlfn.ANCHORARRAY(I108),_xlfn.ANCHORARRAY($B$3)) -> 0.06182499229 | J109: 0.01577979053 | K109: 0.2203865092 | L109: 0.5645815006 | M109: 0.1374272073 | O109: 0.04158565512 | P109: 1 | Q109: 0.04158565512 | R109: 0.04158565512 | S109: 0.04158565512 | U109: 131 | V109: 5.426066218 | W109: 0.004092178355 | X109: 0.02220443073 | Y109: 0.0009233857985 | Z109: 0.1124431223 | AA109: 0.004676020905 | AB109: 3492.566785 | AC109: 145.2406778
H110: 107 | I110: =MMULT(_xlfn.ANCHORARRAY(I109),_xlfn.ANCHORARRAY($B$3)) -> 0.06033441137 | J110: 0.01539934479 | K110: 0.2176218646 | L110: 0.5686217849 | M110: 0.1380225943 | O110: 0.04035661327 | P110: 1 | Q110: 0.04035661327 | R110: 0.04035661327 | S110: 0.04035661327 | U110: 132 | V110: 5.426066218 | W110: 0.004040284267 | X110: 0.02192284997 | Y110: 0.0008847319782 | Z110: 0.1109876301 | AA110: 0.004479084867 | AB110: 3446.594172 | AC110: 139.0928681
H111: 108 | I111: =MMULT(_xlfn.ANCHORARRAY(I110),_xlfn.ANCHORARRAY($B$3)) -> 0.05887976787 | J111: 0.01502807148 | K111: 0.2148729496 | L111: 0.5726104918 | M111: 0.1386087193 | O111: 0.0391638951 | P111: 1 | Q111: 0.0391638951 | R111: 0.0391638951 | S111: 0.0391638951 | U111: 133 | V111: 5.426066218 | W111: 0.003988706923 | X111: 0.02164298789 | Y111: 0.0008476237073 | Z111: 0.109542145 | AA111: 0.004290097074 | AB111: 3400.966066 | AC111: 133.1950782
H112: 109 | I112: =MMULT(_xlfn.ANCHORARRAY(I111),_xlfn.ANCHORARRAY($B$3)) -> 0.05746019537 | J112: 0.01466574945 | K112: 0.2121404024 | L112: 0.5765479492 | M112: 0.1391857037 | O112: 0.03800642708 | P112: 1 | Q112: 0.03800642708 | R112: 0.03800642708 | S112: 0.03800642708 | U112: 134 | V112: 5.426066218 | W112: 0.003937457356 | X112: 0.02136490435 | Y112: 0.000812003679 | Z112: 0.1081069268 | AA112: 0.004108758028 | AB112: 3355.689424 | AC112: 127.5377654
H113: 110 | I113: =MMULT(_xlfn.ANCHORARRAY(I112),_xlfn.ANCHORARRAY($B$3)) -> 0.05607484831 | J113: 0.01431216289 | K113: 0.2094248255 | L113: 0.5804344951 | M113: 0.1397536682 | O113: 0.0368831674 | P113: 1 | Q113: 0.0368831674 | R113: 0.0368831674 | S113: 0.0368831674 | U113: 135 | V113: 5.426066218 | W113: 0.00388654596 | X113: 0.02108865574 | Y113: 0.0007778164199 | Z113: 0.1066822191 | AA113: 0.003934778147 | AB113: 3310.770731 | AC113: 122.1117111
H114: 111 | I114: =MMULT(_xlfn.ANCHORARRAY(I113),_xlfn.ANCHORARRAY($B$3)) -> 0.05472290153 | J114: 0.01396710118 | K114: 0.2067267871 | L114: 0.5842704776 | M114: 0.1403127326 | O114: 0.03579310507 | P114: 1 | Q114: 0.03579310507 | R114: 0.03579310507 | S114: 0.03579310507 | U114: 136 | V114: 5.426066218 | W114: 0.003835982512 | X114: 0.02081429512 | Y114: 0.0007450082522 | Z114: 0.1052682501 | AA114: 0.003767877535 | AB114: 3266.216014 | AC114: 116.9080129
H115: 112 | I115: =MMULT(_xlfn.ANCHORARRAY(I114),_xlfn.ANCHORARRAY($B$3)) -> 0.05340354975 | J115: 0.01363035881 | K115: 0.2040468219 | L115: 0.5880562538 | M115: 0.1408630157 | O115: 0.03473525894 | P115: 1 | Q115: 0.03473525894 | R115: 0.03473525894 | S115: 0.03473525894 | U115: 137 | V115: 5.426066218 | W115: 0.003785776196 | X115: 0.02054187233 | Y115: 0.0007135272546 | Z115: 0.1038652324 | AA115: 0.003607785742 | AB115: 3222.030863 | AC115: 111.9180764
H116: 113 | I116: =MMULT(_xlfn.ANCHORARRAY(I115),_xlfn.ANCHORARRAY($B$3)) -> 0.05211600713 | J116: 0.01330173519 | K116: 0.2013854329 | L116: 0.5917921894 | M116: 0.1414046354 | O116: 0.0337086769 | P116: 1 | Q116: 0.0337086769 | R116: 0.0337086769 | S116: 0.0337086769 | U116: 138 | V116: 5.426066218 | W116: 0.003735935624 | X116: 0.02027143408 | Y116: 0.0006833232218 | Z116: 0.1024733644 | AA116: 0.00345424153 | AB116: 3178.220448 | AC116: 107.1336062
H117: 114 | I117: =MMULT(_xlfn.ANCHORARRAY(I116),_xlfn.ANCHORARRAY($B$3)) -> 0.05085950675 | J117: 0.01298103458 | K117: 0.1987430919 | L117: 0.5954786583 | M117: 0.1419377085 | O117: 0.03271243494 | P117: 1 | Q117: 0.03271243494 | R117: 0.03271243494 | S117: 0.03271243494 | U117: 139 | V117: 5.426066218 | W117: 0.003686468854 | X117: 0.02000302411 | Y117: 0.0006543476249 | Z117: 0.1010928303 | AA117: 0.003306992634 | AB117: 3134.78953 | AC117: 102.5465986
H118: 115 | I118: =MMULT(_xlfn.ANCHORARRAY(I117),_xlfn.ANCHORARRAY($B$3)) -> 0.04963330019 | J118: 0.01266806596 | K118: 0.1961202412 | L118: 0.5991160417 | M118: 0.1424623509 | O118: 0.03174563638 | P118: 1 | Q118: 0.03174563638 | R118: 0.03174563638 | S118: 0.03174563638 | U118: 140 | V118: 5.426066218 | W118: 0.003637383415 | X118: 0.01973668327 | Y118: 0.0006265535704 | Z118: 0.0997238009 | AA118: 0.003165795522 | AB118: 3091.742482 | AC118: 98.14933261
H119: 116 | I119: =MMULT(_xlfn.ANCHORARRAY(I118),_xlfn.ANCHORARRAY($B$3)) -> 0.04843665709 | J119: 0.01236264291 | K119: 0.1935172943 | L119: 0.602704728 | M119: 0.1429786777 | O119: 0.03080741103 | P119: 1 | Q119: 0.03080741103 | R119: 0.03080741103 | S119: 0.03080741103 | U119: 141 | V119: 5.426066218 | W119: 0.003588686322 | X119: 0.01947244962 | Y119: 0.0005998957593 | Z119: 0.098366434 | AA119: 0.003030415164 | AB119: 3049.0833 | AC119: 93.93436251
H120: 117 | I120: =MMULT(_xlfn.ANCHORARRAY(I119),_xlfn.ANCHORARRAY($B$3)) -> 0.04726886467 | J120: 0.01206458352 | K120: 0.1909346371 | L120: 0.6062451121 | M120: 0.1434868025 | O120: 0.02989691444 | P120: 1 | Q120: 0.02989691444 | R120: 0.02989691444 | S120: 0.02989691444 | U120: 142 | V120: 5.426066218 | W120: 0.003540384099 | X120: 0.01921035856 | Y120: 0.0005743304462 | Z120: 0.09702087486 | AA120: 0.002900624794 | AB120: 3006.81562 | AC120: 89.89450933
H121: 118 | I121: =MMULT(_xlfn.ANCHORARRAY(I120),_xlfn.ANCHORARRAY($B$3)) -> 0.04612922736 | J121: 0.01177371024 | K121: 0.188372629 | L121: 0.6097375949 | M121: 0.1439868385 | O121: 0.02901332708 | P121: 1 | Q121: 0.02901332708 | R121: 0.02901332708 | S121: 0.02901332708 | U121: 143 | V121: 5.426066218 | W121: 0.003492482794 | X121: 0.01895044291 | Y121: 0.0005498153985 | Z121: 0.09568725675 | AA121: 0.002776205678 | AB121: 2964.94273 | AC121: 86.02285321
H122: 119 | I122: =MMULT(_xlfn.ANCHORARRAY(I121),_xlfn.ANCHORARRAY($B$3)) -> 0.04501706634 | J122: 0.01148984983 | K122: 0.1858316035 | L122: 0.6131825829 | M122: 0.1444788974 | O122: 0.02815585368 | P122: 1 | Q122: 0.02815585368 | R122: 0.02815585368 | S122: 0.02815585368 | U122: 144 | V122: 5.426066218 | W122: 0.003444987998 | X122: 0.018692733 | Y122: 0.0005263098553 | Z122: 0.09436570136 | AA122: 0.00265694688 | AB122: 2923.467584 | AC122: 82.31272554
H123: 120 | I123: =MMULT(_xlfn.ANCHORARRAY(I122),_xlfn.ANCHORARRAY($B$3)) -> 0.04393171917 | J123: 0.0112128332 | K123: 0.1833118697 | L123: 0.6165804878 | M123: 0.1449630901 | O123: 0.02732372245 | P123: 1 | Q123: 0.02732372245 | R123: 0.02732372245 | S123: 0.02732372245 | U123: 145 | V123: 5.426066218 | W123: 0.003397904864 | X123: 0.01843725679 | Y123: 0.0005037744873 | Z123: 0.09305631926 | AA123: 0.002542645039 | AB123: 2882.392817 | AC123: 78.75770132
H124: 121 | I124: =MMULT(_xlfn.ANCHORARRAY(I123),_xlfn.ANCHORARRAY($B$3)) -> 0.04287253937 | J124: 0.01094249535 | K124: 0.180813713 | L124: 0.6199317259 | M124: 0.1454395264 | O124: 0.02651618441 | P124: 1 | Q124: 0.02651618441 | R124: 0.02651618441 | S124: 0.02651618441 | U124: 146 | V124: 5.426066218 | W124: 0.003351238119 | X124: 0.01818403994 | Y124: 0.0004821713565 | Z124: 0.09175921035 | AA124: 0.002433104143 | AB124: 2841.720755 | AC124: 75.35159159
H125: 122 | I125: =MMULT(_xlfn.ANCHORARRAY(I124),_xlfn.ANCHORARRAY($B$3)) -> 0.04183889606 | J125: 0.01067867526 | K125: 0.1783373958 | L125: 0.623236718 | M125: 0.1459083149 | O125: 0.02573251273 | P125: 1 | Q125: 0.02573251273 | R125: 0.02573251273 | S125: 0.02573251273 | U125: 147 | V125: 5.426066218 | W125: 0.003304992085 | X125: 0.01793310591 | Y125: 0.000461463876 | Z125: 0.09047446425 | AA125: 0.002328135303 | AB125: 2801.45343 | AC125: 72.08843603
H126: 123 | I126: =MMULT(_xlfn.ANCHORARRAY(I125),_xlfn.ANCHORARRAY($B$3)) -> 0.04083017357 | J126: 0.01042121579 | K126: 0.1758831585 | L126: 0.6264958887 | M126: 0.1463695634 | O126: 0.02497200204 | P126: 1 | Q126: 0.02497200204 | R126: 0.02497200204 | S126: 0.02497200204 | U126: 148 | V126: 5.426066218 | W126: 0.003259170695 | X126: 0.01768447601 | Y126: 0.000441616771 | Z126: 0.08920216073 | AA126: 0.00222755654 | AB126: 2761.592588 | AC126: 68.96249575
H127: 124 | I127: =MMULT(_xlfn.ANCHORARRAY(I126),_xlfn.ANCHORARRAY($B$3)) -> 0.03984577105 | J127: 0.01016996359 | K127: 0.1734512206 | L127: 0.6297096662 | M127: 0.1468233786 | O127: 0.02423396785 | P127: 1 | Q127: 0.02423396785 | R127: 0.02423396785 | S127: 0.02423396785 | U127: 149 | V127: 5.426066218 | W127: 0.003213777502 | X127: 0.01743816954 | Y127: 0.0004225960398 | Z127: 0.08794237007 | AA127: 0.002131192568 | AB127: 2722.139705 | AC127: 65.96824609
H128: 125 | I128: =MMULT(_xlfn.ANCHORARRAY(I127),_xlfn.ANCHORARRAY($B$3)) -> 0.03888510217 | J128: 0.009924768998 | K128: 0.1710417811 | L128: 0.6328784819 | M128: 0.1472698658 | O128: 0.02351774586 | P128: 1 | Q128: 0.02351774586 | R128: 0.02351774586 | S128: 0.02351774586 | U128: 150 | V128: 5.426066218 | W128: 0.0031688157 | X128: 0.01719420382 | Y128: 0.0004043689157 | Z128: 0.08669515346 | AA128: 0.002038874586 | AB128: 2683.095997 | AC128: 63.10036976
H129: 126 | I129: =MMULT(_xlfn.ANCHORARRAY(I128),_xlfn.ANCHORARRAY($B$3)) -> 0.0379475947 | J129: 0.00968548597 | K129: 0.1686550196 | L129: 0.63600277 | M129: 0.1477091297 | O129: 0.02282269143 | P129: 1 | Q129: 0.02282269143 | R129: 0.02282269143 | S129: 0.02282269143 | U129: 151 | V129: 5.426066218 | W129: 0.003124288136 | X129: 0.01695259431 | Y129: 0.0003869038288 | Z129: 0.08546056338 | AA129: 0.001950440067 | AB129: 2644.462427 | AC129: 60.35374995
H130: 127 | I130: =MMULT(_xlfn.ANCHORARRAY(I129),_xlfn.ANCHORARRAY($B$3)) -> 0.03703269025 | J130: 0.009451971979 | K130: 0.1662910968 | L130: 0.6390829673 | M130: 0.1481412737 | O130: 0.02214817896 | P130: 1 | Q130: 0.02214817896 | R130: 0.02214817896 | S130: 0.02214817896 | U130: 152 | V130: 5.426066218 | W130: 0.003080197323 | X130: 0.01671335464 | Y130: 0.0003701703695 | Z130: 0.08423864392 | AA130: 0.001865732561 | AB130: 2606.23972 | AC130: 57.72346372
H131: 128 | I131: =MMULT(_xlfn.ANCHORARRAY(I130),_xlfn.ANCHORARRAY($B$3)) -> 0.03613984385 | J131: 0.009224087937 | K131: 0.1639501555 | L131: 0.6421195128 | M131: 0.1485663999 | O131: =EXP(-r_H * H131) -> 0.02149360135 | P131: 1 | Q131: 0.02149360135 | R131: =EXP(-r_C * H131) -> 0.02149360135 | S131: 0.02149360135 | U131: 153 | V131: 5.426066218 | W131: 0.003036545453 | X131: 0.01647649671 | Y131: =X131*Q131 -> 0.0003541392518 | Z131: 0.08302943116 | AA131: =Z131*Q131 -> 0.001784601493 | AB131: 2568.428372 | AC131: 55.20477551
H132: 129 | I132: =MMULT(_xlfn.ANCHORARRAY(I131),_xlfn.ANCHORARRAY($B$3)) -> 0.03526852369 | J132: 0.009001698106 | K132: 0.1616323213 | L132: 0.6451128472 | M132: 0.1489846097 | O132: 0.02085836943 | P132: 1 | Q132: =O132*P132 -> 0.02085836943 | R132: 0.02085836943 | S132: =R132*P132 -> 0.02085836943 | U132: =Delta_t*H132+age0 -> 154 | V132: =(1/r_H)*(1 - EXP(-r_H*LOOKUP(U132,$A$18:$B$38))) -> 5.426066218 | W132: =L132-L131 -> 0.002993334415 | X132: =W132*V132 -> 0.01624203075 | Y132: 0.0003387822776 | Z132: 0.08183295347 | AA132: 0.001706901975 | AB132: 2531.028659 | AC132: =AB132*S132 -> 52.79313079
H133: 130 | I133: =MMULT(_xlfn.ANCHORARRAY(I132),_xlfn.ANCHORARRAY($B$3)) -> 0.03441821079 | J133: 0.008784670024 | K133: 0.1593377029 | L133: 0.648063413 | M133: 0.1493960033 | O133: 0.02024191145 | P133: 1 | Q133: 0.02024191145 | R133: 0.02024191145 | S133: 0.02024191145 | U133: 155 | V133: 5.426066218 | W133: 0.002950565798 | X133: 0.0160099654 | Y133: 0.0003240723019 | Z133: 0.08064923187 | AA133: 0.00163249461 | AB133: 2494.040645 | AC133: 50.48414988
H134: 131 | I134: =MMULT(_xlfn.ANCHORARRAY(I133),_xlfn.ANCHORARRAY($B$3)) -> 0.03358839866 | J134: 0.00857287442 | K134: 0.1570663934 | L134: 0.6509716539 | M134: 0.1498006796 | O134: 0.01964367255 | P134: 1 | Q134: 0.01964367255 | R134: 0.01964367255 | S134: 0.01964367255 | U134: 156 | V134: 5.426066218 | W134: 0.002908240912 | X134: 0.01578030777 | Y134: 0.0003099831985 | Z134: 0.0794782803 | AA134: 0.001561245313 | AB134: 2457.464195 | AC134: 48.27362196
H135: 132 | I135: =MMULT(_xlfn.ANCHORARRAY(I134),_xlfn.ANCHORARRAY($B$3)) -> 0.03277859303 | J135: 0.008366185141 | K135: 0.1548184703 | L135: 0.6538380147 | M135: 0.1501987368 | O135: 0.01906311429 | P135: 1 | Q135: 0.01906311429 | R135: 0.01906311429 | S135: 0.01906311429 | U135: 157 | V135: 5.426066218 | W135: 0.002866360795 | X135: 0.01555306348 | Y135: 0.0002964898267 | Z135: 0.07832010594 | AA135: 0.001493025131 | AB135: 2421.298981 | AC135: 46.15749922
H136: =H135+1 -> 133 | I136: =MMULT(_xlfn.ANCHORARRAY(I135),_xlfn.ANCHORARRAY($B$3)) -> 0.03198831157 | J136: 0.008164479074 | K136: 0.1525939968 | L136: 0.6566629409 | M136: 0.1505902716 | O136: 0.01849971412 | P136: 1 | Q136: 0.01849971412 | R136: 0.01849971412 | S136: 0.01849971412 | U136: 158 | V136: 5.426066218 | W136: 0.002824926226 | X136: 0.01532823676 | Y136: 0.0002835679981 | Z136: 0.07717470951 | AA136: 0.001427710063 | AB136: 2385.544491 | AC136: 44.13189111
H137: 134 | I137: =MMULT(_xlfn.ANCHORARRAY(I136),_xlfn.ANCHORARRAY($B$3)) -> 0.03121708354 | J137: 0.007967636077 | K137: 0.1503930218 | L137: 0.6594468787 | M137: 0.15097538 | O137: 0.01795296494 | P137: 1 | Q137: 0.01795296494 | R137: 0.01795296494 | S137: 0.01795296494 | U137: 159 | V137: 5.426066218 | W137: 0.002783937734 | X137: 0.01510583049 | Y137: 0.0002711944452 | Z137: 0.07604208554 | AA137: 0.001365180896 | AB137: 2350.200038 | AC137: 42.19305888
H138: 135 | I138: =MMULT(_xlfn.ANCHORARRAY(I137),_xlfn.ANCHORARRAY($B$3)) -> 0.03046444957 | J138: 0.007775538902 | K138: 0.1482155807 | L138: 0.6621902743 | M138: 0.1513541565 | O138: 0.01742237464 | P138: 1 | Q138: 0.01742237464 | R138: 0.01742237464 | S138: 0.01742237464 | U138: 160 | V138: 5.426066218 | W138: 0.002743395612 | X138: 0.01488584626 | Y138: 0.0002593467903 | Z138: 0.07492222266 | AA138: 0.001305323032 | AB138: 2315.264765 | AC138: 40.33741013
H139: 136 | I139: =MMULT(_xlfn.ANCHORARRAY(I138),_xlfn.ANCHORARRAY($B$3)) -> 0.02972996136 | J139: 0.007588073128 | K139: 0.1460616963 | L139: 0.6648935742 | M139: 0.151726695 | O139: 0.01690746565 | P139: 1 | Q139: 0.01690746565 | R139: 0.01690746565 | S139: 0.01690746565 | U139: 161 | V139: 5.426066218 | W139: 0.002703299925 | X139: 0.0146682844 | Y139: 0.0002480035147 | Z139: 0.07381510382 | AA139: 0.001248026332 | AB139: 2280.737659 | AC139: 38.56149364
H140: 137 | I140: =MMULT(_xlfn.ANCHORARRAY(I139),_xlfn.ANCHORARRAY($B$3)) -> 0.02901318144 | J140: 0.007405127095 | K140: 0.1439313788 | L140: 0.6675572247 | M140: 0.152093088 | O140: 0.01640777453 | P140: 1 | Q140: 0.01640777453 | R140: 0.01640777453 | S140: 0.01640777453 | U140: 162 | V140: 5.426066218 | W140: 0.002663650518 | X140: 0.0144531441 | Y140: 0.0002371439295 | Z140: 0.07272070659 | AA140: 0.001193184957 | AB140: 2246.617553 | AC140: 36.86199425
H141: 138 | I141: =MMULT(_xlfn.ANCHORARRAY(I140),_xlfn.ANCHORARRAY($B$3)) -> 0.02831368285 | J141: 0.007226591833 | K141: 0.1418246267 | L141: 0.6701816718 | M141: 0.1524534269 | O141: 0.0159228515 | P141: 1 | Q141: 0.0159228515 | R141: 0.0159228515 | S141: 0.0159228515 | U141: 163 | V141: 5.426066218 | W141: 0.002624447031 | X141: 0.01424042337 | Y141: 0.0002267481468 | Z141: 0.0716390034 | AA141: 0.001140697213 | AB141: 2212.903133 | AC141: 35.23572798
H142: 139 | I142: =MMULT(_xlfn.ANCHORARRAY(I141),_xlfn.ANCHORARRAY($B$3)) -> 0.02763104895 | J142: 0.007052360999 | K142: 0.1397414272 | L142: 0.6727673607 | M142: 0.1528078022 | O142: 0.01545226012 | P142: 1 | Q142: 0.01545226012 | R142: 0.01545226012 | S142: 0.01545226012 | U142: 164 | V142: 5.426066218 | W142: 0.002585688901 | X142: 0.0140301192 | Y142: 0.0002167970514 | Z142: 0.07056996176 | AA142: 0.001090465406 | AB142: 2179.59295 | AC142: 33.67963723
H143: 140 | I143: =MMULT(_xlfn.ANCHORARRAY(I142),_xlfn.ANCHORARRAY($B$3)) -> 0.02696487313 | J143: 0.006882330815 | K143: 0.1376817568 | L143: 0.675314736 | M143: 0.1531563032 | O143: 0.01499557682 | P143: 1 | Q143: 0.01499557682 | R143: 0.01499557682 | S143: 0.01499557682 | U143: 165 | V143: 5.426066218 | W143: 0.002547375378 | X143: 0.01382222749 | Y143: 0.0002072722741 | Z143: 0.06951354448 | AA143: 0.001042395696 | AB143: 2146.685421 | AC143: 32.19078614
H144: 141 | I144: =MMULT(_xlfn.ANCHORARRAY(I143),_xlfn.ANCHORARRAY($B$3)) -> 0.02631475861 | J144: 0.006716400005 | K144: 0.1356455815 | L144: 0.6778242416 | M144: 0.1534990183 | O144: 0.01455239055 | P144: 1 | Q144: 0.01455239055 | R144: 0.01455239055 | S144: 0.01455239055 | U144: 166 | V144: 5.426066218 | W144: 0.00250950553 | X144: 0.01361674318 | Y144: 0.0001981561648 | Z144: 0.06846970994 | AA144: 0.0009963979598 | AB144: 2114.178839 | AC144: 30.76635616
H145: 142 | I145: =MMULT(_xlfn.ANCHORARRAY(I144),_xlfn.ANCHORARRAY($B$3)) -> 0.02568031813 | J145: 0.006554469734 | K145: 0.1336328576 | L145: 0.6802963198 | M145: 0.1538360347 | O145: 0.01412230241 | P145: 1 | Q145: 0.01412230241 | R145: 0.01412230241 | S145: 0.01412230241 | U145: 167 | V145: 5.426066218 | W145: 0.002472078252 | X145: 0.01341366029 | Y145: 0.0001894317671 | Z145: 0.06743841226 | AA145: 0.0009523856519 | AB145: 2082.07138 | AC145: 29.40364166
H146: 143 | I146: =MMULT(_xlfn.ANCHORARRAY(I145),_xlfn.ANCHORARRAY($B$3)) -> 0.02506117382 | J146: 0.006396443551 | K146: 0.1316435321 | L146: 0.6827314121 | M146: 0.1541674385 | O146: 0.0137049253 | P146: 1 | Q146: 0.0137049253 | R146: 0.0137049253 | S146: 0.0137049253 | U146: 168 | V146: 5.426066218 | W146: 0.002435092272 | X146: 0.01321297192 | Y146: 0.0001810827931 | Z146: 0.0664196015 | AA146: 0.0009102756769 | AB146: 2050.361103 | AC146: 28.10004575
H147: 144 | I147: =MMULT(_xlfn.ANCHORARRAY(I146),_xlfn.ANCHORARRAY($B$3)) -> 0.02445695688 | J147: 0.006242227329 | K147: 0.1296775428 | L147: 0.6851299583 | M147: 0.1544933148 | O147: 0.01329988354 | P147: 1 | Q147: 0.01329988354 | R147: 0.01329988354 | S147: 0.01329988354 | U147: 169 | V147: 5.426066218 | W147: 0.002398546164 | X147: 0.01301467031 | Y147: 0.0001730935995 | Z147: 0.06541322393 | AA147: 0.0008699882604 | AB147: 2019.045964 | AC147: 26.85307619
H148: 145 | I148: =MMULT(_xlfn.ANCHORARRAY(I147),_xlfn.ANCHORARRAY($B$3)) -> 0.02386730742 | J148: 0.00609172921 | K148: 0.1277348191 | L148: 0.6874923966 | M148: 0.1548137477 | O148: 0.01290681258 | P148: 1 | Q148: 0.01290681258 | R148: 0.01290681258 | S148: 0.01290681258 | U148: 170 | V148: 5.426066218 | W148: 0.00236243835 | X148: 0.01281874692 | Y148: 0.0001654491641 | Z148: 0.06441922214 | AA148: 0.0008314468267 | AB148: 1988.123818 | AC148: 25.6603415
H149: 146 | I149: =MMULT(_xlfn.ANCHORARRAY(I148),_xlfn.ANCHORARRAY($B$3)) -> 0.02329187422 | J149: 0.005944859554 | K149: 0.1258152823 | L149: 0.6898191637 | M149: 0.1551288202 | O149: 0.01252535862 | P149: 1 | Q149: 0.01252535862 | R149: 0.01252535862 | S149: 0.01252535862 | U149: 171 | V149: 5.426066218 | W149: 0.00232676711 | X149: 0.01262519242 | Y149: 0.0001581350627 | Z149: 0.06343753526 | AA149: 0.0007945778792 | AB149: 1957.592421 | AC149: 24.51954711
H150: 147 | I150: =MMULT(_xlfn.ANCHORARRAY(I149),_xlfn.ANCHORARRAY($B$3)) -> 0.02273031453 | J150: 0.005801530878 | K150: 0.1239188459 | L150: 0.6921106943 | M150: 0.1554386144 | O150: 0.01215517833 | P150: 1 | Q150: 0.01215517833 | R150: 0.01215517833 | S150: 0.01215517833 | U150: 172 | V150: 5.426066218 | W150: 0.002291530591 | X150: 0.01243399673 | Y150: 0.0001511374476 | Z150: 0.06246809916 | AA150: 0.0007593108852 | AB150: 1927.449441 | AC150: 23.42849168
H151: 148 | I151: =MMULT(_xlfn.ANCHORARRAY(I150),_xlfn.ANCHORARRAY($B$3)) -> 0.02218229386 | J151: 0.005661657811 | K151: 0.1220454162 | L151: 0.6943674211 | M151: 0.155743211 | O151: 0.01179593852 | P151: 1 | Q151: 0.01179593852 | R151: 0.01179593852 | S151: 0.01179593852 | U151: 173 | V151: 5.426066218 | W151: 0.002256726807 | X151: 0.01224514909 | Y151: 0.0001444430259 | Z151: 0.06151084659 | AA151: 0.0007255781647 | AB151: 1897.692461 | AC151: 22.3850636
H152: 149 | I152: =MMULT(_xlfn.ANCHORARRAY(I151),_xlfn.ANCHORARRAY($B$3)) -> 0.0216474858 | J152: 0.00552515704 | K152: 0.1201948922 | L152: 0.6965897748 | M152: 0.1560426902 | O152: 0.01144731585 | P152: 1 | Q152: 0.01144731585 | R152: 0.01144731585 | S152: 0.01144731585 | U152: 174 | V152: 5.426066218 | W152: 0.002222353655 | X152: 0.01205863809 | Y152: 0.000138039039 | Z152: 0.06056570738 | AA152: 0.0006933147821 | AB152: 1868.318983 | AC152: 21.3872375
H153: 150 | I153: =MMULT(_xlfn.ANCHORARRAY(I152),_xlfn.ANCHORARRAY($B$3)) -> 0.0211255718 | J153: 0.005391947258 | K153: 0.1183671665 | L153: 0.6987781837 | M153: 0.1563371307 | O153: 0.01110899654 | P153: 1 | Q153: 0.01110899654 | R153: 0.01110899654 | S153: 0.01110899654 | U153: 175 | V153: 5.426066218 | W153: 0.002188408912 | X153: 0.01187445167 | Y153: 0.0001319132425 | Z153: 0.05963260857 | AA153: 0.0006624584422 | AB153: 1839.326431 | AC153: 20.43307095
H154: 151 | I154: =MMULT(_xlfn.ANCHORARRAY(I153),_xlfn.ANCHORARRAY($B$3)) -> 0.02061624097 | J154: 0.005261949122 | K154: 0.1165621254 | L154: 0.7009330739 | M154: 0.1566266105 | O154: 0.01078067607 | P154: 1 | Q154: 0.01078067607 | R154: 0.01078067607 | S154: 0.01078067607 | U154: 176 | V154: 5.426066218 | W154: 0.002154890249 | X154: 0.01169257719 | Y154: 0.0001260538871 | Z154: 0.05871147459 | AA154: 0.0006329493893 | AB154: 1810.71216 | AC154: 19.52070126
H155: 152 | I155: =MMULT(_xlfn.ANCHORARRAY(I154),_xlfn.ANCHORARRAY($B$3)) -> 0.02011918995 | J155: 0.0051350852 | K155: 0.1147796492 | L155: 0.7030548692 | M155: 0.1569112065 | O155: 0.01046205894 | P155: 1 | Q155: 0.01046205894 | R155: 0.01046205894 | S155: 0.01046205894 | U155: 177 | V155: 5.426066218 | W155: 0.002121795232 | X155: 0.01151300143 | Y155: 0.0001204496996 | Z155: 0.0578022274 | AA155: 0.0006047303101 | AB155: 1782.473459 | AC155: 18.64834239
H156: 153 | I156: =MMULT(_xlfn.ANCHORARRAY(I155),_xlfn.ANCHORARRAY($B$3)) -> 0.01963412267 | J156: 0.005011279927 | K156: 0.1130196125 | L156: 0.7051439905 | M156: 0.1571909944 | O156: 0.01015285837 | P156: 1 | Q156: 0.01015285837 | R156: 0.01015285837 | S156: 0.01015285837 | U156: 178 | V156: 5.426066218 | W156: 0.002089121327 | X156: 0.01133571066 | Y156: 0.0001150898649 | Z156: 0.05690478663 | AA156: 0.0005777462394 | AB156: 1754.607552 | AC156: 17.81428198
H157: 154 | I157: =MMULT(_xlfn.ANCHORARRAY(I156),_xlfn.ANCHORARRAY($B$3)) -> 0.01916075021 | J157: 0.00489045956 | K157: 0.1112818845 | L157: 0.7072008564 | M157: 0.1574660493 | O157: 0.009852796061 | P157: 1 | Q157: 0.009852796061 | R157: 0.009852796061 | S157: 0.009852796061 | U157: 179 | V157: 5.426066218 | W157: 0.002056865911 | X157: 0.01116069064 | Y157: 0.0001099640088 | Z157: 0.05601906973 | AA157: 0.0005519444696 | AB157: 1727.111606 | AC157: 17.01687843
H158: 155 | I158: =MMULT(_xlfn.ANCHORARRAY(I157),_xlfn.ANCHORARRAY($B$3)) -> 0.0186987906 | J158: 0.004772552133 | K158: 0.1095663296 | L158: 0.7092258827 | M158: 0.157736445 | O158: 0.009561601931 | P158: 1 | Q158: 0.009561601931 | R158: 0.009561601931 | S158: 0.009561601931 | U158: 180 | V158: 5.426066218 | W158: 0.002025026273 | X158: 0.01098792665 | Y158: 0.0001050621807 | Z158: 0.05514499212 | AA158: 0.0005272744631 | AB158: 1699.982733 | AC158: 16.25455818
H159: 156 | I159: =MMULT(_xlfn.ANCHORARRAY(I158),_xlfn.ANCHORARRAY($B$3)) -> 0.0182479687 | J159: 0.004657487417 | K159: 0.1078728071 | L159: 0.7112194823 | M159: 0.1580022545 | O159: 0.009279013887 | P159: 1 | Q159: 0.009279013887 | R159: 0.009279013887 | S159: 0.009279013887 | U159: 181 | V159: 5.426066218 | W159: 0.001993599618 | X159: 0.01081740354 | Y159: 0.0001003748377 | Z159: 0.05428246728 | AA159: 0.0005036877677 | AB159: 1673.217994 | AC159: 15.525813
H160: 157 | I160: =MMULT(_xlfn.ANCHORARRAY(I159),_xlfn.ANCHORARRAY($B$3)) -> 0.01780801597 | J160: 0.004545196875 | K160: 0.1062011722 | L160: 0.7131820654 | M160: 0.1582635496 | O160: 0.009004777582 | P160: 1 | Q160: 0.009004777582 | R160: 0.009004777582 | S160: 0.009004777582 | U160: 182 | V160: 5.426066218 | W160: 0.001962583075 | X160: 0.01064910572 | Y160: 9.589282851e-05 | Z160: 0.0534314069 | AA160: 0.0004811379351 | AB160: 1646.814402 | AC160: 14.82919741
H161: 158 | I161: =MMULT(_xlfn.ANCHORARRAY(I160),_xlfn.ANCHORARRAY($B$3)) -> 0.01737867036 | J161: 0.004435613622 | K161: 0.1045512755 | L161: 0.7151140391 | M161: 0.1585204014 | O161: 0.008738646185 | P161: 1 | Q161: 0.008738646185 | R161: 0.008738646185 | S161: 0.008738646185 | U161: 183 | V161: 5.426066218 | W161: 0.001931973702 | X161: 0.01048301724 | Y161: 9.160737862e-05 | Z161: 0.05259172102 | AA161: 0.0004595804423 | AB161: 1620.768928 | AC161: 14.16332621
H162: 159 | I162: =MMULT(_xlfn.ANCHORARRAY(I161),_xlfn.ANCHORARRAY($B$3)) -> 0.01695967614 | J162: 0.004328672386 | K162: 0.1029229639 | L162: 0.7170158076 | M162: 0.15877288 | O162: 0.00848038016 | P162: 1 | Q162: 0.00848038016 | R162: 0.00848038016 | S162: 0.00848038016 | U162: 184 | V162: 5.426066218 | W162: 0.001901768488 | X162: 0.01031912175 | Y162: 8.751007533e-05 | Z162: 0.05176331809 | AA162: 0.0004389726157 | AB162: 1595.078501 | AC162: 13.52687207
H163: 160 | I163: =MMULT(_xlfn.ANCHORARRAY(I162),_xlfn.ANCHORARRAY($B$3)) -> 0.01655078374 | J163: 0.00422430947 | K163: 0.1013160805 | L163: 0.7188877719 | M163: 0.1590210544 | O163: 0.008229747049 | P163: 1 | Q163: 0.008229747049 | R163: 0.008229747049 | S163: 0.008229747049 | U163: 185 | V163: 5.426066218 | W163: 0.001871964358 | X163: 0.01015740256 | Y163: 8.359285377e-05 | Z163: 0.05094610514 | AA163: 0.0004192735585 | AB163: 1569.740013 | AC163: 12.91856324
H164: 161 | I164: =MMULT(_xlfn.ANCHORARRAY(I163),_xlfn.ANCHORARRAY($B$3)) -> 0.0161517496 | J164: 0.00412246271 | K164: 0.0997304649 | L164: 0.7207303301 | M164: 0.1592649927 | O164: 0.007986521266 | P164: 1 | Q164: 0.007986521266 | R164: 0.007986521266 | S164: 0.007986521266 | U164: 186 | V164: 5.426066218 | W164: 0.001842558178 | X164: 0.009997842686 | Y164: 7.984798322e-05 | Z164: 0.05013998787 | AA164: 0.0004004440794 | AB164: 1544.750324 | AC164: 12.33718131
H165: 162 | I165: =MMULT(_xlfn.ANCHORARRAY(I164),_xlfn.ANCHORARRAY($B$3)) -> 0.01576233604 | J165: 0.004023071443 | K165: 0.09816595345 | L165: 0.7225438769 | M165: 0.1595047622 | O165: 0.007750483891 | P165: 1 | Q165: 0.007750483891 | R165: 0.007750483891 | S165: 0.007750483891 | U165: 187 | V165: 5.426066218 | W165: 0.001813546761 | X165: 0.009840424815 | Y165: 7.626805401e-05 | Z165: 0.04934487072 | AA165: 0.0003824466256 | AB165: 1520.10626 | AC165: 11.78155908
H166: 163 | I166: =MMULT(_xlfn.ANCHORARRAY(I165),_xlfn.ANCHORARRAY($B$3)) -> 0.01538231113 | J166: 0.003926076469 | K166: 0.0966223795 | L166: 0.7243288037 | M166: 0.1597404292 | O166: 0.007521422475 | P166: 1 | Q166: 0.007521422475 | R166: 0.007521422475 | S166: 0.007521422475 | U166: 188 | V166: 5.426066218 | W166: 0.001784926866 | X166: 0.009685131372 | Y166: 7.284596477e-05 | Z166: 0.04856065702 | AA166: 0.0003652452171 | AB166: 1495.804621 | AC166: 11.25057849
H167: 164 | I167: =MMULT(_xlfn.ANCHORARRAY(I166),_xlfn.ANCHORARRAY($B$3)) -> 0.01501144849 | J167: 0.003831420012 | K167: 0.09509957356 | L167: 0.7260854989 | M167: 0.159972059 | O167: 0.007299130847 | P167: 1 | Q167: 0.007299130847 | R167: 0.007299130847 | S167: 0.007299130847 | U167: 189 | V167: 5.426066218 | W167: 0.001756695207 | X167: 0.00953194452 | Y167: 6.957491028e-05 | Z167: 0.04778724906 | AA167: 0.0003488053837 | AB167: 1471.84218 | AC167: 10.74316866
H168: 165 | I168: =MMULT(_xlfn.ANCHORARRAY(I167),_xlfn.ANCHORARRAY($B$3)) -> 0.01464952724 | J168: 0.003739045692 | K168: 0.09359736353 | L168: 0.7278143474 | M168: 0.1601997162 | O168: 0.007083408929 | P168: 1 | Q168: 0.007083408929 | R168: 0.007083408929 | S168: 0.007083408929 | U168: 190 | V168: 5.426066218 | W168: 0.001728848453 | X168: 0.009380846189 | Y168: 6.644836966e-05 | Z168: 0.04702454818 | AA168: 0.0003330941044 | AB168: 1448.21569 | AC168: 10.25830395
H169: 166 | I169: =MMULT(_xlfn.ANCHORARRAY(I168),_xlfn.ANCHORARRAY($B$3)) -> 0.01429633179 | J169: 0.003648898488 | K169: 0.0921155749 | L169: 0.7295157306 | M169: 0.1604234642 | O169: 0.006874062557 | P169: 1 | Q169: 0.006874062557 | R169: 0.006874062557 | S169: 0.006874062557 | U169: 191 | V169: 5.426066218 | W169: 0.001701383233 | X169: 0.009231818087 | Y169: 6.346009505e-05 | Z169: 0.04627245487 | AA169: 0.0003180797494 | AB169: 1424.921881 | AC169: 9.79500215
H170: 167 | I170: =MMULT(_xlfn.ANCHORARRAY(I169),_xlfn.ANCHORARRAY($B$3)) -> 0.01395165177 | J170: 0.003560924705 | K170: 0.09065403093 | L170: 0.7311900268 | M170: 0.1606433658 | O170: 0.006670903306 | P170: 1 | Q170: 0.006670903306 | R170: 0.006670903306 | S170: 0.006670903306 | U170: 192 | V170: 5.426066218 | W170: 0.00167429614 | X170: 0.009084841725 | Y170: 6.06041007e-05 | Z170: 0.04553086884 | AA170: 0.0003037320235 | AB170: 1401.957466 | AC170: 9.352322697
H171: 168 | I171: =MMULT(_xlfn.ANCHORARRAY(I170),_xlfn.ANCHORARRAY($B$3)) -> 0.01361528188 | J171: 0.003475071941 | K171: 0.08921255283 | L171: 0.7328376105 | M171: 0.1608594829 | O171: 0.006473748318 | P171: 1 | Q171: 0.006473748318 | R171: 0.006473748318 | S171: 0.006473748318 | U171: 193 | V171: 5.426066218 | W171: 0.001647583732 | X171: 0.00893989843 | Y171: 5.787465243e-05 | Z171: 0.04479968913 | AA171: 0.0002900219122 | AB171: 1379.319144 | AC171: 8.929364988
H172: 169 | I172: =MMULT(_xlfn.ANCHORARRAY(I171),_xlfn.ANCHORARRAY($B$3)) -> 0.01328702176 | J172: 0.00339128906 | K172: 0.08779095994 | L172: 0.734458853 | M172: 0.1610718762 | O172: 0.006282420141 | P172: 1 | Q172: 0.006282420141 | R172: 0.006282420141 | S172: 0.006282420141 | U172: 194 | V172: 5.426066218 | W172: 0.001621242538 | X172: 0.008796969366 | Y172: 5.526625752e-05 | Z172: 0.04407881416 | AA172: 0.0002769216299 | AB172: 1357.003599 | AC172: 8.525266741
H173: 170 | I173: =MMULT(_xlfn.ANCHORARRAY(I172),_xlfn.ANCHORARRAY($B$3)) -> 0.01296667588 | J173: 0.003309526158 | K173: 0.08638906992 | L173: 0.7360541221 | M173: 0.161280606 | O173: 0.006096746566 | P173: 1 | Q173: 0.006096746566 | R173: 0.006096746566 | S173: 0.006096746566 | U173: 195 | V173: 5.426066218 | W173: 0.001595269058 | X173: 0.008656035547 | Y173: 5.277365499e-05 | Z173: 0.04336814181 | AA173: 0.0002644045696 | AB173: 1335.007505 | AC173: 8.139202422
H174: 171 | I174: =MMULT(_xlfn.ANCHORARRAY(I173),_xlfn.ANCHORARRAY($B$3)) -> 0.01265405344 | J174: 0.003229734534 | K174: 0.08500669886 | L174: 0.7376237819 | M174: 0.1614857313 | O174: 0.005916560474 | P174: 1 | Q174: 0.005916560474 | R174: 0.005916560474 | S174: 0.005916560474 | U174: 196 | V174: 5.426066218 | W174: 0.00156965977 | X174: 0.008517077853 | Y174: 5.039180617e-05 | Z174: 0.0426675695 | AA174: 0.0002524452552 | AB174: 1313.327528 | AC174: 7.770381741
H175: 172 | I175: =MMULT(_xlfn.ANCHORARRAY(I174),_xlfn.ANCHORARRAY($B$3)) -> 0.01234896823 | J175: 0.00315186666 | K175: 0.08364366149 | L175: 0.739168193 | M175: 0.1616873106 | O175: 0.005741699686 | P175: 1 | Q175: 0.005741699686 | R175: 0.005741699686 | S175: 0.005741699686 | U175: 197 | V175: 5.426066218 | W175: 0.001544411128 | X175: 0.008380077047 | Y175: 4.811588574e-05 | Z175: 0.04197699427 | AA175: 0.0002410192948 | AB175: 1291.960325 | AC175: 7.418048194
H176: 173 | I176: =MMULT(_xlfn.ANCHORARRAY(I175),_xlfn.ANCHORARRAY($B$3)) -> 0.01205123853 | J176: 0.003075876156 | K176: 0.08229977129 | L176: 0.7406877126 | M176: 0.1618854015 | O176: 0.005572006815 | P176: 1 | Q176: 0.005572006815 | R176: 0.005572006815 | S176: 0.005572006815 | U176: 198 | V176: 5.426066218 | W176: 0.001519519567 | X176: 0.008245013788 | Y176: 4.594127302e-05 | Z176: 0.04129631281 | AA176: 0.0002301033364 | AB176: 1270.902551 | AC176: 7.081477676
H177: 174 | I177: =MMULT(_xlfn.ANCHORARRAY(I176),_xlfn.ANCHORARRAY($B$3)) -> 0.011760687 | J177: 0.003001717759 | K177: 0.08097484067 | L177: 0.7421826941 | M177: 0.1620800605 | O177: 0.005407329126 | P177: 1 | Q177: 0.005407329126 | R177: 0.005407329126 | S177: 0.005407329126 | U177: 199 | V177: 5.426066218 | W177: 0.001494981506 | X177: 0.008111868646 | Y177: 4.38635436e-05 | Z177: 0.04062542159 | AA177: 0.0002196750254 | AB177: 1250.150855 | AC177: 6.759977131
H178: 175 | I178: =MMULT(_xlfn.ANCHORARRAY(I177),_xlfn.ANCHORARRAY($B$3)) -> 0.01147714057 | J178: 0.002929347297 | K178: 0.07966868106 | L178: 0.7436534874 | M178: 0.1622713437 | O178: 0.005247518399 | P178: 1 | Q178: 0.005247518399 | R178: 0.005247518399 | S178: 0.005247518399 | U178: 200 | V178: 5.426066218 | W178: 0.00147079335 | X178: 0.007980622112 | Y178: 4.187846137e-05 | Z178: 0.03996421683 | AA178: 0.0002097129631 | AB178: 1229.701886 | AC178: 6.452883274
H179: 176 | I179: =MMULT(_xlfn.ANCHORARRAY(I178),_xlfn.ANCHORARRAY($B$3)) -> 0.01120043036 | J179: 0.002858721664 | K179: 0.0783811031 | L179: 0.7451004389 | M179: 0.162459306 | O179: 0.005092430793 | P179: 1 | Q179: 0.005092430793 | R179: 0.005092430793 | S179: 0.005092430793 | U179: 201 | V179: 5.426066218 | W179: 0.001446951493 | X179: 0.007851254615 | Y179: 3.998197076e-05 | Z179: 0.03931259465 | AA179: 0.0002001966675 | AB179: 1209.552294 | AC179: 6.159561347
H180: 177 | I180: =MMULT(_xlfn.ANCHORARRAY(I179),_xlfn.ANCHORARRAY($B$3)) -> 0.01093039154 | J180: 0.002789798793 | K180: 0.07711191672 | L180: 0.7465238912 | M180: 0.1626440017 | O180: 0.004941926718 | P180: 1 | Q180: 0.004941926718 | R180: 0.004941926718 | S180: 0.004941926718 | U180: 202 | V180: 5.426066218 | W180: 0.001423452317 | X180: 0.007723746532 | Y180: 3.817018935e-05 | Z180: 0.03867045105 | AA180: 0.0001911065352 | AB180: 1189.698729 | AC180: 5.879403935
H181: 178 | I181: =MMULT(_xlfn.ANCHORARRAY(I180),_xlfn.ANCHORARRAY($B$3)) -> 0.01066686327 | J181: 0.00272253763 | K181: 0.07586093128 | L181: 0.7479241834 | M181: 0.1628254844 | O181: 0.00479587071 | P181: 1 | Q181: 0.00479587071 | R181: 0.00479587071 | S181: 0.00479587071 | U181: 203 | V181: 5.426066218 | W181: 0.0014002922 | X181: 0.0075980782 | Y181: 3.643940069e-05 | Z181: 0.03803768204 | AA181: 0.0001824238052 | AB181: 1170.137846 | AC181: 5.611829824
H182: 179 | I182: =MMULT(_xlfn.ANCHORARRAY(I181),_xlfn.ANCHORARRAY($B$3)) -> 0.01040968858 | J182: 0.002656898112 | K182: 0.07462795569 | L182: 0.7493016509 | M182: 0.1630038067 | O182: 0.00465413131 | P182: 1 | Q182: 0.00465413131 | R182: 0.00465413131 | S182: 0.00465413131 | U182: 204 | V182: 5.426066218 | W182: 0.001377467511 | X182: 0.007474229926 | Y182: 3.478604752e-05 | Z182: 0.0374141836 | AA182: 0.0001741305233 | AB182: 1150.866305 | AC182: 5.356282904
H183: 180 | I183: =MMULT(_xlfn.ANCHORARRAY(I182),_xlfn.ANCHORARRAY($B$3)) -> 0.0101587143 | J183: 0.002592841143 | K183: 0.07341279852 | L183: 0.7506566255 | M183: 0.1631790205 | O183: 0.004516580943 | P183: 1 | Q183: 0.004516580943 | R183: 0.004516580943 | S183: 0.004516580943 | U183: 205 | V183: 5.426066218 | W183: 0.001354974618 | X183: 0.007352182002 | Y183: 3.320672512e-05 | Z183: 0.03679985182 | AA183: 0.0001662095094 | AB183: 1131.880771 | AC183: 5.112231119
H184: 181 | I184: =MMULT(_xlfn.ANCHORARRAY(I183),_xlfn.ANCHORARRAY($B$3)) -> 0.009913790924 | J184: 0.002530328566 | K184: 0.07221526809 | L184: 0.7519894354 | M184: 0.163351177 | O184: 0.004383095803 | P184: 1 | Q184: 0.004383095803 | R184: 0.004383095803 | S184: 0.004383095803 | U184: 206 | V184: 5.426066218 | W184: 0.001332809888 | X184: 0.007231914709 | Y184: 3.169817501e-05 | Z184: 0.03619458289 | AA184: 0.0001586443243 | AB184: 1113.177917 | AC184: 4.879165458
H185: 182 | I185: =MMULT(_xlfn.ANCHORARRAY(I184),_xlfn.ANCHORARRAY($B$3)) -> 0.009674772574 | J185: 0.002469323148 | K185: 0.0710351726 | L185: 0.7533004051 | M185: 0.1635203266 | O185: 0.004253555745 | P185: 1 | Q185: 0.004253555745 | R185: 0.004253555745 | S185: 0.004253555745 | U185: 207 | V185: 5.426066218 | W185: 0.001310969687 | X185: 0.007113408332 | Y185: 3.025727888e-05 | Z185: 0.03559827316 | AA185: 0.0001514192393 | AB185: 1094.754427 | AC185: 4.656598981
H186: 183 | I186: =MMULT(_xlfn.ANCHORARRAY(I185),_xlfn.ANCHORARRAY($B$3)) -> 0.00944151688 | J186: 0.002409788551 | K186: 0.06987232022 | L186: 0.7545898555 | M186: 0.1636865188 | O186: 0.004127844174 | P186: 1 | Q186: 0.004127844174 | R186: 0.004127844174 | S186: 0.004127844174 | U186: 208 | V186: 5.426066218 | W186: 0.001289450383 | X186: 0.006996643166 | Y186: 2.888105273e-05 | Z186: 0.03501081919 | AA186: 0.000144519206 | AB186: 1076.606991 | AC186: 4.444065897
H187: 184 | I187: =MMULT(_xlfn.ANCHORARRAY(I186),_xlfn.ANCHORARRAY($B$3)) -> 0.009213884907 | J187: 0.002351689315 | K187: 0.06872651917 | L187: 0.7558581039 | M187: 0.1638498028 | O187: 0.004005847942 | P187: 1 | Q187: 0.004005847942 | R187: 0.004005847942 | S187: 0.004005847942 | U187: 209 | V187: 5.426066218 | W187: 0.00126824835 | X187: 0.006881599529 | Y187: 2.756664131e-05 | Z187: 0.03443211777 | AA187: 0.0001379298281 | AB187: 1058.732315 | AC187: 4.241120663
H188: 185 | I188: =MMULT(_xlfn.ANCHORARRAY(I187),_xlfn.ANCHORARRAY($B$3)) -> 0.008991741068 | J188: 0.002294990832 | K188: 0.06759757781 | L188: 0.7571054638 | M188: 0.1640102265 | O188: 0.003887457243 | P188: 1 | Q188: 0.003887457243 | R188: 0.003887457243 | S188: 0.003887457243 | U188: 210 | V188: 5.426066218 | W188: 0.001247359964 | X188: 0.006768257765 | Y188: 2.631131267e-05 | Z188: 0.03386206601 | AA188: 0.0001316373338 | AB188: 1041.127113 | AC188: 4.047337135
H189: 186 | I189: =MMULT(_xlfn.ANCHORARRAY(I188),_xlfn.ANCHORARRAY($B$3)) -> 0.008774953047 | J189: 0.002239659332 | K189: 0.06648530477 | L189: 0.7583322454 | M189: 0.1641678374 | O189: 0.003772565519 | P189: 1 | Q189: 0.003772565519 | R189: 0.003772565519 | S189: 0.003772565519 | U189: 211 | V189: 5.426066218 | W189: 0.001226781611 | X189: 0.006656598257 | Y189: 2.511245306e-05 | Z189: 0.03330056129 | AA189: 0.0001256285493 | AB189: 1023.788115 | AC189: 3.862307741
H190: 187 | I190: =MMULT(_xlfn.ANCHORARRAY(I189),_xlfn.ANCHORARRAY($B$3)) -> 0.008563391716 | J190: 0.002185661857 | K190: 0.06538950895 | L190: 0.7595387551 | M190: 0.1643226824 | O190: 0.003661069358 | P190: 1 | Q190: 0.003661069358 | R190: 0.003661069358 | S190: 0.003661069358 | U190: 212 | V190: 5.426066218 | W190: 0.001206509683 | X190: 0.006546601433 | Y190: 2.396756191e-05 | Z190: 0.03274750139 | AA190: 0.0001198908739 | AB190: 1006.712065 | AC190: 3.685642694
H191: 188 | I191: =MMULT(_xlfn.ANCHORARRAY(I190),_xlfn.ANCHORARRAY($B$3)) -> 0.008356931061 | J191: 0.002132966244 | K191: 0.06430999969 | L191: 0.7607252957 | M191: 0.1644748073 | O191: 0.003552868406 | P191: 1 | Q191: 0.003552868406 | R191: 0.003552868406 | S191: 0.003552868406 | U191: 213 | V191: 5.426066218 | W191: 0.001186540583 | X191: 0.006438247775 | Y191: 2.287424711e-05 | Z191: 0.03220278447 | AA191: 0.0001144122555 | AB191: 989.8957224 | AC191: 3.516969238
H192: 189 | I192: =MMULT(_xlfn.ANCHORARRAY(I191),_xlfn.ANCHORARRAY($B$3)) -> 0.008155448108 | J192: 0.002081541105 | K192: 0.06324658676 | L192: 0.7618921664 | M192: 0.1646242576 | O192: 0.003447865276 | P192: 1 | Q192: 0.003447865276 | R192: 0.003447865276 | S192: 0.003447865276 | U192: 214 | V192: 5.426066218 | W192: 0.001166870725 | X192: 0.006331517821 | Y192: 2.183022044e-05 | Z192: 0.03166630908 | AA192: 0.0001091811675 | AB192: 973.3358621 | AC192: 3.355930921
H193: 190 | I193: =MMULT(_xlfn.ANCHORARRAY(I192),_xlfn.ANCHORARRAY($B$3)) -> 0.007958822844 | J193: 0.00203135581 | K193: 0.0621990805 | L193: 0.763039663 | M193: 0.1647710779 | O193: 0.003345965457 | P193: 1 | Q193: 0.003345965457 | R193: 0.003345965457 | S193: 0.003345965457 | U193: 215 | V193: 5.426066218 | W193: 0.001147496534 | X193: 0.006226392178 | Y193: 2.083329315e-05 | Z193: 0.03113797428 | AA193: 0.0001041865863 | AB193: 957.0292765 | AC193: 3.202186901
H194: 191 | I194: =MMULT(_xlfn.ANCHORARRAY(I193),_xlfn.ANCHORARRAY($B$3)) -> 0.007766938153 | J194: 0.001982380467 | K194: 0.06116729185 | L194: 0.7641680774 | M194: 0.1649153121 | O194: 0.003247077234 | P194: 1 | Q194: 0.003247077234 | R194: 0.003247077234 | S194: 0.003247077234 | U194: 216 | V194: 5.426066218 | W194: 0.00112841445 | X194: 0.006122851527 | Y194: 1.98813718e-05 | Z194: 0.03061767956 | AA194: 9.941797024e-05 | AB194: 940.9727759 | AC194: 3.055411278
H195: 192 | I195: =MMULT(_xlfn.ANCHORARRAY(I194),_xlfn.ANCHORARRAY($B$3)) -> 0.007579679741 | J195: 0.001934585904 | K195: 0.06015103242 | L195: 0.7652776983 | M195: 0.1650570036 | O195: =EXP(-r_H * H195) -> 0.003151111598 | P195: 1 | Q195: 0.003151111598 | R195: =EXP(-r_C * H195) -> 0.003151111598 | S195: 0.003151111598 | U195: 217 | V195: 5.426066218 | W195: 0.001109620927 | X195: 0.006020876625 | Y195: =X195*Q195 -> 1.897245416e-05 | Z195: 0.03010532495 | AA195: =Z195*Q195 -> 9.486523861e-05 | AB195: 925.1631894 | AC195: 2.915292456
H196: 193 | I196: =MMULT(_xlfn.ANCHORARRAY(I195),_xlfn.ANCHORARRAY($B$3)) -> 0.00739693607 | J196: 0.001887943652 | K196: 0.05915011455 | L196: 0.7663688108 | M196: 0.165196195 | O196: 0.003057982176 | P196: 1 | Q196: =O196*P196 -> 0.003057982176 | R196: 0.003057982176 | S196: =R196*P196 -> 0.003057982176 | U196: =Delta_t*H196+age0 -> 218 | V196: =(1/r_H)*(1 - EXP(-r_H*LOOKUP(U196,$A$18:$B$38))) -> 5.426066218 | W196: =L196-L195 -> 0.001091112433 | X196: =W196*V196 -> 0.005920448315 | Y196: 1.810462542e-05 | Z196: 0.029600811 | AA196: 9.051875243e-05 | AB196: 909.597365 | AC196: =AB196*S196 -> 2.78153253
H197: 194 | I197: =MMULT(_xlfn.ANCHORARRAY(I196),_xlfn.ANCHORARRAY($B$3)) -> 0.007218598291 | J197: 0.00184242593 | K197: 0.05816435138 | L197: 0.7674416962 | M197: 0.1653329282 | O197: 0.002967605145 | P197: 1 | Q197: 0.002967605145 | R197: 0.002967605145 | S197: 0.002967605145 | U197: 219 | V197: 5.426066218 | W197: 0.001072885457 | X197: 0.005821547532 | Y197: 1.727605441e-05 | Z197: 0.02910403882 | AA197: 8.636929534e-05 | AB197: 894.2721711 | AC197: 2.653846696
H198: 195 | I198: =MMULT(_xlfn.ANCHORARRAY(I197),_xlfn.ANCHORARRAY($B$3)) -> 0.007044560179 | J198: 0.001798005626 | K198: 0.05719355691 | L198: 0.7684966327 | M198: 0.1654672446 | O198: 0.002879899158 | P198: 1 | Q198: 0.002879899158 | R198: 0.002879899158 | S198: 0.002879899158 | U198: 220 | V198: 5.426066218 | W198: 0.0010549365 | X198: 0.005724155305 | Y198: 1.648499004e-05 | Z198: 0.02861491012 | AA198: 8.240805557e-05 | AB198: 879.1844965 | AC198: 2.531962691
H199: 196 | I199: =MMULT(_xlfn.ANCHORARRAY(I198),_xlfn.ANCHORARRAY($B$3)) -> 0.00687471807 | J199: 0.001754656281 | K199: 0.05623754602 | L199: 0.7695338948 | M199: 0.1655991848 | O199: 0.002794785275 | P199: 1 | Q199: 0.002794785275 | R199: 0.002794785275 | S199: 0.002794785275 | U199: 221 | V199: 5.426066218 | W199: 0.001037262086 | X199: 0.005628252763 | Y199: 1.572975795e-05 | Z199: 0.0281333272 | AA199: 7.86266086e-05 | AB199: 864.3312515 | AC199: 2.415620254
H200: =H199+1 -> 197 | I200: =MMULT(_xlfn.ANCHORARRAY(I199),_xlfn.ANCHORARRAY($B$3)) -> 0.006708970801 | J200: 0.001712352076 | K200: 0.05529613454 | L200: 0.7705537536 | M200: 0.165728789 | O200: 0.002712186887 | P200: 1 | Q200: 0.002712186887 | R200: 0.002712186887 | S200: 0.002712186887 | U200: 222 | V200: 5.426066218 | W200: 0.001019858756 | X200: 0.005533821143 | Y200: 1.500875714e-05 | Z200: 0.02765919299 | AA200: 7.501690053e-05 | AB200: 849.709368 | AC200: 2.304570606
... 303 more rows

Sheet Approach 2 - SOC
H1: Markov Trace | O1: Cycle Adjustments | U1: Outcomes
A2: Transition Probability Matrix | B2: H | C2: S1 | D2: S2 | E2: D | F2: trDS | H2: Cycle | I2: H | J2: S1 | K2: S2 | L2: D | M2: trDS | O2: Cycle Discount Rate (Health Outcomes) | P2: Cycle Correction | Q2: Total Cycle Correction (Health) | R2: Cycle Discount Rate | S2: Total Cycle Correction (Cost) | U2: Age in Model | V2: Remaining Life Expectancy (present value at cycle t) | W2: YLL_t (not fully discounted) | X2: YLL_t (fully discounted) | Y2: YLD_t (not discounted) | Z2: YLD_t ( discounted) | AA2: Cost (not discounted) | AB2: Cost (discounted)
A3: H | B3: =m2_P_soc -> 0.8872494932 | C3: 0.1042766608 | D3: 0.006200221781 | E3: 0.002273624195 | F3: 0.0002758082375 | H3: 0 | I3: =n_cohort -> 1 | J3: 0 | K3: 0 | L3: 0 | M3: 0 | O3: =EXP(-r_H * H3) -> 1 | P3: 0.5 | Q3: =O3*P3 -> 0.5 | R3: =EXP(-r_C * H3) -> 1 | S3: =R3*P3 -> 0.5 | U3: =age0 -> 25 | V3: =(1/r_disc_h)*(1 - EXP(-r_disc_h*LOOKUP(U3,$A$18:$B$38))) -> 28.46827411 | W3: =V3*M3 -> 0 | X3: =W3*Q3 -> 0 | Y3: =MMULT(I3:M503,C10:C14) -> 0 | Z3: =Y3*Q3 -> 0 | AA3: =MMULT(I3:M503,B10:B14) -> 2000 | AB3: =AA3*S3 -> 1000
A4: S1 | B4: 0.3475888693 | C4: 0.5681629113 | D4: 0.07844985771 | E4: 0.005798361763 | F4: 0.003804223249 | H4: =H3+1 -> 1 | I4: =MMULT(I3:$M$3,_xlfn.ANCHORARRAY($B$3)) -> 0.8872494932 | J4: 0.1042766608 | K4: 0.006200221781 | L4: 0.002273624195 | M4: 0.0002758082375 | O4: 0.9704455335 | P4: 1 | Q4: =O4*P4 -> 0.9704455335 | R4: 0.9704455335 | S4: =R4*P4 -> 0.9704455335 | U4: =Delta_t*H4+age0 -> 26 | V4: =(1/r_H)*(1 - EXP(-r_H*LOOKUP(U4,$A$18:$B$38))) -> 28.46827411 | W4: =V4*M4 -> 0.007851784508 | X4: 0.007619729206 | Y4: 0.02873607972 | Z4: 0.02788680021 | AA4: 2284.608956 | AB4: 2217.088558
A5: S2 | B5: 0 | C5: 0 | D5: 0.9801986733 | E5: 0.01980132667 | F5: 0.017821194 | H5: =H4+1 -> 2 | I5: =MMULT(_xlfn.ANCHORARRAY(I4),_xlfn.ANCHORARRAY($B$3)) -> 0.8234570699 | J5: 0.1517655456 | K5: 0.019759082 | L5: 0.00501830253 | M5: 0.0007518977714 | O5: 0.9417645336 | P5: 1 | Q5: 0.9417645336 | R5: 0.9417645336 | S5: 0.9417645336 | U5: 27 | V5: 28.46827411 | W5: 0.02140523186 | X5: 0.0201586882 | Y5: 0.04711073315 | Z5: 0.04436721763 | AA5: 2550.362552 | AB5: 2401.840999
A6: D | B6: 0 | C6: 0 | D6: 0 | E6: 1 | F6: 0 | H6: =H5+1 -> 3 | I6: =MMULT(_xlfn.ANCHORARRAY(I5),_xlfn.ANCHORARRAY($B$3)) -> 0.7833638823 | J6: 0.1720949078 | K6: 0.03637942788 | L6: 0.008161782021 | M6: 0.001156596694 | O6: 0.9139311853 | P6: 1 | Q6: 0.9139311853 | R6: 0.9139311853 | S6: 0.9139311853 | U6: 28 | V6: 28.46827411 | W6: 0.03292631171 | X6: 0.03009238309 | Y6: 0.06030435283 | Z6: 0.05511402866 | AA6: 2800.798814 | AB6: 2559.73738
A7: trDS | B7: 0 | C7: 0 | D7: 0 | E7: 0 | F7: 0 | H7: =H6+1 -> 4 | I7: =MMULT(_xlfn.ANCHORARRAY(I6),_xlfn.ANCHORARRAY($B$3)) -> 0.754857482 | J7: 0.1794645136 | K7: 0.05401691778 | L7: 0.01166108657 | M7: 0.001519070503 | O7: 0.8869204367 | P7: 1 | Q7: 0.8869204367 | R7: 0.8869204367 | S7: 0.8869204367 | U7: 29 | V7: 28.46827411 | W7: 0.04324531547 | X7: 0.03835515408 | Y7: 0.0708071693 | Z7: 0.06280032552 | AA7: 3037.826785 | AB7: 2694.310659
H8: =H7+1 -> 5 | I8: =MMULT(_xlfn.ANCHORARRAY(I7),_xlfn.ANCHORARRAY($B$3)) -> 0.7321267858 | J8: 0.1806790981 | K8: 0.0717065605 | L8: 0.01548755561 | M8: 0.001853564958 | O8: 0.8607079764 | P8: 1 | Q8: 0.8607079764 | R8: 0.8607079764 | S8: 0.8607079764 | U8: 30 | V8: 27.68890127 | W8: 0.05132317711 | X8: 0.04417426791 | Y8: 0.07981977181 | Z8: 0.06870151428 | AA8: 3262.568372 | AB8: 2808.118621
A9: Payoffs | B9: Cost | C9: YLD | H9: 6 | I9: =MMULT(_xlfn.ANCHORARRAY(I8),_xlfn.ANCHORARRAY($B$3)) -> 0.7123811631 | J9: 0.1789988989 | K9: 0.08900027346 | L9: 0.01961966459 | M9: 0.00216716675 | O9: 0.8352702114 | P9: 1 | Q9: 0.8352702114 | R9: 0.8352702114 | S9: 0.8352702114 | U9: 31 | V9: 27.68890127 | W9: 0.06000646616 | X9: 0.05012161368 | Y9: 0.0879244012 | Z9: 0.07344063318 | AA9: 3475.762024 | AB9: 2903.20048
A10: H | B10: =c_H -> 2000 | C10: 0 | H10: 7 | I10: =MMULT(_xlfn.ANCHORARRAY(I9),_xlfn.ANCHORARRAY($B$3)) -> 0.6942778508 | J10: 0.1759852644 | K10: 0.1056973093 | L10: 0.02403957549 | M10: 0.002463523505 | O10: 0.810584246 | P10: 1 | Q10: 0.810584246 | R10: 0.810584246 | S10: 0.810584246 | U10: 32 | V10: 27.68890127 | W10: 0.0682122591 | X10: 0.05529178261 | Y10: 0.09540671464 | Z10: 0.07733517985 | AA10: 3677.956399 | AB10: 2981.293514
A11: S1 | B11: =c_S1 -> 4000 | C11: =dw_S1*(1/r_H)*(1-EXP(-r_H))*Delta_t -> 0.2462872204 | H11: 8 | I11: =MMULT(_xlfn.ANCHORARRAY(I10),_xlfn.ANCHORARRAY($B$3)) -> 0.6771681903 | J11: 0.1723852761 | K11: 0.121715058 | L11: 0.02873147559 | M11: 0.002744627039 | O11: 0.7866278611 | P11: 1 | Q11: 0.7866278611 | R11: 0.7866278611 | S11: 0.7866278611 | U11: 33 | V11: 27.68890127 | W11: 0.0759957071 | X11: 0.05978034053 | Y11: 0.1024100171 | Z11: 0.08055857272 | AA11: 3869.603355 | AB11: 3043.93781
A12: S2 | B12: =c_S2 -> 15000 | C12: =dw_S2*(1/r_H)*(1-EXP(-r_H))*Delta_t -> 0.4925744409 | H12: 9 | I12: =MMULT(_xlfn.ANCHORARRAY(I11),_xlfn.ANCHORARRAY($B$3)) -> 0.6607363369 | J12: 0.168555758 | K12: 0.1370271317 | L12: 0.03368077339 | M12: 0.003011668301 | O12: 0.7633794943 | P12: 1 | Q12: 0.7633794943 | R12: 0.7633794943 | S12: 0.7633794943 | U12: 34 | V12: 27.68890127 | W12: 0.08338978623 | X12: 0.06365805285 | Y12: 0.1090091919 | Z12: 0.08321538179 | AA12: 4051.102681 | AB12: 3092.528716
A13: D | B13: =c_D -> 0 | C13: 0 | H13: 10 | I13: =MMULT(_xlfn.ANCHORARRAY(I12),_xlfn.ANCHORARRAY($B$3)) -> 0.6448260854 | J13: 0.164666509 | K13: 0.1516336998 | L13: 0.03887370577 | M13: 0.003265447355 | O13: 0.7408182207 | P13: 1 | Q13: 0.7408182207 | R13: 0.7408182207 | S13: 0.7408182207 | U13: 35 | V13: 26.78651299 | W13: 0.08746994799 | X13: 0.06479933123 | Y13: 0.1152461417 | Z13: 0.08537644162 | AA13: 4222.823703 | AB13: 3128.344742
A14: trDS | B14: =c_D -> 0 | C14: 0 | H14: 11 | I14: =MMULT(_xlfn.ANCHORARRAY(I13),_xlfn.ANCHORARRAY($B$3)) -> 0.6293578632 | J14: 0.1607977141 | K14: 0.1655472803 | L14: 0.04429714237 | M14: 0.003506570088 | O14: 0.7189237334 | P14: 1 | Q14: 0.7189237334 | R14: 0.7189237334 | S14: 0.7189237334 | U14: 36 | V14: 26.78651299 | W14: 0.09392878522 | X14: 0.06752763295 | Y14: 0.1211467811 | Z14: 0.08709529615 | AA14: 4385.115787 | AB14: 3152.563813
H15: 12 | I15: =MMULT(_xlfn.ANCHORARRAY(I14),_xlfn.ANCHORARRAY($B$3)) -> 0.6142889408 | J15: 0.1569866338 | K15: 0.1787859406 | L15: 0.04993848473 | M15: 0.003735542684 | O15: 0.6976763261 | P15: 1 | Q15: 0.6976763261 | R15: 0.6976763261 | S15: 0.6976763261 | U15: 37 | V15: 26.78651299 | W15: 0.1000621626 | X15: 0.06981100199 | Y15: 0.1267291864 | Z15: 0.08841595319 | AA15: 4538.313526 | AB15: 3166.273908
A16: Reference Life Table | H16: 13 | I16: =MMULT(_xlfn.ANCHORARRAY(I15),_xlfn.ANCHORARRAY($B$3)) -> 0.599594358 | J16: 0.1532499824 | K16: 0.1913700486 | L16: 0.05578561104 | M16: 0.003952817085 | O16: 0.6770568745 | P16: 1 | Q16: 0.6770568745 | R16: 0.6770568745 | S16: 0.6770568745 | U16: 38 | V16: 26.78651299 | W16: 0.1058821862 | X16: 0.07168826204 | Y16: 0.1320075069 | Z16: 0.08937659001 | AA16: 4682.739374 | AB16: 3170.480885
A17: Age | B17: LE | D17: OUTCOMES | H17: 14 | I17: =MMULT(_xlfn.ANCHORARRAY(I16),_xlfn.ANCHORARRAY($B$3)) -> 0.5852577784 | J17: 0.1495946536 | K17: 0.203320725 | L17: 0.06182684296 | M17: 0.00415881297 | O17: 0.6570468198 | P17: 1 | Q17: 0.6570468198 | R17: 0.6570468198 | S17: 0.6570468198 | U17: 39 | V17: 26.78651299 | W17: 0.1114000977 | X17: 0.07319507989 | Y17: 0.1369938439 | Z17: 0.09001136946 | AA17: 4818.705047 | AB17: 3166.114827
A18: 0 | B18: 88.8718951 | D18: YLL2_SOC | E18: =SUM(X3:X503) -> 2.83258966 | H18: 15 | I18: =MMULT(_xlfn.ANCHORARRAY(I17),_xlfn.ANCHORARRAY($B$3)) -> 0.5712671038 | J18: 0.1460228607 | K18: 0.2146591123 | L18: 0.06805092322 | M18: 0.004353928461 | O18: 0.6376281516 | P18: 1 | Q18: 0.6376281516 | R18: 0.6376281516 | S18: 0.6376281516 | U18: 40 | V18: 25.74178092 | W18: 0.1120778726 | X18: 0.07146400674 | Y18: 0.1416991567 | Z18: 0.09035137136 | AA18: 4946.512334 | AB18: 3154.035517
A19: 1 | B19: 88.00051053 | D19: YLD2_SOC | E19: =SUM(Z3:Z503) -> 4.607755684 | H19: 16 | I19: =MMULT(_xlfn.ANCHORARRAY(I18),_xlfn.ANCHORARRAY($B$3)) -> 0.5576123694 | J19: 0.1425345997 | K19: 0.2254060324 | L19: 0.07444699851 | M19: 0.004538545418 | O19: 0.6187833918 | P19: 1 | Q19: 0.6187833918 | R19: 0.6187833918 | S19: 0.6187833918 | U19: 41 | V19: 25.74178092 | W19: 0.1168302419 | X19: 0.07229261333 | Y19: 0.1461337008 | Z19: 0.09042510702 | AA19: 5066.453624 | AB19: 3135.037358
A20: 5 | B20: 84.03008056 | D20: DALY2_SOC | E20: =E18+E19 -> 7.440345344 | H20: 17 | I20: =MMULT(_xlfn.ANCHORARRAY(I19),_xlfn.ANCHORARRAY($B$3)) -> 0.5442847325 | J20: 0.139128829 | K20: 0.2355818334 | L20: 0.08100460513 | M20: 0.004713032156 | O20: 0.6004955788 | P20: 1 | Q20: 0.6004955788 | R20: 0.6004955788 | S20: 0.6004955788 | U20: 42 | V20: 25.74178092 | W20: 0.1213218412 | X20: 0.07285322928 | Y20: 0.1503072424 | Z20: 0.09025883454 | AA20: 5178.812282 | AB20: 3109.853879
A21: 10 | B21: 79.04633476 | D21: COST2_SOC | E21: =SUM(AB5:AB505) -> 155348.9011 | H21: 18 | I21: =MMULT(_xlfn.ANCHORARRAY(I20),_xlfn.ANCHORARRAY($B$3)) -> 0.5312759854 | J21: 0.1358040349 | K21: 0.2452063234 | L21: 0.08771365619 | M21: 0.004877744894 | O21: 0.5827482524 | P21: 1 | Q21: 0.5827482524 | R21: 0.5827482524 | S21: 0.5827482524 | U21: 43 | V21: 25.74178092 | W21: 0.1255618405 | X21: 0.0731709431 | Y21: 0.1542291659 | Z21: 0.08987677692 | AA21: 5283.862962 | AB21: 3079.161907
A22: 15 | B22: 74.0665492 | H22: 19 | I22: =MMULT(_xlfn.ANCHORARRAY(I21),_xlfn.ANCHORARRAY($B$3)) -> 0.5185783198 | J22: 0.1325585016 | K22: 0.2542987491 | L22: 0.09456442956 | M22: 0.00503302862 | O22: 0.5655254387 | P22: 1 | Q22: 0.5655254387 | R22: 0.5655254387 | S22: 0.5655254387 | U22: 44 | V22: 25.74178092 | W22: 0.1295591201 | X22: 0.07326897825 | Y22: 0.157908529 | Z22: 0.08930129016 | AA22: 5381.871882 | AB22: 3043.585457
A23: 20 | B23: 69.10756792 | H23: 20 | I23: =MMULT(_xlfn.ANCHORARRAY(I22),_xlfn.ANCHORARRAY($B$3)) -> 0.5061842111 | J23: 0.1293904397 | K23: 0.2628777927 | L23: 0.1015475565 | M23: 0.005179217647 | O23: 0.5488116361 | P23: 1 | Q23: 0.5488116361 | R23: 0.5488116361 | S23: 0.5488116361 | U23: 45 | V23: 24.54382935 | W23: 0.1271178341 | X23: 0.06976374651 | Y23: 0.1613540935 | Z23: 0.08855300403 | AA23: 5473.097071 | AB23: 3003.699358
A24: 25 | B24: 64.14930031 | H24: 21 | I24: =MMULT(_xlfn.ANCHORARRAY(I23),_xlfn.ANCHORARRAY($B$3)) -> 0.4940863614 | J24: 0.1262980482 | K24: 0.2709615796 | L24: 0.1086540108 | M24: 0.005316636035 | O24: 0.532591801 | P24: 1 | Q24: 0.532591801 | R24: 0.532591801 | S24: 0.532591801 | U24: 46 | V24: 24.54382935 | W24: 0.1304906076 | X24: 0.0694982277 | Y24: 0.1645743438 | Z24: 0.08765094615 | AA24: 5557.788609 | AB24: 2960.032645
A25: 30 | B25: 59.1962771 | H25: 22 | I25: =MMULT(_xlfn.ANCHORARRAY(I24),_xlfn.ANCHORARRAY($B$3)) -> 0.4822776696 | J25: 0.1232795426 | K25: 0.2785676897 | L25: 0.115875098 | M25: 0.005445597936 | O25: 0.5168513345 | P25: 1 | Q25: 0.5168513345 | R25: 0.5168513345 | S25: 0.5168513345 | U25: 47 | V25: 24.54382935 | W25: 0.1336558265 | X25: 0.06908019227 | Y25: 0.1675774999 | Z25: 0.08661265446 | AA25: 5636.188856 | AB25: 2913.071732
A26: 35 | B26: 54.25261364 | H26: 23 | I26: =MMULT(_xlfn.ANCHORARRAY(I25),_xlfn.ANCHORARRAY($B$3)) -> 0.4707512147 | J26: 0.1203331688 | K26: 0.285713171 | L26: 0.1232024454 | M26: 0.005566407897 | O26: 0.5015760691 | P26: 1 | Q26: 0.5015760691 | R26: 0.5015760691 | S26: 0.5015760691 | U26: 48 | V26: 24.54382935 | W26: 0.1366209655 | X26: 0.06852580685 | Y26: 0.1703715271 | Z26: 0.08545428086 | AA26: 5708.53267 | AB26: 2863.263377
A27: 40 | B27: 49.31739311 | H27: 24 | I27: =MMULT(_xlfn.ANCHORARRAY(I26),_xlfn.ANCHORARRAY($B$3)) -> 0.4595002468 | J27: 0.1174572082 | K27: 0.2924145531 | L27: 0.1306279919 | M27: 0.00567936115 | O27: 0.486752256 | P27: 1 | Q27: 0.486752256 | R27: 0.486752256 | S27: 0.486752256 | U27: 49 | V27: 24.54382935 | W27: 0.1393932709 | X27: 0.06784998908 | Y27: 0.1729641443 | Z27: 0.08419068745 | AA27: 5775.047623 | AB27: 2811.017459
A28: 45 | B28: 44.43332057 | H28: 25 | I28: =MMULT(_xlfn.ANCHORARRAY(I27),_xlfn.ANCHORARRAY($B$3)) -> 0.4485181793 | J28: 0.1146499807 | K28: 0.2986878617 | L28: 0.1381439782 | M28: 0.005784743875 | O28: 0.4723665527 | P28: 1 | Q28: 0.4723665527 | R28: 0.4723665527 | S28: 0.4723665527 | U28: 50 | V28: 23.18290646 | W28: 0.1341071761 | X28: 0.06334774449 | Y28: 0.1753628316 | Z28: 0.08283553622 | AA28: 5835.954207 | AB28: 2756.709571
A29: 50 | B29: 39.63473787 | H29: 26 | I29: =MMULT(_xlfn.ANCHORARRAY(I28),_xlfn.ANCHORARRAY($B$3)) -> 0.4377985845 | J29: 0.1119098449 | K29: 0.3045486327 | L29: 0.145742938 | M29: 0.00588283346 | O29: 0.4584060113 | P29: 1 | Q29: 0.4584060113 | R29: 0.4584060113 | S29: 0.4584060113 | U29: 51 | V29: 23.18290646 | W29: 0.1363811778 | X29: 0.06251795174 | Y29: 0.1775748371 | Z29: 0.08140137277 | AA29: 5891.466038 | AB29: 2700.683447
A30: 55 | B30: 34.91488095 | H30: 27 | I30: =MMULT(_xlfn.ANCHORARRAY(I29),_xlfn.ANCHORARRAY($B$3)) -> 0.4273351887 | J30: 0.1092351977 | K30: 0.3100119254 | L30: 0.1534176882 | M30: 0.005973898755 | O30: 0.4448580662 | P30: 1 | Q30: 0.4448580662 | R30: 0.4448580662 | S30: 0.4448580662 | U30: 52 | V30: 23.18290646 | W30: 0.138492336 | X30: 0.06160943279 | Y30: 0.179607184 | Z30: 0.07989970458 | AA30: 5941.79005 | AB30: 2643.253231
A31: 60 | B31: 30.25343822 | H31: 28 | I31: =MMULT(_xlfn.ANCHORARRAY(I30),_xlfn.ANCHORARRAY($B$3)) -> 0.4171218685 | J31: 0.1066244745 | K31: 0.3150923367 | L31: 0.1611613204 | M31: 0.006058200309 | O31: 0.4317105234 | P31: 1 | Q31: 0.4317105234 | R31: 0.4317105234 | S31: 0.4317105234 | U31: 53 | V31: 23.18290646 | W31: 0.1404466911 | X31: 0.06063231452 | Y31: 0.181466677 | Z31: 0.07834107411 | AA31: 5987.126685 | AB31: 2584.705595
A32: 65 | B32: 25.68089534 | H32: 29 | I32: =MMULT(_xlfn.ANCHORARRAY(I31),_xlfn.ANCHORARRAY($B$3)) -> 0.4071526469 | J32: 0.1040761474 | K32: 0.3198040133 | L32: 0.1689671923 | M32: 0.006135990612 | O32: 0.4189515492 | P32: 1 | Q32: 0.4189515492 | R32: 0.4189515492 | S32: 0.4189515492 | U32: 54 | V32: 23.18290646 | W32: 0.1422500964 | X32: 0.05959589826 | Y32: 0.1831599081 | Z32: 0.07673512726 | AA32: 6027.670084 | AB32: 2525.30172
A33: 70 | B33: 21.28820012 | H33: 30 | I33: =MMULT(_xlfn.ANCHORARRAY(I32),_xlfn.ANCHORARRAY($B$3)) -> 0.3974216901 | J33: 0.1015887254 | K33: 0.3241606653 | L33: 0.1768289193 | M33: 0.006207514317 | O33: 0.4065696597 | P33: 1 | Q33: 0.4065696597 | R33: 0.4065696597 | S33: 0.4065696597 | U33: 55 | V33: 21.63891726 | W33: 0.1343238887 | X33: 0.05461201773 | Y33: 0.1846932632 | Z33: 0.07509067719 | AA33: 6063.60826 | AB33: 2465.279147
A34: 75 | B34: 17.10351469 | H34: 31 | I34: =MMULT(_xlfn.ANCHORARRAY(I33),_xlfn.ANCHORARRAY($B$3)) -> 0.3879233033 | J34: 0.09916075271 | K34: 0.3281755777 | L34: 0.1847403663 | M34: 0.006273008469 | O34: 0.3945537104 | P34: 1 | Q34: 0.3945537104 | R34: 0.3945537104 | S34: 0.3945537104 | U34: 56 | V34: 21.63891726 | W34: 0.1357411113 | X34: 0.0535571591 | Y34: 0.1860729279 | Z34: 0.07341576408 | AA34: 6095.123283 | AB34: 2404.853506
A35: 80 | B35: 13.23872477 | H35: 32 | I35: =MMULT(_xlfn.ANCHORARRAY(I34),_xlfn.ANCHORARRAY($B$3)) -> 0.3786519282 | J35: 0.09679080865 | K35: 0.3318616233 | L35: 0.1926956398 | M35: 0.00633270272 | O35: 0.382892886 | P35: 1 | Q35: 0.382892886 | R35: 0.382892886 | S35: 0.382892886 | U35: 57 | V35: 21.63891726 | W35: 0.1370328302 | X35: 0.05246889583 | Y35: 0.1873048928 | Z35: 0.07171771096 | AA35: 6122.391441 | AB35: 2344.220128
A36: 85 | B36: 9.990181244 | H36: 33 | I36: =MMULT(_xlfn.ANCHORARRAY(I35),_xlfn.ANCHORARRAY($B$3)) -> 0.3696021391 | J36: 0.09447750629 | K36: 0.335231274 | L36: 0.2006890806 | M36: 0.006386819536 | O36: 0.371576691 | P36: 1 | Q36: 0.371576691 | R36: 0.371576691 | S36: 0.371576691 | U36: 58 | V36: 21.63891726 | W36: 0.1382038595 | X36: 0.05135333281 | Y36: 0.1883949598 | Z36: 0.07000317576 | AA36: 6145.583414 | AB36: 2283.555549
A37: 90 | B37: 7.617724915 | H37: 34 | I37: =MMULT(_xlfn.ANCHORARRAY(I36),_xlfn.ANCHORARRAY($B$3)) -> 0.3607686402 | J37: 0.09221949191 | K37: 0.3382966122 | L37: 0.2087152557 | M37: 0.00643557441 | O37: 0.3605949402 | P37: 1 | Q37: 0.3605949402 | R37: 0.3605949402 | S37: 0.3605949402 | U37: 59 | V37: 21.63891726 | W37: 0.1392588622 | X37: 0.05021604108 | Y37: 0.1893487469 | Z37: 0.06827820007 | AA37: 6164.864431 | AB37: 2223.018921
A38: 95 | B38: 5.922359078 | H38: 35 | I38: =MMULT(_xlfn.ANCHORARRAY(I37),_xlfn.ANCHORARRAY($B$3)) -> 0.3521462621 | J38: 0.09001544411 | K38: 0.3410693421 | L38: 0.2167689517 | M38: 0.006479176054 | O38: 0.3499377491 | P38: 1 | Q38: 0.3499377491 | R38: 0.3499377491 | S38: 0.3499377491 | U38: 60 | V38: 19.88366091 | W38: 0.1288297396 | X38: 0.0450823891 | Y38: 0.190171694 | Z38: 0.06654825454 | AA38: 6180.394432 | AB38: 2162.753316
H39: 36 | I39: =MMULT(_xlfn.ANCHORARRAY(I38),_xlfn.ANCHORARRAY($B$3)) -> 0.343729959 | J39: 0.0878640731 | K39: 0.3435608003 | L39: 0.2248451675 | M39: 0.006517826598 | O39: 0.3395955256 | P39: 1 | Q39: 0.3395955256 | R39: 0.3395955256 | S39: 0.3395955256 | U39: 61 | V39: 19.88366091 | W39: 0.1295982539 | X39: 0.04401098717 | Y39: 0.1908690675 | Z39: 0.0648182813 | AA39: 6192.328216 | AB39: 2102.886955
H40: 37 | I40: =MMULT(_xlfn.ANCHORARRAY(I39),_xlfn.ANCHORARRAY($B$3)) -> 0.3355148058 | J40: 0.08576411991 | K40: 0.3457819667 | L40: 0.2329391076 | M40: 0.006551721777 | O40: 0.3295589611 | P40: 1 | Q40: 0.3295589611 | R40: 0.3295589611 | S40: 0.3295589611 | U40: 62 | V40: 19.88366091 | W40: 0.1302722142 | X40: 0.04293237557 | Y40: 0.1914459656 | Z40: 0.06309273353 | AA40: 6200.815592 | AB40: 2043.534344
H41: 38 | I41: =MMULT(_xlfn.ANCHORARRAY(I40),_xlfn.ANCHORARRAY($B$3)) -> 0.3274959949 | J41: 0.08371435564 | K41: 0.3477434742 | L41: 0.2410461752 | M41: 0.006581051117 | O41: 0.3198190218 | P41: 1 | Q41: 0.3198190218 | R41: 0.3198190218 | S41: 0.3198190218 | U41: 63 | V41: 19.88366091 | W41: 0.1308553888 | X41: 0.04185004245 | Y41: 0.1919073234 | Z41: 0.06137561243 | AA41: 6206.001526 | AB41: 1984.797337
H42: 39 | I42: =MMULT(_xlfn.ANCHORARRAY(I41),_xlfn.ANCHORARRAY($B$3)) -> 0.3196688337 | J42: 0.08171358078 | K42: 0.3494556192 | L42: 0.2491619663 | M42: 0.006605998108 | O42: 0.3103669413 | P42: 1 | Q42: 0.3103669413 | R42: 0.3103669413 | S42: 0.3103669413 | U42: 64 | V42: 19.88366091 | W42: 0.1313514263 | X42: 0.04076714042 | Y42: 0.1922579169 | Z42: 0.05967050161 | AA42: 6208.026279 | AB42: 1926.766127
H43: 40 | I43: =MMULT(_xlfn.ANCHORARRAY(I42),_xlfn.ANCHORARRAY($B$3)) -> 0.3120287419 | J43: 0.07976062448 | K43: 0.3509283708 | L43: 0.2572822629 | M43: 0.006626740386 | O43: 0.3011942119 | P43: 1 | Q43: 0.3011942119 | R43: 0.3011942119 | S43: 0.3011942119 | U43: 65 | V43: 17.90615105 | W43: 0.1186594143 | X43: 0.03573952877 | Y43: 0.1925023685 | Z43: 0.05798059918 | AA43: 6207.025543 | AB43: 1869.520167
H44: 41 | I44: =MMULT(_xlfn.ANCHORARRAY(I43),_xlfn.ANCHORARRAY($B$3)) -> 0.3045712484 | J44: 0.07785434388 | K44: 0.3521713805 | L44: 0.2654030272 | M44: 0.006643449895 | O44: 0.2922925777 | P44: 1 | Q44: 0.2922925777 | R44: 0.2922925777 | S44: 0.2922925777 | U44: 66 | V44: 17.90615105 | W44: 0.1189586173 | X44: 0.03477072088 | Y44: 0.1926451508 | Z44: 0.05630874771 | AA44: 6203.13058 | AB44: 1813.129027
H45: 42 | I45: =MMULT(_xlfn.ANCHORARRAY(I44),_xlfn.ANCHORARRAY($B$3)) -> 0.2972919891 | J45: 0.07599362342 | K45: 0.3531939915 | L45: 0.273520396 | M45: 0.006656293058 | O45: 0.2836540265 | P45: 1 | Q45: 0.2836540265 | R45: 0.2836540265 | S45: 0.2836540265 | U45: 67 | V45: 17.90615105 | W45: 0.1191885889 | X45: 0.03380832315 | Y45: 0.1926905911 | Z45: 0.05465746205 | AA45: 6196.468344 | AB45: 1757.653196
H46: 43 | I46: =MMULT(_xlfn.ANCHORARRAY(I45),_xlfn.ANCHORARRAY($B$3)) -> 0.2901867043 | J46: 0.07417737422 | K46: 0.3540052471 | L46: 0.2816306744 | M46: 0.00666543093 | O46: 0.2752707831 | P46: 1 | Q46: 0.2752707831 | R46: 0.2752707831 | S46: 0.2752707831 | U46: 68 | V46: 17.90615105 | W46: 0.119352213 | X46: 0.03285417714 | Y46: 0.192642876 | Z46: 0.05302895532 | AA46: 6187.161612 | AB46: 1703.144822
H47: 44 | I47: =MMULT(_xlfn.ANCHORARRAY(I46),_xlfn.ANCHORARRAY($B$3)) -> 0.283251236 | J47: 0.07240453342 | K47: 0.3546138999 | L47: 0.2897303307 | M47: 0.00667101936 | O47: 0.267135302 | P47: 1 | Q47: 0.267135302 | R47: 0.267135302 | S47: 0.267135302 | U47: 69 | V47: 17.90615105 | W47: 0.1194522803 | X47: 0.03190992097 | Y47: 0.1925060548 | Z47: 0.05142516307 | AA47: 6175.329104 | AB47: 1649.648405
H48: 45 | I48: =MMULT(_xlfn.ANCHORARRAY(I47),_xlfn.ANCHORARRAY($B$3)) -> 0.2764815255 | J48: 0.07067406355 | K48: 0.3550284201 | L48: 0.2978159909 | M48: 0.006673209139 | O48: 0.2592402606 | P48: 1 | Q48: 0.2592402606 | R48: 0.2592402606 | S48: 0.2592402606 | U48: 70 | V48: 15.73310468 | W48: 0.1049902979 | X48: 0.0272177122 | Y48: 0.1922840442 | Z48: 0.04984776573 | AA48: 6161.085606 | AB48: 1597.201438
H49: 46 | I49: =MMULT(_xlfn.ANCHORARRAY(I48),_xlfn.ANCHORARRAY($B$3)) -> 0.2698736112 | J49: 0.06898495194 | K49: 0.3552570034 | L49: 0.3058844335 | M49: 0.006672146147 | O49: 0.2515785531 | P49: 1 | Q49: 0.2515785531 | R49: 0.2515785531 | S49: 0.2515785531 | U49: 71 | V49: 15.73310468 | W49: 0.1049735738 | X49: 0.0264090998 | Y49: 0.1919806319 | Z49: 0.04829820958 | AA49: 6144.542081 | AB49: 1545.835006
H50: 47 | I50: =MMULT(_xlfn.ANCHORARRAY(I49),_xlfn.ANCHORARRAY($B$3)) -> 0.2634236262 | J50: 0.06733621014 | K50: 0.3553075793 | L50: 0.3139325843 | M50: 0.0066679715 | O50: 0.2441432832 | P50: 1 | Q50: 0.2441432832 | R50: 0.2441432832 | S50: 0.2441432832 | U50: 72 | V50: 15.73310468 | W50: 0.1049078936 | X50: 0.02561255757 | Y50: 0.1915994802 | Z50: 0.04677772615 | AA50: 6125.805782 | AB50: 1495.574336
H51: 48 | I51: =MMULT(_xlfn.ANCHORARRAY(I50),_xlfn.ANCHORARRAY($B$3)) -> 0.257127796 | J51: 0.0657268733 | K51: 0.3551878189 | L51: 0.3219575118 | M51: 0.006660821682 | O51: 0.2369277587 | P51: 1 | Q51: 0.2369277587 | R51: 0.2369277587 | S51: 0.2369277587 | U51: 73 | V51: 15.73310468 | W51: 0.1047954048 | X51: 0.02482894037 | Y51: 0.1911441302 | Z51: 0.04528735035 | AA51: 6104.980368 | AB51: 1446.439315
H52: 49 | I52: =MMULT(_xlfn.ANCHORARRAY(I51),_xlfn.ANCHORARRAY($B$3)) -> 0.2509824363 | J52: 0.06415599965 | K52: 0.354905142 | L52: 0.329956422 | M52: 0.00665082869 | O52: 0.2299254852 | P52: 1 | Q52: 0.2299254852 | R52: 0.2299254852 | S52: 0.2299254852 | U52: 74 | V52: 15.73310468 | W52: 0.104638184 | X52: 0.02405898522 | Y52: 0.1906180047 | Z52: 0.04382793722 | AA52: 6082.166002 | AB52: 1398.444969
H53: 50 | I53: =MMULT(_xlfn.ANCHORARRAY(I52),_xlfn.ANCHORARRAY($B$3)) -> 0.2449839508 | J53: 0.06262266991 | K53: 0.3544667252 | L53: 0.3379266541 | M53: 0.006638120157 | O53: 0.2231301601 | P53: 1 | Q53: 0.2231301601 | R53: 0.2231301601 | S53: 0.2231301601 | U53: 75 | V53: 13.37887774 | W53: 0.08881059797 | X53: 0.01981632295 | Y53: 0.1900244123 | Z53: 0.04240017754 | AA53: 6057.459459 | AB53: 1351.601899
H54: 51 | I54: =MMULT(_xlfn.ANCHORARRAY(I53),_xlfn.ANCHORARRAY($B$3)) -> 0.2391288292 | J54: 0.06112598678 | K54: 0.3538795082 | L54: 0.3458656758 | M54: 0.006622819485 | O54: 0.2165356673 | P54: 1 | Q54: 0.2165356673 | R54: 0.2165356673 | S54: 0.2165356673 | U54: 76 | V54: 13.37887774 | W54: 0.08860589215 | X54: 0.01918633599 | Y54: 0.1893665502 | Z54: 0.04100461232 | AA54: 6030.954228 | AB54: 1305.916698
H55: 52 | I55: =MMULT(_xlfn.ANCHORARRAY(I54),_xlfn.ANCHORARRAY($B$3)) -> 0.2334136452 | J55: 0.05966507441 | K55: 0.3531502012 | L55: 0.3537710793 | M55: 0.006605045968 | O55: 0.2101360712 | P55: 1 | Q55: 0.2101360712 | R55: 0.2101360712 | S55: 0.2101360712 | U55: 77 | V55: 13.37887774 | W55: 0.08836810245 | X55: 0.01856932587 | Y55: 0.1886475082 | Z55: 0.03964164622 | AA55: 6002.740605 | AB55: 1261.392327
H56: 53 | I56: =MMULT(_xlfn.ANCHORARRAY(I55),_xlfn.ANCHORARRAY($B$3)) -> 0.2278350541 | J56: 0.05823907788 | K56: 0.3522852916 | L56: 0.3616405764 | M56: 0.006584914915 | O56: 0.2039256117 | P56: 1 | Q56: 0.2039256117 | R56: 0.2039256117 | S56: 0.2039256117 | U56: 78 | V56: 13.37887774 | W56: 0.08809877155 | X56: 0.01796559588 | Y56: 0.1878702712 | Z56: 0.03831155997 | AA56: 5972.905794 | AB56: 1218.028468
H57: 54 | I57: =MMULT(_xlfn.ANCHORARRAY(I56),_xlfn.ANCHORARRAY($B$3)) -> 0.2223897916 | J57: 0.05684716269 | K57: 0.3512910507 | L57: 0.369471995 | M57: 0.006562537764 | O57: 0.1978986991 | P57: 1 | Q57: 0.1978986991 | R57: 0.1978986991 | S57: 0.1978986991 | U57: 79 | V57: 13.37887774 | W57: 0.08779939038 | X57: 0.01737538514 | Y57: 0.1870377226 | Z57: 0.03701452198 | AA57: 5941.533995 | AB57: 1175.821848
H58: 55 | I58: =MMULT(_xlfn.ANCHORARRAY(I57),_xlfn.ANCHORARRAY($B$3)) -> 0.2170746709 | J58: 0.05548851431 | K58: 0.3501735397 | L58: 0.3772632751 | M58: 0.0065380222 | O58: 0.1920499086 | P58: 1 | Q58: 0.1920499086 | R58: 0.1920499086 | S58: 0.1920499086 | U58: 80 | V58: 10.9258237 | W58: 0.07143327789 | X58: 0.01371875449 | Y58: 0.1861526475 | Z58: 0.03575059894 | AA58: 5908.706495 | AB58: 1134.766542
H59: 56 | I59: =MMULT(_xlfn.ANCHORARRAY(I58),_xlfn.ANCHORARRAY($B$3)) -> 0.2118865817 | J59: 0.05416233765 | K59: 0.3489386162 | L59: 0.3850124645 | M59: 0.006511472264 | O59: 0.186373976 | P59: 1 | Q59: 0.186373976 | R59: 0.186373976 | S59: 0.186373976 | U59: 81 | V59: 10.9258237 | W59: 0.07114319797 | X59: 0.01325924067 | Y59: 0.1852177354 | Z59: 0.03451976577 | AA59: 5874.501757 | AB59: 1094.85425
H60: 57 | I60: =MMULT(_xlfn.ANCHORARRAY(I59),_xlfn.ANCHORARRAY($B$3)) -> 0.2068224879 | J60: 0.05286785664 | K60: 0.3475919402 | L60: 0.3927177153 | M60: 0.006482988463 | O60: 0.1808657926 | P60: 1 | Q60: 0.1808657926 | R60: 0.1808657926 | S60: 0.1808657926 | U60: 82 | V60: 10.9258237 | W60: 0.07083198898 | X60: 0.01281108383 | Y60: 0.184235583 | Z60: 0.03332191476 | AA60: 5838.995505 | AB60: 1056.07455
H61: 58 | I61: =MMULT(_xlfn.ANCHORARRAY(I60),_xlfn.ANCHORARRAY($B$3)) -> 0.2018794261 | J61: 0.05160431375 | K61: 0.3461389798 | L61: 0.4003772804 | M61: 0.006452667874 | O61: 0.1755204006 | P61: 1 | Q61: 0.1755204006 | R61: 0.1755204006 | S61: 0.1755204006 | U61: 83 | V61: 10.9258237 | W61: 0.07050071158 | X61: 0.01237431314 | Y61: 0.1832086974 | Z61: 0.03215686397 | AA61: 5802.260804 | AB61: 1018.415141
H62: 59 | I62: =MMULT(_xlfn.ANCHORARRAY(I61),_xlfn.ANCHORARRAY($B$3)) -> 0.1970545036 | J62: 0.05037096957 | K62: 0.344585017 | L62: 0.4079895098 | M62: 0.006420604248 | O62: 0.1703329888 | P62: 1 | Q62: 0.1703329888 | R62: 0.1703329888 | S62: 0.1703329888 | U62: 84 | V62: 10.9258237 | W62: 0.07015039005 | X62: 0.0119489256 | Y62: 0.1821394982 | Z62: 0.03102436511 | AA62: 5764.368141 | AB62: 981.8620541
H63: 60 | I63: =MMULT(_xlfn.ANCHORARRAY(I62),_xlfn.ANCHORARRAY($B$3)) -> 0.1923448968 | J63: 0.04916710234 | K63: 0.3429351536 | L63: 0.4155528473 | M63: 0.006386888107 | O63: 0.1652988882 | P63: 1 | Q63: 0.1652988882 | R63: 0.1652988882 | S63: 0.1652988882 | U63: 85 | V63: 8.632117659 | W63: 0.05513236961 | X63: 0.009113319402 | Y63: 0.1810303205 | Z63: 0.02992411071 | AA63: 5725.385506 | AB63: 946.3998588
H64: 61 | I64: =MMULT(_xlfn.ANCHORARRAY(I63),_xlfn.ANCHORARRAY($B$3)) -> 0.1877478497 | J64: 0.04799200756 | K64: 0.3411943158 | L64: 0.423065827 | M64: 0.006351606842 | O64: 0.1604135678 | P64: 1 | Q64: 0.1604135678 | R64: 0.1604135678 | S64: 0.1604135678 | U64: 86 | V64: 8.632117659 | W64: 0.05482781758 | X64: 0.008795125832 | Y64: 0.1798834175 | Z64: 0.02885574078 | AA64: 5685.378466 | AB64: 912.0118439
H65: 62 | I65: =MMULT(_xlfn.ANCHORARRAY(I64),_xlfn.ANCHORARRAY($B$3)) -> 0.1832606722 | J65: 0.04684499757 | K65: 0.3393672601 | L65: 0.4305270701 | M65: 0.006314844807 | O65: 0.1556726304 | P65: 1 | Q65: 0.1556726304 | R65: 0.1556726304 | S65: 0.1556726304 | U65: 87 | V65: 8.632117659 | W65: 0.05451048338 | X65: 0.00848579033 | Y65: 0.1787009626 | Z65: 0.0278188489 | AA65: 5644.410237 | AB65: 878.6801884
H66: 63 | I66: =MMULT(_xlfn.ANCHORARRAY(I65),_xlfn.ANCHORARRAY($B$3)) -> 0.1788807382 | J66: 0.04572540114 | K66: 0.3374585784 | L66: 0.4379352823 | M66: 0.006276683412 | O66: 0.1510718088 | P66: 1 | Q66: 0.1510718088 | R66: 0.1510718088 | S66: 0.1510718088 | U66: 88 | V66: 8.632117659 | W66: 0.05418106972 | X66: 0.008185232207 | Y66: 0.1774850525 | Z66: 0.02681298792 | AA66: 5602.541756 | AB66: 846.3861172
H67: 64 | I67: =MMULT(_xlfn.ANCHORARRAY(I66),_xlfn.ANCHORARRAY($B$3)) -> 0.1746054848 | J67: 0.04463256309 | K67: 0.3354727023 | L67: 0.4452892498 | M67: 0.006237201207 | O67: =EXP(-r_H * H67) -> 0.1466069621 | P67: 1 | Q67: 0.1466069621 | R67: =EXP(-r_C * H67) -> 0.1466069621 | S67: 0.1466069621 | U67: 89 | V67: 8.632117659 | W67: 0.05384025468 | X67: =W67*Q67 -> 0.00789335618 | Y67: 0.1762377087 | Z67: =Y67*Q67 -> 0.02583767508 | AA67: 5559.831756 | AB67: =AA67*S67 -> 815.1100437
H68: 65 | I68: =MMULT(_xlfn.ANCHORARRAY(I67),_xlfn.ANCHORARRAY($B$3)) -> 0.1704324101 | J68: 0.04356584389 | K68: 0.3334139087 | L68: 0.4525878374 | M68: 0.006196473974 | O68: 0.1422740716 | P68: 1 | Q68: =O68*P68 -> 0.1422740716 | R68: 0.1422740716 | S68: =R68*P68 -> 0.1422740716 | U68: =Delta_t*H68+age0 -> 90 | V68: =(1/r_H)*(1 - EXP(-r_H*LOOKUP(U68,$A$18:$B$38))) -> 6.809965489 | W68: =V68*M68 -> 0.04219777392 | X68: 0.006003649107 | Y68: 0.1749608802 | Z68: 0.0248923968 | AA68: 5516.336826 | AB68: 784.8317004
H69: 66 | I69: =MMULT(_xlfn.ANCHORARRAY(I68),_xlfn.ANCHORARRAY($B$3)) -> 0.1663590719 | J69: 0.04252461931 | K69: 0.3312863239 | L69: 0.4598299849 | M69: 0.006154574807 | O69: 0.1380692373 | P69: 1 | Q69: 0.1380692373 | R69: 0.1380692373 | S69: 0.1380692373 | U69: 91 | V69: 6.809965489 | W69: 0.04191244204 | X69: 0.005786818906 | Y69: 0.1736564461 | Z69: 0.02397661306 | AA69: 5472.11148 | AB69: 755.5302585
H70: 67 | I70: =MMULT(_xlfn.ANCHORARRAY(I69),_xlfn.ANCHORARRAY($B$3)) -> 0.1623830866 | J70: 0.04150828001 | K70: 0.3290939287 | L70: 0.4670147047 | M70: 0.006111574196 | O70: 0.1339886747 | P70: 1 | Q70: 0.1339886747 | R70: 0.1339886747 | S70: 0.1339886747 | U70: 92 | V70: 6.809965489 | W70: 0.04161960936 | X70: 0.005576556299 | Y70: 0.1723262168 | Z70: 0.0230897614 | AA70: 5427.208224 | AB70: 727.184437
H71: 68 | I71: =MMULT(_xlfn.ANCHORARRAY(I70),_xlfn.ANCHORARRAY($B$3)) -> 0.1585021274 | J71: 0.04051623125 | K71: 0.3268405621 | L71: 0.4741410793 | M71: 0.006067540104 | O71: 0.1300287109 | P71: 1 | Q71: 0.1300287109 | R71: 0.1300287109 | S71: 0.1300287109 | U71: 93 | V71: 6.809965489 | W71: 0.04131973871 | X71: 0.005372752359 | Y71: 0.1709719371 | Z71: 0.02223126058 | AA71: 5381.677612 | AB71: 699.7726022
H72: =H71+1 -> 69 | I72: =MMULT(_xlfn.ANCHORARRAY(I71),_xlfn.ANCHORARRAY($B$3)) -> 0.1547139232 | J72: 0.03954789247 | K72: 0.3245299263 | L72: 0.481208258 | M72: 0.006022538046 | O72: 0.1261857817 | P72: 1 | Q72: 0.1261857817 | R72: 0.1261857817 | S72: 0.1261857817 | U72: 94 | V72: 6.809965489 | W72: 0.04101327625 | X72: 0.005175292324 | Y72: 0.1695952875 | Z72: 0.02140051393 | AA72: 5335.568311 | AB72: 673.2728581
H73: 70 | I73: =MMULT(_xlfn.ANCHORARRAY(I72),_xlfn.ANCHORARRAY($B$3)) -> 0.1510162572 | J73: 0.03860269701 | K73: 0.3221655904 | L73: 0.4882154554 | M73: 0.005976631162 | O73: 0.1224564283 | P73: 1 | Q73: 0.1224564283 | R73: 0.1224564283 | S73: 0.1224564283 | U73: 95 | V73: 5.426066218 | W73: 0.03242959645 | X73: 0.003971212551 | Y73: 0.1681978865 | Z73: 0.02059691242 | AA73: 5288.927158 | AB73: 647.6631291
H74: 71 | I74: =MMULT(_xlfn.ANCHORARRAY(I73),_xlfn.ANCHORARRAY($B$3)) -> 0.1474069655 | J74: 0.03768009174 | K74: 0.3197509947 | L74: 0.4951619481 | M74: 0.005929880292 | O74: 0.1188372939 | P74: 1 | Q74: 0.1188372939 | R74: 0.1188372939 | S74: 0.1188372939 | U74: 96 | V74: 5.426066218 | W74: 0.03217592313 | X74: 0.003823699632 | Y74: 0.1667812925 | Z74: 0.01981983746 | AA74: 5241.799218 | AB74: 622.921234
H75: 72 | I75: =MMULT(_xlfn.ANCHORARRAY(I74),_xlfn.ANCHORARRAY($B$3)) -> 0.1438839359 | J75: 0.03677953675 | K75: 0.3172894545 | L75: 0.5020470729 | M75: 0.005882344044 | O75: 0.115325121 | P75: 1 | Q75: 0.115325121 | R75: 0.115325121 | S75: 0.115325121 | U75: 97 | V75: 5.426066218 | W75: 0.0319179883 | X75: 0.003680945864 | Y75: 0.1653470055 | Z75: 0.01906866342 | AA75: 5194.227836 | AB75: 599.0249539
H76: 73 | I76: =MMULT(_xlfn.ANCHORARRAY(I75),_xlfn.ANCHORARRAY($B$3)) -> 0.1404451068 | J76: 0.03590050505 | K76: 0.3147841641 | L76: 0.5088702241 | M76: 0.005834078866 | O76: 0.1119167486 | P76: 1 | Q76: 0.1119167486 | R76: 0.1119167486 | S76: 0.1119167486 | U76: 98 | V76: 5.426066218 | W76: 0.03165609825 | X76: 0.00354284759 | Y76: 0.1638964692 | Z76: 0.01834275994 | AA76: 5146.254695 | AB76: 575.952093
H77: 74 | I77: =MMULT(_xlfn.ANCHORARRAY(I76),_xlfn.ANCHORARRAY($B$3)) -> 0.1370884658 | J77: 0.03504248222 | K77: 0.3122382003 | L77: 0.5156308516 | M77: 0.00578513911 | O77: 0.1086091088 | P77: 1 | Q77: 0.1086091088 | R77: 0.1086091088 | S77: 0.1086091088 | U77: 99 | V77: 5.426066218 | W77: 0.03139054789 | X77: 0.003409299432 | Y77: 0.1624310725 | Z77: 0.01764149403 | AA77: 5097.919866 | AB77: 553.6805335
H78: 75 | I78: =MMULT(_xlfn.ANCHORARRAY(I77),_xlfn.ANCHORARRAY($B$3)) -> 0.1338120486 | J78: 0.03420496616 | K78: 0.3096545264 | L78: 0.5223284589 | M78: 0.005735577096 | O78: 0.1053992246 | P78: 1 | Q78: 0.1053992246 | R78: 0.1053992246 | S78: 0.1053992246 | U78: 100 | V78: 5.426066218 | W78: 0.03112162113 | X78: 0.003280194734 | Y78: 0.1609521512 | Z78: 0.01696423193 | AA78: 5049.261857 | AB78: 532.1882844
H79: 76 | I79: =MMULT(_xlfn.ANCHORARRAY(I78),_xlfn.ANCHORARRAY($B$3)) -> 0.1306139378 | J79: 0.03338746675 | K79: 0.3070359951 | L79: 0.5289626004 | M79: 0.00568544318 | O79: 0.1022842067 | P79: 1 | Q79: 0.1022842067 | R79: 0.1022842067 | S79: 0.1022842067 | U79: 101 | V79: 5.426066218 | W79: 0.03084959118 | X79: 0.003155425961 | Y79: 0.15946099 | Z79: 0.01631034086 | AA79: 5000.317668 | AB79: 511.453526
H80: 77 | I80: =MMULT(_xlfn.ANCHORARRAY(I79),_xlfn.ANCHORARRAY($B$3)) -> 0.1274922619 | J80: 0.03258950559 | K80: 0.3043853524 | L80: 0.5355328801 | M80: 0.00563478581 | O80: 0.09926125156 | P80: 1 | Q80: 0.09926125156 | R80: 0.09926125156 | S80: 0.09926125156 | U80: 102 | V80: 5.426066218 | W80: 0.03057472093 | X80: 0.003034885066 | Y80: 0.1579588235 | Z80: 0.01567919052 | AA80: 4951.122833 | AB80: 491.454649
H81: 78 | I81: =MMULT(_xlfn.ANCHORARRAY(I80),_xlfn.ANCHORARRAY($B$3)) -> 0.1244451942 | J81: 0.03181061572 | K81: 0.301705241 | L81: 0.5420389491 | M81: 0.005583651587 | O81: 0.09632763823 | P81: 1 | Q81: 0.09632763823 | R81: 0.09632763823 | S81: 0.09632763823 | U81: 103 | V81: 5.426066218 | W81: 0.03029726325 | X81: 0.002918463814 | Y81: 0.1564468385 | Z81: 0.01507015446 | AA81: 4901.711466 | AB81: 472.1702888
H82: 79 | I82: =MMULT(_xlfn.ANCHORARRAY(I81),_xlfn.ANCHORARRAY($B$3)) -> 0.1214709514 | J82: 0.03105034134 | K82: 0.298998203 | L82: 0.5484805042 | M82: 0.005532085324 | O82: 0.09348072628 | P82: 1 | Q82: 0.09348072628 | R82: 0.09348072628 | S82: 0.09348072628 | U82: 104 | V82: 5.426066218 | W82: 0.0300174613 | X82: 0.002806054083 | Y82: 0.1549261749 | Z82: 0.01448261135 | AA82: 4852.116314 | AB82: 453.579357
H83: 80 | I83: =MMULT(_xlfn.ANCHORARRAY(I82),_xlfn.ANCHORARRAY($B$3)) -> 0.1185677931 | J83: 0.03030823753 | K83: 0.2962666837 | L83: 0.5548572857 | M83: 0.005480130102 | O83: 0.09071795329 | P83: 1 | Q83: 0.09071795329 | R83: 0.09071795329 | S83: 0.09071795329 | U83: 105 | V83: 5.426066218 | W83: 0.02973554882 | X83: 0.002697548129 | Y83: 0.1533979276 | Z83: 0.01391594603 | AA83: 4802.368791 | AB83: 435.6610677
H84: 81 | I84: =MMULT(_xlfn.ANCHORARRAY(I83),_xlfn.ANCHORARRAY($B$3)) -> 0.1157340204 | J84: 0.02958387001 | K84: 0.2935130338 | L84: 0.5611690758 | M84: 0.005427827321 | O84: 0.08803683258 | P84: 1 | Q84: 0.08803683258 | R84: 0.08803683258 | S84: 0.08803683258 | U84: 106 | V84: 5.426066218 | W84: 0.02945175047 | X84: 0.002592838825 | Y84: 0.1518631476 | Z84: 0.0133695505 | AA84: 4752.499028 | AB84: 418.3949613
H85: 82 | I85: =MMULT(_xlfn.ANCHORARRAY(I84),_xlfn.ANCHORARRAY($B$3)) -> 0.1129679749 | J85: 0.0288768149 | K85: 0.2907395133 | L85: 0.5674156969 | M85: 0.005375216759 | O85: 0.08543495097 | P85: 1 | Q85: 0.08543495097 | R85: 0.08543495097 | S85: 0.08543495097 | U85: 107 | V85: 5.426066218 | W85: 0.02916628207 | X85: 0.002491819879 | Y85: 0.1503228437 | Z85: 0.01284282478 | AA85: 4702.535909 | AB85: 401.7609248
H86: 83 | I86: =MMULT(_xlfn.ANCHORARRAY(I85),_xlfn.ANCHORARRAY($B$3)) -> 0.1102680379 | J86: 0.02818665842 | K86: 0.2879482938 | L86: 0.5735970099 | M86: 0.005322336619 | O86: 0.08290996658 | P86: 1 | Q86: 0.08290996658 | R86: 0.08290996658 | S86: 0.08290996658 | U86: 108 | V86: 5.426066218 | W86: 0.02887935093 | X86: 0.00239438602 | Y86: 0.1487779836 | Z86: 0.01233517764 | AA86: 4652.507116 | AB86: 385.7392095
H87: 84 | I87: =MMULT(_xlfn.ANCHORARRAY(I86),_xlfn.ANCHORARRAY($B$3)) -> 0.1076326295 | J87: 0.02751299669 | K87: 0.2851414612 | L87: 0.5797129127 | M87: 0.00526922358 | O87: 0.08045960675 | P87: 1 | Q87: 0.08045960675 | R87: 0.08045960675 | S87: 0.08045960675 | U87: 109 | V87: 5.426066218 | W87: 0.02859115606 | X87: 0.002300433173 | Y87: 0.1472294953 | Z87: 0.01184602729 | AA87: 4602.439163 | AB87: 370.3104452
H88: 85 | I88: =MMULT(_xlfn.ANCHORARRAY(I87),_xlfn.ANCHORARRAY($B$3)) -> 0.1050602074 | J88: 0.02685543549 | K88: 0.2823210188 | L88: 0.5857633383 | M88: 0.005215912844 | O88: 0.078081666 | P88: 1 | Q88: 0.078081666 | R88: 0.078081666 | S88: 0.078081666 | U88: 110 | V88: 5.426066218 | W88: 0.02830188848 | X88: 0.002209858604 | Y88: 0.1456782685 | Z88: 0.01137480191 | AA88: 4552.357439 | AB88: 355.455653
H89: 86 | I89: =MMULT(_xlfn.ANCHORARRAY(I88),_xlfn.ANCHORARRAY($B$3)) -> 0.1025492662 | J89: 0.02621359001 | K89: 0.2794888898 | L89: 0.591748254 | M89: 0.005162438189 | O89: 0.07577400402 | P89: 1 | Q89: 0.07577400402 | R89: 0.07577400402 | S89: 0.07577400402 | U89: 111 | V89: 5.426066218 | W89: 0.02801173146 | X89: 0.002122561052 | Y89: 0.1441251558 | Z89: 0.01092094014 | AA89: 4502.286239 | AB89: 341.1562556
H90: 87 | I90: =MMULT(_xlfn.ANCHORARRAY(I89),_xlfn.ANCHORARRAY($B$3)) -> 0.1000983366 | J90: 0.02558708466 | K90: 0.2766469196 | L90: 0.5976676592 | M90: 0.005108832006 | O90: 0.07353454376 | P90: 1 | Q90: 0.07353454376 | R90: 0.07353454376 | S90: 0.07353454376 | U90: 112 | V90: 5.426066218 | W90: 0.02772086076 | X90: 0.002038440849 | Y90: 0.1425709737 | Z90: 0.0104838915 | AA90: 4452.248805 | AB90: 327.3940846
H91: 88 | I91: =MMULT(_xlfn.ANCHORARRAY(I90),_xlfn.ANCHORARRAY($B$3)) -> 0.09770598423 | J91: 0.0249755528 | K91: 0.2737968786 | L91: 0.6035215844 | M91: 0.005055125351 | O91: 0.07136126956 | P91: 1 | Q91: 0.07136126956 | R91: 0.07136126956 | S91: 0.07136126956 | U91: 113 | V91: 5.426066218 | W91: 0.0274294449 | X91: 0.001957400011 | Y91: 0.1410165038 | Z91: 0.01006311674 | AA91: 4402.267358 | AB91: 314.1513876
H92: 89 | I92: =MMULT(_xlfn.ANCHORARRAY(I91),_xlfn.ANCHORARRAY($B$3)) -> 0.09537080915 | J92: 0.02437863656 | K92: 0.2709404645 | L92: 0.6093100898 | M92: 0.005001347984 | O92: 0.06925222531 | P92: 1 | Q92: 0.06925222531 | R92: 0.06925222531 | S92: 0.06925222531 | U92: 114 | V92: 5.426066218 | W92: 0.02713764534 | X92: 0.001879342329 | Y92: 0.1394624944 | Z92: 0.009658088087 | AA92: 4352.363132 | AB92: 301.4108322
H93: 90 | I93: =MMULT(_xlfn.ANCHORARRAY(I92),_xlfn.ANCHORARRAY($B$3)) -> 0.09309144481 | J93: 0.02379598664 | K93: 0.2680793046 | L93: 0.615033264 | M93: 0.004947528411 | O93: 0.06720551274 | P93: 1 | Q93: 0.06720551274 | R93: 0.06720551274 | S93: 0.06720551274 | U93: 115 | V93: 5.426066218 | W93: 0.02684561677 | X93: 0.00180417344 | Y93: 0.137909661 | Z93: 0.009268289476 | AA93: 4302.556405 | AB93: 289.1555093
H94: 91 | I94: =MMULT(_xlfn.ANCHORARRAY(I93),_xlfn.ANCHORARRAY($B$3)) -> 0.09086655732 | J94: 0.02322726206 | K94: 0.2652149581 | L94: 0.6206912226 | M94: 0.004893693927 | O94: 0.06521928967 | P94: 1 | Q94: 0.06521928967 | R94: 0.06521928967 | S94: 0.06521928967 | U94: 116 | V94: 5.426066218 | W94: 0.0265535073 | X94: 0.001731800884 | Y94: 0.1363586875 | Z94: 0.008893216738 | AA94: 4252.866534 | AB94: 277.3689344
H95: 92 | I95: =MMULT(_xlfn.ANCHORARRAY(I94),_xlfn.ANCHORARRAY($B$3)) -> 0.08869484469 | J95: 0.02267213 | K95: 0.2623489182 | L95: 0.6262841071 | M95: 0.004839870655 | O95: 0.06329176836 | P95: 1 | Q95: 0.06329176836 | R95: 0.06329176836 | S95: 0.06329176836 | U95: 117 | V95: 5.426066218 | W95: 0.02626145866 | X95: 0.001662134158 | Y95: 0.1348102276 | Z95: 0.008532377697 | AA95: 4203.311983 | AB95: 266.0350484
H96: 93 | I96: =MMULT(_xlfn.ANCHORARRAY(I95),_xlfn.ANCHORARRAY($B$3)) -> 0.08657503603 | J96: 0.02213026562 | K96: 0.2594826147 | L96: 0.6318120837 | M96: 0.004786083581 | O96: 0.06142121392 | P96: 1 | Q96: 0.06142121392 | R96: 0.06142121392 | S96: 0.06142121392 | U96: 118 | V96: 5.426066218 | W96: 0.02596960643 | X96: 0.001595084752 | Y96: 0.1332649055 | Z96: 0.008185292265 | AA96: 4153.910355 | AB96: 255.1382165
H97: 94 | I97: =MMULT(_xlfn.ANCHORARRAY(I96),_xlfn.ANCHORARRAY($B$3)) -> 0.08450589085 | J97: 0.02160135181 | K97: 0.2566174153 | L97: 0.6372753421 | M97: 0.004732356595 | O97: 0.05960594271 | P97: 1 | Q97: 0.05960594271 | R97: 0.05960594271 | S97: 0.05960594271 | U97: 119 | V97: 5.426066218 | W97: 0.02567808025 | X97: 0.001530566181 | Y97: 0.1317233167 | Z97: 0.007851492471 | AA97: 4104.678418 | AB97: 244.6632266
H98: 95 | I98: =MMULT(_xlfn.ANCHORARRAY(I97),_xlfn.ANCHORARRAY($B$3)) -> 0.08248619828 | J98: 0.02108507904 | K98: 0.2537546283 | L98: 0.6426740944 | M98: 0.004678712527 | O98: 0.05784432087 | P98: 1 | Q98: 0.05784432087 | R98: 0.05784432087 | S98: 0.05784432087 | U98: 120 | V98: 5.426066218 | W98: 0.02538700399 | X98: 0.001468494005 | Y98: 0.1301860296 | Z98: 0.007530522472 | AA98: 4055.632137 | AB98: 234.5952867
H99: 96 | I99: =MMULT(_xlfn.ANCHORARRAY(I98),_xlfn.ANCHORARRAY($B$3)) -> 0.08051477641 | J99: 0.02058114521 | K99: 0.2508955041 | L99: 0.6480085742 | M99: 0.00462517318 | O99: 0.05613476283 | P99: 1 | Q99: 0.05613476283 | R99: 0.05613476283 | S99: 0.05613476283 | U99: 121 | V99: 5.426066218 | W99: 0.02509649594 | X99: 0.001408785848 | Y99: 0.1286535857 | Z99: 0.007221938522 | AA99: 4006.786696 | AB99: 224.9200209
H100: 97 | I100: =MMULT(_xlfn.ANCHORARRAY(I99),_xlfn.ANCHORARRAY($B$3)) -> 0.07859047156 | J100: 0.02008925541 | K100: 0.2480412377 | L100: 0.6532790353 | M100: 0.004571759363 | O100: 0.05447572987 | P100: 1 | Q100: 0.05447572987 | R100: 0.05447572987 | S100: 0.05447572987 | U100: 122 | V100: 5.426066218 | W100: 0.02480666904 | X100: 0.001351361401 | Y100: 0.1271265008 | Z100: 0.006925308919 | AA100: 3958.15653 | AB100: 215.6234659
H101: 98 | I101: =MMULT(_xlfn.ANCHORARRAY(I100),_xlfn.ANCHORARRAY($B$3)) -> 0.07671215764 | J101: 0.01960912178 | K101: 0.2451929697 | L101: 0.6584857509 | M101: 0.004518490929 | O101: 0.05286572874 | P101: 1 | Q101: 0.05286572874 | R101: 0.05286572874 | S101: 0.05286572874 | U101: 123 | V101: 5.426066218 | W101: 0.02451763099 | X101: 0.001296142429 | Y101: 0.1256052661 | Z101: 0.006640213923 | AA101: 3909.755348 | AB101: 206.6920657
H102: 99 | I102: =MMULT(_xlfn.ANCHORARRAY(I101),_xlfn.ANCHORARRAY($B$3)) -> 0.07487873546 | J102: 0.01914046336 | K102: 0.2423517888 | L102: 0.6636290124 | M102: 0.004465386802 | O102: 0.05130331033 | P102: 1 | Q102: 0.05130331033 | R102: 0.05130331033 | S102: 0.05130331033 | U102: 124 | V102: 5.426066218 | W102: 0.02422948448 | X102: 0.001243052762 | Y102: 0.1240903484 | Z102: 0.006366245652 | AA102: 3861.596157 | AB102: 198.112666
H103: 100 | I103: =MMULT(_xlfn.ANCHORARRAY(I102),_xlfn.ANCHORARRAY($B$3)) -> 0.0730891321 | J103: 0.01868300588 | K103: 0.2395187333 | L103: 0.6687091287 | M103: 0.004412465013 | O103: 0.04978706837 | P103: 1 | Q103: 0.04978706837 | R103: 0.04978706837 | S103: 0.04978706837 | U103: 125 | V103: 5.426066218 | W103: 0.02394232734 | X103: 0.001192018288 | Y103: 0.1225821917 | Z103: 0.006103007959 | AA103: 3813.691287 | AB103: 189.8725088
H104: 101 | I104: =MMULT(_xlfn.ANCHORARRAY(I103),_xlfn.ANCHORARRAY($B$3)) -> 0.07134230031 | J104: 0.01823648165 | K104: 0.2366947926 | L104: 0.6737264255 | M104: 0.004359742722 | O104: 0.04831563813 | P104: 1 | Q104: 0.04831563813 | R104: 0.04831563813 | S104: 0.04831563813 | U104: 126 | V104: 5.426066218 | W104: 0.02365625271 | X104: 0.001142966945 | Y104: 0.1210812175 | Z104: 0.005850116288 | AA104: 3766.052416 | AB104: 181.9592257
H105: 102 | I105: =MMULT(_xlfn.ANCHORARRAY(I104),_xlfn.ANCHORARRAY($B$3)) -> 0.06963721783 | J105: 0.01780062935 | K105: 0.2338809091 | L105: 0.6786812437 | M105: 0.004307236259 | O105: 0.04688769522 | P105: 1 | Q105: 0.04688769522 | R105: 0.04688769522 | S105: 0.04688769522 | U105: 127 | V105: 5.426066218 | W105: 0.02337134916 | X105: 0.001095828696 | Y105: 0.1195878256 | Z105: 0.005607197517 | AA105: 3718.69059 | AB105: 174.360831
H106: 103 | I106: =MMULT(_xlfn.ANCHORARRAY(I105),_xlfn.ANCHORARRAY($B$3)) -> 0.06797288686 | J106: 0.01737519394 | K106: 0.2310779799 | L106: 0.6835739393 | M106: 0.004254961141 | O106: 0.0455019544 | P106: 1 | Q106: 0.0455019544 | R106: 0.0455019544 | S106: 0.0455019544 | U106: 128 | V106: 5.426066218 | W106: 0.02308770091 | X106: 0.001050535514 | Y106: 0.118102395 | Z106: 0.005373889791 | AA106: 3671.616248 | AB106: 167.0657151
H107: 104 | I107: =MMULT(_xlfn.ANCHORARRAY(I106),_xlfn.ANCHORARRAY($B$3)) -> 0.06634833343 | J107: 0.01695992644 | K107: 0.2282868578 | L107: 0.6884048823 | M107: 0.004202932108 | O107: 0.04415716842 | P107: 1 | Q107: 0.04415716842 | R107: 0.04415716842 | S107: 0.04415716842 | U107: 129 | V107: 5.426066218 | W107: 0.02280538793 | X107: 0.001007021356 | Y107: 0.1166252845 | Z107: 0.005149842328 | AA107: 3624.83924 | AB107: 160.0626368
H108: 105 | I108: =MMULT(_xlfn.ANCHORARRAY(I107),_xlfn.ANCHORARRAY($B$3)) -> 0.06476260687 | J108: 0.01655458384 | K108: 0.2255083533 | L108: 0.6931744559 | M108: 0.004151163144 | O108: 0.04285212687 | P108: 1 | Q108: 0.04285212687 | R108: 0.04285212687 | S108: 0.04285212687 | U108: 130 | V108: 5.426066218 | W108: 0.0225244861 | X108: 0.000965222136 | Y108: 0.1151568335 | Z108: 0.004934715239 | AA108: 3578.368849 | AB108: 153.3407159
H109: 106 | I109: =MMULT(_xlfn.ANCHORARRAY(I108),_xlfn.ANCHORARRAY($B$3)) -> 0.0632147792 | J109: 0.01615892894 | K109: 0.222743236 | L109: 0.6978830558 | M109: 0.004099667507 | O109: 0.04158565512 | P109: 1 | Q109: 0.04158565512 | R109: 0.04158565512 | S109: 0.04158565512 | U109: 131 | V109: 5.426066218 | W109: 0.02224506737 | X109: 0.0009250756996 | Y109: 0.1136973626 | Z109: 0.004728179311 | AA109: 3532.213815 | AB109: 146.8894255
H110: 107 | I110: =MMULT(_xlfn.ANCHORARRAY(I109),_xlfn.ANCHORARRAY($B$3)) -> 0.06170394465 | J110: 0.01577273019 | K110: 0.2199922358 | L110: 0.7025310894 | M110: 0.004048457752 | O110: 0.04035661327 | P110: 1 | Q110: 0.04035661327 | R110: 0.04035661327 | S110: 0.04035661327 | U110: 132 | V110: 5.426066218 | W110: 0.02196719984 | X110: 0.0008865217888 | Y110: 0.1122471744 | Z110: 0.004529915809 | AA110: 3486.382347 | AB110: 140.6985841
H111: 108 | I111: =MMULT(_xlfn.ANCHORARRAY(I110),_xlfn.ANCHORARRAY($B$3)) -> 0.06022921908 | J111: 0.01539576161 | K111: 0.2172560443 | L111: 0.7071189751 | M111: 0.003997545756 | O111: 0.0391638951 | P111: 1 | Q111: 0.0391638951 | R111: 0.0391638951 | S111: 0.0391638951 | U111: 133 | V111: 5.426066218 | W111: 0.02169094798 | X111: 0.0008495020113 | Y111: 0.1108065539 | Z111: 0.004339616251 | AA111: 3440.882148 | AB111: 134.7583475
H112: 109 | I112: =MMULT(_xlfn.ANCHORARRAY(I111),_xlfn.ANCHORARRAY($B$3)) -> 0.05878973947 | J112: 0.01502780258 | K112: 0.2145353162 | L112: 0.7116471418 | M112: 0.003946942741 | O112: 0.03800642708 | P112: 1 | Q112: 0.03800642708 | R112: 0.03800642708 | S112: 0.03800642708 | U112: 134 | V112: 5.426066218 | W112: 0.02141637267 | X112: 0.0008139598063 | Y112: 0.1093757691 | Z112: 0.004156982193 | AA112: 3395.720432 | AB112: 129.059201
H113: 110 | I113: =MMULT(_xlfn.ANCHORARRAY(I112),_xlfn.ANCHORARRAY($B$3)) -> 0.05738466346 | J113: 0.01466863779 | K113: 0.2118306707 | L113: 0.7161160281 | M113: 0.0038966593 | O113: 0.0368831674 | P113: 1 | Q113: 0.0368831674 | R113: 0.0368831674 | S113: 0.0368831674 | U113: 135 | V113: 5.426066218 | W113: 0.02114353139 | X113: 0.0007798404077 | Y113: 0.1079550722 | Z113: 0.003981725 | AA113: 3350.903938 | AB113: 123.5919509
H114: 111 | I114: =MMULT(_xlfn.ANCHORARRAY(I113),_xlfn.ANCHORARRAY($B$3)) -> 0.0560131688 | J114: 0.01431805704 | K114: 0.2091426926 | L114: 0.7205260816 | M114: 0.003846705413 | O114: 0.03579310507 | P114: 1 | Q114: 0.03579310507 | R114: 0.03579310507 | S114: 0.03579310507 | U114: 136 | V114: 5.426066218 | W114: 0.0208724783 | X114: 0.0007470908087 | Y114: 0.1065446993 | Z114: 0.003813565617 | AA114: 3306.438954 | AB114: 118.3477169
H115: 112 | I115: =MMULT(_xlfn.ANCHORARRAY(I114),_xlfn.ANCHORARRAY($B$3)) -> 0.05467445289 | J115: 0.01397585517 | K115: 0.2064719334 | L115: 0.7248777585 | M115: 0.003797090477 | O115: 0.03473525894 | P115: 1 | Q115: 0.03473525894 | R115: 0.03473525894 | S115: 0.03473525894 | U115: 137 | V115: 5.426066218 | W115: 0.02060326436 | X115: 0.0007156597228 | Y115: 0.1051448717 | Z115: 0.003652234344 | AA115: 3262.331327 | AB115: 113.3179234
H116: 113 | I116: =MMULT(_xlfn.ANCHORARRAY(I115),_xlfn.ANCHORARRAY($B$3)) -> 0.05336773231 | J116: 0.01364183194 | K116: 0.2038189128 | L116: 0.729171523 | M116: 0.003747823318 | O116: 0.0337086769 | P116: 1 | Q116: 0.0337086769 | R116: 0.0337086769 | S116: 0.0337086769 | U116: 138 | V116: 5.426066218 | W116: 0.0203359375 | X116: 0.0006854975466 | Y116: 0.1037557959 | Z116: 0.003497470599 | AA116: 3218.586484 | AB116: 108.4942919
H117: 114 | I117: =MMULT(_xlfn.ANCHORARRAY(I116),_xlfn.ANCHORARRAY($B$3)) -> 0.05209224239 | J117: 0.01331579187 | K117: 0.2011841195 | L117: 0.7334078463 | M117: 0.00369891222 | O117: 0.03271243494 | P117: 1 | Q117: 0.03271243494 | R117: 0.03271243494 | S117: 0.03271243494 | U117: 139 | V117: 5.426066218 | W117: 0.02007054264 | X117: 0.0006565563204 | Y117: 0.1023776645 | Z117: 0.00334902269 | AA117: 3175.209444 | AB117: 103.8688324
H118: 115 | I118: =MMULT(_xlfn.ANCHORARRAY(I117),_xlfn.ANCHORARRAY($B$3)) -> 0.0508472367 | J118: 0.01299754416 | K118: 0.1985680124 | L118: 0.7375872067 | M118: 0.003650364937 | O118: 0.03174563638 | P118: 1 | Q118: 0.03174563638 | R118: 0.03174563638 | S118: 0.03174563638 | U118: 140 | V118: 5.426066218 | W118: 0.01980712187 | X118: 0.0006287896886 | Y118: 0.1010106567 | Z118: 0.003206647578 | AA118: 3132.204836 | AB118: 99.4338358
H119: 116 | I119: =MMULT(_xlfn.ANCHORARRAY(I118),_xlfn.ANCHORARRAY($B$3)) -> 0.04963198667 | J119: 0.01268690258 | K119: 0.195971022 | L119: 0.7417100888 | M119: 0.003602188718 | O119: 0.03080741103 | P119: 1 | Q119: 0.03080741103 | R119: 0.03080741103 | S119: 0.03080741103 | U119: 141 | V119: 5.426066218 | W119: 0.01954571452 | X119: 0.000602152861 | Y119: 0.09965493855 | Z119: 0.003070110653 | AA119: 3089.576913 | AB119: 95.18186589
H120: 117 | I120: =MMULT(_xlfn.ANCHORARRAY(I119),_xlfn.ANCHORARRAY($B$3)) -> 0.04844578115 | J120: 0.01238368534 | K120: 0.1933935508 | L120: 0.7457769827 | M120: 0.003554390322 | O120: 0.02989691444 | P120: 1 | Q120: 0.02989691444 | R120: 0.02989691444 | S120: 0.02989691444 | U120: 142 | V120: 5.426066218 | W120: 0.01928635725 | X120: 0.0005766025725 | Y120: 0.09831066359 | Z120: 0.002939185497 | AA120: 3047.329565 | AB120: 91.10575128
H121: 118 | I121: =MMULT(_xlfn.ANCHORARRAY(I120),_xlfn.ANCHORARRAY($B$3)) -> 0.04728792596 | J121: 0.012087715 | K121: 0.1908359749 | L121: 0.7497883842 | M121: 0.003506976036 | O121: 0.02901332708 | P121: 1 | Q121: 0.02901332708 | R121: 0.02901332708 | S121: 0.02901332708 | U121: 143 | V121: 5.426066218 | W121: 0.0190290842 | X121: 0.0005520970439 | Y121: 0.09697797334 | Z121: 0.00281365366 | AA121: 3005.466335 | AB121: 87.1985778
H122: 119 | I122: =MMULT(_xlfn.ANCHORARRAY(I121),_xlfn.ANCHORARRAY($B$3)) -> 0.04615774354 | J122: 0.01179881836 | K122: 0.1882986445 | L122: 0.7537447936 | M122: 0.003459951696 | O122: 0.02815585368 | P122: 1 | Q122: 0.02815585368 | R122: 0.02815585368 | S122: 0.02815585368 | U122: 144 | V122: 5.426066218 | W122: 0.01877392701 | X122: 0.000528595942 | Y122: 0.09565699772 | Z122: 0.002693304431 | AA122: 2963.990428 | AB122: 83.45368081
H123: 120 | I123: =MMULT(_xlfn.ANCHORARRAY(I122),_xlfn.ANCHORARRAY($B$3)) -> 0.04505457249 | J123: 0.01151682635 | K123: 0.1857818854 | L123: 0.7576467157 | M123: 0.003413322699 | O123: 0.02732372245 | P123: 1 | Q123: 0.02732372245 | R123: 0.02732372245 | S123: 0.02732372245 | U123: 145 | V123: 5.426066218 | W123: 0.01852091499 | X123: 0.0005060603406 | Y123: 0.09434785548 | Z123: 0.002577934617 | AA123: 2922.904732 | AB123: 79.86463763
H124: 121 | I124: =MMULT(_xlfn.ANCHORARRAY(I123),_xlfn.ANCHORARRAY($B$3)) -> 0.04397776726 | J124: 0.01124157396 | K124: 0.1832859994 | L124: 0.7614946594 | M124: 0.003367094023 | O124: 0.02651618441 | P124: 1 | Q124: 0.02651618441 | R124: 0.02651618441 | S124: 0.02651618441 | U124: 146 | V124: 5.426066218 | W124: 0.01827007513 | X124: 0.0004844526813 | Y124: 0.09305065465 | Z124: 0.002467348318 | AA124: 2882.211821 | AB124: 76.42526014
H125: 122 | I125: =MMULT(_xlfn.ANCHORARRAY(I124),_xlfn.ANCHORARRAY($B$3)) -> 0.0429266977 | J125: 0.01097290011 | K125: 0.1808112652 | L125: 0.765289137 | M125: 0.003321270239 | O125: 0.02573251273 | P125: 1 | Q125: 0.02573251273 | R125: 0.02573251273 | S125: 0.02573251273 | U125: 147 | V125: 5.426066218 | W125: 0.01802143225 | X125: 0.0004637367347 | Y125: 0.09176549292 | Z125: 0.002361356714 | AA125: 2841.913974 | AB125: 73.1295875
H126: 123 | I126: =MMULT(_xlfn.ANCHORARRAY(I125),_xlfn.ANCHORARRAY($B$3)) -> 0.04190074872 | J126: 0.01071064757 | K126: 0.1783579398 | L126: 0.7690306639 | M126: 0.003275855533 | O126: 0.02497200204 | P126: 1 | Q126: 0.02497200204 | R126: 0.02497200204 | S126: 0.02497200204 | U126: 148 | V126: 5.426066218 | W126: 0.01777500904 | X126: 0.0004438775621 | Y126: 0.09049245807 | Z126: 0.002259777848 | AA126: 2802.013184 | AB126: 69.97187896
H127: 124 | I127: =MMULT(_xlfn.ANCHORARRAY(I126),_xlfn.ANCHORARRAY($B$3)) -> 0.04089931995 | J127: 0.01045466286 | K127: 0.1759262586 | L127: 0.7727197585 | M127: 0.003230853712 | O127: 0.02423396785 | P127: 1 | Q127: 0.02423396785 | R127: 0.02423396785 | S127: 0.02423396785 | U127: 149 | V127: 5.426066218 | W127: 0.01753082618 | X127: 0.000424841478 | Y127: 0.08923162834 | Z127: 0.002162436412 | AA127: 2762.511171 | AB127: 66.94660689
H128: 125 | I128: =MMULT(_xlfn.ANCHORARRAY(I127),_xlfn.ANCHORARRAY($B$3)) -> 0.03992182534 | J128: 0.0102047962 | K128: 0.173516437 | L128: 0.7763569415 | M128: 0.003186268226 | O128: 0.02351774586 | P128: 1 | Q128: 0.02351774586 | R128: 0.02351774586 | S128: 0.02351774586 | U128: 150 | V128: 5.426066218 | W128: 0.01728890238 | X128: 0.0004065960124 | Y128: 0.08798307283 | Z128: 0.002069163546 | AA128: 2723.40939 | AB128: 64.04844991
H129: 126 | I129: =MMULT(_xlfn.ANCHORARRAY(I128),_xlfn.ANCHORARRAY($B$3)) -> 0.03896769288 | J129: 0.009960901357 | K129: 0.1711286703 | L129: 0.7799427354 | M129: 0.003142102177 | O129: 0.02282269143 | P129: 1 | Q129: 0.02282269143 | R129: 0.02282269143 | S129: 0.02282269143 | U129: 151 | V129: 5.426066218 | W129: 0.01704925448 | X129: 0.000389109874 | Y129: 0.08674685181 | Z129: 0.001979796631 | AA129: 2684.709046 | AB129: 61.27228613
H130: 127 | I130: =MMULT(_xlfn.ANCHORARRAY(I129),_xlfn.ANCHORARRAY($B$3)) -> 0.0380363642 | J130: 0.009722835605 | K130: 0.1687631353 | L130: 0.7834776649 | M130: 0.003098358336 | O130: 0.02214817896 | P130: 1 | Q130: 0.02214817896 | R130: 0.02214817896 | S130: 0.02214817896 | U130: 152 | V130: 5.426066218 | W130: 0.0168118975 | X130: 0.0003723529144 | Y130: 0.08552301714 | Z130: 0.001894179089 | AA130: 2646.4111 | AB130: 58.61318663
H131: 128 | I131: =MMULT(_xlfn.ANCHORARRAY(I130),_xlfn.ANCHORARRAY($B$3)) -> 0.03712729429 | J131: 0.00949045963 | K131: 0.1664199903 | L131: 0.7869622558 | M131: 0.003055039153 | O131: =EXP(-r_H * H131) -> 0.02149360135 | P131: 1 | Q131: 0.02149360135 | R131: =EXP(-r_C * H131) -> 0.02149360135 | S131: 0.02149360135 | U131: 153 | V131: 5.426066218 | W131: 0.01657684475 | X131: =W131*Q131 -> 0.0003562960925 | Y131: 0.08431161257 | Z131: =Y131*Q131 -> 0.001812160189 | AA131: 2608.516281 | AB131: =AA131*S131 -> 56.06640904
H132: 129 | I132: =MMULT(_xlfn.ANCHORARRAY(I131),_xlfn.ANCHORARRAY($B$3)) -> 0.03623995118 | J132: 0.009263637445 | K132: 0.1640993763 | L132: 0.7903970351 | M132: 0.003012146773 | O132: 0.02085836943 | P132: 1 | Q132: =O132*P132 -> 0.02085836943 | R132: 0.02085836943 | S132: =R132*P132 -> 0.02085836943 | U132: =Delta_t*H132+age0 -> 154 | V132: =(1/r_H)*(1 - EXP(-r_H*LOOKUP(U132,$A$18:$B$38))) -> 5.426066218 | W132: =V132*M132 -> 0.01634410785 | X132: 0.0003409114394 | Y132: 0.08311267406 | Z132: 0.001733594859 | AA132: 2571.025097 | AB132: 53.62739128
H133: 130 | I133: =MMULT(_xlfn.ANCHORARRAY(I132),_xlfn.ANCHORARRAY($B$3)) -> 0.03537381558 | J133: 0.009042236315 | K133: 0.1618014177 | L133: 0.7937825304 | M133: 0.002969683043 | O133: 0.02024191145 | P133: 1 | Q133: 0.02024191145 | R133: 0.02024191145 | S133: 0.02024191145 | U133: 155 | V133: 5.426066218 | W133: 0.01611369684 | X133: 0.0003261720245 | Y133: 0.08192623012 | Z133: 0.001658343495 | AA133: 2533.937843 | AB133: 51.29174542
H134: 131 | I134: =MMULT(_xlfn.ANCHORARRAY(I133),_xlfn.ANCHORARRAY($B$3)) -> 0.03452838065 | J134: 0.008826126677 | K134: 0.1595262227 | L134: 0.79711927 | M134: 0.00292764953 | O134: 0.01964367255 | P134: 1 | Q134: 0.01964367255 | R134: 0.01964367255 | S134: 0.01964367255 | U134: 156 | V134: 5.426066218 | W134: 0.01588562022 | X134: 0.0003120519218 | Y134: 0.08075230214 | Z134: 0.001586271781 | AA134: 2497.254608 | AB134: 49.0552518
H135: 132 | I135: =MMULT(_xlfn.ANCHORARRAY(I134),_xlfn.ANCHORARRAY($B$3)) -> 0.03370315162 | J135: 0.008615182064 | K135: 0.1572738838 | L135: 0.8004077825 | M135: 0.00288604753 | O135: 0.01906311429 | P135: 1 | Q135: 0.01906311429 | R135: 0.01906311429 | S135: 0.01906311429 | U135: 157 | V135: 5.426066218 | W135: 0.01565988501 | X135: 0.0002985261777 | Y135: 0.07959090463 | Z135: 0.001517250512 | AA135: 2460.975289 | AB135: 46.9138532
H136: =H135+1 -> 133 | I136: =MMULT(_xlfn.ANCHORARRAY(I135),_xlfn.ANCHORARRAY($B$3)) -> 0.03289764559 | J136: 0.008409279031 | K136: 0.1550444791 | L136: 0.8036485963 | M136: 0.002844878077 | O136: 0.01849971412 | P136: 1 | Q136: 0.01849971412 | R136: 0.01849971412 | S136: 0.01849971412 | U136: 158 | V136: 5.426066218 | W136: 0.01543649683 | X136: 0.0002855707784 | Y136: 0.07844204556 | Z136: 0.001451155418 | AA136: 2425.099594 | AB136: 44.8636492
H137: 134 | I137: =MMULT(_xlfn.ANCHORARRAY(I136),_xlfn.ANCHORARRAY($B$3)) -> 0.03211139117 | J137: 0.008208297086 | K137: 0.1528380722 | L137: 0.8068422396 | M137: 0.002804141957 | O137: 0.01795296494 | P137: 1 | Q137: 0.01795296494 | R137: 0.01795296494 | S137: 0.01795296494 | U137: 159 | V137: 5.426066218 | W137: 0.01521545994 | X137: 0.0002731626189 | Y137: 0.07730572661 | Z137: 0.001387866999 | AA137: 2389.627053 | AB137: 42.9008907
H138: 135 | I138: =MMULT(_xlfn.ANCHORARRAY(I137),_xlfn.ANCHORARRAY($B$3)) -> 0.03134392824 | J138: 0.008012118613 | K138: 0.1506547131 | L138: 0.8099892401 | M138: 0.002763839715 | O138: 0.01742237464 | P138: 1 | Q138: 0.01742237464 | R138: 0.01742237464 | S138: 0.01742237464 | U138: 160 | V138: 5.426066218 | W138: 0.01499677731 | X138: 0.0002612794727 | Y138: 0.07618194347 | Z138: 0.00132727036 | AA138: 2354.557027 | AB138: 41.02197463
H139: 136 | I139: =MMULT(_xlfn.ANCHORARRAY(I138),_xlfn.ANCHORARRAY($B$3)) -> 0.0305948077 | J139: 0.007820628809 | K139: 0.1484944387 | L139: 0.8130901248 | M139: 0.00272397167 | O139: 0.01690746565 | P139: 1 | Q139: 0.01690746565 | R139: 0.01690746565 | S139: 0.01690746565 | U139: 161 | V139: 5.426066218 | W139: 0.01478045066 | X139: 0.0002498999618 | Y139: 0.07507068606 | Z139: 0.001269255046 | AA139: 2319.888712 | AB139: 39.22343871
H140: 137 | I140: =MMULT(_xlfn.ANCHORARRAY(I139),_xlfn.ANCHORARRAY($B$3)) -> 0.02986359115 | J140: 0.007633715616 | K140: 0.1463572737 | L140: 0.8161454196 | M140: 0.002684537919 | O140: 0.01640777453 | P140: 1 | Q140: 0.01640777453 | R140: 0.01640777453 | S140: 0.01640777453 | U140: 162 | V140: 5.426066218 | W140: 0.01456648051 | X140: 0.0002390035279 | Y140: 0.07397193884 | Z140: 0.001213714894 | AA140: 2285.62115 | AB140: 37.50195648
H141: 138 | I141: =MMULT(_xlfn.ANCHORARRAY(I140),_xlfn.ANCHORARRAY($B$3)) -> 0.0291498507 | J141: 0.007451269653 | K141: 0.1442432303 | L141: 0.8191556494 | M141: 0.00264553835 | O141: 0.0159228515 | P141: 1 | Q141: 0.0159228515 | R141: 0.0159228515 | S141: 0.0159228515 | U141: 163 | V141: 5.426066218 | W141: 0.01435486627 | X141: 0.000228570404 | Y141: 0.07288568099 | Z141: 0.001160547875 | AA141: 2251.753234 | AB141: 35.85433237
H142: 139 | I142: =MMULT(_xlfn.ANCHORARRAY(I141),_xlfn.ANCHORARRAY($B$3)) -> 0.02845316865 | J142: 0.007273184151 | K142: 0.1421523095 | L142: 0.8221213377 | M142: 0.002606972652 | O142: 0.01545226012 | P142: 1 | Q142: 0.01545226012 | R142: 0.01545226012 | S142: 0.01545226012 | U142: 164 | V142: 5.426066218 | W142: 0.01414560624 | X142: 0.0002185815872 | Y142: 0.07181188669 | Z142: 0.001109655953 | AA142: 2218.283717 | AB142: 34.27749702
H143: 140 | I143: =MMULT(_xlfn.ANCHORARRAY(I142),_xlfn.ANCHORARRAY($B$3)) -> 0.02777313732 | J143: 0.007099354897 | K143: 0.1400845014 | L143: 0.8250430064 | M143: 0.00256884032 | O143: 0.01499557682 | P143: 1 | Q143: 0.01499557682 | R143: 0.01499557682 | S143: 0.01499557682 | U143: 165 | V143: 5.426066218 | W143: 0.01393869768 | X143: 0.0002090188119 | Y143: 0.07075052535 | Z143: 0.001060944938 | AA143: 2185.211216 | AB143: 32.76850265
H144: 141 | I144: =MMULT(_xlfn.ANCHORARRAY(I143),_xlfn.ANCHORARRAY($B$3)) -> 0.02710935876 | J144: 0.006929680166 | K144: 0.1380397854 | L144: 0.8279211756 | M144: 0.002531140667 | O144: 0.01455239055 | P144: 1 | Q144: 0.01455239055 | R144: 0.01455239055 | S144: 0.01455239055 | U144: 166 | V144: 5.426066218 | W144: 0.01373413687 | X144: 0.0001998645236 | Y144: 0.0697015618 | Z144: 0.001014324349 | AA144: 2152.53422 | AB144: 31.32451864
H145: 142 | I145: =MMULT(_xlfn.ANCHORARRAY(I144),_xlfn.ANCHORARRAY($B$3)) -> 0.02646144451 | J145: 0.006764060664 | K145: 0.136018131 | L145: 0.8307563638 | M145: 0.002493872831 | O145: 0.01412230241 | P145: 1 | Q145: 0.01412230241 | R145: 0.01412230241 | S145: 0.01412230241 | U145: 167 | V145: 5.426066218 | W145: 0.01353191912 | X145: 0.000191101854 | Y145: 0.06866495653 | Z145: 0.0009697072811 | AA145: 2120.251097 | AB145: 29.94282718
H146: 143 | I146: =MMULT(_xlfn.ANCHORARRAY(I145),_xlfn.ANCHORARRAY($B$3)) -> 0.02582901543 | J146: 0.006602399472 | K146: 0.134019498 | L146: 0.8335490871 | M146: 0.002457035782 | O146: 0.0137049253 | P146: 1 | Q146: 0.0137049253 | R146: 0.0137049253 | S146: 0.0137049253 | U146: 168 | V146: 5.426066218 | W146: 0.01333203885 | X146: 0.0001827145965 | Y146: 0.0676406659 | Z146: 0.0009270102733 | AA146: 2088.360099 | AB146: 28.62081915
H147: 144 | I147: =MMULT(_xlfn.ANCHORARRAY(I146),_xlfn.ANCHORARRAY($B$3)) -> 0.02521170142 | J147: 0.006444601986 | K147: 0.1320438371 | L147: 0.8362998595 | M147: 0.00242062833 | O147: 0.01329988354 | P147: 1 | Q147: 0.01329988354 | R147: 0.01329988354 | S147: 0.01329988354 | U147: 169 | V147: 5.426066218 | W147: 0.01313448961 | X147: 0.0001746871822 | Y147: 0.06662864232 | Z147: 0.0008861531834 | AA147: 2056.859367 | AB147: 27.35599004
H148: 145 | I148: =MMULT(_xlfn.ANCHORARRAY(I147),_xlfn.ANCHORARRAY($B$3)) -> 0.02460914122 | J148: 0.006290575863 | K148: 0.1300910902 | L148: 0.8390091928 | M148: 0.002384649136 | O148: 0.01290681258 | P148: 1 | Q148: 0.01290681258 | R148: 0.01290681258 | S148: 0.01290681258 | U148: 170 | V148: 5.426066218 | W148: 0.01293926412 | X148: 0.0001670046569 | Y148: 0.06562883444 | Z148: 0.000847059066 | AA148: 2025.746938 | AB148: 26.14593607
H149: 146 | I149: =MMULT(_xlfn.ANCHORARRAY(I148),_xlfn.ANCHORARRAY($B$3)) -> 0.02402098223 | J149: 0.006140230967 | K149: 0.1281611909 | L149: 0.8416775959 | M149: 0.002349096714 | O149: 0.01252535862 | P149: 1 | Q149: 0.01252535862 | R149: 0.01252535862 | S149: 0.01252535862 | U149: 171 | V149: 5.426066218 | W149: 0.01274635432 | X149: 0.000159652659 | Y149: 0.06464118736 | Z149: 0.0008096540534 | AA149: 1995.020752 | AB149: 24.98835037
H150: 147 | I150: =MMULT(_xlfn.ANCHORARRAY(I149),_xlfn.ANCHORARRAY($B$3)) -> 0.02344688025 | J150: 0.005993479318 | K150: 0.126254065 | L150: 0.8443055755 | M150: 0.00231396944 | O150: 0.01215517833 | P150: 1 | Q150: 0.01215517833 | R150: 0.01215517833 | S150: 0.01215517833 | U150: 172 | V150: 5.426066218 | W150: 0.01255575141 | X150: 0.0001526173975 | Y150: 0.06366564281 | Z150: 0.0007738672419 | AA150: 1964.678652 | AB150: 23.88101938
H151: 148 | I151: =MMULT(_xlfn.ANCHORARRAY(I150),_xlfn.ANCHORARRAY($B$3)) -> 0.02288649932 | J151: 0.005850235036 | K151: 0.1243696304 | L151: 0.8468936352 | M151: 0.002279265561 | O151: 0.01179593852 | P151: 1 | Q151: 0.01179593852 | R151: 0.01179593852 | S151: 0.01179593852 | U151: 173 | V151: 5.426066218 | W151: 0.01236744586 | X151: 0.000145885631 | Y151: 0.06270213929 | Z151: 0.0007396305802 | AA151: 1934.718395 | AB151: 22.82181924
H152: 149 | I152: =MMULT(_xlfn.ANCHORARRAY(I151),_xlfn.ANCHORARRAY($B$3)) -> 0.02233951151 | J152: 0.005710414296 | K152: 0.1225077982 | L152: 0.849442276 | M152: 0.002244983197 | O152: 0.01144731585 | P152: 1 | Q152: 0.01144731585 | R152: 0.01144731585 | S152: 0.01144731585 | U152: 174 | V152: 5.426066218 | W152: 0.01218142748 | X152: 0.0001394446479 | Y152: 0.06175061228 | Z152: 0.0007068787627 | AA152: 1905.137654 | AB152: 21.80871246
H153: 150 | I153: =MMULT(_xlfn.ANCHORARRAY(I152),_xlfn.ANCHORARRAY($B$3)) -> 0.02180559671 | J153: 0.005573935274 | K153: 0.1206684724 | L153: 0.8519519956 | M153: 0.002211120351 | O153: 0.01110899654 | P153: 1 | Q153: 0.01110899654 | R153: 0.01110899654 | S153: 0.01110899654 | U153: 175 | V153: 5.426066218 | W153: 0.01199768544 | X153: 0.000133282246 | Y153: 0.06081099435 | Z153: 0.0006755491257 | AA153: 1875.934021 | AB153: 20.83974454
H154: 151 | I154: =MMULT(_xlfn.ANCHORARRAY(I153),_xlfn.ANCHORARRAY($B$3)) -> 0.02128444249 | J154: 0.005440718104 | K154: 0.1188515505 | L154: 0.8544232889 | M154: 0.002177674914 | O154: 0.01078067607 | P154: 1 | Q154: 0.01078067607 | R154: 0.01078067607 | S154: 0.01078067607 | U154: 176 | V154: 5.426066218 | W154: 0.01181620828 | X154: 0.0001273867139 | Y154: 0.05988321539 | Z154: 0.0006455815473 | AA154: 1847.105015 | AB154: 19.91304084
H155: 152 | I155: =MMULT(_xlfn.ANCHORARRAY(I154),_xlfn.ANCHORARRAY($B$3)) -> 0.02077574387 | J155: 0.005310684827 | K155: 0.117056924 | L155: 0.8568566473 | M155: 0.00214464467 | O155: 0.01046205894 | P155: 1 | Q155: 0.01046205894 | R155: 0.01046205894 | S155: 0.01046205894 | U155: 177 | V155: 5.426066218 | W155: 0.011636984 | X155: 0.0001217468125 | Y155: 0.05896720268 | Z155: 0.0006169183502 | AA155: 1818.648087 | AB155: 19.02680348
H156: 153 | I156: =MMULT(_xlfn.ANCHORARRAY(I155),_xlfn.ANCHORARRAY($B$3)) -> 0.02027920315 | J156: 0.005183759348 | K156: 0.1152844783 | L156: 0.8592525592 | M156: 0.002112027303 | O156: 0.01015285837 | P156: 1 | Q156: 0.01015285837 | R156: 0.01015285837 | S156: 0.01015285837 | U156: 178 | V156: 5.426066218 | W156: 0.01146 | X156: 0.000116351757 | Y156: 0.05806288111 | Z156: 0.0005895042087 | AA156: 1790.560618 | AB156: 18.17930836
H157: 154 | I157: =MMULT(_xlfn.ANCHORARRAY(I156),_xlfn.ANCHORARRAY($B$3)) -> 0.01979452977 | J157: 0.00505986739 | K157: 0.1135340934 | L157: 0.8616115094 | M157: 0.002079820402 | O157: 0.009852796061 | P157: 1 | Q157: 0.009852796061 | R157: 0.009852796061 | S157: 0.009852796061 | U157: 179 | V157: 5.426066218 | W157: 0.01128524322 | X157: 0.0001111912 | Y157: 0.05717017325 | Z157: 0.0005632860578 | AA157: 1762.83993 | AB157: 17.36890232
H158: 155 | I158: =MMULT(_xlfn.ANCHORARRAY(I157),_xlfn.ANCHORARRAY($B$3)) -> 0.01932144009 | J158: 0.004938936453 | K158: 0.1118056441 | L158: 0.8639339794 | M158: 0.002048021464 | O158: 0.009561601931 | P158: 1 | Q158: 0.009561601931 | R158: 0.009561601931 | S158: 0.009561601931 | U158: 180 | V158: 5.426066218 | W158: 0.01111270008 | X158: 0.0001062552145 | Y158: 0.05628899955 | Z158: 0.0005382130068 | AA158: 1735.483287 | AB158: 16.59400035
H159: 156 | I159: =MMULT(_xlfn.ANCHORARRAY(I158),_xlfn.ANCHORARRAY($B$3)) -> 0.01885965727 | J159: 0.004820895768 | K159: 0.1100990001 | L159: 0.8662204469 | M159: 0.002016627903 | O159: 0.009279013887 | P159: 1 | Q159: 0.009279013887 | R159: 0.009279013887 | S159: 0.009279013887 | U159: 181 | V159: 5.426066218 | W159: 0.01094235654 | X159: 0.0001015342783 | Y159: 0.05541927842 | Z159: 0.0005142362541 | AA159: 1708.487899 | AB159: 15.85308294
H160: 157 | I160: =MMULT(_xlfn.ANCHORARRAY(I159),_xlfn.ANCHORARRAY($B$3)) -> 0.01840891106 | J160: 0.004705676258 | K160: 0.1084140265 | L160: 0.8684713862 | M160: 0.001985637052 | O160: 0.009004777582 | P160: 1 | Q160: 0.009004777582 | R160: 0.009004777582 | S160: 0.009004777582 | U160: 182 | V160: 5.426066218 | W160: 0.01077419813 | X160: 9.70192578e-05 | Y160: 0.05456092639 | Z160: 0.0004913090068 | AA160: 1681.850924 | AB160: 15.1446935
H161: 158 | I161: =MMULT(_xlfn.ANCHORARRAY(I160),_xlfn.ANCHORARRAY($B$3)) -> 0.0179689377 | J161: 0.004593210496 | K161: 0.1067505839 | L161: 0.8706872679 | M161: 0.00195504617 | O161: 0.008738646185 | P161: 1 | Q161: 0.008738646185 | R161: 0.008738646185 | S161: 0.008738646185 | U161: 183 | V161: 5.426066218 | W161: 0.01060820998 | X161: 9.270139367e-05 | Y161: 0.05371385821 | Z161: 0.0004693864021 | AA161: 1655.569475 | AB161: 14.46743588
H162: 159 | I162: =MMULT(_xlfn.ANCHORARRAY(I161),_xlfn.ANCHORARRAY($B$3)) -> 0.01753947971 | J162: 0.004483432669 | K162: 0.1051085288 | L162: 0.8728685588 | M162: 0.001924852444 | O162: 0.00848038016 | P162: 1 | Q162: 0.00848038016 | R162: 0.00848038016 | S162: 0.00848038016 | U162: 184 | V162: 5.426066218 | W162: 0.01044437682 | X162: 8.857228598e-05 | Y162: 0.05287798697 | Z162: 0.0004484254316 | AA162: 1629.640622 | AB162: 13.819972
H163: 160 | I163: =MMULT(_xlfn.ANCHORARRAY(I162),_xlfn.ANCHORARRAY($B$3)) -> 0.01712028578 | J163: 0.004376278534 | K163: 0.1034877138 | L163: 0.8750157219 | M163: 0.001895052995 | O163: 0.008229747049 | P163: 1 | Q163: 0.008229747049 | R163: 0.008229747049 | S163: 0.008229747049 | U163: 185 | V163: 5.426066218 | W163: 0.01028268304 | X163: 8.462388037e-05 | Y163: 0.05205322424 | Z163: 0.0004283848686 | AA163: 1604.061393 | AB163: 13.20101951
H164: 161 | I164: =MMULT(_xlfn.ANCHORARRAY(I163),_xlfn.ANCHORARRAY($B$3)) -> 0.01671111059 | J164: 0.004271685385 | K164: 0.1018879878 | L164: 0.8771292163 | M164: 0.001865644881 | O164: 0.007986521266 | P164: 1 | Q164: 0.007986521266 | R164: 0.007986521266 | S164: 0.007986521266 | U164: 186 | V164: 5.426066218 | W164: 0.01012311266 | X164: 8.084845456e-05 | Y164: 0.05123948013 | Z164: 0.0004092251977 | AA164: 1578.828779 | AB164: 12.60934962
H165: 162 | I165: =MMULT(_xlfn.ANCHORARRAY(I164),_xlfn.ANCHORARRAY($B$3)) -> 0.01631171469 | J165: 0.004169592014 | K165: 0.1003091961 | L165: 0.8792094971 | M165: 0.001836625103 | O165: 0.007750483891 | P165: 1 | Q165: 0.007750483891 | R165: 0.007750483891 | S165: 0.007750483891 | U165: 187 | V165: 5.426066218 | W165: 0.009965649428 | X165: 7.723860536e-05 | Y165: 0.05043666343 | Z165: 0.0003909085474 | AA165: 1553.93974 | AB165: 12.04378492
H166: 163 | I166: =MMULT(_xlfn.ANCHORARRAY(I165),_xlfn.ANCHORARRAY($B$3)) -> 0.01592186437 | J166: 0.004069938677 | K166: 0.09875118113 | L166: 0.8812570158 | M166: 0.001807990609 | O166: 0.007521422475 | P166: 1 | Q166: 0.007521422475 | R166: 0.007521422475 | S166: 0.007521422475 | U166: 188 | V166: 5.426066218 | W166: 0.009810276765 | X166: 7.378723614e-05 | Y166: 0.04964468171 | Z166: 0.0003733986248 | AA166: 1529.3912 | AB166: 11.50319735
H167: 164 | I167: =MMULT(_xlfn.ANCHORARRAY(I166),_xlfn.ANCHORARRAY($B$3)) -> 0.01554133148 | J167: 0.003972667057 | K167: 0.09721378194 | L167: 0.8832722195 | M167: 0.001779738293 | O167: 0.007299130847 | P167: 1 | Q167: 0.007299130847 | R167: 0.007299130847 | S167: 0.007299130847 | U167: 189 | V167: 5.426066218 | W167: 0.009656977831 | X167: 7.048754478e-05 | Y167: 0.04886344141 | Z167: 0.0003566606525 | AA167: 1505.18006 | AB167: 10.98650621
H168: 165 | I168: =MMULT(_xlfn.ANCHORARRAY(I167),_xlfn.ANCHORARRAY($B$3)) -> 0.01516989333 | J168: 0.003877720231 | K168: 0.09569683495 | L168: 0.8852555515 | M168: 0.001751865007 | O168: 0.007083408929 | P168: 1 | Q168: 0.007083408929 | R168: 0.007083408929 | S168: 0.007083408929 | U168: 190 | V168: 5.426066218 | W168: 0.009505735534 | X168: 6.733301196e-05 | Y168: 0.04809284791 | Z168: 0.0003406613083 | AA168: 1481.303192 | AB168: 10.49267626
H169: 166 | I169: =MMULT(_xlfn.ANCHORARRAY(I168),_xlfn.ANCHORARRAY($B$3)) -> 0.01480733256 | J169: 0.003785042636 | K169: 0.09420017396 | L169: 0.8872074508 | M169: 0.001724367556 | O169: 0.006874062557 | P169: 1 | Q169: 0.006874062557 | R169: 0.006874062557 | S169: 0.006874062557 | U169: 191 | V169: 5.426066218 | W169: 0.009356532543 | X169: 6.431739002e-05 | Y169: 0.04733280565 | Z169: 0.0003253686671 | AA169: 1457.757445 | AB169: 10.02071587
H170: 167 | I170: =MMULT(_xlfn.ANCHORARRAY(I169),_xlfn.ANCHORARRAY($B$3)) -> 0.014453437 | J170: 0.003694580037 | K170: 0.09272363035 | L170: 0.8891283526 | M170: 0.001697242707 | O170: 0.006670903306 | P170: 1 | Q170: 0.006670903306 | R170: 0.006670903306 | S170: 0.006670903306 | U170: 192 | V170: 5.426066218 | W170: 0.009209351314 | X170: 6.143469213e-05 | Y170: 0.04658321822 | Z170: 0.0003107521445 | AA170: 1434.539649 | AB170: 9.56967529
H171: 168 | I171: =MMULT(_xlfn.ANCHORARRAY(I170),_xlfn.ANCHORARRAY($B$3)) -> 0.01410799955 | J171: 0.003606279497 | K171: 0.09126703325 | L171: 0.8910186877 | M171: 0.001670487189 | O171: 0.006473748318 | P171: 1 | Q171: 0.006473748318 | R171: 0.006473748318 | S171: 0.006473748318 | U171: 193 | V171: 5.426066218 | W171: 0.009064174105 | X171: 5.867918187e-05 | Y171: 0.04584398842 | Z171: 0.000296782443 | AA171: 1411.646616 | AB171: 9.138644905
H172: 169 | I172: =MMULT(_xlfn.ANCHORARRAY(I171),_xlfn.ANCHORARRAY($B$3)) -> 0.01377081806 | J172: 0.003520089341 | K172: 0.08983020975 | L172: 0.8928788828 | M172: 0.0016440977 | O172: 0.006282420141 | P172: 1 | Q172: 0.006282420141 | R172: 0.006282420141 | S172: 0.006282420141 | U172: 194 | V172: 5.426066218 | W172: 0.00892098299 | X172: 5.604536321e-05 | Y172: 0.04511501836 | Z172: 0.0002834315 | AA172: 1389.07514 | AB172: 8.726753635
H173: 170 | I173: =MMULT(_xlfn.ANCHORARRAY(I172),_xlfn.ANCHORARRAY($B$3)) -> 0.01344169522 | J173: 0.003435959132 | K173: 0.08841298506 | L173: 0.8947093606 | M173: 0.001618070906 | O173: 0.006096746566 | P173: 1 | Q173: 0.006096746566 | R173: 0.006096746566 | S173: 0.006096746566 | U173: 195 | V173: 5.426066218 | W173: 0.008779759881 | X173: 5.35279709e-05 | Y173: 0.0443962095 | Z173: 0.0002706724378 | AA173: 1366.822003 | AB173: 8.333167351
H174: 171 | I174: =MMULT(_xlfn.ANCHORARRAY(I173),_xlfn.ANCHORARRAY($B$3)) -> 0.01312043842 | J174: 0.003353839636 | K174: 0.08701518265 | L174: 0.8965105393 | M174: 0.001592403445 | O174: 0.005916560474 | P174: 1 | Q174: 0.005916560474 | R174: 0.005916560474 | S174: 0.005916560474 | U174: 196 | V174: 5.426066218 | W174: 0.008640486537 | X174: 5.112196112e-05 | Y174: 0.04368746278 | Z174: 0.0002584795155 | AA174: 1344.883975 | AB174: 7.957087369
H175: 172 | I175: =MMULT(_xlfn.ANCHORARRAY(I174),_xlfn.ANCHORARRAY($B$3)) -> 0.01280685967 | J175: 0.003273682798 | K175: 0.08563662447 | L175: 0.8982828331 | M175: 0.001567091931 | O175: 0.005741699686 | P175: 1 | Q175: 0.005741699686 | R175: 0.005741699686 | S175: 0.005741699686 | U175: 197 | V175: 5.426066218 | W175: 0.008503144586 | X175: 4.88225026e-05 | Y175: 0.04298867865 | Z175: 0.0002468280827 | AA175: 1323.257818 | AB175: 7.597748995
H176: 173 | I176: =MMULT(_xlfn.ANCHORARRAY(I175),_xlfn.ANCHORARRAY($B$3)) -> 0.01250077545 | J176: 0.003195441711 | K176: 0.08427713101 | L176: 0.9000266518 | M176: 0.001542132956 | O176: 0.005572006815 | P176: 1 | Q176: 0.005572006815 | R176: 0.005572006815 | S176: 0.005572006815 | U176: 198 | V176: 5.426066218 | W176: 0.008367715535 | X176: 4.662496799e-05 | Y176: 0.04229975714 | Z176: 0.0002356945351 | AA176: 1301.940283 | AB176: 7.254420129
H177: 174 | I177: =MMULT(_xlfn.ANCHORARRAY(I176),_xlfn.ANCHORARRAY($B$3)) -> 0.01220200666 | J177: 0.003119070587 | K177: 0.08293652154 | L177: 0.9017424012 | M177: 0.001517523092 | O177: 0.005407329126 | P177: 1 | Q177: 0.005407329126 | R177: 0.005407329126 | S177: 0.005407329126 | U177: 199 | V177: 5.426066218 | W177: 0.008234180785 | X177: 4.452492559e-05 | Y177: 0.04162059795 | Z177: 0.0002250562715 | AA177: 1280.928119 | AB177: 6.926399925
H178: 175 | I178: =MMULT(_xlfn.ANCHORARRAY(I177),_xlfn.ANCHORARRAY($B$3)) -> 0.01191037844 | J178: 0.003044524734 | K178: 0.08161461417 | L178: 0.9034304827 | M178: 0.001493258895 | O178: 0.005247518399 | P178: 1 | Q178: 0.005247518399 | R178: 0.005247518399 | S178: 0.005247518399 | U178: 200 | V178: 5.426066218 | W178: 0.008102521644 | X178: 4.251813141e-05 | Y178: 0.04095110048 | Z178: 0.0002148916532 | AA178: 1260.218068 | AB178: 6.613017501
H179: 176 | I179: =MMULT(_xlfn.ANCHORARRAY(I178),_xlfn.ANCHORARRAY($B$3)) -> 0.01162572015 | J179: 0.002971760529 | K179: 0.08031122606 | L179: 0.9050912933 | M179: 0.001469336905 | O179: 0.005092430793 | P179: 1 | Q179: 0.005092430793 | R179: 0.005092430793 | S179: 0.005092430793 | U179: 201 | V179: 5.426066218 | W179: 0.007972719342 | X179: 4.060052148e-05 | Y179: 0.04029116391 | Z179: 0.0002051799638 | AA179: 1239.806873 | AB179: 6.313630698
H180: 177 | I180: =MMULT(_xlfn.ANCHORARRAY(I179),_xlfn.ANCHORARRAY($B$3)) -> 0.01134786519 | J180: 0.00290073539 | K180: 0.07902617347 | L180: 0.906725226 | M180: 0.00144575365 | O180: 0.004941926718 | P180: 1 | Q180: 0.004941926718 | R180: 0.004941926718 | S180: 0.004941926718 | U180: 202 | V180: 5.426066218 | W180: 0.007844755039 | X180: 3.876820452e-05 | Y180: 0.03964068727 | Z180: 0.0001959013715 | AA180: 1219.691274 | AB180: 6.027624894
H181: 178 | I181: =MMULT(_xlfn.ANCHORARRAY(I180),_xlfn.ANCHORARRAY($B$3)) -> 0.01107665097 | J181: 0.002831407753 | K181: 0.07775927195 | L181: 0.9083326693 | M181: 0.001422505648 | O181: 0.00479587071 | P181: 1 | Q181: 0.00479587071 | R181: 0.00479587071 | S181: 0.00479587071 | U181: 203 | V181: 5.426066218 | W181: 0.007718609843 | X181: 3.701745487e-05 | Y181: 0.03899956945 | Z181: 0.0001870368928 | AA181: 1199.868012 | AB181: 5.754411856
H182: 179 | I182: =MMULT(_xlfn.ANCHORARRAY(I181),_xlfn.ANCHORARRAY($B$3)) -> 0.01081191878 | J182: 0.002763737048 | K182: 0.07651033643 | L182: 0.9099140077 | M182: 0.00139958941 | O182: 0.00465413131 | P182: 1 | Q182: 0.00465413131 | R182: 0.00465413131 | S182: 0.00465413131 | U182: 204 | V182: 5.426066218 | W182: 0.007594264815 | X182: 3.534470565e-05 | Y182: 0.0383677093 | Z182: 0.0001785683572 | AA182: 1180.333832 | AB182: 5.493428645
H183: 180 | I183: =MMULT(_xlfn.ANCHORARRAY(I182),_xlfn.ANCHORARRAY($B$3)) -> 0.0105535137 | J183: 0.002697683674 | K183: 0.07527918134 | L183: 0.9114696213 | M183: 0.001377001438 | O183: 0.004516580943 | P183: 1 | Q183: 0.004516580943 | R183: 0.004516580943 | S183: 0.004516580943 | U183: 205 | V183: 5.426066218 | W183: 0.007471700983 | X183: 3.374654227e-05 | Y183: 0.03774500567 | Z183: 0.0001704783733 | AA183: 1161.085482 | AB183: 5.244136562
H184: 181 | I184: =MMULT(_xlfn.ANCHORARRAY(I183),_xlfn.ANCHORARRAY($B$3)) -> 0.0103012845 | J184: 0.002633208978 | K184: 0.07406562071 | L184: 0.9129998858 | M184: 0.001354738232 | O184: 0.004383095803 | P184: 1 | Q184: 0.004383095803 | R184: 0.004383095803 | S184: 0.004383095803 | U184: 206 | V184: 5.426066218 | W184: 0.007350899354 | X184: 3.221969611e-05 | Y184: 0.03713135743 | Z184: 0.0001627502969 | AA184: 1142.119716 | AB184: 5.006020131
H185: 182 | I185: =MMULT(_xlfn.ANCHORARRAY(I184),_xlfn.ANCHORARRAY($B$3)) -> 0.01005508358 | J185: 0.002570275228 | K185: 0.07286946828 | L185: 0.9145051729 | M185: 0.001332796289 | O185: 0.004253555745 | P185: 1 | Q185: 0.004253555745 | R185: 0.004253555745 | S185: 0.004253555745 | U185: 207 | V185: 5.426066218 | W185: 0.007231840921 | X185: 3.07610385e-05 | Y185: 0.03652666353 | Z185: 0.0001553681995 | AA185: 1123.433292 | AB185: 4.778586134
H186: 183 | I186: =MMULT(_xlfn.ANCHORARRAY(I185),_xlfn.ANCHORARRAY($B$3)) -> 0.009814766872 | J186: 0.002508845596 | K186: 0.0716905376 | L186: 0.9159858499 | M186: 0.001311172106 | O186: 0.004127844174 | P186: 1 | Q186: 0.004127844174 | R186: 0.004127844174 | S186: 0.004127844174 | U186: 208 | V186: 5.426066218 | W186: 0.007114506673 | X186: 2.936757492e-05 | Y186: 0.03593082308 | Z186: 0.0001483168387 | AA186: 1105.02298 | AB186: 4.561362671
H187: 184 | I187: =MMULT(_xlfn.ANCHORARRAY(I186),_xlfn.ANCHORARRAY($B$3)) -> 0.009580193737 | J187: 0.002448884133 | K187: 0.07052864216 | L187: 0.91744228 | M187: 0.001289862181 | O187: 0.004005847942 | P187: 1 | Q187: 0.004005847942 | R187: 0.004005847942 | S187: 0.004005847942 | U187: 209 | V187: 5.426066218 | W187: 0.006998877606 | X187: 2.803643946e-05 | Y187: 0.03534373534 | Z187: 0.0001415816295 | AA187: 1086.885556 | AB187: 4.353898269
H188: 185 | I188: =MMULT(_xlfn.ANCHORARRAY(I187),_xlfn.ANCHORARRAY($B$3)) -> 0.009351226905 | J188: 0.002390355751 | K188: 0.06938359542 | L188: 0.9188748219 | M188: 0.001268863013 | O188: 0.003887457243 | P188: 1 | Q188: 0.003887457243 | R188: 0.003887457243 | S188: 0.003887457243 | U188: 210 | V188: 5.426066218 | W188: 0.00688493473 | X188: 2.676488939e-05 | Y188: 0.03476529979 | Z188: 0.0001351486165 | AA188: 1069.017808 | AB188: 4.155761021
H189: 186 | I189: =MMULT(_xlfn.ANCHORARRAY(I188),_xlfn.ANCHORARRAY($B$3)) -> 0.009127732386 | J189: 0.002333226198 | K189: 0.06825521093 | L189: 0.9202838305 | M189: 0.001248171107 | O189: 0.003772565519 | P189: 1 | Q189: 0.003772565519 | R189: 0.003772565519 | S189: 0.003772565519 | U189: 211 | V189: 5.426066218 | W189: 0.006772659077 | X189: 2.55503001e-05 | Y189: 0.03419541615 | Z189: 0.0001290044479 | AA189: 1051.416533 | AB189: 3.96653776
H190: 187 | I190: =MMULT(_xlfn.ANCHORARRAY(I189),_xlfn.ANCHORARRAY($B$3)) -> 0.00890957939 | J190: 0.002277462043 | K190: 0.06714330243 | L190: 0.9216696561 | M190: 0.001227782973 | O190: 0.003661069358 | P190: 1 | Q190: 0.003661069358 | R190: 0.003661069358 | S190: 0.003661069358 | U190: 212 | V190: 5.426066218 | W190: 0.006662031711 | X190: 2.439016016e-05 | Y190: 0.03363398445 | Z190: 0.0001231363498 | AA190: 1034.078543 | AB190: 3.785833269
H191: 188 | I191: =MMULT(_xlfn.ANCHORARRAY(I190),_xlfn.ANCHORARRAY($B$3)) -> 0.008696640255 | J191: 0.002223030652 | K191: 0.0660476839 | L191: 0.9230326452 | M191: 0.001207695128 | O191: 0.003552868406 | P191: 1 | Q191: 0.003552868406 | R191: 0.003552868406 | S191: 0.003552868406 | U191: 213 | V191: 5.426066218 | W191: 0.006553033735 | X191: 2.328206652e-05 | Y191: 0.03308090501 | Z191: 0.0001175321023 | AA191: 1017.000662 | AB191: 3.61326952
H192: 189 | I192: =MMULT(_xlfn.ANCHORARRAY(I191),_xlfn.ANCHORARRAY($B$3)) -> 0.00848879037 | J192: 0.002169900173 | K192: 0.06496816968 | L192: 0.9243731398 | M192: 0.001187904098 | O192: 0.003447865276 | P192: 1 | Q192: 0.003447865276 | R192: 0.003447865276 | S192: 0.003447865276 | U192: 214 | V192: 5.426066218 | W192: 0.006445646297 | X192: 2.222372005e-05 | Y192: 0.03253607853 | Z192: 0.0001121800154 | AA192: 1000.179727 | AB192: 3.448484949
H193: 190 | I193: =MMULT(_xlfn.ANCHORARRAY(I192),_xlfn.ANCHORARRAY($B$3)) -> 0.008285908101 | J193: 0.002118039513 | K193: 0.06390457447 | L193: 0.9256914779 | M193: 0.001168406419 | O193: 0.003345965457 | P193: 1 | Q193: 0.003345965457 | R193: 0.003345965457 | S193: 0.003345965457 | U193: 215 | V193: 5.426066218 | W193: 0.006339850597 | X193: 2.12129211e-05 | Y193: 0.0319994061 | Z193: 0.0001070689075 | AA193: 983.6125913 | AB193: 3.291133754
H194: 191 | I194: =MMULT(_xlfn.ANCHORARRAY(I193),_xlfn.ANCHORARRAY($B$3)) -> 0.008087874724 | J194: 0.002067418324 | K194: 0.06285671348 | L194: 0.9269879935 | M194: 0.001149198636 | O194: 0.003247077234 | P194: 1 | Q194: 0.003247077234 | R194: 0.003247077234 | S194: 0.003247077234 | U194: 216 | V194: 5.426066218 | W194: 0.006235627897 | X194: 2.024756538e-05 | Y194: 0.03147078921 | Z194: 0.0001021880832 | AA194: 967.2961249 | AB194: 3.140885225
H195: 192 | I195: =MMULT(_xlfn.ANCHORARRAY(I194),_xlfn.ANCHORARRAY($B$3)) -> 0.007894574348 | J195: 0.002018006983 | K195: 0.06182440245 | L195: 0.9282630162 | M195: 0.001130277308 | O195: =EXP(-r_H * H195) -> 0.003151111598 | P195: 1 | Q195: 0.003151111598 | R195: =EXP(-r_C * H195) -> 0.003151111598 | S195: 0.003151111598 | U195: 217 | V195: 5.426066218 | W195: 0.006132959521 | X195: =W195*Q195 -> 1.932563988e-05 | Y195: 0.0309501298 | Z195: =Y195*Q195 -> 9.752731299e-05 | AA195: 951.2272134 | AB195: =AA195*S195 -> 2.997423105
H196: 193 | I196: =MMULT(_xlfn.ANCHORARRAY(I195),_xlfn.ANCHORARRAY($B$3)) -> 0.007705893855 | J196: 0.001969776574 | K196: 0.06080745774 | L196: 0.9295168718 | M196: 0.001111639008 | O196: 0.003057982176 | P196: 1 | Q196: =O196*P196 -> 0.003057982176 | R196: 0.003057982176 | S196: =R196*P196 -> 0.003057982176 | U196: =Delta_t*H196+age0 -> 218 | V196: =(1/r_H)*(1 - EXP(-r_H*LOOKUP(U196,$A$18:$B$38))) -> 5.426066218 | W196: =V196*M196 -> 0.006031826867 | X196: 1.844521905e-05 | Y196: 0.03043733029 | Z196: 9.307681353e-05 | AA196: 935.4027601 | AB196: 2.860444968
H197: 194 | I197: =MMULT(_xlfn.ANCHORARRAY(I196),_xlfn.ANCHORARRAY($B$3)) -> 0.007521722829 | J197: 0.001922698872 | K197: 0.05980569635 | L197: 0.930749882 | M197: 0.00109328032 | O197: 0.002967605145 | P197: 1 | Q197: 0.002967605145 | R197: 0.002967605145 | S197: 0.002967605145 | U197: 219 | V197: 5.426066218 | W197: 0.005932211411 | X197: 1.76044611e-05 | Y197: 0.0299322936 | Z197: 8.882722848e-05 | AA197: 919.8196863 | AB197: 2.729661633
H198: 195 | I198: =MMULT(_xlfn.ANCHORARRAY(I197),_xlfn.ANCHORARRAY($B$3)) -> 0.007341953496 | J198: 0.001876746329 | K198: 0.05881893602 | L198: 0.9319623642 | M198: 0.001075197846 | O198: 0.002879899158 | P198: 1 | Q198: 0.002879899158 | R198: 0.002879899158 | S198: 0.002879899158 | U198: 220 | V198: 5.426066218 | W198: 0.005834094709 | X198: 1.680160444e-05 | Y198: 0.02943492316 | Z198: 8.476961042e-05 | AA198: 904.4749326 | AB198: 2.604796597
H199: 196 | I199: =MMULT(_xlfn.ANCHORARRAY(I198),_xlfn.ANCHORARRAY($B$3)) -> 0.007166480653 | J199: 0.001831892052 | K199: 0.05784699527 | L199: 0.933154632 | M199: 0.001057388203 | O199: 0.002794785275 | P199: 1 | Q199: 0.002794785275 | R199: 0.002794785275 | S199: 0.002794785275 | U199: 221 | V199: 5.426066218 | W199: 0.005737458408 | X199: 1.603496427e-05 | Y199: 0.02894512295 | Z199: 8.089540342e-05 | AA199: 889.3654586 | AB199: 2.485585488
H200: =H199+1 -> 197 | I200: =MMULT(_xlfn.ANCHORARRAY(I199),_xlfn.ANCHORARRAY($B$3)) -> 0.006995201614 | J200: 0.001788109793 | K200: 0.05688969346 | L200: 0.9343269951 | M200: 0.001039848026 | O200: 0.002712186887 | P200: 1 | Q200: 0.002712186887 | R200: 0.002712186887 | S200: 0.002712186887 | U200: 222 | V200: 5.426066218 | W200: 0.005642284245 | X200: 1.530292934e-05 | Y200: 0.02846279754 | Z200: 7.719642627e-05 | AA200: 874.4882444 | AB200: 2.37177555
... 303 more rows

Sheet Approach 1 - A
H1: Markov Trace | O1: Cycle Adjustments | U1: Outcomes
A2: Transition Probability Matrix | B2: H | C2: S1 | D2: S2 | E2: DS | F2: DOC | H2: Cycle | I2: H | J2: S1 | K2: S2 | L2: DS | M2: DOC | O2: Cycle Discount Rate (Health Outcomes) | P2: Cycle Correction | Q2: Total Cycle Correction (Health) | R2: Cycle Discount Rate | S2: Total Cycle Correction (Cost) | U2: Age in Model | V2: Remaining Life Expectancy (present value at cycle t) | W2: New Cause-Specific Deaths | X2: YLL_t (not fully discounted) | Y2: YLL_t (fully discounted) | Z2: YLD_t (not discounted) | AA2: YLD_t ( discounted) | AB2: Cost (not discounted) | AC2: Cost (discounted)
A3: H | B3: =m_P_A -> 0.8870041371 | C3: 0.104476433 | D3: 0.006245097469 | E3: 0.0002763311125 | F3: 0.001998001333 | H3: 0 | I3: =n_cohort -> 1 | J3: 0 | K3: 0 | L3: 0 | M3: 0 | O3: =EXP(-r_H * H3) -> 1 | P3: 0.5 | Q3: =O3*P3 -> 0.5 | R3: =EXP(-r_C * H3) -> 1 | S3: =R3*P3 -> 0.5 | U3: =age0 -> 25 | V3: =(1/r_disc_h)*(1 - EXP(-r_disc_h*LOOKUP(U3,$A$18:$B$38))) -> 28.46827411 | W3: 0 | X3: =W3*V3 -> 0 | Y3: =X3*Q3 -> 0 | Z3: =MMULT(I3:M503,C10:C14) -> 0 | AA3: =Z3*Q3 -> 0 | AB3: =MMULT(I3:M503,B10:B14) -> 2000 | AC3: =AB3*S3 -> 1000
A4: S1 | B4: 0.3482547765 | C4: 0.5665531562 | D4: 0.07937860054 | E4: 0.003815465436 | F4: 0.001998001333 | H4: =H3+1 -> 1 | I4: =MMULT(I3:$M$3,_xlfn.ANCHORARRAY($B$3)) -> 0.8870041371 | J4: 0.104476433 | K4: 0.006245097469 | L4: 0.0002763311125 | M4: 0.001998001333 | O4: 0.9704455335 | P4: 1 | Q4: =O4*P4 -> 0.9704455335 | R4: 0.9704455335 | S4: =R4*P4 -> 0.9704455335 | U4: =Delta_t*H4+age0 -> 26 | V4: =(1/r_H)*(1 - EXP(-r_H*LOOKUP(U4,$A$18:$B$38))) -> 28.46827411 | W4: =L4-L3 -> 0.0002763311125 | X4: =W4*V4 -> 0.007866669857 | Y4: 0.007634174627 | Z4: 0.008222417448 | AA4: 0.007979408288 | AB4: 3614.248833 | AC4: =AB4*S4 -> 3507.431637
A5: S2 | B5: 0 | C5: 0 | D5: 0.9800199867 | E5: 0.01798201199 | F5: 0.001998001333 | H5: =H4+1 -> 2 | I5: =MMULT(_xlfn.ANCHORARRAY(I4),_xlfn.ANCHORARRAY($B$3)) -> 0.8231607561 | J5: 0.1518624811 | K5: 0.01995294067 | L5: 0.001032363589 | M5: 0.003991458546 | O5: 0.9417645336 | P5: 1 | Q5: 0.9417645336 | R5: 0.9417645336 | S5: 0.9417645336 | U5: 27 | V5: 28.46827411 | W5: 0.0007560324764 | X5: 0.02152293978 | Y5: 0.02026954134 | Z5: 0.01730866626 | AA5: 0.01630068801 | AB5: 4614.850608 | AC5: 4346.10263
A6: DS | B6: 0 | C6: 0 | D6: 0 | E6: 1 | F6: 0 | H6: =H5+1 -> 3 | I6: =MMULT(_xlfn.ANCHORARRAY(I5),_xlfn.ANCHORARRAY($B$3)) -> 0.7830338306 | J6: 0.1720390675 | K6: 0.03674963102 | L6: 0.002198048582 | M6: 0.005979422275 | O6: 0.9139311853 | P6: 1 | Q6: 0.9139311853 | R6: 0.9139311853 | S6: 0.9139311853 | U6: 28 | V6: 28.46827411 | W6: 0.001165684994 | X6: 0.03318503993 | Y6: 0.03032884287 | Z6: 0.0265761337 | AA6: 0.02428875737 | AB6: 5310.932779 | AC6: 4853.82709
A7: DOC | B7: 0 | C7: 0 | D7: 0 | E7: 0 | F7: 1 | H7: =H6+1 -> 4 | I7: =MMULT(_xlfn.ANCHORARRAY(I6),_xlfn.ANCHORARRAY($B$3)) -> 0.7544676743 | J7: 0.1792778582 | K7: 0.05456171592 | L7: 0.003731666614 | M7: 0.00796108501 | O7: 0.8869204367 | P7: 1 | Q7: 0.8869204367 | R7: 0.8869204367 | S7: 0.8869204367 | U7: 29 | V7: 28.46827411 | W7: 0.001533618031 | X7: 0.0436594585 | Y7: 0.038722466 | Z7: 0.03570647579 | AA7: 0.0316688031 | AB7: 5850.547409 | AC7: 5188.970063
H8: =H7+1 -> 5 | I8: =MMULT(_xlfn.ANCHORARRAY(I7),_xlfn.ANCHORARRAY($B$3)) -> 0.7316503188 | J8: 0.1803945278 | K8: 0.07241412176 | L8: 0.005605307407 | M8: 0.00993572421 | O8: 0.8607079764 | P8: 1 | Q8: 0.8607079764 | R8: 0.8607079764 | S8: 0.8607079764 | U8: 30 | V8: 27.68890127 | W8: 0.001873640793 | X8: 0.05187905493 | Y8: 0.04465271639 | Z8: 0.0445551189 | AA8: 0.03834894623 | AB8: 6304.79437 | AC8: 5426.586804
A9: Payoffs | B9: Cost | C9: YLD | H9: 6 | I9: =MMULT(_xlfn.ANCHORARRAY(I8),_xlfn.ANCHORARRAY($B$3)) -> 0.7118001157 | J9: 0.1786433046 | K9: 0.08985597936 | L9: 0.007797925845 | M9: 0.01190267454 | O9: 0.8352702114 | P9: 1 | Q9: 0.8352702114 | R9: 0.8352702114 | S9: 0.8352702114 | U9: 31 | V9: 27.68890127 | W9: 0.002192618438 | X9: 0.06071119545 | Y9: 0.05071025306 | Z9: 0.05306027137 | AA9: 0.04431966409 | AB9: 6708.004547 | AC9: 5602.996376
A10: H | B10: =c_H -> 2000 | C10: 0 | H10: 7 | I10: =MMULT(_xlfn.ANCHORARRAY(I9),_xlfn.ANCHORARRAY($B$3)) -> 0.6935830315 | J10: 0.1755772651 | K10: 0.1066863723 | L10: 0.01029201702 | M10: 0.01386131405 | O10: 0.810584246 | P10: 1 | Q10: 0.810584246 | R10: 0.810584246 | S10: 0.810584246 | U10: 32 | V10: 27.68890127 | W10: 0.00249409117 | X10: 0.06905864416 | Y10: 0.05597784901 | Z10: 0.0611994675 | AA10: 0.04960732422 | AB10: 7076.934357 | AC10: 5736.451499
A11: S1 | B11: =c_S1+c_trtA -> 16000 | C11: =dw_trtA*(1/r_H)*(1-EXP(-r_H))*Delta_t -> 0.04925744409 | H11: 8 | I11: =MMULT(_xlfn.ANCHORARRAY(I10),_xlfn.ANCHORARRAY($B$3)) -> 0.6763566396 | J11: 0.1719369348 | K11: 0.1228233484 | L11: 0.0130720202 | M11: 0.01581105699 | O11: 0.7866278611 | P11: 1 | Q11: 0.7866278611 | R11: 0.7866278611 | S11: 0.7866278611 | U11: 33 | V11: 27.68890127 | W11: 0.002780003183 | X11: 0.07697523366 | Y11: 0.06055086341 | Z11: 0.06896881611 | AA11: 0.05425279229 | AB11: 7419.934642 | AC11: 5836.727317
A12: S2 | B12: =c_S2+c_trtA -> 27000 | C12: =dw_S2*(1/r_H)*(1-EXP(-r_H))*Delta_t -> 0.4925744409 | H12: 9 | I12: =MMULT(_xlfn.ANCHORARRAY(I11),_xlfn.ANCHORARRAY($B$3)) -> 0.6598089963 | J12: 0.1680747422 | K12: 0.1382413627 | L12: 0.01612354894 | M12: 0.0177513499 | O12: 0.7633794943 | P12: 1 | Q12: 0.7633794943 | R12: 0.7633794943 | S12: 0.7633794943 | U12: 34 | V12: 27.68890127 | W12: 0.003051528738 | X12: 0.08449347795 | Y12: 0.06450058847 | Z12: 0.07637309413 | AA12: 0.05830165398 | AB12: 7741.330659 | AC12: 5909.573084
A13: DS | B13: =c_D -> 0 | C13: 0 | H13: 10 | I13: =MMULT(_xlfn.ANCHORARRAY(I12),_xlfn.ANCHORARRAY($B$3)) -> 0.6437861412 | J13: 0.164157766 | K13: 0.1529414077 | L13: 0.0194330159 | M13: 0.01968166914 | O13: 0.7408182207 | P13: 1 | Q13: 0.7408182207 | R13: 0.7408182207 | S13: 0.7408182207 | U13: 35 | V13: 26.78651299 | W13: 0.003309466965 | X13: 0.08864907984 | Y13: 0.06567285359 | Z13: 0.08342102036 | AA13: 0.06179981187 | AB13: 8043.514547 | AC13: 5958.782134
A14: DOC | B14: =c_D -> 0 | C14: 0 | H14: 11 | I14: =MMULT(_xlfn.ANCHORARRAY(I13),_xlfn.ANCHORARRAY($B$3)) -> 0.6282096968 | J14: 0.1602645801 | K14: 0.1669367573 | L14: 0.02298744655 | M14: 0.02160151928 | O14: 0.7189237334 | P14: 1 | Q14: 0.7189237334 | R14: 0.7189237334 | S14: 0.7189237334 | U14: 36 | V14: 26.78651299 | W14: 0.00355443065 | X14: 0.09521080279 | Y14: 0.0684493058 | Z14: 0.09012300346 | AA14: 0.06479156612 | AB14: 8327.945121 | AC14: 5987.157398
H15: 12 | I15: =MMULT(_xlfn.ANCHORARRAY(I14),_xlfn.ANCHORARRAY($B$3)) -> 0.6130375056 | J15: 0.1564315119 | K15: 0.1802461675 | L15: 0.02677438317 | M15: 0.0235104318 | O15: 0.6976763261 | P15: 1 | Q15: 0.6976763261 | R15: 0.6976763261 | S15: 0.6976763261 | U15: 37 | V15: 26.78651299 | W15: 0.003786936622 | X15: 0.101438827 | Y15: 0.07077146815 | Z15: 0.09649007163 | AA15: 0.06731883868 | AB15: 8595.625725 | AC15: 5996.964576
A16: Reference Life Table | H16: 13 | I16: =MMULT(_xlfn.ANCHORARRAY(I15),_xlfn.ANCHORARRAY($B$3)) -> 0.5982448249 | J16: 0.1526747387 | K16: 0.1928906401 | L16: 0.03078183228 | M16: 0.025407964 | O16: 0.6770568745 | P16: 1 | Q16: 0.6770568745 | R16: 0.6770568745 | S16: 0.6770568745 | U16: 38 | V16: 26.78651299 | W16: 0.004007449109 | X16: 0.1073455876 | Y16: 0.07267906803 | Z16: 0.1025333666 | AA16: 0.06942092074 | AB16: 8847.332752 | AC16: 5990.147461
A17: Age | B17: LE | D17: OUTCOMES | H17: 14 | I17: =MMULT(_xlfn.ANCHORARRAY(I16),_xlfn.ANCHORARRAY($B$3)) -> 0.5838153417 | J17: 0.1490008404 | K17: 0.2048918869 | L17: 0.03499823293 | M17: 0.02729369805 | O17: 0.6570468198 | P17: 1 | Q17: 0.6570468198 | R17: 0.6570468198 | S17: 0.6570468198 | U17: 39 | V17: 26.78651299 | W17: 0.004216400651 | X17: 0.1129426708 | Y17: 0.07420862267 | Z17: 0.1082639072 | AA17: 0.07113445593 | AB17: 9083.725077 | AC17: 5968.432674
A18: 0 | B18: 88.8718951 | D18: YLL_A | E18: =SUM(Y3:Y503) -> 2.865131024 | H18: 15 | I18: =MMULT(_xlfn.ANCHORARRAY(I17),_xlfn.ANCHORARRAY($B$3)) -> 0.5697368778 | J18: 0.1454118408 | K18: 0.2162716062 | L18: 0.0394124352 | M18: 0.02916724002 | O18: 0.6376281516 | P18: 1 | Q18: 0.6376281516 | R18: 0.6376281516 | S18: 0.6376281516 | U18: 40 | V18: 25.74178092 | W18: 0.004414202267 | X18: 0.1136294277 | Y18: 0.07245332197 | Z18: 0.1136924811 | AA18: 0.07249352658 | AB18: 9305.396576 | AC18: 5933.382819
A19: 1 | B19: 88.00051053 | D19: YLD_A | E19: =SUM(AA3:AA503) -> 3.909589417 | H19: 16 | I19: =MMULT(_xlfn.ANCHORARRAY(I18),_xlfn.ANCHORARRAY($B$3)) -> 0.5559993358 | J19: 0.1419076141 | K19: 0.2270511474 | L19: 0.04401368369 | M19: 0.03102821907 | O19: 0.6187833918 | P19: 1 | Q19: 0.6187833918 | R19: 0.6187833918 | S19: 0.6187833918 | U19: 41 | V19: 25.74178092 | W19: 0.004601248494 | X19: 0.1184443307 | Y19: 0.0732913847 | Z19: 0.1188295983 | AA19: 0.0735297819 | AB19: 9512.901476 | AC19: 5886.425441
A20: 5 | B20: 84.03008056 | D20: DALY_A | E20: =E18+E19 -> 6.774720441 | H20: 17 | I20: =MMULT(_xlfn.ANCHORARRAY(I19),_xlfn.ANCHORARRAY($B$3)) -> 0.5425937155 | J20: 0.138487034 | K20: 0.2372513603 | L20: 0.04879160366 | M20: 0.03287628658 | O20: 0.6004955788 | P20: 1 | Q20: 0.6004955788 | R20: 0.6004955788 | S20: 0.6004955788 | U20: 42 | V20: 25.74178092 | W20: 0.004777919967 | X20: 0.1229921691 | Y20: 0.07385625375 | Z20: 0.1236854735 | AA20: 0.07427257998 | AB20: 9706.766702 | AC20: 5828.870489
A21: 10 | B21: 79.04633476 | D21: COST_A | E21: =SUM(AC5:AC505) -> 287961.4734 | H21: 18 | I21: =MMULT(_xlfn.ANCHORARRAY(I20),_xlfn.ANCHORARRAY($B$3)) -> 0.5295116415 | J21: 0.1351485221 | K21: 0.2468925325 | L21: 0.05373618848 | M21: 0.03471111536 | O21: 0.5827482524 | P21: 1 | Q21: 0.5827482524 | R21: 0.5827482524 | S21: 0.5827482524 | U21: 43 | V21: 25.74178092 | W21: 0.004944584823 | X21: 0.1272824193 | Y21: 0.07417360738 | Z21: 0.1282700219 | AA21: 0.07474913111 | AB21: 9887.498015 | AC21: 5761.922189
A22: 15 | B22: 74.0665492 | H22: 19 | I22: =MMULT(_xlfn.ANCHORARRAY(I21),_xlfn.ANCHORARRAY($B$3)) -> 0.516745135 | J22: 0.1318903093 | K22: 0.2559943688 | L22: 0.05883778802 | M22: 0.03653239886 | O22: 0.5655254387 | P22: 1 | Q22: 0.5655254387 | R22: 0.5655254387 | S22: 0.5655254387 | U22: 44 | V22: 25.74178092 | W22: 0.005101599537 | X22: 0.1313242576 | Y22: 0.07426720842 | Z22: 0.1325928626 | AA22: 0.0749846368 | AB22: 10055.58318 | AC22: 5686.688087
A23: 20 | B23: 69.10756792 | H23: 20 | I23: =MMULT(_xlfn.ANCHORARRAY(I22),_xlfn.ANCHORARRAY($B$3)) -> 0.5042865028 | J23: 0.1287105594 | K23: 0.2645759898 | L23: 0.06408709751 | M23: 0.03833985043 | O23: 0.5488116361 | P23: 1 | Q23: 0.5488116361 | R23: 0.5488116361 | S23: 0.5488116361 | U23: 45 | V23: 24.54382935 | W23: 0.005249309485 | X23: 0.1288381562 | Y23: 0.0707078793 | Z23: 0.1366633234 | AA23: 0.07500242213 | AB23: 10211.49368 | AC23: 5604.186554
A24: 25 | B24: 64.14930031 | H24: 21 | I24: =MMULT(_xlfn.ANCHORARRAY(I23),_xlfn.ANCHORARRAY($B$3)) -> 0.4921282814 | J24: 0.1256074287 | K24: 0.2726559405 | L24: 0.06947514687 | M24: 0.04013320259 | O24: 0.532591801 | P24: 1 | Q24: 0.532591801 | R24: 0.532591801 | S24: 0.532591801 | U24: 46 | V24: 24.54382935 | W24: 0.005388049363 | X24: 0.1322433641 | Y24: 0.07043173146 | Z24: 0.1404904483 | AA24: 0.07482406089 | AB24: 10355.68581 | AC24: 5515.353358
A25: 30 | B25: 59.1962771 | H25: 22 | I25: =MMULT(_xlfn.ANCHORARRAY(I24),_xlfn.ANCHORARRAY($B$3)) -> 0.4802632086 | J25: 0.1225790926 | K25: 0.2802522021 | L25: 0.07499329042 | M25: 0.04191220629 | O25: 0.5168513345 | P25: 1 | Q25: 0.5168513345 | R25: 0.5168513345 | S25: 0.5168513345 | U25: 47 | V25: 24.54382935 | W25: 0.00551814355 | X25: 0.1354363736 | Y25: 0.07000047044 | Z25: 0.1440830046 | AA25: 0.07446949318 | AB25: 10488.60136 | AC25: 5421.047607
A26: 35 | B26: 54.25261364 | H26: 23 | I26: =MMULT(_xlfn.ANCHORARRAY(I25),_xlfn.ANCHORARRAY($B$3)) -> 0.4686842074 | J26: 0.1196237587 | K26: 0.2873822068 | L26: 0.08063319684 | M26: 0.04367663029 | O26: 0.5015760691 | P26: 1 | Q26: 0.5015760691 | R26: 0.5015760691 | S26: 0.5015760691 | U26: 48 | V26: 24.54382935 | W26: 0.005639906417 | X26: 0.1384249007 | Y26: 0.06943061754 | Z26: 0.1474494904 | AA26: 0.07395713579 | AB26: 10610.66814 | AC26: 5322.057214
A27: 40 | B27: 49.31739311 | H27: 24 | I27: =MMULT(_xlfn.ANCHORARRAY(I26),_xlfn.ANCHORARRAY($B$3)) -> 0.4573843763 | J27: 0.1167396722 | K27: 0.2940628516 | L27: 0.08638683947 | M27: 0.04542626042 | O27: 0.486752256 | P27: 1 | Q27: 0.486752256 | R27: 0.486752256 | S27: 0.486752256 | U27: 49 | V27: 24.54382935 | W27: 0.005753642634 | X27: 0.141216423 | Y27: 0.06873741245 | Z27: 0.1505981426 | AA27: 0.07330398563 | AB27: 10722.3005 | AC27: 5219.103957
A28: 45 | B28: 44.43332057 | H28: 25 | I28: =MMULT(_xlfn.ANCHORARRAY(I27),_xlfn.ANCHORARRAY($B$3)) -> 0.4463569825 | J28: 0.1139251179 | K28: 0.3003105137 | L28: 0.09224648691 | M28: 0.047160899 | O28: 0.4723665527 | P28: 1 | Q28: 0.4723665527 | R28: 0.4723665527 | S28: 0.4723665527 | U28: 50 | V28: 23.18290646 | W28: 0.005859647441 | X28: 0.1358436585 | Y28: 0.06416800068 | Z28: 0.1535369435 | AA28: 0.07252571671 | AB28: 10823.89972 | AC28: 5112.848198
A29: 50 | B29: 39.63473787 | H29: 26 | I29: =MMULT(_xlfn.ANCHORARRAY(I28),_xlfn.ANCHORARRAY($B$3)) -> 0.4355954566 | J29: 0.1111784205 | K29: 0.3061410649 | L29: 0.09820469384 | M29: 0.04888036419 | O29: 0.4584060113 | P29: 1 | Q29: 0.4584060113 | R29: 0.4584060113 | S29: 0.4584060113 | U29: 51 | V29: 23.18290646 | W29: 0.00595820693 | X29: 0.1381285539 | Y29: 0.06331895945 | Z29: 0.1562736287 | AA29: 0.0716367708 | AB29: 10915.85439 | AC29: 5003.893272
A30: 55 | B30: 34.91488095 | H30: 27 | I30: =MMULT(_xlfn.ANCHORARRAY(I29),_xlfn.ANCHORARRAY($B$3)) -> 0.4250933881 | J30: 0.1084979445 | K30: 0.3115698858 | L30: 0.1042542921 | M30: 0.05058448938 | O30: 0.4448580662 | P30: 1 | Q30: 0.4448580662 | R30: 0.4448580662 | S30: 0.4448580662 | U30: 52 | V30: 23.18290646 | W30: 0.006049598298 | X30: 0.1402472715 | Y30: 0.06239012998 | Z30: 0.1588156937 | AA30: 0.07065044241 | AB30: 10998.54081 | AC30: 4892.789594
A31: 60 | B31: 30.25343822 | H31: 28 | I31: =MMULT(_xlfn.ANCHORARRAY(I30),_xlfn.ANCHORARRAY($B$3)) -> 0.4148445213 | J31: 0.1058820938 | K31: 0.31661188 | L31: 0.1103883822 | M31: 0.05227312262 | O31: 0.4317105234 | P31: 1 | Q31: 0.4317105234 | R31: 0.4317105234 | S31: 0.4317105234 | U31: 53 | V31: 23.18290646 | W31: 0.00613409011 | X31: 0.1422060372 | Y31: 0.06139184277 | Z31: 0.1611704011 | AA31: 0.06957895821 | AB31: 11072.3233 | AC31: 4780.038489
A32: 65 | B32: 25.68089534 | H32: 29 | I32: =MMULT(_xlfn.ANCHORARRAY(I31),_xlfn.ANCHORARRAY($B$3)) -> 0.4048427516 | J32: 0.1033293102 | K32: 0.3212814873 | L32: 0.1166003248 | M32: 0.05394612605 | O32: 0.4189515492 | P32: 1 | Q32: 0.4189515492 | R32: 0.4189515492 | S32: 0.4189515492 | U32: 54 | V32: 23.18290646 | W32: 0.006211942541 | X32: 0.1440108829 | Y32: 0.06033358248 | Z32: 0.1633447867 | AA32: 0.06843355145 | AB32: 11137.55462 | AC32: 4666.095765
A33: 70 | B33: 21.28820012 | H33: 30 | I33: =MMULT(_xlfn.ANCHORARRAY(I32),_xlfn.ANCHORARRAY($B$3)) -> 0.3950821214 | J33: 0.1008380734 | K33: 0.3255926974 | L33: 0.1228837324 | M33: 0.05560337535 | O33: 0.4065696597 | P33: 1 | Q33: 0.4065696597 | R33: 0.4065696597 | S33: 0.4065696597 | U33: 55 | V33: 21.63891726 | W33: 0.006283407618 | X33: 0.1359661376 | Y33: 0.0552797063 | Z33: 0.1653456666 | AA33: 0.06722453143 | AB33: 11194.57625 | AC33: 4551.375056
A34: 75 | B34: 17.10351469 | H34: 31 | I34: =MMULT(_xlfn.ANCHORARRAY(I33),_xlfn.ANCHORARRAY($B$3)) -> 0.3855568169 | J34: 0.09840689953 | K34: 0.3295590625 | L34: 0.1292324619 | M34: 0.0572447592 | O34: 0.3945537104 | P34: 1 | Q34: 0.3945537104 | R34: 0.3945537104 | S34: 0.3945537104 | U34: 56 | V34: 21.63891726 | W34: 0.006348729456 | X34: 0.1373796314 | Y34: 0.05420364331 | Z34: 0.1671796433 | AA34: 0.06596134856 | AB34: 11243.71871 | AC34: 4436.250937
A35: 80 | B35: 13.23872477 | H35: 32 | I35: =MMULT(_xlfn.ANCHORARRAY(I34),_xlfn.ANCHORARRAY($B$3)) -> 0.3762611645 | J35: 0.09603434045 | K35: 0.3331937099 | L35: 0.1356406063 | M35: 0.0588701788 | O35: 0.382892886 | P35: 1 | Q35: 0.382892886 | R35: 0.382892886 | S35: 0.382892886 | U35: 57 | V35: 21.63891726 | W35: 0.006408144482 | X35: 0.1386653083 | Y35: 0.05309396007 | Z35: 0.1688531115 | AA35: 0.06465265517 | AB35: 11285.30194 | AC35: 4321.06183
A36: 85 | B36: 9.990181244 | H36: 33 | I36: =MMULT(_xlfn.ANCHORARRAY(I35),_xlfn.ANCHORARRAY($B$3)) -> 0.3671896273 | J36: 0.09371898301 | K36: 0.3365093543 | L36: 0.142102488 | M36: 0.06047954732 | O36: 0.371576691 | P36: 1 | Q36: 0.371576691 | R36: 0.371576691 | S36: 0.371576691 | U36: 58 | V36: 21.63891726 | W36: 0.006461881661 | X36: 0.1398281226 | Y36: 0.05195687112 | Z36: 0.1703722646 | AA36: 0.06330636233 | AB36: 11319.63555 | AC36: 4206.112721
A37: 90 | B37: 7.617724915 | H37: 34 | I37: =MMULT(_xlfn.ANCHORARRAY(I36),_xlfn.ANCHORARRAY($B$3)) -> 0.358336802 | J37: 0.0914594481 | K37: 0.3395183097 | L37: 0.1486126507 | M37: 0.06207278948 | O37: 0.3605949402 | P37: 1 | Q37: 0.3605949402 | R37: 0.3605949402 | S37: 0.3605949402 | U37: 59 | V37: 21.63891726 | W37: 0.006510162704 | X37: 0.1408728721 | Y37: 0.0507980449 | Z37: 0.1717431002 | AA37: 0.06192969294 | AB37: 11347.01913 | AC37: 4091.677686
A38: 95 | B38: 5.922359078 | H38: 35 | I38: =MMULT(_xlfn.ANCHORARRAY(I37),_xlfn.ANCHORARRAY($B$3)) -> 0.3496974156 | J38: 0.08925438986 | K38: 0.3422325006 | L38: 0.155165853 | M38: 0.06364984102 | O38: 0.3499377491 | P38: 1 | Q38: 0.3499377491 | R38: 0.3499377491 | S38: 0.3499377491 | U38: 60 | V38: 19.88366091 | W38: 0.006553202287 | X38: 0.1303016521 | Y38: 0.04559746685 | Z38: 0.1729714257 | AA38: 0.06052923138 | AB38: 11367.74258 | AC38: 3978.002252
H39: 36 | I39: =MMULT(_xlfn.ANCHORARRAY(I38),_xlfn.ANCHORARRAY($B$3)) -> 0.3412663219 | J39: 0.08710249487 | K39: 0.3446634737 | L39: 0.1617570612 | M39: 0.06521064831 | O39: 0.3395955256 | P39: 1 | Q39: 0.3395955256 | R39: 0.3395955256 | S39: 0.3395955256 | U39: 61 | V39: 19.88366091 | W39: 0.006591208245 | X39: 0.1310573497 | Y39: 0.04450648957 | Z39: 0.1740628641 | AA39: 0.05911096983 | AB39: 11382.08635 | AC39: 3865.305597
H40: 37 | I40: =MMULT(_xlfn.ANCHORARRAY(I39),_xlfn.ANCHORARRAY($B$3)) -> 0.3330384993 | J40: 0.08500248138 | K40: 0.3468224084 | L40: 0.168381443 | M40: 0.06675516785 | O40: 0.3295589611 | P40: 1 | Q40: 0.3295589611 | R40: 0.3295589611 | S40: 0.3295589611 | U40: 62 | V40: 19.88366091 | W40: 0.006624381778 | X40: 0.131716961 | Y40: 0.04340850482 | Z40: 0.1750228589 | AA40: 0.05768035154 | AB40: 11390.32173 | AC40: 3753.782595
H41: 38 | I41: =MMULT(_xlfn.ANCHORARRAY(I40),_xlfn.ANCHORARRAY($B$3)) -> 0.3250090469 | J41: 0.08295309855 | K41: 0.348720128 | L41: 0.1750343607 | M41: 0.06828336592 | O41: 0.3198190218 | P41: 1 | Q41: 0.3198190218 | R41: 0.3198190218 | S41: 0.3198190218 | U41: 63 | V41: 19.88366091 | W41: 0.006652917637 | X41: 0.1322843583 | Y41: 0.04230705409 | Z41: 0.1758566797 | AA41: 0.05624231128 | AB41: 11392.71113 | AC41: 3643.605728
H42: 39 | I42: =MMULT(_xlfn.ANCHORARRAY(I41),_xlfn.ANCHORARRAY($B$3)) -> 0.317173182 | J42: 0.08095312569 | K42: 0.3503671092 | L42: 0.181711365 | M42: 0.06979521811 | O42: 0.3103669413 | P42: 1 | Q42: 0.3103669413 | R42: 0.3103669413 | S42: 0.3103669413 | U42: 64 | V42: 19.88366091 | W42: 0.006677004316 | X42: 0.1327632897 | Y42: 0.04120533614 | Z42: 0.176569427 | AA42: 0.05480131298 | AB42: 11389.50832 | AC42: 3534.926861
H43: 40 | I43: =MMULT(_xlfn.ANCHORARRAY(I42),_xlfn.ANCHORARRAY($B$3)) -> 0.3095262373 | J43: 0.07900137154 | K43: 0.351773493 | L43: 0.1884081892 | M43: 0.07129070896 | O43: 0.3011942119 | P43: 1 | Q43: 0.3011942119 | R43: 0.3011942119 | S43: 0.3011942119 | U43: 65 | V43: 17.90615105 | W43: 0.006696824232 | X43: 0.1199143462 | Y43: 0.03611750701 | Z43: 0.1771660373 | AA43: 0.05336138497 | AB43: 11380.95873 | AC43: 3427.878896
H44: 41 | I44: =MMULT(_xlfn.ANCHORARRAY(I43),_xlfn.ANCHORARRAY($B$3)) -> 0.302063658 | J44: 0.07709667357 | K44: 0.3529490938 | L44: 0.1951207431 | M44: 0.07276983155 | O44: 0.2922925777 | P44: 1 | Q44: 0.2922925777 | R44: 0.2922925777 | S44: 0.2922925777 | U44: 66 | V44: 17.90615105 | W44: 0.006712553902 | X44: 0.1201960041 | Y44: 0.03513239986 | Z44: 0.1776512876 | AA44: 0.05192615278 | AB44: 11367.29962 | AC44: 3322.577309
H45: 42 | I45: =MMULT(_xlfn.ANCHORARRAY(I44),_xlfn.ANCHORARRAY($B$3)) -> 0.2947809992 | J45: 0.07523789726 | K45: 0.3539034092 | L45: 0.2018451072 | M45: 0.07423258715 | O45: 0.2836540265 | P45: 1 | Q45: 0.2836540265 | R45: 0.2836540265 | S45: 0.2836540265 | U45: 67 | V45: 17.90615105 | W45: 0.006724364117 | X45: 0.1204074796 | Y45: 0.0341540664 | Z45: 0.1780298004 | AA45: 0.05049886973 | AB45: 11348.7604 | AC45: 3219.121584
H46: 43 | I46: =MMULT(_xlfn.ANCHORARRAY(I45),_xlfn.ANCHORARRAY($B$3)) -> 0.2876739229 | J46: 0.07342393545 | K46: 0.3546456294 | L46: 0.2085775273 | M46: 0.07567898489 | O46: 0.2752707831 | P46: 1 | Q46: 0.2752707831 | R46: 0.2752707831 | S46: 0.2752707831 | U46: 68 | V46: 17.90615105 | W46: 0.006732420107 | X46: 0.1205517313 | Y46: 0.03318436949 | Z46: 0.178306048 | AA46: 0.04908244547 | AB46: 11325.56281 | AC46: 3117.596543
H47: 44 | I47: =MMULT(_xlfn.ANCHORARRAY(I46),_xlfn.ANCHORARRAY($B$3)) -> 0.280738196 | J47: 0.07165370769 | K47: 0.355184646 | L47: 0.215314409 | M47: 0.07710904133 | O47: 0.267135302 | P47: 1 | Q47: 0.267135302 | R47: 0.267135302 | S47: 0.267135302 | U47: 69 | V47: 17.90615105 | W47: 0.006736881705 | X47: 0.1206316214 | Y47: 0.03222496461 | Z47: 0.1784843569 | AA47: 0.04767947257 | AB47: 11297.92116 | AC47: 3018.07358
H48: 45 | I48: =MMULT(_xlfn.ANCHORARRAY(I47),_xlfn.ANCHORARRAY($B$3)) -> 0.2739696872 | J48: 0.06992615955 | K48: 0.3555290604 | L48: 0.2220523125 | M48: 0.07852278022 | O48: 0.2592402606 | P48: 1 | Q48: 0.2592402606 | R48: 0.2592402606 | S48: 0.2592402606 | U48: 70 | V48: 15.73310468 | W48: 0.006737903507 | X48: 0.1060081412 | Y48: 0.02748157815 | Z48: 0.178568912 | AA48: 0.0462922513 | AB48: 11266.04256 | AC48: 2920.611809
H49: 46 | I49: =MMULT(_xlfn.ANCHORARRAY(I48),_xlfn.ANCHORARRAY($B$3)) -> 0.2673643651 | J49: 0.06824026206 | K49: 0.3556871932 | L49: 0.2287879476 | M49: 0.07992023211 | O49: 0.2515785531 | P49: 1 | Q49: 0.2515785531 | R49: 0.2515785531 | S49: 0.2515785531 | U49: 71 | V49: 15.73310468 | W49: 0.006735635022 | X49: 0.1059724509 | Y49: 0.02666039586 | Z49: 0.1785637612 | AA49: 0.04492281267 | AB49: 11230.12714 | AC49: 2825.259136
H50: 47 | I50: =MMULT(_xlfn.ANCHORARRAY(I49),_xlfn.ANCHORARRAY($B$3)) -> 0.2609182952 | J50: 0.06659501101 | K50: 0.3556670913 | L50: 0.2355181684 | M50: 0.08130143409 | O50: 0.2441432832 | P50: 1 | Q50: 0.2441432832 | R50: 0.2441432832 | S50: 0.2441432832 | U50: 72 | V50: 15.73310468 | W50: 0.006730220827 | X50: 0.1058872688 | Y50: 0.02585166544 | Z50: 0.1784728187 | AA50: 0.0435729399 | AB50: 11190.36823 | AC50: 2732.05324
H51: 48 | I51: =MMULT(_xlfn.ANCHORARRAY(I50),_xlfn.ANCHORARRAY($B$3)) -> 0.254627638 | J51: 0.06498942645 | K51: 0.3554765371 | L51: 0.2422399691 | M51: 0.08266642944 | O51: 0.2369277587 | P51: 1 | Q51: 0.2369277587 | R51: 0.2369277587 | S51: 0.2369277587 | U51: 73 | V51: 15.73310468 | W51: 0.006721800707 | X51: 0.1057547942 | Y51: 0.02505624635 | Z51: 0.1782998695 | AA51: 0.04224418846 | AB51: 11146.9526 | AC51: 2641.022496
H52: 49 | I52: =MMULT(_xlfn.ANCHORARRAY(I51),_xlfn.ANCHORARRAY($B$3)) -> 0.2484886465 | J52: 0.06342255202 | K52: 0.3551230552 | L52: 0.2489504789 | M52: 0.08401526735 | O52: 0.2299254852 | P52: 1 | Q52: 0.2299254852 | R52: 0.2299254852 | S52: 0.2299254852 | U52: 74 | V52: 15.73310468 | W52: 0.006710509802 | X52: 0.1055771532 | Y52: 0.02427487816 | Z52: 0.1780485732 | AA52: 0.04093790458 | AB52: 11100.06062 | AC52: 2552.186823
H53: 50 | I53: =MMULT(_xlfn.ANCHORARRAY(I52),_xlfn.ANCHORARRAY($B$3)) -> 0.2424976641 | J53: 0.06189345443 | K53: 0.3546139211 | L53: 0.2556469576 | M53: 0.08534800268 | O53: 0.2231301601 | P53: 1 | Q53: 0.2231301601 | R53: 0.2231301601 | S53: 0.2231301601 | U53: 75 | V53: 13.37887774 | W53: 0.006696478738 | X53: 0.0895913703 | Y53: 0.0199905368 | Z53: 0.1777224673 | AA53: 0.03965524259 | AB53: 11049.86647 | AC53: 2465.558475
H54: 51 | I54: =MMULT(_xlfn.ANCHORARRAY(I53),_xlfn.ANCHORARRAY($B$3)) -> 0.2366511225 | J54: 0.0604012229 | K54: 0.3539561676 | L54: 0.2623267914 | M54: 0.08666469563 | O54: 0.2165356673 | P54: 1 | Q54: 0.2165356673 | R54: 0.2165356673 | S54: 0.2165356673 | U54: 76 | V54: 13.37887774 | W54: 0.006679833768 | X54: 0.08936867928 | Y54: 0.0193515066 | Z54: 0.1773249712 | AA54: 0.03839718097 | AB54: 10996.53834 | AC54: 2381.142767
H55: 52 | I55: =MMULT(_xlfn.ANCHORARRAY(I54),_xlfn.ANCHORARRAY($B$3)) -> 0.2309455391 | J55: 0.0589449686 | K55: 0.3531565925 | L55: 0.2689874883 | M55: 0.0879654115 | O55: 0.2101360712 | P55: 1 | Q55: 0.2101360712 | R55: 0.2101360712 | S55: 0.2101360712 | U55: 77 | V55: 13.37887774 | W55: 0.006660696897 | X55: 0.08911264942 | Y55: 0.01872578204 | Z55: 0.1768593896 | AA55: 0.03716453728 | AB55: 10940.23857 | AC55: 2298.938752
H56: 53 | I56: =MMULT(_xlfn.ANCHORARRAY(I55),_xlfn.ANCHORARRAY($B$3)) -> 0.2253775155 | J56: 0.05752382413 | K56: 0.3522217656 | L56: 0.2756266743 | M56: 0.08925022047 | O56: 0.2039256117 | P56: 1 | Q56: 0.2039256117 | R56: 0.2039256117 | S56: 0.2039256117 | U56: 78 | V56: 13.37887774 | W56: 0.00663918601 | X56: 0.0888248579 | Y56: 0.01811366348 | Z56: 0.1763289158 | AA56: 0.03595798202 | AB56: 10881.12389 | AC56: 2218.939845
H57: 54 | I57: =MMULT(_xlfn.ANCHORARRAY(I56),_xlfn.ANCHORARRAY($B$3)) -> 0.2199437352 | J57: 0.056136943 | K57: 0.3511580352 | L57: 0.2822420893 | M57: 0.09051919728 | O57: 0.1978986991 | P57: 1 | Q57: 0.1978986991 | R57: 0.1978986991 | S57: 0.1978986991 | U57: 79 | V57: 13.37887774 | W57: 0.006615414996 | X57: 0.0885068284 | Y57: 0.0175153862 | Z57: 0.1757366352 | AA57: 0.03477805149 | AB57: 10819.34551 | AC57: 2141.134401
H58: 55 | I58: =MMULT(_xlfn.ANCHORARRAY(I57),_xlfn.ANCHORARRAY($B$3)) -> 0.2146409616 | J58: 0.05478349914 | K58: 0.3499715351 | L58: 0.2888315832 | M58: 0.09177242106 | O58: 0.1920499086 | P58: 1 | Q58: 0.1920499086 | R58: 0.1920499086 | S58: 0.1920499086 | U58: 80 | V58: 10.9258237 | W58: 0.006589493864 | X58: 0.07199564822 | Y58: 0.01382675766 | Z58: 0.1750855283 | AA58: 0.03362515972 | AB58: 10755.04936 | AC58: 2065.506246
H59: 56 | I59: =MMULT(_xlfn.ANCHORARRAY(I58),_xlfn.ANCHORARRAY($B$3)) -> 0.2094660362 | J59: 0.05346268637 | K59: 0.3486681903 | L59: 0.295393112 | M59: 0.09300997509 | O59: 0.186373976 | P59: 1 | Q59: 0.186373976 | R59: 0.186373976 | S59: 0.186373976 | U59: 81 | V59: 10.9258237 | W59: 0.006561528864 | X59: 0.07169010756 | Y59: 0.01336117039 | Z59: 0.1743784742 | AA59: 0.03249960957 | AB59: 10688.37619 | AC59: 1992.035169
H60: 57 | I60: =MMULT(_xlfn.ANCHORARRAY(I59),_xlfn.ANCHORARRAY($B$3)) -> 0.2044158766 | J60: 0.05217371799 | K60: 0.3472537243 | L60: 0.3019247346 | M60: 0.09423194654 | O60: 0.1808657926 | P60: 1 | Q60: 0.1808657926 | R60: 0.1808657926 | S60: 0.1808657926 | U60: 82 | V60: 10.9258237 | W60: 0.006531622595 | X60: 0.07136335694 | Y60: 0.01290719012 | Z60: 0.1736182531 | AA60: 0.03140160295 | AB60: 10619.4618 | AC60: 1920.697375
H61: 58 | I61: =MMULT(_xlfn.ANCHORARRAY(I60),_xlfn.ANCHORARRAY($B$3)) -> 0.1994874747 | J61: 0.05091582622 | K61: 0.345733664 | L61: 0.3084246088 | M61: 0.09543842629 | O61: 0.1755204006 | P61: 1 | Q61: 0.1755204006 | R61: 0.1755204006 | S61: 0.1755204006 | U61: 83 | V61: 10.9258237 | W61: 0.006499874119 | X61: 0.07101647869 | Y61: 0.01246484079 | Z61: 0.1728075497 | AA61: 0.03033125036 | AB61: 10548.4371 | AC61: 1851.465905
H62: 59 | I62: =MMULT(_xlfn.ANCHORARRAY(I61),_xlfn.ANCHORARRAY($B$3)) -> 0.194677895 | J62: 0.04968826182 | K62: 0.3441133466 | L62: 0.3148909878 | M62: 0.09662950874 | O62: 0.1703329888 | P62: 1 | Q62: 0.1703329888 | R62: 0.1703329888 | S62: 0.1703329888 | U62: 84 | V62: 10.9258237 | W62: 0.006466379064 | X62: 0.07065051763 | Y62: 0.01203411383 | Z62: 0.1719489561 | AA62: 0.02928857961 | AB62: 10475.42834 | AC62: 1784.311018
H63: 60 | I63: =MMULT(_xlfn.ANCHORARRAY(I62),_xlfn.ANCHORARRAY($B$3)) -> 0.1899842728 | J63: 0.04849029361 | K63: 0.3423979244 | L63: 0.3213222176 | M63: 0.09780529157 | O63: 0.1652988882 | P63: 1 | Q63: 0.1652988882 | R63: 0.1652988882 | S63: 0.1652988882 | U63: 85 | V63: 8.632117659 | W63: 0.00643122973 | X63: 0.05551513173 | Y63: 0.009176589554 | Z63: 0.1710449741 | AA63: 0.02827354406 | AB63: 10400.5572 | AC63: 1719.200543
H64: 61 | I64: =MMULT(_xlfn.ANCHORARRAY(I63),_xlfn.ANCHORARRAY($B$3)) -> 0.1854038123 | J64: 0.04732120803 | K64: 0.3405923713 | L64: 0.3277167327 | M64: 0.09896587558 | O64: 0.1604135678 | P64: 1 | Q64: 0.1604135678 | R64: 0.1604135678 | S64: 0.1604135678 | U64: 86 | V64: 8.632117659 | W64: 0.006394515189 | X64: 0.05519820748 | Y64: 0.008854541397 | Z64: 0.1700980186 | AA64: 0.02728603004 | AB64: 10323.94098 | AC64: 1656.100206
H65: 62 | I65: =MMULT(_xlfn.ANCHORARRAY(I64),_xlfn.ANCHORARRAY($B$3)) -> 0.1809337853 | J65: 0.04618030873 | K65: 0.3387014873 | L65: 0.3340730541 | M65: 0.1001113645 | O65: 0.1556726304 | P65: 1 | Q65: 0.1556726304 | R65: 0.1556726304 | S65: 0.1556726304 | U65: 87 | V65: 8.632117659 | W65: 0.006356321381 | X65: 0.05486851404 | Y65: 0.008541525905 | Z65: 0.1691104197 | AA65: 0.02632586386 | AB65: 10245.69267 | AC65: 1594.973928
H66: 63 | I66: =MMULT(_xlfn.ANCHORARRAY(I65),_xlfn.ANCHORARRAY($B$3)) -> 0.1765715292 | J66: 0.04506691616 | K66: 0.3367299045 | L66: 0.3403897853 | M66: 0.1012418648 | O66: 0.1510718088 | P66: 1 | Q66: 0.1510718088 | R66: 0.1510718088 | S66: 0.1510718088 | U66: 88 | V66: 8.632117659 | W66: 0.006316731214 | X66: 0.05452676706 | Y66: 0.008237457329 | Z66: 0.1680844255 | AA66: 0.0253928182 | AB66: 10165.92114 | AC66: 1535.784095
H67: 64 | I67: =MMULT(_xlfn.ANCHORARRAY(I66),_xlfn.ANCHORARRAY($B$3)) -> 0.1723144457 | J67: 0.04398036712 | K67: 0.3346820917 | L67: 0.34666561 | M67: 0.1023574855 | O67: =EXP(-r_H * H67) -> 0.1466069621 | P67: 1 | Q67: 0.1466069621 | R67: =EXP(-r_C * H67) -> 0.1466069621 | S67: 0.1466069621 | U67: 89 | V67: 8.632117659 | W67: 0.00627582465 | X67: 0.05417365678 | Y67: =X67*Q67 -> 0.007942235248 | Z67: 0.1670222046 | AA67: =Z67*Q67 -> 0.02448661803 | AB67: 10084.73124 | AC67: 1478.491811
H68: 65 | I68: =MMULT(_xlfn.ANCHORARRAY(I67),_xlfn.ANCHORARRAY($B$3)) -> 0.1681599992 | J68: 0.04292001444 | K68: 0.3325623595 | L68: 0.3528992888 | M68: 0.1034583381 | O68: 0.1422740716 | P68: 1 | Q68: =O68*P68 -> 0.1422740716 | R68: 0.1422740716 | S68: =R68*P68 -> 0.1422740716 | U68: =Delta_t*H68+age0 -> 90 | V68: =(1/r_H)*(1 - EXP(-r_H*LOOKUP(U68,$A$18:$B$38))) -> 6.809965489 | W68: =L68-L67 -> 0.0062336788 | X68: =W68*V68 -> 0.0424511375 | Y68: 0.006039696175 | Z68: 0.1659258485 | AA68: 0.02360694605 | AB68: 10002.22394 | AC68: =AB68*S68 -> 1423.057124
H69: 66 | I69: =MMULT(_xlfn.ANCHORARRAY(I68),_xlfn.ANCHORARRAY($B$3)) -> 0.164105715 | J69: 0.04188522652 | K69: 0.3303748654 | L69: 0.3590896568 | M69: 0.1045445363 | O69: 0.1380692373 | P69: 1 | Q69: 0.1380692373 | R69: 0.1380692373 | S69: 0.1380692373 | U69: 91 | V69: 6.809965489 | W69: 0.006190368009 | X69: 0.04215619251 | Y69: 0.005820473347 | Z69: 0.1647973738 | AA69: 0.02275344771 | AB69: 9918.49642 | AC69: 1369.439236
H70: 67 | I70: =MMULT(_xlfn.ANCHORARRAY(I69),_xlfn.ANCHORARRAY($B$3)) -> 0.1601491783 | J70: 0.04087538702 | K70: 0.328123618 | L70: 0.3652356207 | M70: 0.1056161959 | O70: 0.1339886747 | P70: 1 | Q70: 0.1339886747 | R70: 0.1339886747 | S70: 0.1339886747 | U70: 92 | V70: 6.809965489 | W70: 0.006145963941 | X70: 0.04185380234 | Y70: 0.005607935505 | Z70: 0.1636387248 | AA70: 0.02192573586 | AB70: 9833.642236 | AC70: 1317.59669
H71: 68 | I71: =MMULT(_xlfn.ANCHORARRAY(I70),_xlfn.ANCHORARRAY($B$3)) -> 0.1562880325 | J71: 0.03988989442 | K71: 0.325812482 | L71: 0.3713361564 | M71: 0.1066734346 | O71: 0.1300287109 | P71: 1 | Q71: 0.1300287109 | R71: 0.1300287109 | S71: 0.1300287109 | U71: 93 | V71: 6.809965489 | W71: 0.006100535662 | X71: 0.04154443733 | Y71: 0.00540196963 | Z71: 0.1624517754 | AA71: 0.02112339494 | AB71: 9747.751391 | AC71: 1267.487547
H72: =H71+1 -> 69 | I72: =MMULT(_xlfn.ANCHORARRAY(I71),_xlfn.ANCHORARRAY($B$3)) -> 0.1525199777 | J72: 0.03892816173 | K72: 0.3234451823 | L72: 0.3773903061 | M72: 0.1077163722 | O72: 0.1261857817 | P72: 1 | Q72: 0.1261857817 | R72: 0.1261857817 | S72: 0.1261857817 | U72: 94 | V72: 6.809965489 | W72: 0.006054149719 | X72: 0.04122855065 | Y72: 0.005202456893 | Z72: 0.1612383316 | AA72: 0.02034598491 | AB72: 9660.910465 | AC72: 1219.069539
H73: 70 | I73: =MMULT(_xlfn.ANCHORARRAY(I72),_xlfn.ANCHORARRAY($B$3)) -> 0.1488427695 | J73: 0.03798961612 | K73: 0.3210253084 | L73: 0.3833971763 | M73: 0.1087451297 | O73: 0.1224564283 | P73: 1 | Q73: 0.1224564283 | R73: 0.1224564283 | S73: 0.1224564283 | U73: 95 | V73: 5.426066218 | W73: 0.006006870218 | X73: 0.03259367557 | Y73: 0.003991305094 | Z73: 0.1600001332 | AA73: 0.01959304483 | AB73: 9573.202723 | AC73: 1172.300212
H74: 71 | I74: =MMULT(_xlfn.ANCHORARRAY(I73),_xlfn.ANCHORARRAY($B$3)) -> 0.1452542176 | J74: 0.03707369854 | K74: 0.3185563186 | L74: 0.3893559352 | M74: 0.1097598301 | O74: 0.1188372939 | P74: 1 | Q74: 0.1188372939 | R74: 0.1188372939 | S74: 0.1188372939 | U74: 96 | V74: 5.426066218 | W74: 0.005958758901 | X74: 0.03233262037 | Y74: 0.003842321108 | Z74: 0.1587388561 | AA74: 0.01886409609 | AB74: 9484.708214 | AC74: 1127.137057
H75: 72 | I75: =MMULT(_xlfn.ANCHORARRAY(I74),_xlfn.ANCHORARRAY($B$3)) -> 0.1417521845 | J75: 0.03617986344 | K75: 0.3160415442 | L75: 0.3952658105 | M75: 0.1107605974 | O75: 0.115325121 | P75: 1 | Q75: 0.115325121 | R75: 0.115325121 | S75: 0.115325121 | U75: 97 | V75: 5.426066218 | W75: 0.005909875217 | X75: 0.03206737427 | Y75: 0.003698173819 | Z75: 0.1574561145 | AA75: 0.01815864546 | AB75: 9395.503876 | AC75: 1083.537622
H76: 73 | I76: =MMULT(_xlfn.ANCHORARRAY(I75),_xlfn.ANCHORARRAY($B$3)) -> 0.1383345844 | J76: 0.03530757843 | K76: 0.313484193 | L76: 0.4011260868 | M76: 0.1117475573 | O76: 0.1119167486 | P76: 1 | Q76: 0.1119167486 | R76: 0.1119167486 | S76: 0.1119167486 | U76: 98 | V76: 5.426066218 | W76: 0.005860276395 | X76: 0.03179824778 | Y76: 0.003558756503 | Z76: 0.1561534622 | AA76: 0.01747618777 | AB76: 9305.663635 | AC76: 1041.459618
H77: 74 | I77: =MMULT(_xlfn.ANCHORARRAY(I76),_xlfn.ANCHORARRAY($B$3)) -> 0.1349993815 | J77: 0.03445632392 | K77: 0.3108873538 | L77: 0.4069361044 | M77: 0.1127208364 | O77: 0.1086091088 | P77: 1 | Q77: 0.1086091088 | R77: 0.1086091088 | S77: 0.1086091088 | U77: 99 | V77: 5.426066218 | W77: 0.005810017514 | X77: 0.03152553976 | Y77: 0.003423960778 | Z77: 0.1548323949 | AA77: 0.01681620843 | AB77: 9215.258498 | AC77: 1000.861013
H78: 75 | I78: =MMULT(_xlfn.ANCHORARRAY(I77),_xlfn.ANCHORARRAY($B$3)) -> 0.1317445893 | J78: 0.0336255929 | K78: 0.3082539994 | L78: 0.4126952559 | M78: 0.1136805625 | O78: 0.1053992246 | P78: 1 | Q78: 0.1053992246 | R78: 0.1053992246 | S78: 0.1053992246 | U78: 100 | V78: 5.426066218 | W78: 0.005759151567 | X78: 0.03124953776 | Y78: 0.003293677048 | Z78: 0.1534943522 | AA78: 0.01617818569 | AB78: 9124.356649 | AC78: 961.7001154
H79: 76 | I79: =MMULT(_xlfn.ANCHORARRAY(I78),_xlfn.ANCHORARRAY($B$3)) -> 0.1285682691 | J79: 0.03281489053 | K79: 0.3055869907 | L79: 0.4184029855 | M79: 0.1146268643 | O79: 0.1022842067 | P79: 1 | Q79: 0.1022842067 | R79: 0.1022842067 | S79: 0.1022842067 | U79: 101 | V79: 5.426066218 | W79: 0.005707729531 | X79: 0.03097051839 | Y79: 0.003167794905 | Z79: 0.1521407187 | AA79: 0.01556159272 | AB79: 9033.023535 | AC79: 923.9356465
H80: 77 | I80: =MMULT(_xlfn.ANCHORARRAY(I79),_xlfn.ANCHORARRAY($B$3)) -> 0.1254685289 | J80: 0.03202373395 | K80: 0.30288908 | L80: 0.4240587859 | M80: 0.1155598712 | O80: 0.09926125156 | P80: 1 | Q80: 0.09926125156 | R80: 0.09926125156 | S80: 0.09926125156 | U80: 102 | V80: 5.426066218 | W80: 0.005655800425 | X80: 0.03068874762 | Y80: 0.003046203498 | Z80: 0.1507728265 | AA80: 0.01496589946 | AB80: 8941.321961 | AC80: 887.5268084
H81: 78 | I81: =MMULT(_xlfn.ANCHORARRAY(I80),_xlfn.ANCHORARRAY($B$3)) -> 0.1224435226 | J81: 0.03125165189 | K81: 0.3001629145 | L81: 0.4296621973 | M81: 0.1164797138 | O81: 0.09632763823 | P81: 1 | Q81: 0.09632763823 | R81: 0.09632763823 | S81: 0.09632763823 | U81: 103 | V81: 5.426066218 | W81: 0.005603411378 | X81: 0.03040448118 | Y81: 0.002928791864 | Z81: 0.1493919563 | AA81: 0.01439057432 | AB81: 8849.312167 | AC81: 852.4333411
H82: 79 | I82: =MMULT(_xlfn.ANCHORARRAY(I81),_xlfn.ANCHORARRAY($B$3)) -> 0.1194914481 | J82: 0.03049818449 | K82: 0.2974110396 | L82: 0.4352128049 | M82: 0.1173865228 | O82: 0.09348072628 | P82: 1 | Q82: 0.09348072628 | R82: 0.09348072628 | S82: 0.09348072628 | U82: 104 | V82: 5.426066218 | W82: 0.005550607681 | X82: 0.03011796483 | Y82: 0.002815449227 | Z82: 0.1479993392 | AA82: 0.01383508571 | AB82: 8757.051918 | AC82: 818.6155733
H83: 80 | I83: =MMULT(_xlfn.ANCHORARRAY(I82),_xlfn.ANCHORARRAY($B$3)) -> 0.1166105473 | J83: 0.02976288295 | K83: 0.294635902 | L83: 0.4407102378 | M83: 0.11828043 | O83: 0.09071795329 | P83: 1 | Q83: 0.09071795329 | R83: 0.09071795329 | S83: 0.09071795329 | U83: 105 | V83: 5.426066218 | W83: 0.005497432855 | X83: 0.0298294347 | Y83: 0.002706065264 | Z83: 0.1465961582 | AA83: 0.01329890344 | AB83: 8664.596576 | AC83: 786.0344675
H84: 81 | I84: =MMULT(_xlfn.ANCHORARRAY(I83),_xlfn.ANCHORARRAY($B$3)) -> 0.113799104 | J84: 0.02904530929 | K84: 0.291839853 | L84: 0.4461541665 | M84: 0.1191615672 | O84: 0.08803683258 | P84: 1 | Q84: 0.08803683258 | R84: 0.08803683258 | S84: 0.08803683258 | U84: 106 | V84: 5.426066218 | W84: 0.005443928697 | X84: 0.0295391176 | Y84: 0.002600530351 | Z84: 0.1451835501 | AA84: 0.01278149989 | AB84: 8571.999188 | AC84: 754.6516574
H85: 82 | I85: =MMULT(_xlfn.ANCHORARRAY(I84),_xlfn.ANCHORARRAY($B$3)) -> 0.1110554437 | J85: 0.02834503611 | K85: 0.2890251513 | L85: 0.4515443018 | M85: 0.120030067 | O85: 0.08543495097 | P85: 1 | Q85: 0.08543495097 | R85: 0.08543495097 | S85: 0.08543495097 | U85: 107 | V85: 5.426066218 | W85: 0.005390135344 | X85: 0.0292472313 | Y85: 0.002498735772 | Z85: 0.1437626064 | AA85: 0.01228235122 | AB85: 8479.310552 | AC85: 724.4294812
H86: 83 | I86: =MMULT(_xlfn.ANCHORARRAY(I85),_xlfn.ANCHORARRAY($B$3)) -> 0.1083779323 | J86: 0.02766164629 | K86: 0.2861939663 | L86: 0.4568803932 | M86: 0.1208860619 | O86: 0.08290996658 | P86: 1 | Q86: 0.08290996658 | R86: 0.08290996658 | S86: 0.08290996658 | U86: 108 | V86: 5.426066218 | W86: 0.005336091318 | X86: 0.02895398484 | Y86: 0.002400573915 | Z86: 0.1423343749 | AA86: 0.01180093827 | AB86: 8386.579297 | AC86: 695.3310092
H87: 84 | I87: =MMULT(_xlfn.ANCHORARRAY(I86),_xlfn.ANCHORARRAY($B$3)) -> 0.1057649747 | J87: 0.02699473279 | K87: 0.2833483806 | L87: 0.4621622267 | M87: 0.1217296851 | O87: 0.08045960675 | P87: 1 | Q87: 0.08045960675 | R87: 0.08045960675 | S87: 0.08045960675 | U87: 109 | V87: 5.426066218 | W87: 0.005281833585 | X87: 0.02865957879 | Y87: 0.002305938439 | Z87: 0.1408998617 | AA87: 0.01133674746 | AB87: 8293.85195 | AC87: 667.3200664
H88: 85 | I88: =MMULT(_xlfn.ANCHORARRAY(I87),_xlfn.ANCHORARRAY($B$3)) -> 0.1032150148 | J88: 0.02634389835 | K88: 0.2804903929 | L88: 0.4673896243 | M88: 0.1225610696 | O88: 0.078081666 | P88: 1 | Q88: 0.078081666 | R88: 0.078081666 | S88: 0.078081666 | U88: 110 | V88: 5.426066218 | W88: 0.005227397602 | X88: 0.02836420554 | Y88: 0.002214724423 | Z88: 0.1394600315 | AA88: 0.0108892716 | AB88: 8201.173011 | AC88: 640.3612518
H89: 86 | I89: =MMULT(_xlfn.ANCHORARRAY(I88),_xlfn.ANCHORARRAY($B$3)) -> 0.1007265336 | J89: 0.02570875533 | K89: 0.2776219207 | L89: 0.4725624417 | M89: 0.1233803487 | O89: 0.07577400402 | P89: 1 | Q89: 0.07577400402 | R89: 0.07577400402 | S89: 0.07577400402 | U89: 111 | V89: 5.426066218 | W89: 0.005172817362 | X89: 0.02806804954 | Y89: 0.002126828499 | Z89: 0.1380158099 | AA89: 0.01045801054 | AB89: 8108.585011 | AC89: 614.4199533
H90: 87 | I90: =MMULT(_xlfn.ANCHORARRAY(I89),_xlfn.ANCHORARRAY($B$3)) -> 0.09829804884 | J90: 0.02508892541 | K90: 0.2747448031 | L90: 0.4776805672 | M90: 0.1241876555 | O90: 0.07353454376 | P90: 1 | Q90: 0.07353454376 | R90: 0.07353454376 | S90: 0.07353454376 | U90: 112 | V90: 5.426066218 | W90: 0.00511812545 | X90: 0.02777128761 | Y90: 0.002042148964 | Z90: 0.1365680841 | AA90: 0.01004247176 | AB90: 8016.128587 | AC90: 589.4623584
H91: 88 | I91: =MMULT(_xlfn.ANCHORARRAY(I90),_xlfn.ANCHORARRAY($B$3)) -> 0.0959281141 | J91: 0.02448403938 | K91: 0.2718608029 | L91: 0.4827439202 | M91: 0.1249831234 | O91: 0.07136126956 | P91: 1 | Q91: 0.07136126956 | R91: 0.07136126956 | S91: 0.07136126956 | U91: 113 | V91: 5.426066218 | W91: 0.005063353081 | X91: 0.0274740891 | Y91: 0.001960585878 | Z91: 0.1351177042 | AA91: 0.00964217091 | AB91: 7923.842537 | AC91: 565.4554632
H92: 89 | I92: =MMULT(_xlfn.ANCHORARRAY(I91),_xlfn.ANCHORARRAY($B$3)) -> 0.09361531774 | J92: 0.02389373697 | K92: 0.2689716097 | L92: 0.4877524504 | M92: 0.1257668853 | O92: 0.06925222531 | P92: 1 | Q92: 0.06925222531 | R92: 0.06925222531 | S92: 0.06925222531 | U92: 114 | V92: 5.426066218 | W92: 0.005008530147 | X92: 0.02717661624 | Y92: 0.001882041151 | Z92: 0.1336654846 | AA92: 0.009256632259 | AB92: 7831.763888 | AC92: 542.3670773
H93: 90 | I93: =MMULT(_xlfn.ANCHORARRAY(I92),_xlfn.ANCHORARRAY($B$3)) -> 0.09135828216 | J93: 0.02331766656 | K93: 0.2660788415 | L93: 0.4927061356 | M93: 0.1265390741 | O93: 0.06720551274 | P93: 1 | Q93: 0.06720551274 | R93: 0.06720551274 | S93: 0.06720551274 | U93: 115 | V93: 5.426066218 | W93: 0.004953685263 | X93: 0.02687902426 | Y93: 0.001806418608 | Z93: 0.1322122052 | AA93: 0.008885389043 | AB93: 7739.92795 | AC93: 520.1658264
H94: 91 | I94: =MMULT(_xlfn.ANCHORARRAY(I93),_xlfn.ANCHORARRAY($B$3)) -> 0.089155663 | J94: 0.02275548503 | K94: 0.2631840478 | L94: 0.4976049815 | M94: 0.1272998227 | O94: 0.06521928967 | P94: 1 | Q94: 0.06521928967 | R94: 0.06521928967 | S94: 0.06521928967 | U94: 116 | V94: 5.426066218 | W94: 0.004898845806 | X94: 0.02658146174 | Y94: 0.001733624053 | Z94: 0.1307586122 | AA94: 0.008527983807 | AB94: 7648.368377 | AC94: 498.8211527
H95: 92 | I95: =MMULT(_xlfn.ANCHORARRAY(I94),_xlfn.ANCHORARRAY($B$3)) -> 0.08700614828 | J95: 0.02220685751 | K95: 0.2602887114 | L95: 0.5024490194 | M95: 0.1280492634 | O95: 0.06329176836 | P95: 1 | Q95: 0.06329176836 | R95: 0.06329176836 | S95: 0.06329176836 | U95: 117 | V95: 5.426066218 | W95: 0.004844037955 | X95: 0.02628407071 | Y95: 0.001663565315 | Z95: 0.1293054195 | AA95: 0.00818396866 | AB95: 7557.117224 | AC95: 478.3033128
H96: 93 | I96: =MMULT(_xlfn.ANCHORARRAY(I95),_xlfn.ANCHORARRAY($B$3)) -> 0.08490845768 | J96: 0.02167145723 | K96: 0.2573942506 | L96: 0.5072383061 | M96: 0.1287875283 | O96: 0.06142121392 | P96: 1 | Q96: 0.06142121392 | R96: 0.06142121392 | S96: 0.06142121392 | U96: 118 | V96: 5.426066218 | W96: 0.004789286733 | X96: 0.02598698695 | Y96: 0.001596152285 | Z96: 0.1278533097 | AA96: 0.007852905483 | AB96: 7466.204998 | AC96: 458.5833743
H97: 94 | I97: =MMULT(_xlfn.ANCHORARRAY(I96),_xlfn.ANCHORARRAY($B$3)) -> 0.08286134173 | J97: 0.02114896528 | K97: 0.2545020216 | L97: 0.5119729222 | M97: 0.1295147492 | O97: 0.05960594271 | P97: 1 | Q97: 0.05960594271 | R97: 0.05960594271 | S97: 0.05960594271 | U97: 119 | V97: 5.426066218 | W97: 0.004734616046 | X97: 0.02569034019 | Y97: 0.001531296945 | Z97: 0.126402935 | AA97: 0.0075343661 | AB97: 7375.660711 | AC97: 439.6332098
H98: 95 | I98: =MMULT(_xlfn.ANCHORARRAY(I97),_xlfn.ANCHORARRAY($B$3)) -> 0.0808635811 | J98: 0.02063907044 | K98: 0.2516133202 | L98: 0.5166529709 | M98: 0.1302310573 | O98: 0.05784432087 | P98: 1 | Q98: 0.05784432087 | R98: 0.05784432087 | S98: 0.05784432087 | U98: 120 | V98: 5.426066218 | W98: 0.004680048718 | X98: 0.02539425425 | Y98: 0.001468913391 | Z98: 0.1249549184 | AA98: 0.007227932394 | AB98: 7285.511936 | AC98: 421.4254901
H99: 96 | I99: =MMULT(_xlfn.ANCHORARRAY(I98),_xlfn.ANCHORARRAY($B$3)) -> 0.07891398584 | J99: 0.02014146901 | K99: 0.2487293842 | L99: 0.5212785774 | M99: 0.1309365835 | O99: 0.05613476283 | P99: 1 | Q99: 0.05613476283 | R99: 0.05613476283 | S99: 0.05613476283 | U99: 121 | V99: 5.426066218 | W99: 0.004625606526 | X99: 0.02509884731 | Y99: 0.001408917841 | Z99: 0.1235098546 | AA99: 0.006933196398 | AB99: 7195.78485 | AC99: 403.9336759
H100: 97 | I100: =MMULT(_xlfn.ANCHORARRAY(I99),_xlfn.ANCHORARRAY($B$3)) -> 0.07701139471 | J100: 0.01965586459 | K100: 0.245851395 | L100: 0.5258498877 | M100: 0.1316314581 | O100: 0.05447572987 | P100: 1 | Q100: 0.05447572987 | R100: 0.05447572987 | S100: 0.05447572987 | U100: 122 | V100: 5.426066218 | W100: 0.004571310239 | X100: 0.02480423206 | Y100: 0.001351228645 | Z100: 0.1220683111 | AA100: 0.006649760339 | AB100: 7106.504287 | AC100: 387.1320078
H101: 98 | I101: =MMULT(_xlfn.ANCHORARRAY(I100),_xlfn.ANCHORARRAY($B$3)) -> 0.07515467444 | J101: 0.01918196794 | K101: 0.2429804795 | L101: 0.5303670673 | M101: 0.1323158108 | O101: 0.05286572874 | P101: 1 | Q101: 0.05286572874 | R101: 0.05286572874 | S101: 0.05286572874 | U101: 123 | V101: 5.426066218 | W101: 0.004517179649 | X101: 0.0245105159 | Y101: 0.001295766285 | Z101: 0.1206308285 | AA101: 0.006377236659 | AB101: 7017.693783 | AC101: 370.9954959
H102: 99 | I102: =MMULT(_xlfn.ANCHORARRAY(I101),_xlfn.ANCHORARRAY($B$3)) -> 0.07334271911 | J102: 0.01871949678 | K102: 0.2401177123 | L102: 0.5348303009 | M102: 0.1329897709 | O102: 0.05130331033 | P102: 1 | Q102: 0.05130331033 | R102: 0.05130331033 | S102: 0.05130331033 | U102: 124 | V102: 5.426066218 | W102: 0.004463233607 | X102: 0.0242178011 | Y102: 0.001242453365 | Z102: 0.1191979225 | AA102: 0.006115248007 | AB102: 6929.37562 | AC102: 355.4999078
H103: 100 | I103: =MMULT(_xlfn.ANCHORARRAY(I102),_xlfn.ANCHORARRAY($B$3)) -> 0.07157444945 | J103: 0.01826817566 | K103: 0.2372641171 | L103: 0.539239791 | M103: 0.1336534668 | O103: 0.04978706837 | P103: 1 | Q103: 0.04978706837 | R103: 0.04978706837 | S103: 0.04978706837 | U103: 125 | V103: 5.426066218 | W103: 0.004409490051 | X103: 0.02392618501 | Y103: 0.001191214609 | Z103: 0.1177700835 | AA103: 0.005863427197 | AB103: 6841.570872 | AC103: 340.6217567
H104: 101 | I104: =MMULT(_xlfn.ANCHORARRAY(I103),_xlfn.ANCHORARRAY($B$3)) -> 0.06984881221 | J104: 0.01782773575 | K104: 0.2344206685 | L104: 0.543595757 | M104: 0.1343070265 | O104: 0.04831563813 | P104: 1 | Q104: 0.04831563813 | R104: 0.04831563813 | S104: 0.04831563813 | U104: 126 | V104: 5.426066218 | W104: 0.00435596604 | X104: 0.02363576018 | Y104: 0.001141976836 | Z104: 0.1163477784 | AA104: 0.005621417159 | AB104: 6754.299447 | AC104: 326.3382879
H105: 102 | I105: =MMULT(_xlfn.ANCHORARRAY(I104),_xlfn.ANCHORARRAY($B$3)) -> 0.06816477953 | J105: 0.0173979147 | K105: 0.2315882938 | L105: 0.5478984348 | M105: 0.1349505772 | O105: 0.04688769522 | P105: 1 | Q105: 0.04688769522 | R105: 0.04688769522 | S105: 0.04688769522 | U105: 127 | V105: 5.426066218 | W105: 0.004302677783 | X105: 0.02334661457 | Y105: 0.001094668948 | Z105: 0.1149314511 | AA105: 0.005388870852 | AB105: 6667.580127 | AC105: 312.6274648
H106: 103 | I106: =MMULT(_xlfn.ANCHORARRAY(I105),_xlfn.ANCHORARRAY($B$3)) -> 0.06652134834 | J106: 0.0169784565 | K106: 0.2287678744 | L106: 0.5521480755 | M106: 0.1355842453 | O106: 0.0455019544 | P106: 1 | Q106: 0.0455019544 | R106: 0.0455019544 | S106: 0.0455019544 | U106: 128 | V106: 5.426066218 | W106: 0.004249640668 | X106: 0.02305883167 | Y106: 0.001049221907 | Z106: 0.1135215232 | AA106: 0.005165451173 | AB106: 6581.43061 | AC106: 299.4679555
H107: 104 | I107: =MMULT(_xlfn.ANCHORARRAY(I106),_xlfn.ANCHORARRAY($B$3)) -> 0.06491753976 | J107: 0.01656911131 | K107: 0.2259602477 | L107: 0.5563449448 | M107: 0.1362081565 | O107: 0.04415716842 | P107: 1 | Q107: 0.04415716842 | R107: 0.04415716842 | S107: 0.04415716842 | U107: 129 | V107: 5.426066218 | W107: 0.004196869294 | X107: 0.0227724907 | Y107: 0.001005568707 | Z107: 0.1121183947 | AA107: 0.004950830839 | AB107: 6495.867547 | AC107: 286.8391173
H108: 105 | I108: =MMULT(_xlfn.ANCHORARRAY(I107),_xlfn.ANCHORARRAY($B$3)) -> 0.0633523985 | J108: 0.0161696353 | K108: 0.2231662081 | L108: 0.5604893223 | M108: 0.1368224358 | O108: 0.04285212687 | P108: 1 | Q108: 0.04285212687 | R108: 0.04285212687 | S108: 0.04285212687 | U108: 130 | V108: 5.426066218 | W108: 0.004144377491 | X108: 0.0224876667 | Y108: 0.0009636443464 | Z108: 0.1107224451 | AA108: 0.004744692264 | AB108: 6410.906581 | AC108: 274.7209822
H109: 106 | I109: =MMULT(_xlfn.ANCHORARRAY(I108),_xlfn.ANCHORARRAY($B$3)) -> 0.06182499229 | J109: 0.01577979053 | K109: 0.2203865092 | L109: 0.5645815006 | M109: 0.1374272073 | O109: 0.04158565512 | P109: 1 | Q109: 0.04158565512 | R109: 0.04158565512 | S109: 0.04158565512 | U109: 131 | V109: 5.426066218 | W109: 0.004092178355 | X109: 0.02220443073 | Y109: 0.0009233857985 | Z109: 0.1093340337 | AA109: 0.004546727419 | AB109: 6326.562383 | AC109: 263.0942413
H110: 107 | I110: =MMULT(_xlfn.ANCHORARRAY(I109),_xlfn.ANCHORARRAY($B$3)) -> 0.06033441137 | J110: 0.01539934479 | K110: 0.2176218646 | L110: 0.5686217849 | M110: 0.1380225943 | O110: 0.04035661327 | P110: 1 | Q110: 0.04035661327 | R110: 0.04035661327 | S110: 0.04035661327 | U110: 132 | V110: 5.426066218 | W110: 0.004040284267 | X110: 0.02192284997 | Y110: 0.0008847319782 | Z110: 0.1079535007 | AA110: 0.004356637678 | AB110: 6242.848685 | AC110: 251.9402301
H111: 108 | I111: =MMULT(_xlfn.ANCHORARRAY(I110),_xlfn.ANCHORARRAY($B$3)) -> 0.05887976787 | J111: 0.01502807148 | K111: 0.2148729496 | L111: 0.5726104918 | M111: 0.1386087193 | O111: 0.0391638951 | P111: 1 | Q111: 0.0391638951 | R111: 0.0391638951 | S111: 0.0391638951 | U111: 133 | V111: 5.426066218 | W111: 0.003988706923 | X111: 0.02164298789 | Y111: 0.0008476237073 | Z111: 0.1065811674 | AA111: 0.00417413366 | AB111: 6159.778319 | AC111: 241.2409119
H112: 109 | I112: =MMULT(_xlfn.ANCHORARRAY(I111),_xlfn.ANCHORARRAY($B$3)) -> 0.05746019537 | J112: 0.01466574945 | K112: 0.2121404024 | L112: 0.5765479492 | M112: 0.1391857037 | O112: 0.03800642708 | P112: 1 | Q112: 0.03800642708 | R112: 0.03800642708 | S112: 0.03800642708 | U112: 134 | V112: 5.426066218 | W112: 0.003937457356 | X112: 0.02136490435 | Y112: 0.000812003679 | Z112: 0.1052173374 | AA112: 0.003998935062 | AB112: 6077.363246 | AC112: 230.978863
H113: 110 | I113: =MMULT(_xlfn.ANCHORARRAY(I112),_xlfn.ANCHORARRAY($B$3)) -> 0.05607484831 | J113: 0.01431216289 | K113: 0.2094248255 | L113: 0.5804344951 | M113: 0.1397536682 | O113: 0.0368831674 | P113: 1 | Q113: 0.0368831674 | R113: 0.0368831674 | S113: 0.0368831674 | U113: 135 | V113: 5.426066218 | W113: 0.00388654596 | X113: 0.02108865574 | Y113: 0.0007778164199 | Z113: 0.1038622969 | AA113: 0.003830770483 | AB113: 5995.614591 | AC113: 221.1372566
H114: 111 | I114: =MMULT(_xlfn.ANCHORARRAY(I113),_xlfn.ANCHORARRAY($B$3)) -> 0.05472290153 | J114: 0.01396710118 | K114: 0.2067267871 | L114: 0.5842704776 | M114: 0.1403127326 | O114: 0.03579310507 | P114: 1 | Q114: 0.03579310507 | R114: 0.03579310507 | S114: 0.03579310507 | U114: 136 | V114: 5.426066218 | W114: 0.003835982512 | X114: 0.02081429512 | Y114: 0.0007450082522 | Z114: 0.1025163152 | AA114: 0.003669377243 | AB114: 5914.542672 | AC114: 211.6998473
H115: 112 | I115: =MMULT(_xlfn.ANCHORARRAY(I114),_xlfn.ANCHORARRAY($B$3)) -> 0.05340354975 | J115: 0.01363035881 | K115: 0.2040468219 | L115: 0.5880562538 | M115: 0.1408630157 | O115: 0.03473525894 | P115: 1 | Q115: 0.03473525894 | R115: 0.03473525894 | S115: 0.03473525894 | U115: 137 | V115: 5.426066218 | W115: 0.003785776196 | X115: 0.02054187233 | Y115: 0.0007135272546 | Z115: 0.1011796458 | AA115: 0.003514501198 | AB115: 5834.157032 | AC115: 202.6509552
H116: 113 | I116: =MMULT(_xlfn.ANCHORARRAY(I115),_xlfn.ANCHORARRAY($B$3)) -> 0.05211600713 | J116: 0.01330173519 | K116: 0.2013854329 | L116: 0.5917921894 | M116: 0.1414046354 | O116: 0.0337086769 | P116: 1 | Q116: 0.0337086769 | R116: 0.0337086769 | S116: 0.0337086769 | U116: 138 | V116: 5.426066218 | W116: 0.003735935624 | X116: 0.02027143408 | Y116: 0.0006833232218 | Z116: 0.09985252646 | AA116: 0.003365896552 | AB116: 5754.466464 | AC116: 193.9754508
H117: 114 | I117: =MMULT(_xlfn.ANCHORARRAY(I116),_xlfn.ANCHORARRAY($B$3)) -> 0.05085950675 | J117: 0.01298103458 | K117: 0.1987430919 | L117: 0.5954786583 | M117: 0.1419377085 | O117: 0.03271243494 | P117: 1 | Q117: 0.03271243494 | R117: 0.03271243494 | S117: 0.03271243494 | U117: 139 | V117: 5.426066218 | W117: 0.003686468854 | X117: 0.02000302411 | Y117: 0.0006543476249 | Z117: 0.09853517995 | AA117: 0.003223325663 | AB117: 5675.479048 | AC117: 185.6587391
H118: 115 | I118: =MMULT(_xlfn.ANCHORARRAY(I117),_xlfn.ANCHORARRAY($B$3)) -> 0.04963330019 | J118: 0.01266806596 | K118: 0.1961202412 | L118: 0.5991160417 | M118: 0.1424623509 | O118: 0.03174563638 | P118: 1 | Q118: 0.03174563638 | R118: 0.03174563638 | S118: 0.03174563638 | U118: 140 | V118: 5.426066218 | W118: 0.003637383415 | X118: 0.01973668327 | Y118: 0.0006265535704 | Z118: 0.0972278147 | AA118: 0.003086558851 | AB118: 5597.202168 | AC118: 177.6867448
H119: 116 | I119: =MMULT(_xlfn.ANCHORARRAY(I118),_xlfn.ANCHORARRAY($B$3)) -> 0.04843665709 | J119: 0.01236264291 | K119: 0.1935172943 | L119: 0.602704728 | M119: 0.1429786777 | O119: 0.03080741103 | P119: 1 | Q119: 0.03080741103 | R119: 0.03080741103 | S119: 0.03080741103 | U119: 141 | V119: 5.426066218 | W119: 0.003588686322 | X119: 0.01947244962 | Y119: 0.0005998957593 | Z119: 0.09593062523 | AA119: 0.002955374202 | AB119: 5519.642547 | AC119: 170.0458967
H120: 117 | I120: =MMULT(_xlfn.ANCHORARRAY(I119),_xlfn.ANCHORARRAY($B$3)) -> 0.04726886467 | J120: 0.01206458352 | K120: 0.1909346371 | L120: 0.6062451121 | M120: 0.1434868025 | O120: 0.02989691444 | P120: 1 | Q120: 0.02989691444 | R120: 0.02989691444 | S120: 0.02989691444 | U120: 142 | V120: 5.426066218 | W120: 0.003540384099 | X120: 0.01921035856 | Y120: 0.0005743304462 | Z120: 0.09464379267 | AA120: 0.002829557372 | AB120: 5442.806268 | AC120: 162.7231133
H121: 118 | I121: =MMULT(_xlfn.ANCHORARRAY(I120),_xlfn.ANCHORARRAY($B$3)) -> 0.04612922736 | J121: 0.01177371024 | K121: 0.188372629 | L121: 0.6097375949 | M121: 0.1439868385 | O121: 0.02901332708 | P121: 1 | Q121: 0.02901332708 | R121: 0.02901332708 | S121: 0.02901332708 | U121: 143 | V121: 5.426066218 | W121: 0.003492482794 | X121: 0.01895044291 | Y121: 0.0005498153985 | Z121: 0.09336748526 | AA121: 0.002708901389 | AB121: 5366.6988 | AC121: 155.7057876
H122: 119 | I122: =MMULT(_xlfn.ANCHORARRAY(I121),_xlfn.ANCHORARRAY($B$3)) -> 0.04501706634 | J122: 0.01148984983 | K122: 0.1858316035 | L122: 0.6131825829 | M122: 0.1444788974 | O122: 0.02815585368 | P122: 1 | Q122: 0.02815585368 | R122: 0.02815585368 | S122: 0.02815585368 | U122: 144 | V122: 5.426066218 | W122: 0.003444987998 | X122: 0.018692733 | Y122: 0.0005263098553 | Z122: 0.09210185881 | AA122: 0.00259320646 | AB122: 5291.325024 | AC122: 148.9817731
H123: 120 | I123: =MMULT(_xlfn.ANCHORARRAY(I122),_xlfn.ANCHORARRAY($B$3)) -> 0.04393171917 | J123: 0.0112128332 | K123: 0.1833118697 | L123: 0.6165804878 | M123: 0.1449630901 | O123: 0.02732372245 | P123: 1 | Q123: 0.02732372245 | R123: 0.02732372245 | S123: 0.02732372245 | U123: 145 | V123: 5.426066218 | W123: 0.003397904864 | X123: 0.01843725679 | Y123: 0.0005037744873 | Z123: 0.09084705724 | AA123: 0.002482279777 | AB123: 5216.689252 | AC123: 142.5393692
H124: 121 | I124: =MMULT(_xlfn.ANCHORARRAY(I123),_xlfn.ANCHORARRAY($B$3)) -> 0.04287253937 | J124: 0.01094249535 | K124: 0.180813713 | L124: 0.6199317259 | M124: 0.1454395264 | O124: 0.02651618441 | P124: 1 | Q124: 0.02651618441 | R124: 0.02651618441 | S124: 0.02651618441 | U124: 146 | V124: 5.426066218 | W124: 0.003351238119 | X124: 0.01818403994 | Y124: 0.0004821713565 | Z124: 0.08960321294 | AA124: 0.002375935318 | AB124: 5142.795256 | AC124: 136.3673074
H125: 122 | I125: =MMULT(_xlfn.ANCHORARRAY(I124),_xlfn.ANCHORARRAY($B$3)) -> 0.04183889606 | J125: 0.01067867526 | K125: 0.1783373958 | L125: 0.623236718 | M125: 0.1459083149 | O125: 0.02573251273 | P125: 1 | Q125: 0.02573251273 | R125: 0.02573251273 | S125: 0.02573251273 | U125: 147 | V125: 5.426066218 | W125: 0.003304992085 | X125: 0.01793310591 | Y125: 0.000461463876 | Z125: 0.08837044725 | AA125: 0.002273993659 | AB125: 5069.646282 | AC125: 130.4547375
H126: 123 | I126: =MMULT(_xlfn.ANCHORARRAY(I125),_xlfn.ANCHORARRAY($B$3)) -> 0.04083017357 | J126: 0.01042121579 | K126: 0.1758831585 | L126: 0.6264958887 | M126: 0.1463695634 | O126: 0.02497200204 | P126: 1 | Q126: 0.02497200204 | R126: 0.02497200204 | S126: 0.02497200204 | U126: 148 | V126: 5.426066218 | W126: 0.003259170695 | X126: 0.01768447601 | Y126: 0.000441616771 | Z126: 0.08714887091 | AA126: 0.002176281782 | AB126: 4997.24508 | AC126: 124.7912143
H127: 124 | I127: =MMULT(_xlfn.ANCHORARRAY(I126),_xlfn.ANCHORARRAY($B$3)) -> 0.03984577105 | J127: 0.01016996359 | K127: 0.1734512206 | L127: 0.6297096662 | M127: 0.1468233786 | O127: 0.02423396785 | P127: 1 | Q127: 0.02423396785 | R127: 0.02423396785 | S127: 0.02423396785 | U127: 149 | V127: 5.426066218 | W127: 0.003213777502 | X127: 0.01743816954 | Y127: 0.0004225960398 | Z127: 0.08593858441 | AA127: 0.002082632891 | AB127: 4925.593916 | AC127: 119.3666846
H128: 125 | I128: =MMULT(_xlfn.ANCHORARRAY(I127),_xlfn.ANCHORARRAY($B$3)) -> 0.03888510217 | J128: 0.009924768998 | K128: 0.1710417811 | L128: 0.6328784819 | M128: 0.1472698658 | O128: 0.02351774586 | P128: 1 | Q128: 0.02351774586 | R128: 0.02351774586 | S128: 0.02351774586 | U128: 150 | V128: 5.426066218 | W128: 0.0031688157 | X128: 0.01719420382 | Y128: 0.0004043689157 | Z128: 0.08473967844 | AA128: 0.001992886222 | AB128: 4854.694598 | AC128: 114.1714738
H129: 126 | I129: =MMULT(_xlfn.ANCHORARRAY(I128),_xlfn.ANCHORARRAY($B$3)) -> 0.0379475947 | J129: 0.00968548597 | K129: 0.1686550196 | L129: 0.63600277 | M129: 0.1477091297 | O129: 0.02282269143 | P129: 1 | Q129: 0.02282269143 | R129: 0.02282269143 | S129: 0.02282269143 | U129: 151 | V129: 5.426066218 | W129: 0.003124288136 | X129: 0.01695259431 | Y129: 0.0003869038288 | Z129: 0.08355223424 | AA129: 0.00190688686 | AB129: 4784.548493 | AC129: 109.1962739
H130: 127 | I130: =MMULT(_xlfn.ANCHORARRAY(I129),_xlfn.ANCHORARRAY($B$3)) -> 0.03703269025 | J130: 0.009451971979 | K130: 0.1662910968 | L130: 0.6390829673 | M130: 0.1481412737 | O130: 0.02214817896 | P130: 1 | Q130: 0.02214817896 | R130: 0.02214817896 | S130: 0.02214817896 | U130: 152 | V130: 5.426066218 | W130: 0.003080197323 | X130: 0.01671335464 | Y130: 0.0003701703695 | Z130: 0.08237632399 | AA130: 0.001824485566 | AB130: 4715.156545 | AC130: 104.432131
H131: 128 | I131: =MMULT(_xlfn.ANCHORARRAY(I130),_xlfn.ANCHORARRAY($B$3)) -> 0.03613984385 | J131: 0.009224087937 | K131: 0.1639501555 | L131: 0.6421195128 | M131: 0.1485663999 | O131: =EXP(-r_H * H131) -> 0.02149360135 | P131: 1 | Q131: 0.02149360135 | R131: =EXP(-r_C * H131) -> 0.02149360135 | S131: 0.02149360135 | U131: 153 | V131: 5.426066218 | W131: 0.003036545453 | X131: 0.01647649671 | Y131: =X131*Q131 -> 0.0003541392518 | Z131: 0.08121201117 | AA131: =Z131*Q131 -> 0.001745538593 | AB131: 4646.519293 | AC131: 99.87043333
H132: 129 | I132: =MMULT(_xlfn.ANCHORARRAY(I131),_xlfn.ANCHORARRAY($B$3)) -> 0.03526852369 | J132: 0.009001698106 | K132: 0.1616323213 | L132: 0.6451128472 | M132: 0.1489846097 | O132: 0.02085836943 | P132: 1 | Q132: =O132*P132 -> 0.02085836943 | R132: 0.02085836943 | S132: =R132*P132 -> 0.02085836943 | U132: =Delta_t*H132+age0 -> 154 | V132: =(1/r_H)*(1 - EXP(-r_H*LOOKUP(U132,$A$18:$B$38))) -> 5.426066218 | W132: =L132-L131 -> 0.002993334415 | X132: =W132*V132 -> 0.01624203075 | Y132: 0.0003387822776 | Z132: 0.08005935091 | AA132: 0.001669907517 | AB132: 4578.636891 | AC132: =AB132*S132 -> 95.50289974
H133: 130 | I133: =MMULT(_xlfn.ANCHORARRAY(I132),_xlfn.ANCHORARRAY($B$3)) -> 0.03441821079 | J133: 0.008784670024 | K133: 0.1593377029 | L133: 0.648063413 | M133: 0.1493960033 | O133: 0.02024191145 | P133: 1 | Q133: 0.02024191145 | R133: 0.02024191145 | S133: 0.02024191145 | U133: 155 | V133: 5.426066218 | W133: 0.002950565798 | X133: 0.0160099654 | Y133: 0.0003240723019 | Z133: 0.0789183903 | AA133: 0.001597459068 | AB133: 4511.50912 | AC133: 91.32156809
H134: 131 | I134: =MMULT(_xlfn.ANCHORARRAY(I133),_xlfn.ANCHORARRAY($B$3)) -> 0.03358839866 | J134: 0.00857287442 | K134: 0.1570663934 | L134: 0.6509716539 | M134: 0.1498006796 | O134: 0.01964367255 | P134: 1 | Q134: 0.01964367255 | R134: 0.01964367255 | S134: 0.01964367255 | U134: 156 | V134: 5.426066218 | W134: 0.002908240912 | X134: 0.01578030777 | Y134: 0.0003099831985 | Z134: 0.07778916877 | AA134: 0.001528064959 | AB134: 4445.135409 | AC134: 87.31878442
H135: 132 | I135: =MMULT(_xlfn.ANCHORARRAY(I134),_xlfn.ANCHORARRAY($B$3)) -> 0.03277859303 | J135: 0.008366185141 | K135: 0.1548184703 | L135: 0.6538380147 | M135: 0.1501987368 | O135: 0.01906311429 | P135: 1 | Q135: 0.01906311429 | R135: 0.01906311429 | S135: 0.01906311429 | U135: 157 | V135: 5.426066218 | W135: 0.002866360795 | X135: 0.01555306348 | Y135: 0.0002964898267 | Z135: 0.07667171835 | AA135: 0.00146160173 | AB135: 4379.514847 | AC135: 83.48719207
H136: =H135+1 -> 133 | I136: =MMULT(_xlfn.ANCHORARRAY(I135),_xlfn.ANCHORARRAY($B$3)) -> 0.03198831157 | J136: 0.008164479074 | K136: 0.1525939968 | L136: 0.6566629409 | M136: 0.1505902716 | O136: 0.01849971412 | P136: 1 | Q136: 0.01849971412 | R136: 0.01849971412 | S136: 0.01849971412 | U136: 158 | V136: 5.426066218 | W136: 0.002824926226 | X136: 0.01532823676 | Y136: 0.0002835679981 | Z136: 0.07556606402 | AA136: 0.001397950582 | AB136: 4314.646202 | AC136: 79.81972126
H137: 134 | I137: =MMULT(_xlfn.ANCHORARRAY(I136),_xlfn.ANCHORARRAY($B$3)) -> 0.03121708354 | J137: 0.007967636077 | K137: 0.1503930218 | L137: 0.6594468787 | M137: 0.15097538 | O137: 0.01795296494 | P137: 1 | Q137: 0.01795296494 | R137: 0.01795296494 | S137: 0.01795296494 | U137: 159 | V137: 5.426066218 | W137: 0.002783937734 | X137: 0.01510583049 | Y137: 0.0002711944452 | Z137: 0.07447222399 | AA137: 0.001336997226 | AB137: 4250.527932 | AC137: 76.30957893
H138: 135 | I138: =MMULT(_xlfn.ANCHORARRAY(I137),_xlfn.ANCHORARRAY($B$3)) -> 0.03046444957 | J138: 0.007775538902 | K138: 0.1482155807 | L138: 0.6621902743 | M138: 0.1513541565 | O138: 0.01742237464 | P138: 1 | Q138: 0.01742237464 | R138: 0.01742237464 | S138: 0.01742237464 | U138: 160 | V138: 5.426066218 | W138: 0.002743395612 | X138: 0.01488584626 | Y138: 0.0002593467903 | Z138: 0.07339020997 | AA138: 0.001278631733 | AB138: 4187.158201 | AC138: 72.95023885
H139: 136 | I139: =MMULT(_xlfn.ANCHORARRAY(I138),_xlfn.ANCHORARRAY($B$3)) -> 0.02972996136 | J139: 0.007588073128 | K139: 0.1460616963 | L139: 0.6648935742 | M139: 0.151726695 | O139: 0.01690746565 | P139: 1 | Q139: 0.01690746565 | R139: 0.01690746565 | S139: 0.01690746565 | U139: 161 | V139: 5.426066218 | W139: 0.002703299925 | X139: 0.0146682844 | Y139: 0.0002480035147 | Z139: 0.07232002746 | AA139: 0.00122274838 | AB139: 4124.534892 | AC139: 69.73543203
H140: 137 | I140: =MMULT(_xlfn.ANCHORARRAY(I139),_xlfn.ANCHORARRAY($B$3)) -> 0.02901318144 | J140: 0.007405127095 | K140: 0.1439313788 | L140: 0.6675572247 | M140: 0.152093088 | O140: 0.01640777453 | P140: 1 | Q140: 0.01640777453 | R140: 0.01640777453 | S140: 0.01640777453 | U140: 162 | V140: 5.426066218 | W140: 0.002663650518 | X140: 0.0144531441 | Y140: 0.0002371439295 | Z140: 0.07126167606 | AA140: 0.001169245513 | AB140: 4062.655623 | AC140: 66.65913745
H141: 138 | I141: =MMULT(_xlfn.ANCHORARRAY(I140),_xlfn.ANCHORARRAY($B$3)) -> 0.02831368285 | J141: 0.007226591833 | K141: 0.1418246267 | L141: 0.6701816718 | M141: 0.1524534269 | O141: 0.0159228515 | P141: 1 | Q141: 0.0159228515 | R141: 0.0159228515 | S141: 0.0159228515 | U141: 163 | V141: 5.426066218 | W141: 0.002624447031 | X141: 0.01424042337 | Y141: 0.0002267481468 | Z141: 0.07021514963 | AA141: 0.001118025401 | AB141: 4001.517755 | AC141: 63.71557301
H142: 139 | I142: =MMULT(_xlfn.ANCHORARRAY(I141),_xlfn.ANCHORARRAY($B$3)) -> 0.02763104895 | J142: 0.007052360999 | K142: 0.1397414272 | L142: 0.6727673607 | M142: 0.1528078022 | O142: 0.01545226012 | P142: 1 | Q142: 0.01545226012 | R142: 0.01545226012 | S142: 0.01545226012 | U142: 164 | V142: 5.426066218 | W142: 0.002585688901 | X142: 0.0140301192 | Y142: 0.0002167970514 | Z142: 0.06918043665 | AA142: 0.001068994103 | AB142: 3941.118408 | AC142: 60.89918683
H143: 140 | I143: =MMULT(_xlfn.ANCHORARRAY(I142),_xlfn.ANCHORARRAY($B$3)) -> 0.02696487313 | J143: 0.006882330815 | K143: 0.1376817568 | L143: 0.675314736 | M143: 0.1531563032 | O143: 0.01499557682 | P143: 1 | Q143: 0.01499557682 | R143: 0.01499557682 | S143: 0.01499557682 | U143: 165 | V143: 5.426066218 | W143: 0.002547375378 | X143: 0.01382222749 | Y143: 0.0002072722741 | Z143: 0.06815752038 | AA143: 0.001022061333 | AB143: 3881.454472 | AC143: 58.20464871
H144: 141 | I144: =MMULT(_xlfn.ANCHORARRAY(I143),_xlfn.ANCHORARRAY($B$3)) -> 0.02631475861 | J144: 0.006716400005 | K144: 0.1356455815 | L144: 0.6778242416 | M144: 0.1534990183 | O144: 0.01455239055 | P144: 1 | Q144: 0.01455239055 | R144: 0.01455239055 | S144: 0.01455239055 | U144: 166 | V144: 5.426066218 | W144: 0.00250950553 | X144: 0.01361674318 | Y144: 0.0001981561648 | Z144: 0.06714637915 | AA144: 0.0009771403333 | AB144: 3822.522617 | AC144: 55.62684201
H145: 142 | I145: =MMULT(_xlfn.ANCHORARRAY(I144),_xlfn.ANCHORARRAY($B$3)) -> 0.02568031813 | J145: 0.006554469734 | K145: 0.1336328576 | L145: 0.6802963198 | M145: 0.1538360347 | O145: 0.01412230241 | P145: 1 | Q145: 0.01412230241 | R145: 0.01412230241 | S145: 0.01412230241 | U145: 167 | V145: 5.426066218 | W145: 0.002472078252 | X145: 0.01341366029 | Y145: 0.0001894317671 | Z145: 0.06614698655 | AA145: 0.0009341477476 | AB145: 3764.319308 | AC145: 53.16085563
H146: 143 | I146: =MMULT(_xlfn.ANCHORARRAY(I145),_xlfn.ANCHORARRAY($B$3)) -> 0.02506117382 | J146: 0.006396443551 | K146: 0.1316435321 | L146: 0.6827314121 | M146: 0.1541674385 | O146: 0.0137049253 | P146: 1 | Q146: 0.0137049253 | R146: 0.0137049253 | S146: 0.0137049253 | U146: 168 | V146: 5.426066218 | W146: 0.002435092272 | X146: 0.01321297192 | Y146: 0.0001810827931 | Z146: 0.06515931166 | AA146: 0.0008930034988 | AB146: 3706.84081 | AC146: 50.8019764
H147: 144 | I147: =MMULT(_xlfn.ANCHORARRAY(I146),_xlfn.ANCHORARRAY($B$3)) -> 0.02445695688 | J147: 0.006242227329 | K147: 0.1296775428 | L147: 0.6851299583 | M147: 0.1544933148 | O147: 0.01329988354 | P147: 1 | Q147: 0.01329988354 | R147: 0.01329988354 | S147: 0.01329988354 | U147: 169 | V147: 5.426066218 | W147: 0.002398546164 | X147: 0.01301467031 | Y147: 0.0001730935995 | Z147: 0.06418331928 | AA147: 0.0008536306718 | AB147: 3650.083205 | AC147: 48.54568155
H148: 145 | I148: =MMULT(_xlfn.ANCHORARRAY(I147),_xlfn.ANCHORARRAY($B$3)) -> 0.02386730742 | J148: 0.00609172921 | K148: 0.1277348191 | L148: 0.6874923966 | M148: 0.1548137477 | O148: 0.01290681258 | P148: 1 | Q148: 0.01290681258 | R148: 0.01290681258 | S148: 0.01290681258 | U148: 170 | V148: 5.426066218 | W148: 0.00236243835 | X148: 0.01281874692 | Y148: 0.0001654491641 | Z148: 0.06321897009 | AA148: 0.0008159553985 | AB148: 3594.042397 | AC148: 46.38763163
H149: 146 | I149: =MMULT(_xlfn.ANCHORARRAY(I148),_xlfn.ANCHORARRAY($B$3)) -> 0.02329187422 | J149: 0.005944859554 | K149: 0.1258152823 | L149: 0.6898191637 | M149: 0.1551288202 | O149: 0.01252535862 | P149: 1 | Q149: 0.01252535862 | R149: 0.01252535862 | S149: 0.01252535862 | U149: 171 | V149: 5.426066218 | W149: 0.00232676711 | X149: 0.01262519242 | Y149: 0.0001581350627 | Z149: 0.06226622091 | AA149: 0.0007799067469 | AB149: 3538.714123 | AC149: 44.32366345
H150: 147 | I150: =MMULT(_xlfn.ANCHORARRAY(I149),_xlfn.ANCHORARRAY($B$3)) -> 0.02273031453 | J150: 0.005801530878 | K150: 0.1239188459 | L150: 0.6921106943 | M150: 0.1554386144 | O150: 0.01215517833 | P150: 1 | Q150: 0.01215517833 | R150: 0.01215517833 | S150: 0.01215517833 | U150: 172 | V150: 5.426066218 | W150: 0.002291530591 | X150: 0.01243399673 | Y150: 0.0001511374476 | Z150: 0.06132502483 | AA150: 0.0007454166129 | AB150: 3484.093963 | AC150: 42.34978344
H151: 148 | I151: =MMULT(_xlfn.ANCHORARRAY(I150),_xlfn.ANCHORARRAY($B$3)) -> 0.02218229386 | J151: 0.005661657811 | K151: 0.1220454162 | L151: 0.6943674211 | M151: 0.155743211 | O151: 0.01179593852 | P151: 1 | Q151: 0.01179593852 | R151: 0.01179593852 | S151: 0.01179593852 | U151: 173 | V151: 5.426066218 | W151: 0.002256726807 | X151: 0.01224514909 | Y151: 0.0001444430259 | Z151: 0.06039533142 | AA151: 0.0007124196163 | AB151: 3430.177349 | AC151: 40.46216112
H152: 149 | I152: =MMULT(_xlfn.ANCHORARRAY(I151),_xlfn.ANCHORARRAY($B$3)) -> 0.0216474858 | J152: 0.00552515704 | K152: 0.1201948922 | L152: 0.6965897748 | M152: 0.1560426902 | O152: 0.01144731585 | P152: 1 | Q152: 0.01144731585 | R152: 0.01144731585 | S152: 0.01144731585 | U152: 174 | V152: 5.426066218 | W152: 0.002222353655 | X152: 0.01205863809 | Y152: 0.000138039039 | Z152: 0.05947708693 | AA152: 0.0006808529999 | AB152: 3376.959573 | AC152: 38.65712285
H153: 150 | I153: =MMULT(_xlfn.ANCHORARRAY(I152),_xlfn.ANCHORARRAY($B$3)) -> 0.0211255718 | J153: 0.005391947258 | K153: 0.1183671665 | L153: 0.6987781837 | M153: 0.1563371307 | O153: 0.01110899654 | P153: 1 | Q153: 0.01110899654 | R153: 0.01110899654 | S153: 0.01110899654 | U153: 175 | V153: 5.426066218 | W153: 0.002188408912 | X153: 0.01187445167 | Y153: 0.0001319132425 | Z153: 0.05857023441 | AA153: 0.0006506565313 | AB153: 3324.435796 | AC153: 36.93114575
H154: 151 | I154: =MMULT(_xlfn.ANCHORARRAY(I153),_xlfn.ANCHORARRAY($B$3)) -> 0.02061624097 | J154: 0.005261949122 | K154: 0.1165621254 | L154: 0.7009330739 | M154: 0.1566266105 | O154: 0.01078067607 | P154: 1 | Q154: 0.01078067607 | R154: 0.01078067607 | S154: 0.01078067607 | U154: 176 | V154: 5.426066218 | W154: 0.002154890249 | X154: 0.01169257719 | Y154: 0.0001260538871 | Z154: 0.05767471393 | AA154: 0.0006217724085 | AB154: 3272.601055 | AC154: 35.28085189
H155: 152 | I155: =MMULT(_xlfn.ANCHORARRAY(I154),_xlfn.ANCHORARRAY($B$3)) -> 0.02011918995 | J155: 0.0051350852 | K155: 0.1147796492 | L155: 0.7030548692 | M155: 0.1569112065 | O155: 0.01046205894 | P155: 1 | Q155: 0.01046205894 | R155: 0.01046205894 | S155: 0.01046205894 | U155: 177 | V155: 5.426066218 | W155: 0.002121795232 | X155: 0.01151300143 | Y155: 0.0001204496996 | Z155: 0.05679046271 | AA155: 0.0005941451683 | AB155: 3221.450272 | AC155: 33.70300263
H156: 153 | I156: =MMULT(_xlfn.ANCHORARRAY(I155),_xlfn.ANCHORARRAY($B$3)) -> 0.01963412267 | J156: 0.005011279927 | K156: 0.1130196125 | L156: 0.7051439905 | M156: 0.1571909944 | O156: 0.01015285837 | P156: 1 | Q156: 0.01015285837 | R156: 0.01015285837 | S156: 0.01015285837 | U156: 178 | V156: 5.426066218 | W156: 0.002089121327 | X156: 0.01133571066 | Y156: 0.0001150898649 | Z156: 0.05591741526 | AA156: 0.0005677215978 | AB156: 3170.978261 | AC156: 32.19449319
H157: 154 | I157: =MMULT(_xlfn.ANCHORARRAY(I156),_xlfn.ANCHORARRAY($B$3)) -> 0.01916075021 | J157: 0.00489045956 | K157: 0.1112818845 | L157: 0.7072008564 | M157: 0.1574660493 | O157: 0.009852796061 | P157: 1 | Q157: 0.009852796061 | R157: 0.009852796061 | S157: 0.009852796061 | U157: 179 | V157: 5.426066218 | W157: 0.002056865911 | X157: 0.01116069064 | Y157: 0.0001099640088 | Z157: 0.05505550358 | AA157: 0.0005424506488 | AB157: 3121.179735 | AC157: 30.7523474
H158: 155 | I158: =MMULT(_xlfn.ANCHORARRAY(I157),_xlfn.ANCHORARRAY($B$3)) -> 0.0186987906 | J158: 0.004772552133 | K158: 0.1095663296 | L158: 0.7092258827 | M158: 0.157736445 | O158: 0.009561601931 | P158: 1 | Q158: 0.009561601931 | R158: 0.009561601931 | S158: 0.009561601931 | U158: 180 | V158: 5.426066218 | W158: 0.002025026273 | X158: 0.01098792665 | Y158: 0.0001050621807 | Z158: 0.05420465724 | AA158: 0.0005182833553 | AB158: 3072.049314 | AC158: 29.37371265
H159: 156 | I159: =MMULT(_xlfn.ANCHORARRAY(I158),_xlfn.ANCHORARRAY($B$3)) -> 0.0182479687 | J159: 0.004657487417 | K159: 0.1078728071 | L159: 0.7112194823 | M159: 0.1580022545 | O159: 0.009279013887 | P159: 1 | Q159: 0.009279013887 | R159: 0.009279013887 | S159: 0.009279013887 | U159: 181 | V159: 5.426066218 | W159: 0.001993599618 | X159: 0.01081740354 | Y159: 0.0001003748377 | Z159: 0.05336480358 | AA159: 0.0004951727535 | AB159: 3023.581528 | AC159: 28.05585499
H160: 157 | I160: =MMULT(_xlfn.ANCHORARRAY(I159),_xlfn.ANCHORARRAY($B$3)) -> 0.01780801597 | J160: 0.004545196875 | K160: 0.1062011722 | L160: 0.7131820654 | M160: 0.1582635496 | O160: 0.009004777582 | P160: 1 | Q160: 0.009004777582 | R160: 0.009004777582 | S160: 0.009004777582 | U160: 182 | V160: 5.426066218 | W160: 0.001962583075 | X160: 0.01064910572 | Y160: 9.589282851e-05 | Z160: 0.05253586778 | AA160: 0.0004730738045 | AB160: 2975.770831 | AC160: 26.79615447
H161: 158 | I161: =MMULT(_xlfn.ANCHORARRAY(I160),_xlfn.ANCHORARRAY($B$3)) -> 0.01737867036 | J161: 0.004435613622 | K161: 0.1045512755 | L161: 0.7151140391 | M161: 0.1585204014 | O161: 0.008738646185 | P161: 1 | Q161: 0.008738646185 | R161: 0.008738646185 | S161: 0.008738646185 | U161: 183 | V161: 5.426066218 | W161: 0.001931973702 | X161: 0.01048301724 | Y161: 9.160737862e-05 | Z161: 0.05171777306 | AA161: 0.0004519433203 | AB161: 2928.611597 | AC161: 25.59210056
H162: 159 | I162: =MMULT(_xlfn.ANCHORARRAY(I161),_xlfn.ANCHORARRAY($B$3)) -> 0.01695967614 | J162: 0.004328672386 | K162: 0.1029229639 | L162: 0.7170158076 | M162: 0.15877288 | O162: 0.00848038016 | P162: 1 | Q162: 0.00848038016 | R162: 0.00848038016 | S162: 0.00848038016 | U162: 184 | V162: 5.426066218 | W162: 0.001901768488 | X162: 0.01031912175 | Y162: 8.751007533e-05 | Z162: 0.05091044074 | AA162: 0.0004317398916 | AB162: 2882.098136 | AC162: 24.44128785
H163: 160 | I163: =MMULT(_xlfn.ANCHORARRAY(I162),_xlfn.ANCHORARRAY($B$3)) -> 0.01655078374 | J163: 0.00422430947 | K163: 0.1013160805 | L163: 0.7188877719 | M163: 0.1590210544 | O163: 0.008229747049 | P163: 1 | Q163: 0.008229747049 | R163: 0.008229747049 | S163: 0.008229747049 | U163: 185 | V163: 5.426066218 | W163: 0.001871964358 | X163: 0.01015740256 | Y163: 8.359285377e-05 | Z163: 0.05011379039 | AA163: 0.0004124238186 | AB163: 2836.224693 | AC163: 23.3414118
H164: 161 | I164: =MMULT(_xlfn.ANCHORARRAY(I163),_xlfn.ANCHORARRAY($B$3)) -> 0.0161517496 | J164: 0.00412246271 | K164: 0.0997304649 | L164: 0.7207303301 | M164: 0.1592649927 | O164: 0.007986521266 | P164: 1 | Q164: 0.007986521266 | R164: 0.007986521266 | S164: 0.007986521266 | U164: 186 | V164: 5.426066218 | W164: 0.001842558178 | X164: 0.009997842686 | Y164: 7.984798322e-05 | Z164: 0.04932773996 | AA164: 0.0003939570442 | AB164: 2790.985455 | AC164: 22.29026469
H165: 162 | I165: =MMULT(_xlfn.ANCHORARRAY(I164),_xlfn.ANCHORARRAY($B$3)) -> 0.01576233604 | J165: 0.004023071443 | K165: 0.09816595345 | L165: 0.7225438769 | M165: 0.1595047622 | O165: 0.007750483891 | P165: 1 | Q165: 0.007750483891 | R165: 0.007750483891 | S165: 0.007750483891 | U165: 187 | V165: 5.426066218 | W165: 0.001813546761 | X165: 0.009840424815 | Y165: 7.626805401e-05 | Z165: 0.04855220585 | AA165: 0.0003763030893 | AB165: 2746.374558 | AC165: 21.28573177
H166: 163 | I166: =MMULT(_xlfn.ANCHORARRAY(I165),_xlfn.ANCHORARRAY($B$3)) -> 0.01538231113 | J166: 0.003926076469 | K166: 0.0966223795 | L166: 0.7243288037 | M166: 0.1597404292 | O166: 0.007521422475 | P166: 1 | Q166: 0.007521422475 | R166: 0.007521422475 | S166: 0.007521422475 | U166: 188 | V166: 5.426066218 | W166: 0.001784926866 | X166: 0.009685131372 | Y166: 7.284596477e-05 | Z166: 0.04778710305 | AA166: 0.0003594269909 | AB166: 2702.386092 | AC166: 20.32578749
H167: 164 | I167: =MMULT(_xlfn.ANCHORARRAY(I166),_xlfn.ANCHORARRAY($B$3)) -> 0.01501144849 | J167: 0.003831420012 | K167: 0.09509957356 | L167: 0.7260854989 | M167: 0.159972059 | O167: 0.007299130847 | P167: 1 | Q167: 0.007299130847 | R167: 0.007299130847 | S167: 0.007299130847 | U167: 189 | V167: 5.426066218 | W167: 0.001756695207 | X167: 0.00953194452 | Y167: 6.957491028e-05 | Z167: 0.04703234523 | AA167: 0.0003432952419 | AB167: 2659.014103 | AC167: 19.40849186
H168: 165 | I168: =MMULT(_xlfn.ANCHORARRAY(I167),_xlfn.ANCHORARRAY($B$3)) -> 0.01464952724 | J168: 0.003739045692 | K168: 0.09359736353 | L168: 0.7278143474 | M168: 0.1601997162 | O168: 0.007083408929 | P168: 1 | Q168: 0.007083408929 | R168: 0.007083408929 | S168: 0.007083408929 | U168: 190 | V168: 5.426066218 | W168: 0.001728848453 | X168: 0.009380846189 | Y168: 6.644836966e-05 | Z168: 0.04628784484 | AA168: 0.0003278757335 | AB168: 2616.252601 | AC168: 18.53198703
H169: 166 | I169: =MMULT(_xlfn.ANCHORARRAY(I168),_xlfn.ANCHORARRAY($B$3)) -> 0.01429633179 | J169: 0.003648898488 | K169: 0.0921155749 | L169: 0.7295157306 | M169: 0.1604234642 | O169: 0.006874062557 | P169: 1 | Q169: 0.006874062557 | R169: 0.006874062557 | S169: 0.006874062557 | U169: 191 | V169: 5.426066218 | W169: 0.001701383233 | X169: 0.009231818087 | Y169: 6.346009505e-05 | Z169: 0.04555351321 | AA169: 0.0003131376995 | AB169: 2574.095562 | AC169: 17.69449392
H170: 167 | I170: =MMULT(_xlfn.ANCHORARRAY(I169),_xlfn.ANCHORARRAY($B$3)) -> 0.01395165177 | J170: 0.003560924705 | K170: 0.09065403093 | L170: 0.7311900268 | M170: 0.1606433658 | O170: 0.006670903306 | P170: 1 | Q170: 0.006670903306 | R170: 0.006670903306 | S170: 0.006670903306 | U170: 192 | V170: 5.426066218 | W170: 0.00167429614 | X170: 0.009084841725 | Y170: 6.06041007e-05 | Z170: 0.04482926064 | AA170: 0.0002990516631 | AB170: 2532.536934 | AC170: 16.89430901
H171: 168 | I171: =MMULT(_xlfn.ANCHORARRAY(I170),_xlfn.ANCHORARRAY($B$3)) -> 0.01361528188 | J171: 0.003475071941 | K171: 0.08921255283 | L171: 0.7328376105 | M171: 0.1608594829 | O171: 0.006473748318 | P171: 1 | Q171: 0.006473748318 | R171: 0.006473748318 | S171: 0.006473748318 | U171: 193 | V171: 5.426066218 | W171: 0.001647583732 | X171: 0.00893989843 | Y171: 5.787465243e-05 | Z171: 0.04411499649 | AA171: 0.0002855893843 | AB171: 2491.570641 | AC171: 16.12980125
H172: 169 | I172: =MMULT(_xlfn.ANCHORARRAY(I171),_xlfn.ANCHORARRAY($B$3)) -> 0.01328702176 | J172: 0.00339128906 | K172: 0.08779095994 | L172: 0.734458853 | M172: 0.1610718762 | O172: 0.006282420141 | P172: 1 | Q172: 0.006282420141 | R172: 0.006282420141 | S172: 0.006282420141 | U172: 194 | V172: 5.426066218 | W172: 0.001621242538 | X172: 0.008796969366 | Y172: 5.526625752e-05 | Z172: 0.04341062924 | AA172: 0.0002727238114 | AB172: 2451.190587 | AC172: 15.39940911
H173: 170 | I173: =MMULT(_xlfn.ANCHORARRAY(I172),_xlfn.ANCHORARRAY($B$3)) -> 0.01296667588 | J173: 0.003309526158 | K173: 0.08638906992 | L173: 0.7360541221 | M173: 0.161280606 | O173: 0.006096746566 | P173: 1 | Q173: 0.006096746566 | R173: 0.006096746566 | S173: 0.006096746566 | U173: 195 | V173: 5.426066218 | W173: 0.001595269058 | X173: 0.008656035547 | Y173: 5.277365499e-05 | Z173: 0.04271606661 | AA173: 0.0002604290324 | AB173: 2411.390658 | AC173: 14.70163771
